Workbook

Sheet Database Sheet
D1: Note: You may need to change the column name for the Average and the Poly | L1: =COLUMN() -> 12 | M1: =COLUMN() -> 13 | N1: =COLUMN() -> 14 | O1: =COLUMN() -> 15 | P1: =COLUMN() -> 16 | Q1: =COLUMN() -> 17 | R1: =COLUMN() -> 18 | S1: =COLUMN() -> 19 | T1: =COLUMN() -> 20 | U1: =COLUMN() -> 21 | V1: =COLUMN() -> 22 | W1: =COLUMN() -> 23 | X1: =COLUMN() -> 24 | Y1: =COLUMN() -> 25 | Z1: =COLUMN() -> 26 | AA1: =COLUMN() -> 27 | AB1: =COLUMN() -> 28 | AC1: =COLUMN() -> 29 | AD1: =COLUMN() -> 30 | AE1: =COLUMN() -> 31 | AF1: =COLUMN() -> 32 | AG1: =COLUMN() -> 33 | AH1: =COLUMN() -> 34 | AI1: =COLUMN() -> 35 | AJ1: =COLUMN() -> 36 | AK1: =COLUMN() -> 37 | AL1: =COLUMN() -> 38 | AM1: =COLUMN() -> 39 | AN1: =COLUMN() -> 40 | AO1: =COLUMN() -> 41 | AP1: =COLUMN() -> 42 | AQ1: =COLUMN() -> 43 | AR1: =COLUMN() -> 44 | AS1: =COLUMN() -> 45 | AT1: =COLUMN() -> 46 | AU1: =COLUMN() -> 47 | AV1: =COLUMN() -> 48 | AW1: =COLUMN() -> 49 | AX1: =COLUMN() -> 50 | AY1: =COLUMN() -> 51 | AZ1: =COLUMN() -> 52 | BA1: =COLUMN() -> 53 | BB1: =COLUMN() -> 54 | BC1: =COLUMN() -> 55 | BD1: =COLUMN() -> 56 | BE1: =COLUMN() -> 57 | BF1: =COLUMN() -> 58 | BG1: =COLUMN() -> 59 | BH1: =COLUMN() -> 60 | BI1: =COLUMN() -> 61 | BJ1: =COLUMN() -> 62 | BK1: =COLUMN() -> 63 | BL1: =COLUMN() -> 64 | BM1: =COLUMN() -> 65 | BN1: =COLUMN() -> 66 | BO1: =COLUMN() -> 67 | BP1: =COLUMN() -> 68 | BQ1: =COLUMN() -> 69 | BR1: =COLUMN() -> 70 | BS1: =COLUMN() -> 71 | BT1: =COLUMN() -> 72 | BU1: =COLUMN() -> 73 | BV1: =COLUMN() -> 74 | BW1: =COLUMN() -> 75 | BX1: =COLUMN() -> 76 | BY1: =COLUMN() -> 77 | BZ1: =COLUMN() -> 78 | CA1: =COLUMN() -> 79 | CB1: =COLUMN() -> 80 | CC1: =COLUMN() -> 81 | CD1: =COLUMN() -> 82 | CE1: =COLUMN() -> 83 | CF1: =COLUMN() -> 84 | CG1: =COLUMN() -> 85 | CH1: =COLUMN() -> 86 | CI1: =COLUMN() -> 87 | CJ1: =COLUMN() -> 88 | CK1: =COLUMN() -> 89 | CL1: =COLUMN() -> 90 | CM1: =COLUMN() -> 91 | CN1: =COLUMN() -> 92 | CO1: =COLUMN() -> 93 | CP1: =COLUMN() -> 94 | CQ1: =COLUMN() -> 95 | CR1: =COLUMN() -> 96 | CS1: =COLUMN() -> 97 | CT1: =COLUMN() -> 98 | CU1: =COLUMN() -> 99 | CV1: =COLUMN() -> 100 | CW1: =COLUMN() -> 101 | CX1: =COLUMN() -> 102 | CY1: =COLUMN() -> 103 | CZ1: =COLUMN() -> 104 | DA1: =COLUMN() -> 105 | DB1: =COLUMN() -> 106 | DC1: =COLUMN() -> 107 | DD1: =COLUMN() -> 108 | DE1: =COLUMN() -> 109 | DF1: =COLUMN() -> 110 | DG1: =COLUMN() -> 111 | DH1: =COLUMN() -> 112 | DI1: =COLUMN() -> 113 | DJ1: =COLUMN() -> 114 | DK1: =COLUMN() -> 115
D2: Also, be careful with the names | G2: FALSE | K2: Uses Function sheet_name1
C3: http://pvinsights.com/ | BT3: =BT7=sheets_function1 -> FALSE | BU3: FALSE | BV3: FALSE | BW3: FALSE | BX3: FALSE | BY3: =BY7=sheets_function1 -> FALSE | BZ3: FALSE | CA3: =CA7=sheets_function1 -> FALSE | CB3: FALSE | CC3: =CC7=sheets_function1 -> FALSE | CD3: =CD7=sheets_function1 -> FALSE | CE3: FALSE | CF3: =CF7=sheets_function1 -> FALSE | CG3: FALSE | CH3: =CH7=sheets_function1 -> FALSE | CI3: FALSE | CJ3: =CJ7=sheets_function1 -> FALSE | CK3: FALSE | CL3: =CL7=sheets_function1 -> FALSE | CM3: FALSE | CN3: =CN7=sheets_function1 -> FALSE | CO3: =CO7=sheets_function1 -> FALSE | CP3: =CP7=sheets_function1 -> FALSE | CQ3: =CQ7=sheets_function1 -> FALSE | CR3: =CR7=sheets_function1 -> FALSE | CS3: =CS7=sheets_function1 -> FALSE | CT3: FALSE | CU3: =CU7=sheets_function1 -> FALSE | CV3: FALSE | CW3: =CW7=sheets_function1 -> FALSE | CX3: FALSE | CY3: =CY7=sheets_function1 -> FALSE | CZ3: FALSE | DA3: =DA7=sheets_function1 -> FALSE | DB3: FALSE | DC3: =DC7=sheets_function1 -> FALSE | DD3: FALSE | DE3: =DE7=sheets_function1 -> FALSE | DF3: FALSE | DG3: =DG7=sheets_function1 -> FALSE | DH3: =DH7=sheets_function1 -> FALSE | DI3: FALSE | DJ3: =DJ7=sheets_function1 -> TRUE | DK3: FALSE
C4: =sheet_name1('pvinsights 05 02 15'!A33:E33) -> pvinsights 05 02 15
K5: Name to Lookup in Sheet | L5: ='pvinsights 05 02 15'!I39 -> Average | M5: =L5 -> Average | N5: =M5 -> Average | O5: Average | P5: Average | Q5: Average | R5: Average | S5: Average | T5: Average | U5: Average | V5: Average | W5: Average | X5: Average | Y5: Average | Z5: Average | AA5: Average | AB5: Average | AC5: Average | AD5: Average | AE5: Average | AF5: Average | AG5: Average | AH5: Average | AI5: Average | AJ5: Average | AK5: Average | AL5: Average | AM5: Average | AN5: Average | AO5: Average | AP5: Average | AQ5: Average | AR5: Average | AS5: Average | AT5: Average | AU5: Average | AV5: Average | AW5: Average | AX5: Average | AY5: Average | AZ5: Average | BA5: Average | BB5: Average | BC5: Average | BD5: Average | BE5: Average | BF5: Average | BG5: Average | BH5: Average | BI5: Average | BJ5: Average | BK5: Average | BL5: Average | BM5: Average | BN5: Average | BO5: Average | BP5: Average | BQ5: Average | BR5: Average | BS5: Average | BT5: Average | BU5: Average | BV5: Average | BW5: Average | BX5: Average | BY5: Average | BZ5: Average | CA5: Average | CB5: Average | CC5: Average | CD5: Average | CE5: Average | CF5: Average | CG5: Average | CH5: Average | CI5: Average | CJ5: Average | CK5: Average | CL5: Average | CM5: Average | CN5: Average | CO5: Average | CP5: Average | CQ5: Average | CR5: Average | CS5: Average | CT5: Average | CU5: Average | CV5: Average | CW5: Average | CX5: Average | CY5: Average | CZ5: Average | DA5: Average | DB5: Average | DC5: Average | DD5: Average | DE5: Average | DF5: Average | DG5: Average | DH5: Average | DI5: Average | DJ5: Average | DK5: Average
L6: =MID(L9,16,2)&" "&RIGHT(L7,2) -> 02 15 | M6: =MID(M9,16,2)&" "&RIGHT(M7,2) -> 05 15 | N6: 06 15 | O6: 05 15 | P6: 11 15 | Q6: 07 16 | R6: 10 16 | S6: 01 17 | T6: =MID(T9,16,2)&" "&RIGHT(T7,2) -> 02 17 | U6: 04 17 | V6: =MID(V9,16,2)&" "&RIGHT(V7,2) -> 06 17 | W6: 08 17 | X6: =MID(X9,16,2)&" "&RIGHT(X7,2) -> 09 17 | Y6: 10 17 | Z6: =MID(Z9,16,2)&" "&RIGHT(Z7,2) -> 11 17 | AA6: =MID(AA9,16,2)&" "&RIGHT(AA7,2) -> 02 18 | AB6: 04 18 | AC6: 06 18 | AD6: 07 18 | AE6: 08 18 | AF6: 09 18 | AG6: 10 18 | AH6: =MID(AH9,16,2)&" "&RIGHT(AH7,2) -> 12 18 | AI6: 01 19 | AJ6: =MID(AJ9,16,2)&" "&RIGHT(AJ7,2) -> 01 19 | AK6: 03 19 | AL6: =MID(AL9,16,2)&" "&RIGHT(AL7,2) -> 05 19 | AM6: 05 19 | AN6: =MID(AN9,16,2)&" "&RIGHT(AN7,2) -> 06 19 | AO6: 08 19 | AP6: =MID(AP9,16,2)&" "&RIGHT(AP7,2) -> 09 19 | AQ6: 11 19 | AR6: =MID(AR9,16,2)&" "&RIGHT(AR7,2) -> 12 19 | AS6: 12 19 | AT6: =MID(AT9,16,2)&" "&RIGHT(AT7,2) -> 02 20 | AU6: 04 20 | AV6: =MID(AV9,16,2)&" "&RIGHT(AV7,2) -> 05 20 | AW6: 06 20 | AX6: =MID(AX9,16,2)&" "&RIGHT(AX7,2) -> 07 20 | AY6: 08 20 | AZ6: =MID(AZ9,16,2)&" "&RIGHT(AZ7,2) -> 09 20 | BA6: =MID(BA9,16,2)&" "&RIGHT(BA7,2) -> 10 20 | BB6: 11 20 | BC6: =MID(BC9,16,2)&" "&RIGHT(BC7,2) -> 01 21 | BD6: 01 21 | BE6: =MID(BE9,16,2)&" "&RIGHT(BE7,2) -> 02 21 | BF6: 03 21 | BG6: =MID(BG9,16,2)&" "&RIGHT(BG7,2) -> 05 21 | BH6: 06 21 | BI6: =MID(BI9,16,2)&" "&RIGHT(BI7,2) -> 07 21 | BJ6: =MID(BJ9,16,2)&" "&RIGHT(BJ7,2) -> 07 21 | BK6: 08 21 | BL6: =MID(BL9,16,2)&" "&RIGHT(BL7,2) -> 09 21 | BM6: 11 21 | BN6: =MID(BN9,16,2)&" "&RIGHT(BN7,2) -> 12 21 | BO6: 01 22 | BP6: =MID(BP9,16,2)&" "&RIGHT(BP7,2) -> 02 22 | BQ6: 03 22 | BR6: =MID(BR9,16,2)&" "&RIGHT(BR7,2) -> 04 22 | BS6: 05 22 | BT6: =MID(BT9,16,2)&" "&RIGHT(BT7,2) -> 06 22 | BU6: 06 22 | BV6: =MID(BV9,16,2)&" "&RIGHT(BV7,2) -> 08 22 | BW6: 09 22 | BX6: =MID(BX9,16,2)&" "&RIGHT(BX7,2) -> 10 22 | BY6: =MID(BY9,16,2)&" "&RIGHT(BY7,2) -> 10 22 | BZ6: 11 22 | CA6: 01 23 | CB6: 01 23 | CC6: 02 23 | CD6: 04 23 | CE6: 05 23 | CF6: =MID(CF9,16,2)&" "&RIGHT(CF7,2) -> 06 23 | CG6: 07 23 | CH6: =MID(CH9,16,2)&" "&RIGHT(CH7,2) -> 08 23 | CI6: 08 23 | CJ6: =MID(CJ9,16,2)&" "&RIGHT(CJ7,2) -> 10 23 | CK6: 11 23 | CL6: =MID(CL9,16,2)&" "&RIGHT(CL7,2) -> 11 23 | CM6: 01 24 | CN6: =MID(CN9,16,2)&" "&RIGHT(CN7,2) -> 02 24 | CO6: =MID(CO9,16,2)&" "&RIGHT(CO7,2) -> 03 24 | CP6: =MID(CP9,16,2)&" "&RIGHT(CP7,2) -> 05 24 | CQ6: =MID(CQ9,16,2)&" "&RIGHT(CQ7,2) -> 06 24 | CR6: =MID(CR9,16,2)&" "&RIGHT(CR7,2) -> 06 24 | CS6: =MID(CS9,16,2)&" "&RIGHT(CS7,2) -> 07 24 | CT6: 07 24 | CU6: =MID(CU9,16,2)&" "&RIGHT(CU7,2) -> 08 24 | CV6: 09 24 | CW6: =MID(CW9,16,2)&" "&RIGHT(CW7,2) -> 09 24 | CX6: 10 24 | CY6: =MID(CY9,16,2)&" "&RIGHT(CY7,2) -> 11 24 | CZ6: 01 25 | DA6: =MID(DA9,16,2)&" "&RIGHT(DA7,2) -> 03 25 | DB6: 04 25 | DC6: =MID(DC9,16,2)&" "&RIGHT(DC7,2) -> 06 25 | DD6: 07 25 | DE6: =MID(DE9,16,2)&" "&RIGHT(DE7,2) -> 09 25 | DF6: 10 25 | DG6: =MID(DG9,16,2)&" "&RIGHT(DG7,2) -> 11 25 | DH6: =MID(DH9,16,2)&" "&RIGHT(DH7,2) -> 12 25 | DI6: 01 26 | DJ6: =MID(DJ9,16,2)&" "&RIGHT(DJ7,2) -> 02 26 | DK6: 03 26
C7: Number Sheets function | D7: =num_sheets() -> 122 | G7: File Row | H7: =ROW() -> 7 | K7: Fixed Sheet Name | L7: pvinsights 05 02 15 | M7: pvinsights 29 05 15 | N7: pvinsights 15 06 15 | O7: pvinsights 29 05 15 | P7: pvinsights 13 11 15 | Q7: pvinsights 31 07 16 | R7: pvinsights 02 10 16 | S7: pvinsights 08 01 17 | T7: pvinsights 26 02 17 | U7: pvinsights 06 04 17 | V7: pvinsights 01 06 17 | W7: pvinsights 26 08 17 | X7: pvinsights 16 09 17 | Y7: pvinsights 30 10 17 | Z7: pvinsights 20 11 17 | AA7: pvinsights 01 02 18 | AB7: pvinsights 09 04 18 | AC7: pvinsights 05 06 18 | AD7: pvinsights 09 07 18 | AE7: pvinsights 31 08 18 | AF7: pvinsights 21 09 18 | AG7: pvinsights 31 10 18 | AH7: pvinsights 02 12 18 | AI7: pvinsights 02 01 19 | AJ7: pvinsights 29 01 19 | AK7: pvinsights 05 03 19 | AL7: pvinsights 07 05 19 | AM7: pvinsights 19 05 19 | AN7: pvinsights 27 06 19 | AO7: pvinsights 12 08 19 | AP7: pvinsights 07 09 19 | AQ7: pvinsights 24 11 19 | AR7: pvinsights 13 12 19 | AS7: pvinsights 22 12 19 | AT7: pvinsights 08 02 20 | AU7: pvinsights 25 04 20 | AV7: pvinsights 25 05 20 | AW7: pvinsights 26 06 20 | AX7: pvinsights 28 07 20 | AY7: pvinsights 16 08 20 | AZ7: pvinsights 19 09 20 | BA7: pvinsights 06 10 20 | BB7: pvinsights 30 11 20 | BC7: pvinsights 11 01 21 | BD7: pvinsights 22 01 21 | BE7: pvinsights 21 02 21 | BF7: pvinsights 21 03 21 | BG7: pvinsights 04 05 21 | BH7: pvinsights 28 06 21 | BI7: pvinsights 12 07 21 | BJ7: pvinsights 18 07 21 | BK7: pvinsights 09 08 21 | BL7: pvinsights 24 09 21 | BM7: pvinsights 05 11 21 | BN7: pvinsights 12 12 21 | BO7: pvinsights 18 01 22 | BP7: pvinsights 23 02 22 | BQ7: pvinsights 13 03 22 | BR7: pvinsights 13 04 22 | BS7: pvinsights 08 05 22 | BT7: pvinsights 06 06 22 | BU7: pvinsights 26 06 22 | BV7: pvinsights 24 08 22 | BW7: pvinsights 17 09 22 | BX7: pvinsights 02 10 22 | BY7: pvinsights 25 10 22 | BZ7: pvinsights 14 11 22 | CA7: pvinsights 16 01 23 | CB7: pvinsights 17 01 23 | CC7: pvinsights 24 02 23 | CD7: pvinsights 07 04 23 | CE7: pvinsights 08 05 23 | CF7: pvinsights 23 06 23 | CG7: pvinsights 13 07 23 | CH7: pvinsights 25 08 23 | CI7: pvinsights 28 08 23 | CJ7: pvinsights 14 10 23 | CK7: pvinsights 12 11 23 | CL7: pvinsights 30 11 23 | CM7: pvinsights 20 01 24 | CN7: pvinsights 22 02 24 | CO7: pvinsights 13 03 24 | CP7: pvinsights 14 05 24 | CQ7: pvinsights 06 06 24 | CR7: pvinsights 23 06 24 | CS7: pvinsights 14 07 24 | CT7: pvinsights 25 07 24 | CU7: pvinsights 11 08 24 | CV7: pvinsights 07 09 24 | CW7: pvinsights 27 09 24 | CX7: pvinsights 20 10 24 | CY7: pvinsights 09 11 24 | CZ7: pvinsights 26 01 25 | DA7: pvinsights 14 03 25 | DB7: pvinsights 16 04 25 | DC7: pvinsights 08 06 25 | DD7: pvinsights 25 07 25 | DE7: pvinsights 01 09 25 | DF7: pvinsights 17 10 25 | DG7: pvinsights 03 11 25 | DH7: pvinsights 05 12 25 | DI7: pvinsights 16 01 26 | DJ7: pvinsights 24 02 26 | DK7: pvinsights 10 03 26
C8: Last Sheet Name function | D8: =sheet_name_num(D7-1) -> pvinsights 24 02 26 | E8: Col | F8: =MATCH(D8,7:7,0) -> 114 | G8: Last Col | K8: Column of Average in Detail Sheet | L8: I | M8: I | N8: I | O8: I | P8: I | Q8: I | R8: I | S8: I | T8: I | U8: I | V8: I | W8: I | X8: I | Y8: I | Z8: I | AA8: I | AB8: I | AC8: I | AD8: I | AE8: I | AF8: I | AG8: I | AH8: I | AI8: I | AJ8: I | AK8: I | AL8: I | AM8: I | AN8: I | AO8: I | AP8: I | AQ8: I | AR8: I | AS8: I | AT8: I | AU8: I | AV8: I | AW8: I | AX8: I | AY8: I | AZ8: I | BA8: I | BB8: I | BC8: I | BD8: I | BE8: G | BF8: G | BG8: G | BH8: G | BI8: G | BJ8: G | BK8: G | BL8: G | BM8: G | BN8: G | BO8: G | BP8: G | BQ8: G | BR8: G | BS8: G | BT8: G | BU8: G | BV8: G | BW8: G | BX8: G | BY8: G | BZ8: G | CA8: G | CB8: G | CC8: G | CD8: G | CE8: G | CF8: G | CG8: G | CH8: G | CI8: G | CJ8: G | CK8: G | CL8: G | CM8: G | CN8: G | CO8: G | CP8: G | CQ8: G | CR8: G | CS8: G | CT8: G | CU8: G | CV8: G | CW8: G | CX8: G | CY8: G | CZ8: G | DA8: G | DB8: G | DC8: G | DD8: G | DE8: G | DF8: G | DG8: G | DH8: G | DI8: G | DJ8: G | DK8: G
C9: Current Last Sheet | D9: =sheet_name_num(D7) -> pvinsights 10 03 26 | K9: Indirect Key for Polysilicon | L9: ="'"&L$7&"'!"&L8&":"&L8 -> 'pvinsights 05 02 15'!I:I | M9: ="'"&M7&"'!"&M8&":"&M8 -> 'pvinsights 29 05 15'!I:I | N9: 'pvinsights 15 06 15'!I:I | O9: ="'"&O7&"'!"&O8&":"&O8 -> 'pvinsights 29 05 15'!I:I | P9: 'pvinsights 13 11 15'!I:I | Q9: 'pvinsights 31 07 16'!I:I | R9: 'pvinsights 02 10 16'!I:I | S9: 'pvinsights 08 01 17'!I:I | T9: 'pvinsights 26 02 17'!I:I | U9: ="'"&U7&"'!"&U8&":"&U8 -> 'pvinsights 06 04 17'!I:I | V9: 'pvinsights 01 06 17'!I:I | W9: 'pvinsights 26 08 17'!I:I | X9: 'pvinsights 16 09 17'!I:I | Y9: 'pvinsights 30 10 17'!I:I | Z9: 'pvinsights 20 11 17'!I:I | AA9: 'pvinsights 01 02 18'!I:I | AB9: ="'"&AB7&"'!"&AB8&":"&AB8 -> 'pvinsights 09 04 18'!I:I | AC9: 'pvinsights 05 06 18'!I:I | AD9: 'pvinsights 09 07 18'!I:I | AE9: 'pvinsights 31 08 18'!I:I | AF9: 'pvinsights 21 09 18'!I:I | AG9: 'pvinsights 31 10 18'!I:I | AH9: 'pvinsights 02 12 18'!I:I | AI9: ="'"&AI7&"'!"&AI8&":"&AI8 -> 'pvinsights 02 01 19'!I:I | AJ9: 'pvinsights 29 01 19'!I:I | AK9: ="'"&AK7&"'!"&AK8&":"&AK8 -> 'pvinsights 05 03 19'!I:I | AL9: 'pvinsights 07 05 19'!I:I | AM9: ="'"&AM7&"'!"&AM8&":"&AM8 -> 'pvinsights 19 05 19'!I:I | AN9: 'pvinsights 27 06 19'!I:I | AO9: ="'"&AO7&"'!"&AO8&":"&AO8 -> 'pvinsights 12 08 19'!I:I | AP9: 'pvinsights 07 09 19'!I:I | AQ9: ="'"&AQ7&"'!"&AQ8&":"&AQ8 -> 'pvinsights 24 11 19'!I:I | AR9: ="'"&AR7&"'!"&AR8&":"&AR8 -> 'pvinsights 13 12 19'!I:I | AS9: 'pvinsights 22 12 19'!I:I | AT9: ="'"&AT7&"'!"&AT8&":"&AT8 -> 'pvinsights 08 02 20'!I:I | AU9: 'pvinsights 25 04 20'!I:I | AV9: ="'"&AV7&"'!"&AV8&":"&AV8 -> 'pvinsights 25 05 20'!I:I | AW9: 'pvinsights 26 06 20'!I:I | AX9: ="'"&AX7&"'!"&AX8&":"&AX8 -> 'pvinsights 28 07 20'!I:I | AY9: 'pvinsights 16 08 20'!I:I | AZ9: ="'"&AZ7&"'!"&AZ8&":"&AZ8 -> 'pvinsights 19 09 20'!I:I | BA9: ="'"&BA7&"'!"&BA8&":"&BA8 -> 'pvinsights 06 10 20'!I:I | BB9: 'pvinsights 30 11 20'!I:I | BC9: ="'"&BC7&"'!"&BC8&":"&BC8 -> 'pvinsights 11 01 21'!I:I | BD9: 'pvinsights 22 01 21'!I:I | BE9: ="'"&BE7&"'!"&BE8&":"&BE8 -> 'pvinsights 21 02 21'!G:G | BF9: 'pvinsights 21 03 21'!G:G | BG9: ="'"&BG7&"'!"&BG8&":"&BG8 -> 'pvinsights 04 05 21'!G:G | BH9: 'pvinsights 28 06 21'!G:G | BI9: ="'"&BI7&"'!"&BI8&":"&BI8 -> 'pvinsights 12 07 21'!G:G | BJ9: ="'"&BJ7&"'!"&BJ8&":"&BJ8 -> 'pvinsights 18 07 21'!G:G | BK9: 'pvinsights 09 08 21'!G:G | BL9: ="'"&BL7&"'!"&BL8&":"&BL8 -> 'pvinsights 24 09 21'!G:G | BM9: 'pvinsights 05 11 21'!G:G | BN9: ="'"&BN7&"'!"&BN8&":"&BN8 -> 'pvinsights 12 12 21'!G:G | BO9: 'pvinsights 18 01 22'!G:G | BP9: ="'"&BP7&"'!"&BP8&":"&BP8 -> 'pvinsights 23 02 22'!G:G | BQ9: 'pvinsights 13 03 22'!G:G | BR9: ="'"&BR7&"'!"&BR8&":"&BR8 -> 'pvinsights 13 04 22'!G:G | BS9: 'pvinsights 08 05 22'!G:G | BT9: ="'"&BT7&"'!"&BT8&":"&BT8 -> 'pvinsights 06 06 22'!G:G | BU9: 'pvinsights 26 06 22'!G:G | BV9: ="'"&BV7&"'!"&BV8&":"&BV8 -> 'pvinsights 24 08 22'!G:G | BW9: 'pvinsights 17 09 22'!G:G | BX9: ="'"&BX7&"'!"&BX8&":"&BX8 -> 'pvinsights 02 10 22'!G:G | BY9: 'pvinsights 25 10 22'!G:G | BZ9: ="'"&BZ7&"'!"&BZ8&":"&BZ8 -> 'pvinsights 14 11 22'!G:G | CA9: 'pvinsights 16 01 23'!G:G | CB9: ="'"&CB7&"'!"&CB8&":"&CB8 -> 'pvinsights 17 01 23'!G:G | CC9: ="'"&CC7&"'!"&CC8&":"&CC8 -> 'pvinsights 24 02 23'!G:G | CD9: ="'"&CD7&"'!"&CD8&":"&CD8 -> 'pvinsights 07 04 23'!G:G | CE9: 'pvinsights 08 05 23'!G:G | CF9: ="'"&CF7&"'!"&CF8&":"&CF8 -> 'pvinsights 23 06 23'!G:G | CG9: 'pvinsights 13 07 23'!G:G | CH9: ="'"&CH7&"'!"&CH8&":"&CH8 -> 'pvinsights 25 08 23'!G:G | CI9: 'pvinsights 28 08 23'!G:G | CJ9: ="'"&CJ7&"'!"&CJ8&":"&CJ8 -> 'pvinsights 14 10 23'!G:G | CK9: 'pvinsights 12 11 23'!G:G | CL9: ="'"&CL7&"'!"&CL8&":"&CL8 -> 'pvinsights 30 11 23'!G:G | CM9: 'pvinsights 20 01 24'!G:G | CN9: ="'"&CN7&"'!"&CN8&":"&CN8 -> 'pvinsights 22 02 24'!G:G | CO9: ="'"&CO7&"'!"&CO8&":"&CO8 -> 'pvinsights 13 03 24'!G:G | CP9: ="'"&CP7&"'!"&CP8&":"&CP8 -> 'pvinsights 14 05 24'!G:G | CQ9: ="'"&CQ7&"'!"&CQ8&":"&CQ8 -> 'pvinsights 06 06 24'!G:G | CR9: ="'"&CR7&"'!"&CR8&":"&CR8 -> 'pvinsights 23 06 24'!G:G | CS9: ="'"&CS7&"'!"&CS8&":"&CS8 -> 'pvinsights 14 07 24'!G:G | CT9: 'pvinsights 25 07 24'!G:G | CU9: ="'"&CU7&"'!"&CU8&":"&CU8 -> 'pvinsights 11 08 24'!G:G | CV9: 'pvinsights 07 09 24'!G:G | CW9: ="'"&CW7&"'!"&CW8&":"&CW8 -> 'pvinsights 27 09 24'!G:G | CX9: 'pvinsights 20 10 24'!G:G | CY9: ="'"&CY7&"'!"&CY8&":"&CY8 -> 'pvinsights 09 11 24'!G:G | CZ9: 'pvinsights 26 01 25'!G:G | DA9: ="'"&DA7&"'!"&DA8&":"&DA8 -> 'pvinsights 14 03 25'!G:G | DB9: 'pvinsights 16 04 25'!G:G | DC9: ="'"&DC7&"'!"&DC8&":"&DC8 -> 'pvinsights 08 06 25'!G:G | DD9: 'pvinsights 25 07 25'!G:G | DE9: ="'"&DE7&"'!"&DE8&":"&DE8 -> 'pvinsights 01 09 25'!G:G | DF9: 'pvinsights 17 10 25'!G:G | DG9: ="'"&DG7&"'!"&DG8&":"&DG8 -> 'pvinsights 03 11 25'!G:G | DH9: ="'"&DH7&"'!"&DH8&":"&DH8 -> 'pvinsights 05 12 25'!G:G | DI9: 'pvinsights 16 01 26'!G:G | DJ9: ="'"&DJ7&"'!"&DJ8&":"&DJ8 -> 'pvinsights 24 02 26'!G:G | DK9: 'pvinsights 10 03 26'!G:G
E10: Row | G10: High | H10: Low | I10: Average | BF10: Match of Average | BG10: Match of Average | BH10: Match of Average | BI10: Match of Average | BJ10: Match of Average | BK10: Match of Average | BL10: Match of Average | BM10: Match of Average | BN10: Match of Average | BO10: Match of Average | BP10: Match of Average | BQ10: Match of Average | BR10: Match of Average | BS10: Match of Average | BT10: Match of Average | BU10: Match of Average | BV10: Match of Average | BW10: Match of Average | BX10: Match of Average | BY10: Match of Average | BZ10: Match of Average | CA10: Match of Average | CB10: Match of Average | CC10: Match of Average | CD10: Match of Average | CE10: Match of Average | CF10: Match of Average | CG10: Match of Average | CH10: Match of Average | CI10: Match of Average | CJ10: Match of Average | CK10: Match of Average | CL10: Match of Average | CM10: Match of Average | CN10: Match of Average | CO10: Match of Average | CP10: Match of Average | CQ10: Match of Average | CR10: Match of Average | CS10: Match of Average | CT10: Match of Average | CU10: Match of Average | CV10: Match of Average | CW10: Match of Average | CX10: Match of Average | CY10: Match of Average | CZ10: Match of Average | DA10: Match of Average | DB10: Match of Average | DC10: Match of Average | DD10: Match of Average | DE10: Match of Average | DF10: Match of Average | DG10: Match of Average | DH10: Match of Average | DI10: Match of Average | DJ10: Match of Average | DK10: Match of Average
C11: Poly Silicon Solar Module | D11: =R7 -> pvinsights 02 10 16 | E11: =match_partial(C11,"F",10,D11,50) -> 41 | G11: =INDEX(INDIRECT("'"&$D11&"'!G:G"),'Database Sheet'!$E$11) -> 0.53 | H11: =INDEX(INDIRECT("'"&$D11&"'!H:H"),'Database Sheet'!$E$11) -> 0.34 | I11: =INDEX(INDIRECT("'"&$D11&"'!I:I"),'Database Sheet'!$E$11) -> 0.402 | K11: PV Grade Silicon Price | L11: =INDEX(INDIRECT(L9),MATCH(L5,INDIRECT(L9),0)+1) -> 19.08 | M11: =INDEX(INDIRECT(M9),MATCH(M5,INDIRECT(M9),0)+1) -> 15.79 | N11: 15.58 | O11: 15.79 | P11: 14.1 | Q11: 15.9 | R11: =INDEX(INDIRECT(R9),MATCH(R5,INDIRECT(R9),0)+1) -> 12.65 | S11: 15.37 | T11: =INDEX(INDIRECT(T9),MATCH(T5,INDIRECT(T9),0)+1) -> 16.22 | U11: =INDEX(INDIRECT(U9),MATCH(U5,INDIRECT(U9),0)+1) -> 14.21 | V11: 13.85 | W11: 15.55 | X11: 16.71 | Y11: 16.68 | Z11: 16.66 | AA11: =INDEX(INDIRECT(AA9),MATCH(AA5,INDIRECT(AA9),0)+1) -> 17.44 | AB11: 15.41 | AC11: =INDEX(INDIRECT(AC9),MATCH(AC5,INDIRECT(AC9),0)+1) -> 14.65 | AD11: 11.16 | AE11: =INDEX(INDIRECT(AE9),MATCH(AE5,INDIRECT(AE9),0)+1) -> 11.26 | AF11: 10.68 | AG11: =INDEX(INDIRECT(AG9),MATCH(AG5,INDIRECT(AG9),0)+1) -> 9.75 | AH11: 9.53 | AI11: =INDEX(INDIRECT(AI9),MATCH(AI5,INDIRECT(AI9),0)+1) -> 9.26 | AJ11: 8.9 | AK11: =INDEX(INDIRECT(AK9),MATCH(AK5,INDIRECT(AK9),0)+1) -> 9.04 | AL11: 8.42 | AM11: =INDEX(INDIRECT(AM9),MATCH(AM5,INDIRECT(AM9),0)+1) -> 8.34 | AN11: 8.14 | AO11: =INDEX(INDIRECT(AO9),MATCH(AO5,INDIRECT(AO9),0)+1) -> 7.92 | AP11: 7.66 | AQ11: =INDEX(INDIRECT(AQ9),MATCH(AQ5,INDIRECT(AQ9),0)+1) -> 7.5 | AR11: =INDEX(INDIRECT(AR9),MATCH(AR5,INDIRECT(AR9),0)+1) -> 7.41 | AS11: 7.28 | AT11: =INDEX(INDIRECT(AT9),MATCH(AT5,INDIRECT(AT9),0)+1) -> 7.1 | AU11: 6.43 | AV11: =INDEX(INDIRECT(AV9),MATCH(AV5,INDIRECT(AV9),0)+1) -> 6.28 | AW11: 6.19 | AX11: =INDEX(INDIRECT(AX9),MATCH(AX5,INDIRECT(AX9),0)+1) -> 8.21 | AY11: 10.68 | AZ11: =INDEX(INDIRECT(AZ9),MATCH(AZ5,INDIRECT(AZ9),0)+1) -> 10.84 | BA11: =INDEX(INDIRECT(BA9),MATCH(BA5,INDIRECT(BA9),0)+1) -> 10.64 | BB11: 9.95 | BC11: =INDEX(INDIRECT(BC9),MATCH(BC5,INDIRECT(BC9),0)+1) -> 10.79 | BD11: 11.09 | BE11: =INDEX(INDIRECT(BE9),MATCH(BE5,INDIRECT(BE9),0)+1) -> 12.06 | BF11: 15.63 | BG11: 20.02 | BH11: 27.63 | BI11: 27.35 | BJ11: =INDEX(INDIRECT(BJ9),MATCH(BJ5,INDIRECT(BJ9),0)+1) -> 27.11 | BK11: 26.95 | BL11: =INDEX(INDIRECT(BL9),MATCH(BL5,INDIRECT(BL9),0)+1) -> 28.79 | BM11: 35.81 | BN11: =INDEX(INDIRECT(BN9),MATCH(BN5,INDIRECT(BN9),0)+1) -> 31.65 | BO11: 30.56 | BP11: =INDEX(INDIRECT(BP9),MATCH(BP5,INDIRECT(BP9),0)+1) -> 33.05 | BQ11: 33.07 | BR11: =INDEX(INDIRECT(BR9),MATCH(BR5,INDIRECT(BR9),0)+1) -> 32.87 | BS11: 32.12 | BT11: =INDEX(INDIRECT(BT9),MATCH(BT5,INDIRECT(BT9),0)+1) -> 32.28 | BU11: 33.15 | BV11: =INDEX(INDIRECT(BV9),MATCH(BV5,INDIRECT(BV9),0)+1) -> 38.13 | BW11: 37.07 | BX11: =INDEX(INDIRECT(BX9),MATCH(BX5,INDIRECT(BX9),0)+1) -> 35.86 | BY11: 35.39 | BZ11: =INDEX(INDIRECT(BZ9),MATCH(BZ5,INDIRECT(BZ9),0)+1) -> 33.62 | CA11: 15.86 | CB11: =INDEX(INDIRECT(CB9),MATCH(CB5,INDIRECT(CB9),0)+1) -> 15.86 | CC11: =INDEX(INDIRECT(CC9),MATCH(CC5,INDIRECT(CC9),0)+1) -> 27.11 | CD11: =INDEX(INDIRECT(CD9),MATCH(CD5,INDIRECT(CD9),0)+1) -> 24.5 | CE11: 20.39 | CF11: =INDEX(INDIRECT(CF9),MATCH(CF5,INDIRECT(CF9),0)+1) -> 7.72 | CG11: 8.05 | CH11: =INDEX(INDIRECT(CH9),MATCH(CH5,INDIRECT(CH9),0)+1) -> 9.21 | CI11: 9.21 | CJ11: =INDEX(INDIRECT(CJ9),MATCH(CJ5,INDIRECT(CJ9),0)+1) -> 9.1 | CK11: 7.89 | CL11: =INDEX(INDIRECT(CL9),MATCH(CL5,INDIRECT(CL9),0)+1) -> 7.45 | CM11: 7.21 | CN11: =INDEX(INDIRECT(CN9),MATCH(CN5,INDIRECT(CN9),0)+1) -> 8.22 | CO11: =INDEX(INDIRECT(CO9),MATCH(CO5,INDIRECT(CO9),0)+1) -> 8 | CP11: =INDEX(INDIRECT(CP9),MATCH(CP5,INDIRECT(CP9),0)+1) -> 4.78 | CQ11: 4.36 | CR11: 4.36 | CS11: 4.36 | CT11: 4.36 | CU11: 4.4 | CV11: =INDEX(INDIRECT(CV9),MATCH(CV5,INDIRECT(CV9),0)+1) -> 4.42 | CW11: =INDEX(INDIRECT(CW9),MATCH(CW5,INDIRECT(CW9),0)+1) -> 4.6 | CX11: 4.6 | CY11: =INDEX(INDIRECT(CY9),MATCH(CY5,INDIRECT(CY9),0)+1) -> 4.6 | CZ11: 4.83 | DA11: =INDEX(INDIRECT(DA9),MATCH(DA5,INDIRECT(DA9),0)+1) -> 5.04 | DB11: 4.58 | DC11: =INDEX(INDIRECT(DC9),MATCH(DC5,INDIRECT(DC9),0)+1) -> 4.28 | DD11: 4.94 | DE11: =INDEX(INDIRECT(DE9),MATCH(DE5,INDIRECT(DE9),0)+1) -> 6.2 | DF11: 6.53 | DG11: =INDEX(INDIRECT(DG9),MATCH(DG5,INDIRECT(DG9),0)+1) -> 6.5 | DH11: =INDEX(INDIRECT(DH9),MATCH(DH5,INDIRECT(DH9),0)+1) -> 6.5 | DI11: 7.88 | DJ11: =INDEX(INDIRECT(DJ9),MATCH(DJ5,INDIRECT(DJ9),0)+1) -> 6.19 | DK11: 5.77
C12: ThinFilm Solar Module | D12: =D11 -> pvinsights 02 10 16 | E12: =match_partial(C12,"F",10,D12,50) -> 42 | G12: =INDEX(INDIRECT("'"&$D12&"'!G:G"),'Database Sheet'!$E$12) -> 0.54 | H12: =INDEX(INDIRECT("'"&$D12&"'!H:H"),'Database Sheet'!$E$12) -> 0.34 | I12: =INDEX(INDIRECT("'"&$D12&"'!I:I"),'Database Sheet'!$E$12) -> 0.42
K13: Match Key for Silicon | L13: Poly Silicon Solar Module | M13: Poly Silicon Solar Module | N13: Poly Silicon Solar Module | O13: Poly Silicon Solar Module | P13: Poly Silicon Solar Module | Q13: Poly Silicon Solar Module | R13: Poly Silicon Solar Module | S13: Poly Silicon Solar Module | T13: Poly Silicon Solar Module | U13: Poly Silicon Solar Module | V13: Poly Silicon Solar Module | W13: Poly Silicon Solar Module | X13: Poly Silicon Solar Module | Y13: Poly Silicon Solar Module | Z13: Poly Silicon Solar Module | AA13: Poly Silicon Solar Module | AB13: Poly Silicon Solar Module | AC13: Poly Silicon Solar Module | AD13: Poly Silicon Solar Module | AE13: Poly Module in China | AF13: Poly Module in China | AG13: Poly Module in China | AH13: Poly Module in China | AI13: Poly Module in China | AJ13: Poly Module in China | AK13: Poly Module in China | AL13: Poly Module in China | AM13: Poly Module in China | AN13: Poly Module in China | AO13: Poly Module in China | AP13: Poly Module in China | AQ13: Poly Module in China | AR13: Poly Module in China | AS13: Poly Module in China | AT13: Poly Module in China | AU13: Poly Module in China | AV13: Poly Module in China | AW13: Poly Module in China | AX13: Poly Module in China | AY13: Poly Module in China | AZ13: Poly Module in China | BA13: Poly Module in China | BB13: Poly Module in China | BC13: Poly Module in China | BD13: Poly Module in China | BE13: Poly Module in China | BF13: Poly Module in China | BG13: Poly Module in China | BH13: Poly Module in China | BI13: Poly Module in China | BJ13: Poly Module in China | BK13: Poly Module in China | BL13: Poly Module in China | BM13: Poly Module in China | BN13: Poly Module in China | BO13: Poly Module in China | BP13: Poly Module in China | BQ13: Poly Module in China | BR13: Poly Module in China | BS13: Poly Module in China | BT13: Poly Module in China | BU13: Poly Module in China | BV13: Poly Module in China | BW13: Poly Module in China | BX13: Poly Module in China | BY13: Poly Module in China | BZ13: Poly Module in China | CA13: Poly Module in China | CB13: Poly Module in China | CC13: Poly Module in China | CD13: Poly Module | CE13: Poly Module | CF13: Poly Module | CG13: Poly Module | CH13: Poly Module | CI13: Poly Module | CJ13: Poly Module | CK13: Poly Module | CL13: Poly Module | CM13: Poly Module | CN13: Poly Module | CO13: Poly Module | CP13: Poly Module | CQ13: Poly Module | CR13: Poly Module | CS13: Poly Module | CT13: Poly Module | CU13: Poly Module | CV13: Poly Module | CW13: Poly Module | CX13: Poly Module | CY13: Poly Module | CZ13: Poly Module | DA13: Poly Module | DB13: Poly Module | DC13: Poly Module | DD13: Poly Module | DE13: Poly Module | DF13: Poly Module | DG13: Poly Module | DH13: Poly Module | DI13: Poly Module | DJ13: Poly Module | DK13: Poly Module
K14: Column | L14: F | M14: F | N14: F | O14: F | P14: F | Q14: F | R14: F | S14: F | T14: F | U14: F | V14: F | W14: F | X14: F | Y14: F | Z14: F | AA14: F | AB14: F | AC14: F | AD14: F | AE14: F | AF14: F | AG14: F | AH14: F | AI14: F | AJ14: F | AK14: F | AL14: F | AM14: F | AN14: F | AO14: F | AP14: F | AQ14: F | AR14: F | AS14: F | AT14: F | AU14: F | AV14: F | AW14: F | AX14: F | AY14: F | AZ14: F | BA14: F | BB14: F | BC14: F | BD14: F | BE14: D | BF14: D | BG14: D | BH14: D | BI14: D | BJ14: D | BK14: D | BL14: D | BM14: D | BN14: D | BO14: D | BP14: D | BQ14: D | BR14: D | BS14: D | BT14: D | BU14: D | BV14: D | BW14: D | BX14: D | BY14: D | BZ14: D | CA14: D | CB14: D | CC14: D | CD14: D | CE14: D | CF14: D | CG14: D | CH14: D | CI14: D | CJ14: D | CK14: D | CL14: D | CM14: D | CN14: D | CO14: D | CP14: D | CQ14: D | CR14: D | CS14: D | CT14: D | CU14: D | CV14: D | CW14: D | CX14: D | CY14: D | CZ14: D | DA14: D | DB14: D | DC14: D | DD14: D | DE14: D | DF14: D | DG14: D | DH14: D | DI14: D | DJ14: D | DK14: D
K15: Indirect Key | L15: ="'"&L$7&"'!"&L14&":"&L14 -> 'pvinsights 05 02 15'!F:F | M15: ="'"&M$7&"'!"&M14&":"&M14 -> 'pvinsights 29 05 15'!F:F | N15: 'pvinsights 15 06 15'!F:F | O15: 'pvinsights 29 05 15'!F:F | P15: 'pvinsights 13 11 15'!F:F | Q15: 'pvinsights 31 07 16'!F:F | R15: ="'"&R$7&"'!"&R14&":"&R14 -> 'pvinsights 02 10 16'!F:F | S15: 'pvinsights 08 01 17'!F:F | T15: ="'"&T$7&"'!"&T14&":"&T14 -> 'pvinsights 26 02 17'!F:F | U15: ="'"&U$7&"'!"&U14&":"&U14 -> 'pvinsights 06 04 17'!F:F | V15: 'pvinsights 01 06 17'!F:F | W15: 'pvinsights 26 08 17'!F:F | X15: 'pvinsights 16 09 17'!F:F | Y15: 'pvinsights 30 10 17'!F:F | Z15: 'pvinsights 20 11 17'!F:F | AA15: 'pvinsights 01 02 18'!F:F | AB15: ="'"&AB$7&"'!"&AB14&":"&AB14 -> 'pvinsights 09 04 18'!F:F | AC15: 'pvinsights 05 06 18'!F:F | AD15: ="'"&AD$7&"'!"&AD14&":"&AD14 -> 'pvinsights 09 07 18'!F:F | AE15: ="'"&AE$7&"'!"&AE14&":"&AE14 -> 'pvinsights 31 08 18'!F:F | AF15: 'pvinsights 21 09 18'!F:F | AG15: ="'"&AG$7&"'!"&AG14&":"&AG14 -> 'pvinsights 31 10 18'!F:F | AH15: 'pvinsights 02 12 18'!F:F | AI15: ="'"&AI$7&"'!"&AI14&":"&AI14 -> 'pvinsights 02 01 19'!F:F | AJ15: 'pvinsights 29 01 19'!F:F | AK15: ="'"&AK$7&"'!"&AK14&":"&AK14 -> 'pvinsights 05 03 19'!F:F | AL15: 'pvinsights 07 05 19'!F:F | AM15: ="'"&AM$7&"'!"&AM14&":"&AM14 -> 'pvinsights 19 05 19'!F:F | AN15: 'pvinsights 27 06 19'!F:F | AO15: ="'"&AO$7&"'!"&AO14&":"&AO14 -> 'pvinsights 12 08 19'!F:F | AP15: 'pvinsights 07 09 19'!F:F | AQ15: ="'"&AQ$7&"'!"&AQ14&":"&AQ14 -> 'pvinsights 24 11 19'!F:F | AR15: ="'"&AR$7&"'!"&AR14&":"&AR14 -> 'pvinsights 13 12 19'!F:F | AS15: 'pvinsights 22 12 19'!F:F | AT15: ="'"&AT$7&"'!"&AT14&":"&AT14 -> 'pvinsights 08 02 20'!F:F | AU15: 'pvinsights 25 04 20'!F:F | AV15: ="'"&AV$7&"'!"&AV14&":"&AV14 -> 'pvinsights 25 05 20'!F:F | AW15: 'pvinsights 26 06 20'!F:F | AX15: ="'"&AX$7&"'!"&AX14&":"&AX14 -> 'pvinsights 28 07 20'!F:F | AY15: 'pvinsights 16 08 20'!F:F | AZ15: ="'"&AZ$7&"'!"&AZ14&":"&AZ14 -> 'pvinsights 19 09 20'!F:F | BA15: ="'"&BA$7&"'!"&BA14&":"&BA14 -> 'pvinsights 06 10 20'!F:F | BB15: 'pvinsights 30 11 20'!F:F | BC15: ="'"&BC$7&"'!"&BC14&":"&BC14 -> 'pvinsights 11 01 21'!F:F | BD15: 'pvinsights 22 01 21'!F:F | BE15: ="'"&BE$7&"'!"&BE14&":"&BE14 -> 'pvinsights 21 02 21'!D:D | BF15: 'pvinsights 21 03 21'!D:D | BG15: ="'"&BG$7&"'!"&BG14&":"&BG14 -> 'pvinsights 04 05 21'!D:D | BH15: 'pvinsights 28 06 21'!D:D | BI15: ="'"&BI$7&"'!"&BI14&":"&BI14 -> 'pvinsights 12 07 21'!D:D | BJ15: ="'"&BJ$7&"'!"&BJ14&":"&BJ14 -> 'pvinsights 18 07 21'!D:D | BK15: 'pvinsights 09 08 21'!D:D | BL15: ="'"&BL$7&"'!"&BL14&":"&BL14 -> 'pvinsights 24 09 21'!D:D | BM15: 'pvinsights 05 11 21'!D:D | BN15: ="'"&BN$7&"'!"&BN14&":"&BN14 -> 'pvinsights 12 12 21'!D:D | BO15: 'pvinsights 18 01 22'!D:D | BP15: ="'"&BP$7&"'!"&BP14&":"&BP14 -> 'pvinsights 23 02 22'!D:D | BQ15: 'pvinsights 13 03 22'!D:D | BR15: ="'"&BR$7&"'!"&BR14&":"&BR14 -> 'pvinsights 13 04 22'!D:D | BS15: 'pvinsights 08 05 22'!D:D | BT15: ="'"&BT$7&"'!"&BT14&":"&BT14 -> 'pvinsights 06 06 22'!D:D | BU15: 'pvinsights 26 06 22'!D:D | BV15: ="'"&BV$7&"'!"&BV14&":"&BV14 -> 'pvinsights 24 08 22'!D:D | BW15: 'pvinsights 17 09 22'!D:D | BX15: ="'"&BX$7&"'!"&BX14&":"&BX14 -> 'pvinsights 02 10 22'!D:D | BY15: 'pvinsights 25 10 22'!D:D | BZ15: ="'"&BZ$7&"'!"&BZ14&":"&BZ14 -> 'pvinsights 14 11 22'!D:D | CA15: 'pvinsights 16 01 23'!D:D | CB15: ="'"&CB$7&"'!"&CB14&":"&CB14 -> 'pvinsights 17 01 23'!D:D | CC15: ="'"&CC$7&"'!"&CC14&":"&CC14 -> 'pvinsights 24 02 23'!D:D | CD15: ="'"&CD$7&"'!"&CD14&":"&CD14 -> 'pvinsights 07 04 23'!D:D | CE15: 'pvinsights 08 05 23'!D:D | CF15: 'pvinsights 23 06 23'!D:D | CG15: 'pvinsights 13 07 23'!D:D | CH15: 'pvinsights 25 08 23'!D:D | CI15: 'pvinsights 28 08 23'!D:D | CJ15: ="'"&CJ$7&"'!"&CJ14&":"&CJ14 -> 'pvinsights 14 10 23'!D:D | CK15: 'pvinsights 12 11 23'!D:D | CL15: ="'"&CL$7&"'!"&CL14&":"&CL14 -> 'pvinsights 30 11 23'!D:D | CM15: 'pvinsights 20 01 24'!D:D | CN15: ="'"&CN$7&"'!"&CN14&":"&CN14 -> 'pvinsights 22 02 24'!D:D | CO15: ="'"&CO$7&"'!"&CO14&":"&CO14 -> 'pvinsights 13 03 24'!D:D | CP15: ="'"&CP$7&"'!"&CP14&":"&CP14 -> 'pvinsights 14 05 24'!D:D | CQ15: ="'"&CQ$7&"'!"&CQ14&":"&CQ14 -> 'pvinsights 06 06 24'!D:D | CR15: ="'"&CR$7&"'!"&CR14&":"&CR14 -> 'pvinsights 23 06 24'!D:D | CS15: ="'"&CS$7&"'!"&CS14&":"&CS14 -> 'pvinsights 14 07 24'!D:D | CT15: 'pvinsights 25 07 24'!D:D | CU15: ="'"&CU$7&"'!"&CU14&":"&CU14 -> 'pvinsights 11 08 24'!D:D | CV15: 'pvinsights 07 09 24'!D:D | CW15: ="'"&CW$7&"'!"&CW14&":"&CW14 -> 'pvinsights 27 09 24'!D:D | CX15: 'pvinsights 20 10 24'!D:D | CY15: ="'"&CY$7&"'!"&CY14&":"&CY14 -> 'pvinsights 09 11 24'!D:D | CZ15: 'pvinsights 26 01 25'!D:D | DA15: ="'"&DA$7&"'!"&DA14&":"&DA14 -> 'pvinsights 14 03 25'!D:D | DB15: 'pvinsights 16 04 25'!D:D | DC15: ="'"&DC$7&"'!"&DC14&":"&DC14 -> 'pvinsights 08 06 25'!D:D | DD15: 'pvinsights 25 07 25'!D:D | DE15: ="'"&DE$7&"'!"&DE14&":"&DE14 -> 'pvinsights 01 09 25'!D:D | DF15: 'pvinsights 17 10 25'!D:D | DG15: ="'"&DG$7&"'!"&DG14&":"&DG14 -> 'pvinsights 03 11 25'!D:D | DH15: ="'"&DH$7&"'!"&DH14&":"&DH14 -> 'pvinsights 05 12 25'!D:D | DI15: 'pvinsights 16 01 26'!D:D | DJ15: ="'"&DJ$7&"'!"&DJ14&":"&DJ14 -> 'pvinsights 24 02 26'!D:D | DK15: 'pvinsights 10 03 26'!D:D
C16: Polysilicon Column | D16: USD/kg | G16: =MATCH(D11,7:7,0) -> 18 | H16: =G16 -> 18 | K16: Row | L16: =MATCH(L13,INDIRECT(L15),0) -> 40 | M16: =MATCH(M13,INDIRECT(M15),0) -> 40 | N16: 40 | O16: 40 | P16: 40 | Q16: 41 | R16: =MATCH(R13,INDIRECT(R15),0) -> 41 | S16: 41 | T16: =MATCH(T13,INDIRECT(T15),0) -> 42 | U16: =MATCH(U13,INDIRECT(U15),0) -> 42 | V16: 42 | W16: 47 | X16: 47 | Y16: 47 | Z16: 47 | AA16: 48 | AB16: =MATCH(AB13,INDIRECT(AB15),0) -> 48 | AC16: 44 | AD16: =MATCH(AD13,INDIRECT(AD15),0) -> 44 | AE16: =MATCH(AE13,INDIRECT(AE15),0) -> 45 | AF16: 43 | AG16: 43 | AH16: 43 | AI16: 43 | AJ16: 43 | AK16: =MATCH(AK13,INDIRECT(AK15),0) -> 43 | AL16: 41 | AM16: =MATCH(AM13,INDIRECT(AM15),0) -> 41 | AN16: 40 | AO16: =MATCH(AO13,INDIRECT(AO15),0) -> 40 | AP16: 40 | AQ16: =MATCH(AQ13,INDIRECT(AQ15),0) -> 40 | AR16: =MATCH(AR13,INDIRECT(AR15),0) -> 40 | AS16: 40 | AT16: =MATCH(AT13,INDIRECT(AT15),0) -> 42 | AU16: 43 | AV16: =MATCH(AV13,INDIRECT(AV15),0) -> 43 | AW16: 43 | AX16: =MATCH(AX13,INDIRECT(AX15),0) -> 43 | AY16: 43 | AZ16: =MATCH(AZ13,INDIRECT(AZ15),0) -> 43 | BA16: =MATCH(BA13,INDIRECT(BA15),0) -> 43 | BB16: 43 | BC16: =MATCH(BC13,INDIRECT(BC15),0) -> 46 | BD16: 46 | BE16: =MATCH(BE13,INDIRECT(BE15),0) -> 46 | BF16: 46 | BG16: =MATCH(BG13,INDIRECT(BG15),0) -> 46 | BH16: 46 | BI16: =MATCH(BI13,INDIRECT(BI15),0) -> 46 | BJ16: =MATCH(BJ13,INDIRECT(BJ15),0) -> 46 | BK16: 46 | BL16: =MATCH(BL13,INDIRECT(BL15),0) -> 45 | BM16: 45 | BN16: =MATCH(BN13,INDIRECT(BN15),0) -> 43 | BO16: 43 | BP16: =MATCH(BP13,INDIRECT(BP15),0) -> 43 | BQ16: 43 | BR16: =MATCH(BR13,INDIRECT(BR15),0) -> 43 | BS16: 43 | BT16: =MATCH(BT13,INDIRECT(BT15),0) -> 43 | BU16: 43 | BV16: =MATCH(BV13,INDIRECT(BV15),0) -> 45 | BW16: 45 | BX16: =MATCH(BX13,INDIRECT(BX15),0) -> 46 | BY16: 46 | BZ16: =MATCH(BZ13,INDIRECT(BZ15),0) -> 46 | CA16: 46 | CB16: =MATCH(CB13,INDIRECT(CB15),0) -> 46 | CC16: =MATCH(CC13,INDIRECT(CC15),0) -> 46 | CD16: =MATCH(CD13,INDIRECT(CD15),0) -> 41 | CE16: 41 | CF16: =MATCH(CF13,INDIRECT(CF15),0) -> 41 | CG16: 41 | CH16: =MATCH(CH13,INDIRECT(CH15),0) -> 41 | CI16: 41 | CJ16: =MATCH(CJ13,INDIRECT(CJ15),0) -> 41 | CK16: 41 | CL16: =MATCH(CL13,INDIRECT(CL15),0) -> 41 | CM16: 41 | CN16: =MATCH(CN13,INDIRECT(CN15),0) -> 41 | CO16: =MATCH(CO13,INDIRECT(CO15),0) -> 41 | CP16: =MATCH(CP13,INDIRECT(CP15),0) -> 42 | CQ16: 42 | CR16: 42 | CS16: 42 | CT16: 42 | CU16: 42 | CV16: =MATCH(CV13,INDIRECT(CV15),0) -> 42 | CW16: =MATCH(CW13,INDIRECT(CW15),0) -> 42 | CX16: 42 | CY16: =MATCH(CY13,INDIRECT(CY15),0) -> 42 | CZ16: 42 | DA16: =MATCH(DA13,INDIRECT(DA15),0) -> 42 | DB16: 42 | DC16: =MATCH(DC13,INDIRECT(DC15),0) -> 42 | DD16: 42 | DE16: =MATCH(DE13,INDIRECT(DE15),0) -> 42 | DF16: 42 | DG16: =MATCH(DG13,INDIRECT(DG15),0) -> 42 | DH16: =MATCH(DH13,INDIRECT(DH15),0) -> 42 | DI16: 42 | DJ16: =MATCH(DJ13,INDIRECT(DJ15),0) -> 42 | DK16: 42
C17: Conversion | D17: kg/lb | E17: 2.679209 | F17: =1/E17 -> 0.3732444912 | G17: USD/kg | H17: USD/lb | K17: Price Col | L17: I | M17: I | N17: I | O17: I | P17: I | Q17: I | R17: I | S17: I | T17: I | U17: I | V17: I | W17: I | X17: I | Y17: I | Z17: I | AA17: I | AB17: I | AC17: I | AD17: I | AE17: I | AF17: I | AG17: I | AH17: I | AI17: I | AJ17: I | AK17: I | AL17: I | AM17: I | AN17: I | AO17: I | AP17: I | AQ17: I | AR17: I | AS17: I | AT17: I | AU17: I | AV17: I | AW17: I | AX17: I | AY17: I | AZ17: I | BA17: I | BB17: I | BC17: I | BD17: I | BE17: G | BF17: G | BG17: G | BH17: G | BI17: G | BJ17: G | BK17: G | BL17: G | BM17: G | BN17: G | BO17: G | BP17: G | BQ17: G | BR17: G | BS17: G | BT17: G | BU17: G | BV17: G | BW17: G | BX17: G | BY17: G | BZ17: G | CA17: G | CB17: G | CC17: G | CD17: G | CE17: G | CF17: G | CG17: G | CH17: G | CI17: G | CJ17: G | CK17: G | CL17: G | CM17: G | CN17: G | CO17: G | CP17: G | CQ17: G | CR17: G | CS17: G | CT17: G | CU17: G | CV17: G | CW17: G | CX17: G | CY17: G | CZ17: G | DA17: G | DB17: G | DC17: G | DD17: G | DE17: G | DF17: G | DG17: G | DH17: G | DI17: G | DJ17: G | DK17: G
C18: Price in USD/lb | G18: =INDEX(11:11,G16) -> 12.65 | H18: =G18/E17 -> 4.721542814 | K18: Indirect Key for Index | L18: ="'"&L$7&"'!"&L17&":"&L17 -> 'pvinsights 05 02 15'!I:I | M18: ="'"&M$7&"'!"&M17&":"&M17 -> 'pvinsights 29 05 15'!I:I | N18: 'pvinsights 15 06 15'!I:I | O18: 'pvinsights 29 05 15'!I:I | P18: 'pvinsights 13 11 15'!I:I | Q18: 'pvinsights 31 07 16'!I:I | R18: ="'"&R$7&"'!"&R17&":"&R17 -> 'pvinsights 02 10 16'!I:I | S18: 'pvinsights 08 01 17'!I:I | T18: ="'"&T$7&"'!"&T17&":"&T17 -> 'pvinsights 26 02 17'!I:I | U18: 'pvinsights 06 04 17'!I:I | V18: ="'"&V$7&"'!"&V17&":"&V17 -> 'pvinsights 01 06 17'!I:I | W18: 'pvinsights 26 08 17'!I:I | X18: ="'"&X$7&"'!"&X17&":"&X17 -> 'pvinsights 16 09 17'!I:I | Y18: 'pvinsights 30 10 17'!I:I | Z18: ="'"&Z$7&"'!"&Z17&":"&Z17 -> 'pvinsights 20 11 17'!I:I | AA18: 'pvinsights 01 02 18'!I:I | AB18: ="'"&AB$7&"'!"&AB17&":"&AB17 -> 'pvinsights 09 04 18'!I:I | AC18: 'pvinsights 05 06 18'!I:I | AD18: ="'"&AD$7&"'!"&AD17&":"&AD17 -> 'pvinsights 09 07 18'!I:I | AE18: ="'"&AE$7&"'!"&AE17&":"&AE17 -> 'pvinsights 31 08 18'!I:I | AF18: 'pvinsights 21 09 18'!I:I | AG18: ="'"&AG$7&"'!"&AG17&":"&AG17 -> 'pvinsights 31 10 18'!I:I | AH18: 'pvinsights 02 12 18'!I:I | AI18: ="'"&AI$7&"'!"&AI17&":"&AI17 -> 'pvinsights 02 01 19'!I:I | AJ18: 'pvinsights 29 01 19'!I:I | AK18: ="'"&AK$7&"'!"&AK17&":"&AK17 -> 'pvinsights 05 03 19'!I:I | AL18: 'pvinsights 07 05 19'!I:I | AM18: ="'"&AM$7&"'!"&AM17&":"&AM17 -> 'pvinsights 19 05 19'!I:I | AN18: 'pvinsights 27 06 19'!I:I | AO18: ="'"&AO$7&"'!"&AO17&":"&AO17 -> 'pvinsights 12 08 19'!I:I | AP18: 'pvinsights 07 09 19'!I:I | AQ18: ="'"&AQ$7&"'!"&AQ17&":"&AQ17 -> 'pvinsights 24 11 19'!I:I | AR18: ="'"&AR$7&"'!"&AR17&":"&AR17 -> 'pvinsights 13 12 19'!I:I | AS18: 'pvinsights 22 12 19'!I:I | AT18: ="'"&AT$7&"'!"&AT17&":"&AT17 -> 'pvinsights 08 02 20'!I:I | AU18: 'pvinsights 25 04 20'!I:I | AV18: ="'"&AV$7&"'!"&AV17&":"&AV17 -> 'pvinsights 25 05 20'!I:I | AW18: 'pvinsights 26 06 20'!I:I | AX18: ="'"&AX$7&"'!"&AX17&":"&AX17 -> 'pvinsights 28 07 20'!I:I | AY18: 'pvinsights 16 08 20'!I:I | AZ18: ="'"&AZ$7&"'!"&AZ17&":"&AZ17 -> 'pvinsights 19 09 20'!I:I | BA18: ="'"&BA$7&"'!"&BA17&":"&BA17 -> 'pvinsights 06 10 20'!I:I | BB18: 'pvinsights 30 11 20'!I:I | BC18: ="'"&BC$7&"'!"&BC17&":"&BC17 -> 'pvinsights 11 01 21'!I:I | BD18: 'pvinsights 22 01 21'!I:I | BE18: ="'"&BE$7&"'!"&BE17&":"&BE17 -> 'pvinsights 21 02 21'!G:G | BF18: 'pvinsights 21 03 21'!G:G | BG18: ="'"&BG$7&"'!"&BG17&":"&BG17 -> 'pvinsights 04 05 21'!G:G | BH18: 'pvinsights 28 06 21'!G:G | BI18: ="'"&BI$7&"'!"&BI17&":"&BI17 -> 'pvinsights 12 07 21'!G:G | BJ18: ="'"&BJ$7&"'!"&BJ17&":"&BJ17 -> 'pvinsights 18 07 21'!G:G | BK18: 'pvinsights 09 08 21'!G:G | BL18: ="'"&BL$7&"'!"&BL17&":"&BL17 -> 'pvinsights 24 09 21'!G:G | BM18: 'pvinsights 05 11 21'!G:G | BN18: ="'"&BN$7&"'!"&BN17&":"&BN17 -> 'pvinsights 12 12 21'!G:G | BO18: 'pvinsights 18 01 22'!G:G | BP18: ="'"&BP$7&"'!"&BP17&":"&BP17 -> 'pvinsights 23 02 22'!G:G | BQ18: 'pvinsights 13 03 22'!G:G | BR18: ="'"&BR$7&"'!"&BR17&":"&BR17 -> 'pvinsights 13 04 22'!G:G | BS18: 'pvinsights 08 05 22'!G:G | BT18: ="'"&BT$7&"'!"&BT17&":"&BT17 -> 'pvinsights 06 06 22'!G:G | BU18: 'pvinsights 26 06 22'!G:G | BV18: ="'"&BV$7&"'!"&BV17&":"&BV17 -> 'pvinsights 24 08 22'!G:G | BW18: 'pvinsights 17 09 22'!G:G | BX18: ="'"&BX$7&"'!"&BX17&":"&BX17 -> 'pvinsights 02 10 22'!G:G | BY18: ="'"&BY$7&"'!"&BY17&":"&BY17 -> 'pvinsights 25 10 22'!G:G | BZ18: 'pvinsights 14 11 22'!G:G | CA18: 'pvinsights 16 01 23'!G:G | CB18: 'pvinsights 17 01 23'!G:G | CC18: 'pvinsights 24 02 23'!G:G | CD18: 'pvinsights 07 04 23'!G:G | CE18: 'pvinsights 08 05 23'!G:G | CF18: ="'"&CF$7&"'!"&CF17&":"&CF17 -> 'pvinsights 23 06 23'!G:G | CG18: 'pvinsights 13 07 23'!G:G | CH18: ="'"&CH$7&"'!"&CH17&":"&CH17 -> 'pvinsights 25 08 23'!G:G | CI18: 'pvinsights 28 08 23'!G:G | CJ18: ="'"&CJ$7&"'!"&CJ17&":"&CJ17 -> 'pvinsights 14 10 23'!G:G | CK18: 'pvinsights 12 11 23'!G:G | CL18: ="'"&CL$7&"'!"&CL17&":"&CL17 -> 'pvinsights 30 11 23'!G:G | CM18: 'pvinsights 20 01 24'!G:G | CN18: ="'"&CN$7&"'!"&CN17&":"&CN17 -> 'pvinsights 22 02 24'!G:G | CO18: ="'"&CO$7&"'!"&CO17&":"&CO17 -> 'pvinsights 13 03 24'!G:G | CP18: ="'"&CP$7&"'!"&CP17&":"&CP17 -> 'pvinsights 14 05 24'!G:G | CQ18: ="'"&CQ$7&"'!"&CQ17&":"&CQ17 -> 'pvinsights 06 06 24'!G:G | CR18: ="'"&CR$7&"'!"&CR17&":"&CR17 -> 'pvinsights 23 06 24'!G:G | CS18: ="'"&CS$7&"'!"&CS17&":"&CS17 -> 'pvinsights 14 07 24'!G:G | CT18: 'pvinsights 25 07 24'!G:G | CU18: ="'"&CU$7&"'!"&CU17&":"&CU17 -> 'pvinsights 11 08 24'!G:G | CV18: 'pvinsights 07 09 24'!G:G | CW18: ="'"&CW$7&"'!"&CW17&":"&CW17 -> 'pvinsights 27 09 24'!G:G | CX18: 'pvinsights 20 10 24'!G:G | CY18: ="'"&CY$7&"'!"&CY17&":"&CY17 -> 'pvinsights 09 11 24'!G:G | CZ18: 'pvinsights 26 01 25'!G:G | DA18: ="'"&DA$7&"'!"&DA17&":"&DA17 -> 'pvinsights 14 03 25'!G:G | DB18: 'pvinsights 16 04 25'!G:G | DC18: ="'"&DC$7&"'!"&DC17&":"&DC17 -> 'pvinsights 08 06 25'!G:G | DD18: 'pvinsights 25 07 25'!G:G | DE18: ="'"&DE$7&"'!"&DE17&":"&DE17 -> 'pvinsights 01 09 25'!G:G | DF18: 'pvinsights 17 10 25'!G:G | DG18: ="'"&DG$7&"'!"&DG17&":"&DG17 -> 'pvinsights 03 11 25'!G:G | DH18: ="'"&DH$7&"'!"&DH17&":"&DH17 -> 'pvinsights 05 12 25'!G:G | DI18: 'pvinsights 16 01 26'!G:G | DJ18: ="'"&DJ$7&"'!"&DJ17&":"&DJ17 -> 'pvinsights 24 02 26'!G:G | DK18: 'pvinsights 10 03 26'!G:G
K20: Polysilicon Average | L20: =INDEX(INDIRECT(L18),L16) -> 0.607 | M20: 0.555 | N20: 0.55 | O20: 0.555 | P20: 0.561 | Q20: 0.48 | R20: =INDEX(INDIRECT(R18),R16) -> 0.402 | S20: 0.358 | T20: 0.35 | U20: 0.341 | V20: 0.333 | W20: 0.321 | X20: =INDEX(INDIRECT(X18),X16) -> 0.322 | Y20: 0.318 | Z20: =INDEX(INDIRECT(Z18),Z16) -> 0.315 | AA20: =INDEX(INDIRECT(AA18),AA16) -> 0.31 | AB20: 0.302 | AC20: 0.292 | AD20: 0.266 | AE20: 0.239 | AF20: 0.234 | AG20: =INDEX(INDIRECT(AG18),AG16) -> 0.212 | AH20: 0.204 | AI20: =INDEX(INDIRECT(AI18),AI16) -> 0.208 | AJ20: 0.207 | AK20: =INDEX(INDIRECT(AK18),AK16) -> 0.207 | AL20: 0.206 | AM20: =INDEX(INDIRECT(AM18),AM16) -> 0.204 | AN20: 0.212 | AO20: =INDEX(INDIRECT(AO18),AO16) -> 0.204 | AP20: 0.2 | AQ20: =INDEX(INDIRECT(AQ18),AQ16) -> 0.194 | AR20: =INDEX(INDIRECT(AR18),AR16) -> 0.192 | AS20: 0.192 | AT20: =INDEX(INDIRECT(AT18),AT16) -> 0.191 | AU20: 0.174 | AV20: =INDEX(INDIRECT(AV18),AV16) -> 0.168 | AW20: 0.161 | AX20: =INDEX(INDIRECT(AX18),AX16) -> 0.16 | AY20: 0.167 | AZ20: =INDEX(INDIRECT(AZ18),AZ16) -> 0.171 | BA20: =INDEX(INDIRECT(BA18),BA16) -> 0.17 | BB20: 0.173 | BC20: =INDEX(INDIRECT(BC18),BC16) -> 0.168 | BD20: 0.167 | BE20: =INDEX(INDIRECT(BE18),BE16) -> 0.177 | BF20: 0.178 | BG20: =INDEX(INDIRECT(BG18),BG16) -> 0.181 | BH20: 0.198 | BI20: =INDEX(INDIRECT(BI18),BI16) -> 0.196 | BJ20: =INDEX(INDIRECT(BJ18),BJ16) -> 0.195 | BK20: 0.193 | BL20: =INDEX(INDIRECT(BL18),BL16) -> 0.193 | BM20: 0.217 | BN20: =INDEX(INDIRECT(BN18),BN16) -> 0.206 | BO20: 0.201 | BP20: =INDEX(INDIRECT(BP18),BP16) -> 0.203 | BQ20: 0.203 | BR20: =INDEX(INDIRECT(BR18),BR16) -> 0.201 | BS20: 0.2 | BT20: =INDEX(INDIRECT(BT18),BT16) -> 0.209 | BU20: 0.208 | BV20: =INDEX(INDIRECT(BV18),BV16) -> 0.217 | BW20: 0.212 | BX20: =INDEX(INDIRECT(BX18),BX16) -> 0.204 | BY20: 0.201 | BZ20: =INDEX(INDIRECT(BZ18),BZ16) -> 0.197 | CA20: 0.19 | CB20: =INDEX(INDIRECT(CB18),CB16) -> 0.19 | CC20: =INDEX(INDIRECT(CC18),CC16) -> 0.187 | CD20: =INDEX(INDIRECT(CD18),CD16) -> 0.187 | CE20: 0.186 | CF20: 0.158 | CG20: 0.147 | CH20: 0.139 | CI20: 0.139 | CJ20: =INDEX(INDIRECT(CJ18),CJ16) -> 0.126 | CK20: 0.12 | CL20: =INDEX(INDIRECT(CL18),CL16) -> 0.116 | CM20: 0.106 | CN20: =INDEX(INDIRECT(CN18),CN16) -> 0.1 | CO20: =INDEX(INDIRECT(CO18),CO16) -> 0.1 | CP20: =INDEX(INDIRECT(CP18),CP16) -> 0.092 | CQ20: =INDEX(INDIRECT(CQ18),CQ16) -> 0.088 | CR20: =INDEX(INDIRECT(CR18),CR16) -> 0.088 | CS20: =INDEX(INDIRECT(CS18),CS16) -> 0.085 | CT20: 0.085 | CU20: =INDEX(INDIRECT(CU18),CU16) -> 0.085 | CV20: 0.084 | CW20: =INDEX(INDIRECT(CW18),CW16) -> 0.08 | CX20: 0.077 | CY20: =INDEX(INDIRECT(CY18),CY16) -> 0.077 | CZ20: 0.074 | DA20: =INDEX(INDIRECT(DA18),DA16) -> 0.077 | DB20: 0.074 | DC20: =INDEX(INDIRECT(DC18),DC16) -> 0.068 | DD20: 0.066 | DE20: =INDEX(INDIRECT(DE18),DE16) -> 0.071 | DF20: 0.071 | DG20: =INDEX(INDIRECT(DG18),DG16) -> 0.07 | DH20: =INDEX(INDIRECT(DH18),DH16) -> 0.068 | DI20: 0.08 | DJ20: =INDEX(INDIRECT(DJ18),DJ16) -> 0.08 | DK20: 0.08
C21: Revise Macro:
C22: 1: Count colums | E22: 1 | F22: kg | G22: 100 | L22: ThinFilm Solar Module | M22: ThinFilm Solar Module | N22: ThinFilm Solar Module | O22: ThinFilm Solar Module | P22: ThinFilm Solar Module | Q22: ThinFilm Solar Module | R22: ThinFilm Solar Module | S22: ThinFilm Solar Module | T22: ThinFilm Solar Module | U22: ThinFilm Solar Module | V22: ThinFilm Solar Module | W22: ThinFilm Solar Module | X22: ThinFilm Solar Module | Y22: ThinFilm Solar Module | Z22: ThinFilm Solar Module | AA22: ThinFilm Solar Module | AB22: ThinFilm Solar Module | AC22: ThinFilm Solar Module | AD22: ThinFilm Solar Module | AE22: ThinFilm Solar Module | AF22: ThinFilm Solar Module | AG22: ThinFilm Solar Module | AH22: ThinFilm Solar Module | AI22: ThinFilm Solar Module | AJ22: ThinFilm Solar Module | AK22: ThinFilm Solar Module | AL22: ThinFilm Solar Module | AM22: ThinFilm Solar Module | AN22: ThinFilm Solar Module | AO22: ThinFilm Solar Module | AP22: ThinFilm Solar Module | AQ22: ThinFilm Solar Module | AR22: ThinFilm Solar Module | AS22: ThinFilm Solar Module | AT22: ThinFilm Solar Module | AU22: ThinFilm Solar Module | AV22: ThinFilm Solar Module | AW22: ThinFilm Solar Module | AX22: ThinFilm Solar Module | AY22: ThinFilm Solar Module | AZ22: ThinFilm Solar Module | BA22: ThinFilm Solar Module | BB22: ThinFilm Solar Module | BC22: ThinFilm Solar Module | BD22: ThinFilm Solar Module | BE22: ThinFilm Solar Module | BF22: ThinFilm Solar Module | BG22: ThinFilm Solar Module | BH22: ThinFilm Solar Module | BI22: ThinFilm Solar Module | BJ22: ThinFilm Solar Module | BK22: ThinFilm Solar Module | BL22: ThinFilm Solar Module | BM22: ThinFilm Solar Module | BN22: ThinFilm Solar Module | BO22: ThinFilm Solar Module | BP22: ThinFilm Solar Module | BQ22: ThinFilm Solar Module | BR22: ThinFilm Solar Module | BS22: ThinFilm Solar Module | BT22: ThinFilm Solar Module | BU22: ThinFilm Solar Module | BV22: ThinFilm Solar Module | BW22: ThinFilm Solar Module | BX22: ThinFilm Solar Module | BY22: ThinFilm Solar Module | BZ22: ThinFilm Solar Module | CA22: ThinFilm Solar Module | CB22: ThinFilm Solar Module | CC22: ThinFilm Solar Module | CD22: ThinFilm Solar Module | CE22: ThinFilm Solar Module | CF22: ThinFilm Solar Module | CG22: ThinFilm Solar Module | CH22: ThinFilm Solar Module | CI22: ThinFilm Solar Module | CJ22: ThinFilm Solar Module | CK22: ThinFilm Solar Module | CL22: ThinFilm Solar Module | CM22: ThinFilm Solar Module | CN22: ThinFilm Solar Module | CO22: ThinFilm Solar Module | CP22: ThinFilm Solar Module | CQ22: ThinFilm Solar Module | CR22: ThinFilm Solar Module | CS22: ThinFilm Solar Module | CT22: ThinFilm Solar Module | CU22: ThinFilm Solar Module | CV22: ThinFilm Solar Module | CW22: ThinFilm Solar Module | CX22: ThinFilm Solar Module | CY22: ThinFilm Solar Module | CZ22: ThinFilm Solar Module | DA22: ThinFilm Solar Module | DB22: ThinFilm Solar Module | DC22: ThinFilm Solar Module | DD22: ThinFilm Solar Module | DE22: ThinFilm Solar Module | DF22: ThinFilm Solar Module | DG22: ThinFilm Solar Module | DH22: ThinFilm Solar Module | DI22: ThinFilm Solar Module | DJ22: ThinFilm Solar Module | DK22: ThinFilm Solar Module
C23: 2: Copy the last column | E23: =E17 -> 2.679209 | F23: lb | G23: =G22/E23 -> 37.32444912 | K23: Match | L23: =MATCH(L22,INDIRECT(L15),0) -> 41 | M23: 41 | N23: 41 | O23: 41 | P23: 41 | Q23: 42 | R23: =MATCH(R22,INDIRECT(R15),0) -> 42 | S23: 42 | T23: =MATCH(T22,INDIRECT(T15),0) -> 43 | U23: =MATCH(U22,INDIRECT(U15),0) -> 43 | V23: 43 | W23: 48 | X23: 48 | Y23: 50 | Z23: 50 | AA23: 51 | AB23: =MATCH(AB22,INDIRECT(AB15),0) -> 51 | AC23: 47 | AD23: =MATCH(AD22,INDIRECT(AD15),0) -> 47 | AE23: =MATCH(AE22,INDIRECT(AE15),0) -> 49 | AF23: 47 | AG23: =MATCH(AG22,INDIRECT(AG15),0) -> 47 | AH23: 47 | AI23: =MATCH(AI22,INDIRECT(AI15),0) -> 47 | AJ23: 47 | AK23: =MATCH(AK22,INDIRECT(AK15),0) -> 47 | AL23: 45 | AM23: =MATCH(AM22,INDIRECT(AM15),0) -> 45 | AN23: 44 | AO23: =MATCH(AO22,INDIRECT(AO15),0) -> 44 | AP23: 44 | AQ23: =MATCH(AQ22,INDIRECT(AQ15),0) -> 44 | AR23: =MATCH(AR22,INDIRECT(AR15),0) -> 44 | AS23: 44 | AT23: =MATCH(AT22,INDIRECT(AT15),0) -> 46 | AU23: 47 | AV23: =MATCH(AV22,INDIRECT(AV15),0) -> 47 | AW23: 47 | AX23: =MATCH(AX22,INDIRECT(AX15),0) -> 47 | AY23: 47 | AZ23: =MATCH(AZ22,INDIRECT(AZ15),0) -> 47 | BA23: =MATCH(BA22,INDIRECT(BA15),0) -> 47 | BB23: =MATCH(BB22,INDIRECT(BB15),0) -> 47 | BC23: =MATCH(BC22,INDIRECT(BC15),0) -> 54 | BD23: 54 | BE23: =MATCH(BE22,INDIRECT(BE15),0) -> 54 | BF23: 54 | BG23: =MATCH(BG22,INDIRECT(BG15),0) -> 54 | BH23: 54 | BI23: =MATCH(BI22,INDIRECT(BI15),0) -> 54 | BJ23: =MATCH(BJ22,INDIRECT(BJ15),0) -> 54 | BK23: 54 | BL23: =MATCH(BL22,INDIRECT(BL15),0) -> 53 | BM23: 53 | BN23: =MATCH(BN22,INDIRECT(BN15),0) -> 51 | BO23: 51 | BP23: =MATCH(BP22,INDIRECT(BP15),0) -> 51 | BQ23: 51 | BR23: =MATCH(BR22,INDIRECT(BR15),0) -> 51 | BS23: 51 | BT23: =MATCH(BT22,INDIRECT(BT15),0) -> 51 | BU23: 51 | BV23: =MATCH(BV22,INDIRECT(BV15),0) -> 53 | BW23: 53 | BX23: =MATCH(BX22,INDIRECT(BX15),0) -> 54 | BY23: 54 | BZ23: =MATCH(BZ22,INDIRECT(BZ15),0) -> 54 | CA23: 54 | CB23: =MATCH(CB22,INDIRECT(CB15),0) -> 54 | CC23: =MATCH(CC22,INDIRECT(CC15),0) -> 54 | CD23: =MATCH(CD22,INDIRECT(CD15),0) -> 46 | CE23: 46 | CF23: =MATCH(CF22,INDIRECT(CF15),0) -> 46 | CG23: 46 | CH23: =MATCH(CH22,INDIRECT(CH15),0) -> 46 | CI23: 46 | CJ23: =MATCH(CJ22,INDIRECT(CJ15),0) -> 46 | CK23: 46 | CL23: =MATCH(CL22,INDIRECT(CL15),0) -> 46 | CM23: 46 | CN23: =MATCH(CN22,INDIRECT(CN15),0) -> 46 | CO23: =MATCH(CO22,INDIRECT(CO15),0) -> 46 | CP23: =MATCH(CP22,INDIRECT(CP15),0) -> 47 | CQ23: =MATCH(CQ22,INDIRECT(CQ15),0) -> 47 | CR23: =MATCH(CR22,INDIRECT(CR15),0) -> 47 | CS23: =MATCH(CS22,INDIRECT(CS15),0) -> 47 | CT23: 47 | CU23: =MATCH(CU22,INDIRECT(CU15),0) -> 47 | CV23: 47 | CW23: =MATCH(CW22,INDIRECT(CW15),0) -> 47 | CX23: 47 | CY23: =MATCH(CY22,INDIRECT(CY15),0) -> 47 | CZ23: 47 | DA23: =MATCH(DA22,INDIRECT(DA15),0) -> 47 | DB23: 47 | DC23: =MATCH(DC22,INDIRECT(DC15),0) -> 47 | DD23: 47 | DE23: =MATCH(DE22,INDIRECT(DE15),0) -> 47 | DF23: 47 | DG23: =MATCH(DG22,INDIRECT(DG15),0) -> 47 | DH23: =MATCH(DH22,INDIRECT(DH15),0) -> 47 | DI23: 47 | DJ23: =MATCH(DJ22,INDIRECT(DJ15),0) -> 47 | DK23: 47
C24: 3: Put in the last sheet | K24: Thin Film Average | L24: =INDEX(INDIRECT(L18),L23) -> 0.634 | M24: 0.604 | N24: 0.596 | O24: 0.604 | P24: 0.59 | Q24: 0.506 | R24: =INDEX(INDIRECT(R18),R23) -> 0.42 | S24: 0.374 | T24: =INDEX(INDIRECT(T18),T23) -> 0.363 | U24: =INDEX(INDIRECT(U18),U23) -> 0.353 | V24: 0.346 | W24: 0.34 | X24: 0.341 | Y24: 0.339 | Z24: 0.336 | AA24: 0.331 | AB24: =INDEX(INDIRECT(AB18),AB23) -> 0.322 | AC24: 0.314 | AD24: 0.296 | AE24: 0.274 | AF24: 0.265 | AG24: 0.247 | AH24: 0.243 | AI24: =INDEX(INDIRECT(AI18),AI23) -> 0.246 | AJ24: 0.245 | AK24: =INDEX(INDIRECT(AK18),AK23) -> 0.244 | AL24: 0.246 | AM24: =INDEX(INDIRECT(AM18),AM23) -> 0.248 | AN24: 0.248 | AO24: =INDEX(INDIRECT(AO18),AO23) -> 0.245 | AP24: 0.243 | AQ24: =INDEX(INDIRECT(AQ18),AQ23) -> 0.237 | AR24: =INDEX(INDIRECT(AR18),AR23) -> 0.236 | AS24: 0.236 | AT24: =INDEX(INDIRECT(AT18),AT23) -> 0.231 | AU24: 0.218 | AV24: =INDEX(INDIRECT(AV18),AV23) -> 0.213 | AW24: 0.208 | AX24: =INDEX(INDIRECT(AX18),AX23) -> 0.207 | AY24: 0.209 | AZ24: =INDEX(INDIRECT(AZ18),AZ23) -> 0.212 | BA24: =INDEX(INDIRECT(BA18),BA23) -> 0.211 | BB24: 0.213 | BC24: =INDEX(INDIRECT(BC18),BC23) -> 0.211 | BD24: 0.209 | BE24: =INDEX(INDIRECT(BE18),BE23) -> 0.214 | BF24: 0.216 | BG24: =INDEX(INDIRECT(BG18),BG23) -> 0.217 | BH24: 0.23 | BI24: =INDEX(INDIRECT(BI18),BI23) -> 0.228 | BJ24: =INDEX(INDIRECT(BJ18),BJ23) -> 0.227 | BK24: 0.225 | BL24: =INDEX(INDIRECT(BL18),BL23) -> 0.225 | BM24: 0.244 | BN24: =INDEX(INDIRECT(BN18),BN23) -> 0.234 | BO24: 0.228 | BP24: =INDEX(INDIRECT(BP18),BP23) -> 0.228 | BQ24: 0.228 | BR24: =INDEX(INDIRECT(BR18),BR23) -> 0.227 | BS24: 0.226 | BT24: =INDEX(INDIRECT(BT18),BT23) -> 0.232 | BU24: 0.231 | BV24: =INDEX(INDIRECT(BV18),BV23) -> 0.239 | BW24: 0.236 | BX24: =INDEX(INDIRECT(BX18),BX23) -> 0.232 | BY24: 0.23 | BZ24: =INDEX(INDIRECT(BZ18),BZ23) -> 0.228 | CA24: 0.232 | CB24: =INDEX(INDIRECT(CB18),CB23) -> 0.232 | CC24: =INDEX(INDIRECT(CC18),CC23) -> 0.232 | CD24: =INDEX(INDIRECT(CD18),CD23) -> 0.23 | CE24: 0.23 | CF24: =INDEX(INDIRECT(CF18),CF23) -> 0.214 | CG24: 0.211 | CH24: =INDEX(INDIRECT(CH18),CH23) -> 0.206 | CI24: 0.206 | CJ24: =INDEX(INDIRECT(CJ18),CJ23) -> 0.202 | CK24: 0.196 | CL24: =INDEX(INDIRECT(CL18),CL23) -> 0.194 | CM24: 0.188 | CN24: =INDEX(INDIRECT(CN18),CN23) -> 0.185 | CO24: =INDEX(INDIRECT(CO18),CO23) -> 0.185 | CP24: =INDEX(INDIRECT(CP18),CP23) -> 0.184 | CQ24: =INDEX(INDIRECT(CQ18),CQ23) -> 0.184 | CR24: =INDEX(INDIRECT(CR18),CR23) -> 0.184 | CS24: =INDEX(INDIRECT(CS18),CS23) -> 0.184 | CT24: 0.184 | CU24: =INDEX(INDIRECT(CU18),CU23) -> 0.184 | CV24: 0.184 | CW24: =INDEX(INDIRECT(CW18),CW23) -> 0.184 | CX24: 0.184 | CY24: =INDEX(INDIRECT(CY18),CY23) -> 0.184 | CZ24: 0.184 | DA24: =INDEX(INDIRECT(DA18),DA23) -> 0.184 | DB24: 0.2 | DC24: =INDEX(INDIRECT(DC18),DC23) -> 0.2 | DD24: 0.2 | DE24: =INDEX(INDIRECT(DE18),DE23) -> 0.2 | DF24: 0.2 | DG24: =INDEX(INDIRECT(DG18),DG23) -> 0.2 | DH24: =INDEX(INDIRECT(DH18),DH23) -> 0.2 | DI24: 0.2 | DJ24: =INDEX(INDIRECT(DJ18),DJ23) -> 0.2 | DK24: 0.2
C25: 4: Copy and Paste Names
C27: Last Sheet Num | D27: =D7 -> 122
C28: Last Column Before Copy | D28: =COUNTA(6:6) -> 104
C29: Column Name
C30: Column Number Base | D30: =MATCH(D8,7:7,0)-1 -> 113

Sheet Data for Graphs
D1: 11 | E1: 20 | F1: 24 * 1000
B3: Text Date | D3: Silicon USD/kg | E3: Polysilcon - Cost/kW | F3: Thin Film - Cost/kW | M3: =E3 -> Polysilcon - Cost/kW | N3: =F3 -> Thin Film - Cost/kW
B4: =TRANSPOSE('Database Sheet'!L6:ET6) -> 02 15 | C4: =IF(ISNUMBER(B4),NA(),DATE(RIGHT(B4,2)+2000,LEFT(B4,2),1)) -> 2015-02-01 | D4: =TRANSPOSE('Database Sheet'!L11:FA11) -> 19.08 | E4: =TRANSPOSE('Database Sheet'!L20:FA20)*1000 -> 607 | F4: =TRANSPOSE('Database Sheet'!L24:FA24)*1000 -> 634 | G4: =IFERROR(F4/E4-1,FALSE) -> 0.04448105437 | H4: =IF(ISNUMBER(C4),YEAR(C4)) -> 2015 | J4: =C4 -> 2015-02-01 | K4: =AND(J4>=$T$18,J4<=$T$23) -> TRUE | L4: =IF(K4,J4,NA()) -> 2015-02-01 | M4: =IF(K4,E4,NA()) -> 607 | N4: =IF(K4,F4,NA()) -> 634 | U4: ="Polysilicon and Thin Film Panel Prices: "&CHAR(13) -> Polysilicon and Thin Film Panel Prices: | V4: Recent Date | W4: =MAX_NA(C:C) -> 2026-03-01 | X4: Polysilicon Panel Price in USD/kWp | Y4: =INDEX(E:E,MATCH(W4,C:C,0)) -> 80
B5: 05 15 | C5: =IF(ISNUMBER(B5),NA(),DATE(RIGHT(B5,2)+2000,LEFT(B5,2),1)) -> 2015-05-01 | D5: 15.79 | E5: 555 | F5: 604 | G5: =IFERROR(F5/E5-1,FALSE) -> 0.08828828829 | H5: =IF(ISNUMBER(C5),YEAR(C5)) -> 2015 | J5: =C5 -> 2015-05-01 | K5: =AND(J5>=$T$18,J5<=$T$23) -> TRUE | L5: =IF(K5,J5,NA()) -> 2015-05-01 | M5: =IF(K5,E5,NA()) -> 555 | N5: =IF(K5,F5,NA()) -> 604
B6: 06 15 | C6: 2015-06-01 | D6: 15.58 | E6: 550 | F6: 596 | G6: 0.08363636364 | H6: 2015 | J6: 2015-06-01 | K6: TRUE | L6: 2015-06-01 | M6: 550 | N6: 596
B7: 05 15 | C7: 2015-05-01 | D7: 15.79 | E7: 555 | F7: 604 | G7: 0.08828828829 | H7: 2015 | J7: 2015-05-01 | K7: TRUE | L7: 2015-05-01 | M7: 555 | N7: 604 | T7: =W4 -> 2026-03-01 | U7: Polysilicon | V7: =INDEX(E:E,Y4) -> 126 | W7: Thin Film | X7: =INDEX(F:F,Y4) -> 202 | Y7: =INDEX(D:D,MATCH(T7,C:C,0)) -> 5.77
B8: 11 15 | C8: 2015-11-01 | D8: 14.1 | E8: 561 | F8: 590 | G8: 0.05169340463 | H8: 2015 | J8: 2015-11-01 | K8: TRUE | L8: 2015-11-01 | M8: 561 | N8: 590
B9: 07 16 | C9: 2016-07-01 | D9: 15.9 | E9: 480 | F9: 506 | G9: 0.05416666667 | H9: 2016 | J9: 2016-07-01 | K9: TRUE | L9: 2016-07-01 | M9: 480 | N9: 506
B10: 10 16 | C10: 2016-10-01 | D10: 12.65 | E10: 402 | F10: 420 | G10: 0.0447761194 | H10: 2016 | J10: 2016-10-01 | K10: TRUE | L10: 2016-10-01 | M10: 402 | N10: 420 | U10: ="Polysilicon Commodity and Panel Prices"&CHAR(13) -> Polysilicon Commodity and Panel Prices | V10: =V4 -> Recent Date | W10: =W4 -> 2026-03-01 | X10: =X4 -> Polysilicon Panel Price in USD/kWp | Y10: =Y4 -> 80 | Z10: Polysilicon Commodity | AA10: =Y7 -> 5.77
B11: 01 17 | C11: 2017-01-01 | D11: 15.37 | E11: 358 | F11: 374 | G11: 0.04469273743 | H11: 2017 | J11: 2017-01-01 | K11: TRUE | L11: 2017-01-01 | M11: 358 | N11: 374
B12: 02 17 | C12: 2017-02-01 | D12: 16.22 | E12: 350 | F12: 363 | G12: 0.03714285714 | H12: 2017 | J12: 2017-02-01 | K12: TRUE | L12: 2017-02-01 | M12: 350 | N12: 363
B13: 04 17 | C13: 2017-04-01 | D13: 14.21 | E13: 341 | F13: 353 | G13: 0.03519061584 | H13: 2017 | J13: 2017-04-01 | K13: TRUE | L13: 2017-04-01 | M13: 341 | N13: 353 | U13: 2015
B14: 06 17 | C14: 2017-06-01 | D14: 13.85 | E14: 333 | F14: 346 | G14: 0.03903903904 | H14: 2017 | J14: 2017-06-01 | K14: TRUE | L14: 2017-06-01 | M14: 333 | N14: 346 | U14: 2016
B15: 08 17 | C15: 2017-08-01 | D15: 15.55 | E15: 321 | F15: 340 | G15: 0.05919003115 | H15: 2017 | J15: 2017-08-01 | K15: TRUE | L15: 2017-08-01 | M15: 321 | N15: 340 | U15: 2017
B16: 09 17 | C16: 2017-09-01 | D16: 16.71 | E16: 322 | F16: 341 | G16: 0.05900621118 | H16: 2017 | J16: 2017-09-01 | K16: TRUE | L16: 2017-09-01 | M16: 322 | N16: 341 | T16: 1 | U16: 2018
B17: 10 17 | C17: 2017-10-01 | D17: 16.68 | E17: 318 | F17: 339 | G17: 0.06603773585 | H17: 2017 | J17: 2017-10-01 | K17: TRUE | L17: 2017-10-01 | M17: 318 | N17: 339 | T17: =INDEX(U13:U26,T16) -> 2015 | U17: 2019
B18: 11 17 | C18: 2017-11-01 | D18: 16.66 | E18: 315 | F18: 336 | G18: 0.06666666667 | H18: 2017 | J18: 2017-11-01 | K18: TRUE | L18: 2017-11-01 | M18: 315 | N18: 336 | T18: =DATE(T17,1,1) -> 2015-01-01 | U18: 2020
B19: 02 18 | C19: 2018-02-01 | D19: 17.44 | E19: 310 | F19: 331 | G19: 0.06774193548 | H19: 2018 | J19: 2018-02-01 | K19: TRUE | L19: 2018-02-01 | M19: 310 | N19: 331 | U19: 2021
B20: 04 18 | C20: 2018-04-01 | D20: 15.41 | E20: 302 | F20: 322 | G20: 0.06622516556 | H20: 2018 | J20: 2018-04-01 | K20: TRUE | L20: 2018-04-01 | M20: 302 | N20: 322 | U20: 2022
B21: 06 18 | C21: 2018-06-01 | D21: 14.65 | E21: 292 | F21: 314 | G21: 0.07534246575 | H21: 2018 | J21: 2018-06-01 | K21: TRUE | L21: 2018-06-01 | M21: 292 | N21: 314 | T21: 11 | U21: 2023
B22: 07 18 | C22: 2018-07-01 | D22: 11.16 | E22: 266 | F22: 296 | G22: 0.1127819549 | H22: 2018 | J22: 2018-07-01 | K22: TRUE | L22: 2018-07-01 | M22: 266 | N22: 296 | T22: =INDEX(U13:U28,T21) -> 2025 | U22: 2024
B23: 08 18 | C23: 2018-08-01 | D23: 11.26 | E23: 239 | F23: 274 | G23: 0.1464435146 | H23: 2018 | J23: 2018-08-01 | K23: TRUE | L23: 2018-08-01 | M23: 239 | N23: 274 | T23: =DATE(T22,12,31) -> 2025-12-31 | U23: 2025
B24: 09 18 | C24: 2018-09-01 | D24: 10.68 | E24: 234 | F24: 265 | G24: 0.1324786325 | H24: 2018 | J24: 2018-09-01 | K24: TRUE | L24: 2018-09-01 | M24: 234 | N24: 265 | U24: 2026
B25: 10 18 | C25: 2018-10-01 | D25: 9.75 | E25: 212 | F25: 247 | G25: 0.1650943396 | H25: 2018 | J25: 2018-10-01 | K25: TRUE | L25: 2018-10-01 | M25: 212 | N25: 247 | U25: 2027
B26: 12 18 | C26: 2018-12-01 | D26: 9.53 | E26: 204 | F26: 243 | G26: 0.1911764706 | H26: =IF(ISNUMBER(C26),YEAR(C26)) -> 2018 | J26: 2018-12-01 | K26: TRUE | L26: 2018-12-01 | M26: 204 | N26: 243 | U26: 2028
B27: 01 19 | C27: 2019-01-01 | D27: 9.26 | E27: 208 | F27: 246 | G27: 0.1826923077 | H27: 2019 | J27: 2019-01-01 | K27: TRUE | L27: 2019-01-01 | M27: 208 | N27: 246
B28: 01 19 | C28: 2019-01-01 | D28: 8.9 | E28: 207 | F28: 245 | G28: 0.1835748792 | H28: 2019 | J28: 2019-01-01 | K28: TRUE | L28: 2019-01-01 | M28: 207 | N28: 245 | U28: Solar Modules from | W28: =T17 -> 2015 | X28: to | Y28: =T22 -> 2025
B29: 03 19 | C29: 2019-03-01 | D29: 9.04 | E29: 207 | F29: 244 | G29: 0.1787439614 | H29: 2019 | J29: 2019-03-01 | K29: TRUE | L29: 2019-03-01 | M29: 207 | N29: 244
B30: 05 19 | C30: 2019-05-01 | D30: 8.42 | E30: 206 | F30: 246 | G30: 0.1941747573 | H30: 2019 | J30: 2019-05-01 | K30: TRUE | L30: 2019-05-01 | M30: 206 | N30: 246
B31: 05 19 | C31: 2019-05-01 | D31: 8.34 | E31: 204 | F31: 248 | G31: 0.2156862745 | H31: 2019 | J31: 2019-05-01 | K31: TRUE | L31: 2019-05-01 | M31: 204 | N31: 248
B32: 06 19 | C32: 2019-06-01 | D32: 8.14 | E32: 212 | F32: 248 | G32: 0.1698113208 | H32: 2019 | J32: 2019-06-01 | K32: TRUE | L32: 2019-06-01 | M32: 212 | N32: 248
B33: 08 19 | C33: 2019-08-01 | D33: 7.92 | E33: 204 | F33: 245 | G33: 0.2009803922 | H33: 2019 | J33: 2019-08-01 | K33: TRUE | L33: 2019-08-01 | M33: 204 | N33: 245
B34: 09 19 | C34: 2019-09-01 | D34: 7.66 | E34: 200 | F34: 243 | G34: 0.215 | H34: 2019 | J34: 2019-09-01 | K34: TRUE | L34: 2019-09-01 | M34: 200 | N34: 243
B35: 11 19 | C35: 2019-11-01 | D35: 7.5 | E35: 194 | F35: 237 | G35: 0.2216494845 | H35: 2019 | J35: 2019-11-01 | K35: TRUE | L35: 2019-11-01 | M35: 194 | N35: 237
B36: 12 19 | C36: 2019-12-01 | D36: 7.41 | E36: 192 | F36: 236 | G36: =IFERROR(F36/E36-1,FALSE) -> 0.2291666667 | H36: =IF(ISNUMBER(C36),YEAR(C36)) -> 2019 | J36: =C36 -> 2019-12-01 | K36: TRUE | L36: 2019-12-01 | M36: 192 | N36: 236
B37: 12 19 | C37: 2019-12-01 | D37: 7.28 | E37: 192 | F37: 236 | G37: 0.2291666667 | H37: 2019 | J37: 2019-12-01 | K37: TRUE | L37: 2019-12-01 | M37: 192 | N37: 236
B38: 02 20 | C38: 2020-02-01 | D38: 7.1 | E38: 191 | F38: 231 | G38: 0.2094240838 | H38: 2020 | J38: 2020-02-01 | K38: TRUE | L38: 2020-02-01 | M38: 191 | N38: 231
B39: 04 20 | C39: 2020-04-01 | D39: 6.43 | E39: 174 | F39: 218 | G39: 0.2528735632 | H39: 2020 | J39: 2020-04-01 | K39: TRUE | L39: 2020-04-01 | M39: 174 | N39: 218
B40: 05 20 | C40: 2020-05-01 | D40: 6.28 | E40: 168 | F40: 213 | G40: 0.2678571429 | H40: 2020 | J40: 2020-05-01 | K40: TRUE | L40: 2020-05-01 | M40: 168 | N40: 213
B41: 06 20 | C41: 2020-06-01 | D41: 6.19 | E41: 161 | F41: 208 | G41: 0.2919254658 | H41: 2020 | J41: 2020-06-01 | K41: TRUE | L41: 2020-06-01 | M41: 161 | N41: 208
B42: 07 20 | C42: 2020-07-01 | D42: 8.21 | E42: 160 | F42: 207 | G42: 0.29375 | H42: 2020 | J42: 2020-07-01 | K42: TRUE | L42: 2020-07-01 | M42: 160 | N42: 207
B43: 08 20 | C43: 2020-08-01 | D43: 10.68 | E43: 167 | F43: 209 | G43: 0.251497006 | H43: 2020 | J43: 2020-08-01 | K43: TRUE | L43: 2020-08-01 | M43: 167 | N43: 209
B44: 09 20 | C44: 2020-09-01 | D44: 10.84 | E44: 171 | F44: 212 | G44: =IFERROR(F44/E44-1,FALSE) -> 0.2397660819 | H44: =IF(ISNUMBER(C44),YEAR(C44)) -> 2020 | J44: =C44 -> 2020-09-01 | K44: TRUE | L44: 2020-09-01 | M44: 171 | N44: 212
B45: 10 20 | C45: 2020-10-01 | D45: 10.64 | E45: 170 | F45: 211 | G45: 0.2411764706 | H45: 2020 | J45: 2020-10-01 | K45: TRUE | L45: 2020-10-01 | M45: 170 | N45: 211
B46: 11 20 | C46: 2020-11-01 | D46: 9.95 | E46: 173 | F46: 213 | G46: 0.2312138728 | H46: 2020 | J46: 2020-11-01 | K46: TRUE | L46: 2020-11-01 | M46: 173 | N46: 213
B47: 01 21 | C47: 2021-01-01 | D47: 10.79 | E47: 168 | F47: 211 | G47: 0.255952381 | H47: 2021 | J47: 2021-01-01 | K47: TRUE | L47: 2021-01-01 | M47: 168 | N47: 211
B48: 01 21 | C48: 2021-01-01 | D48: 11.09 | E48: 167 | F48: 209 | G48: 0.251497006 | H48: 2021 | J48: 2021-01-01 | K48: TRUE | L48: 2021-01-01 | M48: 167 | N48: 209
B49: 02 21 | C49: 2021-02-01 | D49: 12.06 | E49: 177 | F49: 214 | G49: 0.209039548 | H49: 2021 | J49: 2021-02-01 | K49: TRUE | L49: 2021-02-01 | M49: 177 | N49: 214
B50: 03 21 | C50: 2021-03-01 | D50: 15.63 | E50: 178 | F50: 216 | G50: 0.2134831461 | H50: 2021 | J50: 2021-03-01 | K50: TRUE | L50: 2021-03-01 | M50: 178 | N50: 216
B51: 05 21 | C51: 2021-05-01 | D51: 20.02 | E51: 181 | F51: 217 | G51: 0.1988950276 | H51: 2021 | J51: 2021-05-01 | K51: TRUE | L51: 2021-05-01 | M51: 181 | N51: 217
B52: 06 21 | C52: 2021-06-01 | D52: 27.63 | E52: 198 | F52: 230 | G52: 0.1616161616 | H52: 2021 | J52: 2021-06-01 | K52: TRUE | L52: 2021-06-01 | M52: 198 | N52: 230
B53: 07 21 | C53: 2021-07-01 | D53: 27.35 | E53: 196 | F53: 228 | G53: 0.1632653061 | H53: 2021 | J53: 2021-07-01 | K53: TRUE | L53: 2021-07-01 | M53: 196 | N53: 228
B54: 07 21 | C54: 2021-07-01 | D54: 27.11 | E54: 195 | F54: 227 | G54: 0.1641025641 | H54: 2021 | J54: 2021-07-01 | K54: TRUE | L54: 2021-07-01 | M54: 195 | N54: 227
B55: 08 21 | C55: 2021-08-01 | D55: 26.95 | E55: 193 | F55: 225 | G55: 0.1658031088 | H55: 2021 | J55: 2021-08-01 | K55: TRUE | L55: 2021-08-01 | M55: 193 | N55: 225
B56: 09 21 | C56: 2021-09-01 | D56: 28.79 | E56: 193 | F56: 225 | G56: 0.1658031088 | H56: 2021 | J56: 2021-09-01 | K56: TRUE | L56: 2021-09-01 | M56: 193 | N56: 225
B57: 11 21 | C57: 2021-11-01 | D57: 35.81 | E57: 217 | F57: 244 | G57: 0.1244239631 | H57: 2021 | J57: 2021-11-01 | K57: TRUE | L57: 2021-11-01 | M57: 217 | N57: 244
B58: 12 21 | C58: 2021-12-01 | D58: 31.65 | E58: 206 | F58: 234 | G58: 0.1359223301 | H58: 2021 | J58: 2021-12-01 | K58: TRUE | L58: 2021-12-01 | M58: 206 | N58: 234
B59: 01 22 | C59: 2022-01-01 | D59: 30.56 | E59: 201 | F59: 228 | G59: 0.1343283582 | H59: 2022 | J59: 2022-01-01 | K59: TRUE | L59: 2022-01-01 | M59: 201 | N59: 228
B60: 02 22 | C60: 2022-02-01 | D60: 33.05 | E60: 203 | F60: 228 | G60: =IFERROR(F60/E60-1,FALSE) -> 0.1231527094 | H60: =IF(ISNUMBER(C60),YEAR(C60)) -> 2022 | J60: =C60 -> 2022-02-01 | K60: TRUE | L60: 2022-02-01 | M60: 203 | N60: 228
B61: 03 22 | C61: 2022-03-01 | D61: 33.07 | E61: 203 | F61: 228 | G61: 0.1231527094 | H61: 2022 | J61: 2022-03-01 | K61: TRUE | L61: 2022-03-01 | M61: 203 | N61: 228
B62: 04 22 | C62: 2022-04-01 | D62: 32.87 | E62: 201 | F62: 227 | G62: 0.1293532338 | H62: 2022 | J62: 2022-04-01 | K62: TRUE | L62: 2022-04-01 | M62: 201 | N62: 227
B63: 05 22 | C63: 2022-05-01 | D63: 32.12 | E63: 200 | F63: 226 | G63: 0.13 | H63: 2022 | J63: 2022-05-01 | K63: TRUE | L63: 2022-05-01 | M63: 200 | N63: 226
B64: 06 22 | C64: 2022-06-01 | D64: 32.28 | E64: 209 | F64: 232 | G64: 0.1100478469 | H64: 2022 | J64: 2022-06-01 | K64: TRUE | L64: 2022-06-01 | M64: 209 | N64: 232
B65: 06 22 | C65: 2022-06-01 | D65: 33.15 | E65: 208 | F65: 231 | G65: =IFERROR(F65/E65-1,FALSE) -> 0.1105769231 | H65: =IF(ISNUMBER(C65),YEAR(C65)) -> 2022 | J65: =C65 -> 2022-06-01 | K65: TRUE | L65: 2022-06-01 | M65: 208 | N65: 231
B66: 08 22 | C66: 2022-08-01 | D66: 38.13 | E66: 217 | F66: 239 | G66: 0.1013824885 | H66: 2022 | J66: 2022-08-01 | K66: TRUE | L66: 2022-08-01 | M66: 217 | N66: 239
B67: 09 22 | C67: 2022-09-01 | D67: 37.07 | E67: 212 | F67: 236 | G67: 0.1132075472 | H67: 2022 | J67: 2022-09-01 | K67: TRUE | L67: 2022-09-01 | M67: 212 | N67: 236
B68: 10 22 | C68: 2022-10-01 | D68: 35.86 | E68: 204 | F68: 232 | G68: 0.137254902 | H68: 2022 | J68: 2022-10-01 | K68: TRUE | L68: 2022-10-01 | M68: 204 | N68: 232
B69: 10 22 | C69: =IF(ISNUMBER(B69),NA(),DATE(RIGHT(B69,2)+2000,LEFT(B69,2),1)) -> 2022-10-01 | D69: 35.39 | E69: 201 | F69: 230 | G69: 0.144278607 | H69: 2022 | J69: 2022-10-01 | K69: =AND(J69>=$T$18,J69<=$T$23) -> TRUE | L69: =IF(K69,J69,NA()) -> 2022-10-01 | M69: =IF(K69,E69,NA()) -> 201 | N69: =IF(K69,F69,NA()) -> 230
B70: 11 22 | C70: 2022-11-01 | D70: 33.62 | E70: 197 | F70: 228 | G70: 0.1573604061 | H70: 2022 | J70: 2022-11-01 | K70: TRUE | L70: 2022-11-01 | M70: 197 | N70: 228
B71: 01 23 | C71: 2023-01-01 | D71: 15.86 | E71: 190 | F71: 232 | G71: 0.2210526316 | H71: 2023 | J71: 2023-01-01 | K71: TRUE | L71: 2023-01-01 | M71: 190 | N71: 232
B72: 01 23 | C72: 2023-01-01 | D72: 15.86 | E72: 190 | F72: 232 | G72: 0.2210526316 | H72: 2023 | J72: 2023-01-01 | K72: TRUE | L72: 2023-01-01 | M72: 190 | N72: 232
B73: 02 23 | C73: 2023-02-01 | D73: 27.11 | E73: 187 | F73: 232 | G73: 0.2406417112 | H73: 2023 | J73: 2023-02-01 | K73: TRUE | L73: 2023-02-01 | M73: 187 | N73: 232
B74: 04 23 | C74: 2023-04-01 | D74: 24.5 | E74: 187 | F74: 230 | G74: 0.2299465241 | H74: 2023 | J74: 2023-04-01 | K74: TRUE | L74: 2023-04-01 | M74: 187 | N74: 230
B75: 05 23 | C75: 2023-05-01 | D75: 20.39 | E75: 186 | F75: 230 | G75: 0.2365591398 | H75: 2023 | J75: 2023-05-01 | K75: TRUE | L75: 2023-05-01 | M75: 186 | N75: 230
B76: 06 23 | C76: 2023-06-01 | D76: 7.72 | E76: 158 | F76: 214 | G76: 0.3544303797 | H76: 2023 | J76: 2023-06-01 | K76: TRUE | L76: 2023-06-01 | M76: 158 | N76: 214
B77: 07 23 | C77: 2023-07-01 | D77: 8.05 | E77: 147 | F77: 211 | G77: 0.4353741497 | H77: 2023 | J77: 2023-07-01 | K77: TRUE | L77: 2023-07-01 | M77: 147 | N77: 211
B78: 08 23 | C78: 2023-08-01 | D78: 9.21 | E78: 139 | F78: 206 | G78: 0.4820143885 | H78: 2023 | J78: 2023-08-01 | K78: TRUE | L78: 2023-08-01 | M78: 139 | N78: 206
B79: 08 23 | C79: 2023-08-01 | D79: 9.21 | E79: 139 | F79: 206 | G79: 0.4820143885 | H79: 2023 | J79: 2023-08-01 | K79: TRUE | L79: 2023-08-01 | M79: 139 | N79: 206
B80: 10 23 | C80: 2023-10-01 | D80: 9.1 | E80: 126 | F80: 202 | G80: 0.6031746032 | H80: 2023 | J80: 2023-10-01 | K80: TRUE | L80: 2023-10-01 | M80: 126 | N80: 202
B81: 11 23 | C81: 2023-11-01 | D81: 7.89 | E81: 120 | F81: 196 | G81: 0.6333333333 | H81: 2023 | J81: 2023-11-01 | K81: TRUE | L81: 2023-11-01 | M81: 120 | N81: 196
B82: 11 23 | C82: =IF(ISNUMBER(B82),NA(),DATE(RIGHT(B82,2)+2000,LEFT(B82,2),1)) -> 2023-11-01 | D82: 7.45 | E82: 116 | F82: 194 | G82: =IFERROR(F82/E82-1,FALSE) -> 0.6724137931 | H82: =IF(ISNUMBER(C82),YEAR(C82)) -> 2023 | J82: =C82 -> 2023-11-01 | K82: =AND(J82>=$T$18,J82<=$T$23) -> TRUE | L82: =IF(K82,J82,NA()) -> 2023-11-01 | M82: =IF(K82,E82,NA()) -> 116 | N82: =IF(K82,F82,NA()) -> 194
B83: 01 24 | C83: 2024-01-01 | D83: 7.21 | E83: 106 | F83: 188 | G83: 0.7735849057 | H83: 2024 | J83: 2024-01-01 | K83: =AND(J83>=$T$18,J83<=$T$23) -> TRUE | L83: 2024-01-01 | M83: 106 | N83: 188
B84: 02 24 | C84: 2024-02-01 | D84: 8.22 | E84: 100 | F84: 185 | G84: 0.85 | H84: 2024 | J84: 2024-02-01 | K84: TRUE | L84: 2024-02-01 | M84: 100 | N84: 185
B85: 03 24 | C85: 2024-03-01 | D85: 8 | E85: 100 | F85: 185 | G85: 0.85 | H85: 2024 | J85: 2024-03-01 | K85: TRUE | L85: 2024-03-01 | M85: 100 | N85: 185
B86: 05 24 | C86: 2024-05-01 | D86: 4.78 | E86: 92 | F86: 184 | G86: 1 | H86: 2024 | J86: 2024-05-01 | K86: TRUE | L86: 2024-05-01 | M86: 92 | N86: 184
B87: 06 24 | C87: 2024-06-01 | D87: 4.36 | E87: 88 | F87: 184 | G87: 1.090909091 | H87: 2024 | J87: 2024-06-01 | K87: TRUE | L87: 2024-06-01 | M87: 88 | N87: 184
B88: 06 24 | C88: 2024-06-01 | D88: 4.36 | E88: 88 | F88: 184 | G88: 1.090909091 | H88: 2024 | J88: 2024-06-01 | K88: TRUE | L88: 2024-06-01 | M88: 88 | N88: 184
B89: 07 24 | C89: 2024-07-01 | D89: 4.36 | E89: 85 | F89: 184 | G89: 1.164705882 | H89: 2024 | J89: 2024-07-01 | K89: TRUE | L89: 2024-07-01 | M89: 85 | N89: 184 | R89: 2024-01-01
B90: 07 24 | C90: 2024-07-01 | D90: 4.36 | E90: 85 | F90: 184 | G90: 1.164705882 | H90: 2024 | J90: 2024-07-01 | K90: TRUE | L90: 2024-07-01 | M90: 85 | N90: 184 | R90: 2024-01-01 | S90: CNTL 3
B91: 08 24 | C91: 2024-08-01 | D91: 4.4 | E91: 85 | F91: 184 | G91: 1.164705882 | H91: 2024 | J91: 2024-08-01 | K91: TRUE | L91: 2024-08-01 | M91: 85 | N91: 184 | R91: 2024-01-01 | S91: SHIFT CNTL A
B92: 09 24 | C92: 2024-09-01 | D92: 4.42 | E92: 84 | F92: 184 | G92: 1.19047619 | H92: 2024 | J92: 2024-09-01 | K92: TRUE | L92: 2024-09-01 | M92: 84 | N92: 184
B93: 09 24 | C93: 2024-09-01 | D93: 4.6 | E93: 80 | F93: 184 | G93: 1.3 | H93: 2024 | J93: 2024-09-01 | K93: TRUE | L93: 2024-09-01 | M93: 80 | N93: 184
B94: 10 24 | C94: 2024-10-01 | D94: 4.6 | E94: 77 | F94: 184 | G94: 1.38961039 | H94: 2024 | J94: 2024-10-01 | K94: TRUE | L94: 2024-10-01 | M94: 77 | N94: 184
B95: 11 24 | C95: 2024-11-01 | D95: 4.6 | E95: 77 | F95: 184 | G95: 1.38961039 | H95: 2024 | J95: 2024-11-01 | K95: TRUE | L95: 2024-11-01 | M95: 77 | N95: 184
B96: 01 25 | C96: 2025-01-01 | D96: 4.83 | E96: 74 | F96: 184 | G96: 1.486486486 | H96: 2025 | J96: 2025-01-01 | K96: TRUE | L96: 2025-01-01 | M96: 74 | N96: 184
B97: 03 25 | C97: 2025-03-01 | D97: 5.04 | E97: 77 | F97: 184 | G97: 1.38961039 | H97: 2025 | J97: 2025-03-01 | K97: TRUE | L97: 2025-03-01 | M97: 77 | N97: 184
B98: 04 25 | C98: 2025-04-01 | D98: 4.58 | E98: 74 | F98: 200 | G98: 1.702702703 | H98: 2025 | J98: 2025-04-01 | K98: TRUE | L98: 2025-04-01 | M98: 74 | N98: 200
B99: 06 25 | C99: 2025-06-01 | D99: 4.28 | E99: 68 | F99: 200 | G99: 1.941176471 | H99: 2025 | J99: 2025-06-01 | K99: TRUE | L99: 2025-06-01 | M99: 68 | N99: 200
B100: 07 25 | C100: 2025-07-01 | D100: 4.94 | E100: 66 | F100: 200 | G100: 2.03030303 | H100: 2025 | J100: 2025-07-01 | K100: TRUE | L100: 2025-07-01 | M100: 66 | N100: 200
B101: 09 25 | C101: 2025-09-01 | D101: 6.2 | E101: 71 | F101: 200 | G101: 1.816901408 | H101: 2025 | J101: 2025-09-01 | K101: TRUE | L101: 2025-09-01 | M101: 71 | N101: 200
B102: 10 25 | C102: 2025-10-01 | D102: 6.53 | E102: 71 | F102: 200 | G102: 1.816901408 | H102: 2025 | J102: 2025-10-01 | K102: TRUE | L102: 2025-10-01 | M102: 71 | N102: 200
B103: 11 25 | C103: 2025-11-01 | D103: 6.5 | E103: 70 | F103: 200 | G103: 1.857142857 | H103: 2025 | J103: 2025-11-01 | K103: TRUE | L103: 2025-11-01 | M103: 70 | N103: 200
B104: 12 25 | C104: 2025-12-01 | D104: 6.5 | E104: 68 | F104: 200 | G104: 1.941176471 | H104: 2025 | J104: 2025-12-01 | K104: TRUE | L104: 2025-12-01 | M104: 68 | N104: 200
B105: 01 26 | C105: =IF(ISNUMBER(B105),NA(),DATE(RIGHT(B105,2)+2000,LEFT(B105,2),1)) -> 2026-01-01 | D105: 7.88 | E105: 80 | F105: 200 | G105: =IFERROR(F105/E105-1,FALSE) -> 1.5 | H105: =IF(ISNUMBER(C105),YEAR(C105)) -> 2026 | J105: =C105 -> 2026-01-01 | K105: =AND(J105>=$T$18,J105<=$T$23) -> FALSE | L105: =IF(K105,J105,NA()) ->  | M105: =IF(K105,E105,NA()) ->  | N105: =IF(K105,F105,NA()) -> 
B106: 02 26 | C106: 2026-02-01 | D106: 6.19 | E106: 80 | F106: 200 | G106: 1.5 | H106: 2026 | J106: 2026-02-01 | K106: FALSE
B107: 03 26 | C107: 2026-03-01 | D107: 5.77 | E107: 80 | F107: 200 | G107: 1.5 | H107: 2026 | J107: 2026-03-01 | K107: FALSE
B108: 0 | D108: 0 | E108: 0 | F108: 0 | G108: FALSE | H108: FALSE
B109: 0 | D109: 0 | E109: 0 | F109: 0 | G109: FALSE | H109: FALSE
B110: 0 | D110: 0 | E110: 0 | F110: 0 | G110: FALSE | H110: FALSE
B111: 0 | D111: 0 | E111: 0 | F111: 0 | G111: FALSE | H111: FALSE
B112: 0 | D112: 0 | E112: 0 | F112: 0 | G112: FALSE | H112: FALSE
B113: 0 | D113: 0 | E113: 0 | F113: 0 | G113: FALSE | H113: FALSE
B114: 0 | D114: 0 | E114: 0 | F114: 0 | G114: FALSE | H114: FALSE
B115: 0 | D115: 0 | E115: 0 | F115: 0 | G115: FALSE | H115: FALSE
B116: 0 | D116: 0 | E116: 0 | F116: 0 | G116: FALSE | H116: FALSE
B117: 0 | D117: 0 | E117: 0 | F117: 0 | G117: FALSE | H117: FALSE
B118: 0 | D118: 0 | E118: 0 | F118: 0 | G118: FALSE | H118: FALSE
B119: 0 | D119: 0 | E119: 0 | F119: 0 | G119: FALSE | H119: FALSE
B120: 0 | D120: 0 | E120: 0 | F120: 0
B121: 0 | D121: 0 | E121: 0 | F121: 0
B122: 0 | D122: 0 | E122: 0 | F122: 0
B123: 0 | D123: 0 | E123: 0 | F123: 0
B124: 0 | D124: 0 | E124: 0 | F124: 0
B125: 0 | D125: 0 | E125: 0 | F125: 0
B126: 0 | D126: 0 | E126: 0 | F126: 0
B127: 0 | D127: 0 | E127: 0 | F127: 0
B128: 0 | D128: 0 | E128: 0 | F128: 0
B129: 0 | D129: 0 | E129: 0 | F129: 0
B130: 0 | D130: 0 | E130: 0 | F130: 0
B131: 0 | D131: 0 | E131: 0 | F131: 0
B132: 0 | D132: 0 | E132: 0 | F132: 0
B133: 0 | D133: 0 | E133: 0 | F133: 0
B134: 0 | D134: 0 | E134: 0 | F134: 0
B135: 0 | D135: 0 | E135: 0 | F135: 0
B136: 0 | D136: 0 | E136: 0 | F136: 0
B137: 0 | D137: 0 | E137: 0 | F137: 0
B138: 0 | D138: 0 | E138: 0 | F138: 0
B139: 0 | D139: 0 | E139: 0 | F139: 0
B140: 0 | D140: 0 | E140: 0 | F140: 0
B141: 0 | D141: 0 | E141: 0 | F141: 0
B142: 0 | D142: 0 | E142: 0 | F142: 0
D143: 0 | E143: 0 | F143: 0
D144: 0 | E144: 0 | F144: 0
D145: 0 | E145: 0 | F145: 0
D146: 0 | E146: 0 | F146: 0
D147: 0 | E147: 0 | F147: 0
D148: 0 | E148: 0 | F148: 0
D149: 0 | E149: 0 | F149: 0

Sheet Polysilicon History
C3: Silicon Price (USD/kg) | U3: Price of Crystaline Panels
B4: 1999 | C4: 8 | W4: =V35 -> 2010-04-01 | X4: 1900
B5: 2000 | C5: 14 | W5: =V49 -> 2011-06-01 | X5: 1500
B6: 2001 | C6: 18 | W6: =V59 -> 2012-04-01 | X6: 1000
B7: 2002 | C7: 20 | W7: =V92 -> 2015-01-01 | X7: 607
B8: 2003 | C8: 26 | W8: Module | X8: Silicon
B9: 2004 | C9: 30 | V9: 1985-01-01 | W9: =P60 -> 6800
B10: 2005 | C10: 40 | V10: =EDATE(V9,12) -> 1986-01-01 | W10: =P61 -> 6200
B11: 2006 | C11: 94 | V11: =EDATE(V10,12) -> 1987-01-01 | W11: 5600
B12: 2007 | C12: 138 | V12: 1988-01-01 | W12: 5800
B13: 2008 | C13: 207 | V13: 1989-01-01 | W13: 6100
B14: 2009 | C14: 91 | V14: 1990-01-01 | W14: 5900
B15: 2010 | C15: 56 | V15: 1991-01-01 | W15: 5800
B16: 2011 | C16: 59 | V16: 1992-01-01 | W16: 5300
B17: 2012 | C17: 25 | V17: 1993-01-01 | W17: 5200
B18: 2013 | C18: 16 | V18: 1994-01-01 | W18: 5100
B19: 2014 | C19: 16 | V19: 1995-01-01 | W19: 4600
B20: 2015 | C20: =AVERAGEIF('Data for Graphs'!H:H,'Polysilicon History'!B20,'Data for Graphs'!D:D) -> 16.068 | V20: 1996-01-01 | W20: 4200
B21: 2016 | C21: =AVERAGEIF('Data for Graphs'!H:H,'Polysilicon History'!B21,'Data for Graphs'!D:D) -> 14.275 | V21: 1997-01-01 | W21: 4100
B22: 2017 | C22: =AVERAGEIF('Data for Graphs'!H:H,'Polysilicon History'!B22,'Data for Graphs'!D:D) -> 15.65625 | V22: 1998-01-01 | W22: 3500
B23: 2018 | C23: =AVERAGEIF('Data for Graphs'!H:H,'Polysilicon History'!B23,'Data for Graphs'!D:D) -> 12.485 | V23: 1999-01-01 | W23: 2800 | X23: =C4 -> 8
B24: 2019 | C24: =AVERAGEIF('Data for Graphs'!H:H,'Polysilicon History'!B24,'Data for Graphs'!D:D) -> 8.17 | V24: 2000-01-01 | W24: 2700 | X24: =C5 -> 14
B25: 2020 | C25: =AVERAGEIF('Data for Graphs'!H:H,'Polysilicon History'!B25,'Data for Graphs'!D:D) -> 8.48 | V25: 2001-01-01 | W25: 2800 | X25: 18
B26: 2021 | C26: =AVERAGEIF('Data for Graphs'!H:H,'Polysilicon History'!B26,'Data for Graphs'!D:D) -> 22.90666667 | V26: 2002-01-01 | W26: 2900 | X26: 20
B27: 2022 | C27: =AVERAGEIF('Data for Graphs'!H:H,'Polysilicon History'!B27,'Data for Graphs'!D:D) -> 33.93083333 | V27: 2003-01-01 | W27: 2800 | X27: 26
V28: 2004-01-01 | W28: 2900 | X28: 30
V29: 2005-01-01 | W29: 3000 | X29: 40
V30: 2006-01-01 | W30: 3300 | X30: 94
V31: 2007-01-01 | W31: 3400 | X31: 138
V32: 2008-01-01 | W32: 3200 | X32: 207
V33: 2009-01-01 | W33: 2800 | X33: 91
V34: 2010-01-01 | W34: 1800 | X34: 56
U35: =YEAR(V35) -> 2010 | V35: 2010-04-01 | W35: =interpolate_look_up(V35,$W$4:$W$7,$X$4:$X$7) -> 1900 | X35: =interpolate_look_up(U35,B:B,C:C) -> 56
U36: =YEAR(V36) -> 2010 | V36: =EDATE(V35,1) -> 2010-05-01 | W36: =interpolate_look_up(V36,$W$4:$W$7,$X$4:$X$7) -> 1868.63233 | X36: =interpolate_look_up(U36,B:B,C:C) -> 56
U37: 2010 | V37: =EDATE(V36,1) -> 2010-06-01 | W37: 1836.76301 | X37: =interpolate_look_up(U37,B:B,C:C) -> 56
U38: 2010 | V38: 2010-07-01 | W38: 1806.439339 | X38: =interpolate_look_up(U38,B:B,C:C) -> 56
U39: 2010 | V39: 2010-08-01 | W39: 1775.630714 | X39: =interpolate_look_up(U39,B:B,C:C) -> 56
U40: 2010 | V40: 2010-09-01 | W40: 1745.347526 | X40: =interpolate_look_up(U40,B:B,C:C) -> 56
U41: 2010 | V41: 2010-10-01 | W41: 1716.533061 | X41: =interpolate_look_up(U41,B:B,C:C) -> 56
U42: 2010 | V42: 2010-11-01 | W42: 1687.257777 | X42: =interpolate_look_up(U42,B:B,C:C) -> 56
U43: 2010 | V43: 2010-12-01 | W43: 1659.402332 | X43: =interpolate_look_up(U43,B:B,C:C) -> 56
U44: 2011 | V44: 2011-01-01 | W44: 1631.101407 | X44: =interpolate_look_up(U44,B:B,C:C) -> 59
U45: 2011 | V45: 2011-02-01 | W45: 1603.283151 | X45: =interpolate_look_up(U45,B:B,C:C) -> 59
U46: 2011 | V46: 2011-03-01 | W46: 1578.564999 | X46: =interpolate_look_up(U46,B:B,C:C) -> 59
U47: 2011 | V47: 2011-04-01 | W47: 1551.642745 | X47: =interpolate_look_up(U47,B:B,C:C) -> 59
U48: 2011 | V48: 2011-05-01 | W48: 1526.02621 | X48: =interpolate_look_up(U48,B:B,C:C) -> 59
U49: 2011 | V49: 2011-06-01 | W49: 1500 | X49: =interpolate_look_up(U49,B:B,C:C) -> 59
U50: 2011 | V50: 2011-07-01 | W50: 1441.354497 | X50: =interpolate_look_up(U50,B:B,C:C) -> 59
U51: 2011 | V51: 2011-08-01 | W51: 1383.161867 | X51: =interpolate_look_up(U51,B:B,C:C) -> 59
U52: 2011 | V52: 2011-09-01 | W52: 1327.318682 | X52: =interpolate_look_up(U52,B:B,C:C) -> 59
U53: 2011 | V53: 2011-10-01 | W53: 1275.424501 | X53: =interpolate_look_up(U53,B:B,C:C) -> 59
U54: 2011 | V54: 2011-11-01 | W54: 1223.931058 | X54: =interpolate_look_up(U54,B:B,C:C) -> 59
U55: 2011 | V55: 2011-12-01 | W55: 1176.079023 | X55: =interpolate_look_up(U55,B:B,C:C) -> 59
U56: 2012 | V56: 2012-01-01 | W56: 1128.596511 | X56: =interpolate_look_up(U56,B:B,C:C) -> 25
U57: 2012 | V57: 2012-02-01 | W57: 1083.031039 | X57: =interpolate_look_up(U57,B:B,C:C) -> 25
U58: 2012 | V58: 2012-03-01 | W58: 1042.072176 | X58: =interpolate_look_up(U58,B:B,C:C) -> 25
U59: 2012 | V59: 2012-04-01 | W59: 1000 | X59: =interpolate_look_up(U59,B:B,C:C) -> 25
O60: 1985 | P60: 6800 | U60: 2012 | V60: 2012-05-01 | W60: 985.2082063 | X60: =interpolate_look_up(U60,B:B,C:C) -> 25
O61: 1986 | P61: 6200 | U61: 2012 | V61: 2012-06-01 | W61: 970.1531734 | X61: =interpolate_look_up(U61,B:B,C:C) -> 25
O62: 1987 | P62: 5600 | U62: 2012 | V62: 2012-07-01 | W62: 955.8028678 | X62: =interpolate_look_up(U62,B:B,C:C) -> 25
O63: 1988 | P63: 5800 | U63: 2012 | V63: 2012-08-01 | W63: 941.1971799 | X63: =interpolate_look_up(U63,B:B,C:C) -> 25
O64: 1989 | P64: 6100 | U64: 2012 | V64: 2012-09-01 | W64: 926.8146825 | X64: =interpolate_look_up(U64,B:B,C:C) -> 25
O65: 1990 | P65: 5900 | U65: 2012 | V65: 2012-10-01 | W65: 913.1054309 | X65: =interpolate_look_up(U65,B:B,C:C) -> 25
O66: 1991 | P66: 5800 | U66: 2012 | V66: 2012-11-01 | W66: 899.1522054 | X66: =interpolate_look_up(U66,B:B,C:C) -> 25
O67: 1992 | P67: 5300 | U67: 2012 | V67: 2012-12-01 | W67: 885.8521314 | X67: =interpolate_look_up(U67,B:B,C:C) -> 25
O68: 1993 | P68: 5200 | U68: 2013 | V68: 2013-01-01 | W68: 872.3153654 | X68: =interpolate_look_up(U68,B:B,C:C) -> 16
O69: 1994 | P69: 5100 | U69: 2013 | V69: 2013-02-01 | W69: 858.9854557 | X69: =interpolate_look_up(U69,B:B,C:C) -> 16
O70: 1995 | P70: 4600 | U70: 2013 | V70: 2013-03-01 | W70: 847.1207042 | X70: =interpolate_look_up(U70,B:B,C:C) -> 16
O71: 1996 | P71: 4200 | U71: 2013 | V71: 2013-04-01 | W71: 834.1757958 | X71: =interpolate_look_up(U71,B:B,C:C) -> 16
O72: 1997 | P72: 4100 | U72: 2013 | V72: 2013-05-01 | W72: 821.8368395 | X72: =interpolate_look_up(U72,B:B,C:C) -> 16
O73: 1998 | P73: 3500 | U73: 2013 | V73: 2013-06-01 | W73: 809.2782955 | X73: =interpolate_look_up(U73,B:B,C:C) -> 16
O74: 1999 | P74: 2800 | U74: 2013 | V74: 2013-07-01 | W74: 797.3076178 | X74: =interpolate_look_up(U74,B:B,C:C) -> 16
O75: 2000 | P75: 2700 | U75: 2013 | V75: 2013-08-01 | W75: 785.1239065 | X75: =interpolate_look_up(U75,B:B,C:C) -> 16
O76: 2001 | P76: 2800 | U76: 2013 | V76: 2013-09-01 | W76: 773.1263753 | X76: =interpolate_look_up(U76,B:B,C:C) -> 16
O77: 2002 | P77: 2900 | U77: 2013 | V77: 2013-10-01 | W77: 761.6904494 | X77: =interpolate_look_up(U77,B:B,C:C) -> 16
O78: 2003 | P78: 2800 | U78: 2013 | V78: 2013-11-01 | W78: 750.0510064 | X78: =interpolate_look_up(U78,B:B,C:C) -> 16
O79: 2004 | P79: 2900 | U79: 2013 | V79: 2013-12-01 | W79: 738.9564067 | X79: =interpolate_look_up(U79,B:B,C:C) -> 16
O80: 2005 | P80: 3000 | U80: 2014 | V80: 2014-01-01 | W80: 727.6643641 | X80: =interpolate_look_up(U80,B:B,C:C) -> 16
O81: 2006 | P81: 3300 | U81: 2014 | V81: 2014-02-01 | W81: 716.544876 | X81: =interpolate_look_up(U81,B:B,C:C) -> 16
O82: 2007 | P82: 3400 | U82: 2014 | V82: 2014-03-01 | W82: 706.6475876 | X82: =interpolate_look_up(U82,B:B,C:C) -> 16
O83: 2008 | P83: 3200 | U83: 2014 | V83: 2014-04-01 | W83: 695.8492583 | X83: =interpolate_look_up(U83,B:B,C:C) -> 16
O84: 2009 | P84: 2800 | U84: 2014 | V84: 2014-05-01 | W84: 685.5563996 | X84: =interpolate_look_up(U84,B:B,C:C) -> 16
O85: 2010 | P85: 1800 | U85: 2014 | V85: 2014-06-01 | W85: 675.0803661 | X85: =interpolate_look_up(U85,B:B,C:C) -> 16
O86: 2011 | S86: 2015 | U86: 2014 | V86: 2014-07-01 | W86: 665.0947166 | X86: =interpolate_look_up(U86,B:B,C:C) -> 16
O87: 2012 | U87: 2014 | V87: 2014-08-01 | W87: 654.9313595 | X87: =interpolate_look_up(U87,B:B,C:C) -> 16
O88: 2013 | U88: 2014 | V88: 2014-09-01 | W88: 644.9233093 | X88: =interpolate_look_up(U88,B:B,C:C) -> 16
O89: 2014 | U89: 2014 | V89: 2014-10-01 | W89: 635.3837368 | X89: =interpolate_look_up(U89,B:B,C:C) -> 16
U90: 2014 | V90: 2014-11-01 | W90: 625.6743952 | X90: =interpolate_look_up(U90,B:B,C:C) -> 16
U91: 2014 | V91: 2014-12-01 | W91: 616.4195486 | X91: =interpolate_look_up(U91,B:B,C:C) -> 16
U92: 2015 | V92: 2015-01-01 | W92: 607 | X92: =interpolate_look_up(U92,B:B,C:C) -> 16.068
S93: Change | U93: 2015 | V93: ='Data for Graphs'!C4 -> 2015-02-01 | W93: ='Data for Graphs'!E4 -> 607 | X93: ='Data for Graphs'!D4 -> 19.08
U94: 2015 | V94: ='Data for Graphs'!C5 -> 2015-05-01 | W94: ='Data for Graphs'!E5 -> 555 | X94: ='Data for Graphs'!D5 -> 15.79
U95: 2015 | V95: ='Data for Graphs'!C6 -> 2015-06-01 | W95: ='Data for Graphs'!E6 -> 550 | X95: ='Data for Graphs'!D6 -> 15.58
U96: 2015 | V96: ='Data for Graphs'!C7 -> 2015-05-01 | W96: ='Data for Graphs'!E7 -> 555 | X96: ='Data for Graphs'!D7 -> 15.79
U97: 2015 | V97: ='Data for Graphs'!C8 -> 2015-11-01 | W97: ='Data for Graphs'!E8 -> 561 | X97: ='Data for Graphs'!D8 -> 14.1
U98: 2016 | V98: ='Data for Graphs'!C9 -> 2016-07-01 | W98: ='Data for Graphs'!E9 -> 480 | X98: ='Data for Graphs'!D9 -> 15.9
U99: 2016 | V99: ='Data for Graphs'!C10 -> 2016-10-01 | W99: ='Data for Graphs'!E10 -> 402 | X99: ='Data for Graphs'!D10 -> 12.65
U100: =YEAR(V100) -> 2017 | V100: ='Data for Graphs'!C11 -> 2017-01-01 | W100: ='Data for Graphs'!E11 -> 358 | X100: ='Data for Graphs'!D11 -> 15.37
U101: 2017 | V101: ='Data for Graphs'!C12 -> 2017-02-01 | W101: ='Data for Graphs'!E12 -> 350 | X101: ='Data for Graphs'!D12 -> 16.22
U102: 2017 | V102: ='Data for Graphs'!C13 -> 2017-04-01 | W102: ='Data for Graphs'!E13 -> 341 | X102: ='Data for Graphs'!D13 -> 14.21
U103: 2017 | V103: ='Data for Graphs'!C14 -> 2017-06-01 | W103: ='Data for Graphs'!E14 -> 333 | X103: ='Data for Graphs'!D14 -> 13.85
U104: 2017 | V104: ='Data for Graphs'!C15 -> 2017-08-01 | W104: ='Data for Graphs'!E15 -> 321 | X104: ='Data for Graphs'!D15 -> 15.55
U105: 2017 | V105: ='Data for Graphs'!C16 -> 2017-09-01 | W105: ='Data for Graphs'!E16 -> 322 | X105: ='Data for Graphs'!D16 -> 16.71
U106: 2017 | V106: ='Data for Graphs'!C17 -> 2017-10-01 | W106: ='Data for Graphs'!E17 -> 318 | X106: ='Data for Graphs'!D17 -> 16.68
U107: 2017 | V107: ='Data for Graphs'!C18 -> 2017-11-01 | W107: ='Data for Graphs'!E18 -> 315 | X107: ='Data for Graphs'!D18 -> 16.66
U108: 2018 | V108: ='Data for Graphs'!C19 -> 2018-02-01 | W108: ='Data for Graphs'!E19 -> 310 | X108: ='Data for Graphs'!D19 -> 17.44
U109: 2018 | V109: ='Data for Graphs'!C20 -> 2018-04-01 | W109: ='Data for Graphs'!E20 -> 302 | X109: ='Data for Graphs'!D20 -> 15.41
U110: 2018 | V110: ='Data for Graphs'!C21 -> 2018-06-01 | W110: ='Data for Graphs'!E21 -> 292 | X110: ='Data for Graphs'!D21 -> 14.65
U111: 2018 | V111: ='Data for Graphs'!C22 -> 2018-07-01 | W111: ='Data for Graphs'!E22 -> 266 | X111: ='Data for Graphs'!D22 -> 11.16
U112: 2018 | V112: ='Data for Graphs'!C23 -> 2018-08-01 | W112: ='Data for Graphs'!E23 -> 239 | X112: ='Data for Graphs'!D23 -> 11.26
U113: 2018 | V113: ='Data for Graphs'!C24 -> 2018-09-01 | W113: ='Data for Graphs'!E24 -> 234 | X113: ='Data for Graphs'!D24 -> 10.68
U114: 2018 | V114: ='Data for Graphs'!C25 -> 2018-10-01 | W114: ='Data for Graphs'!E25 -> 212 | X114: ='Data for Graphs'!D25 -> 9.75
U115: 2018 | V115: ='Data for Graphs'!C26 -> 2018-12-01 | W115: ='Data for Graphs'!E26 -> 204 | X115: ='Data for Graphs'!D26 -> 9.53
U116: 2019 | V116: ='Data for Graphs'!C27 -> 2019-01-01 | W116: ='Data for Graphs'!E27 -> 208 | X116: ='Data for Graphs'!D27 -> 9.26
U117: 2019 | V117: ='Data for Graphs'!C28 -> 2019-01-01 | W117: ='Data for Graphs'!E28 -> 207 | X117: ='Data for Graphs'!D28 -> 8.9
U118: 2019 | V118: ='Data for Graphs'!C29 -> 2019-03-01 | W118: ='Data for Graphs'!E29 -> 207 | X118: ='Data for Graphs'!D29 -> 9.04
U119: 2019 | V119: ='Data for Graphs'!C30 -> 2019-05-01 | W119: ='Data for Graphs'!E30 -> 206 | X119: ='Data for Graphs'!D30 -> 8.42
U120: 2019 | V120: ='Data for Graphs'!C31 -> 2019-05-01 | W120: ='Data for Graphs'!E31 -> 204 | X120: ='Data for Graphs'!D31 -> 8.34
U121: 2019 | V121: ='Data for Graphs'!C32 -> 2019-06-01 | W121: ='Data for Graphs'!E32 -> 212 | X121: ='Data for Graphs'!D32 -> 8.14
U122: 2019 | V122: ='Data for Graphs'!C33 -> 2019-08-01 | W122: ='Data for Graphs'!E33 -> 204 | X122: ='Data for Graphs'!D33 -> 7.92
U123: 2019 | V123: ='Data for Graphs'!C34 -> 2019-09-01 | W123: ='Data for Graphs'!E34 -> 200 | X123: ='Data for Graphs'!D34 -> 7.66
U124: 2019 | V124: ='Data for Graphs'!C35 -> 2019-11-01 | W124: ='Data for Graphs'!E35 -> 194 | X124: ='Data for Graphs'!D35 -> 7.5
U125: 2019 | V125: ='Data for Graphs'!C36 -> 2019-12-01 | W125: ='Data for Graphs'!E36 -> 192 | X125: ='Data for Graphs'!D36 -> 7.41
U126: 2019 | V126: ='Data for Graphs'!C37 -> 2019-12-01 | W126: ='Data for Graphs'!E37 -> 192 | X126: ='Data for Graphs'!D37 -> 7.28
U127: 2020 | V127: ='Data for Graphs'!C38 -> 2020-02-01 | W127: ='Data for Graphs'!E38 -> 191 | X127: ='Data for Graphs'!D38 -> 7.1
U128: 2020 | V128: ='Data for Graphs'!C39 -> 2020-04-01 | W128: ='Data for Graphs'!E39 -> 174 | X128: ='Data for Graphs'!D39 -> 6.43
U129: 2020 | V129: ='Data for Graphs'!C40 -> 2020-05-01 | W129: ='Data for Graphs'!E40 -> 168 | X129: ='Data for Graphs'!D40 -> 6.28
U130: 2020 | V130: ='Data for Graphs'!C41 -> 2020-06-01 | W130: ='Data for Graphs'!E41 -> 161 | X130: ='Data for Graphs'!D41 -> 6.19
U131: 2020 | V131: ='Data for Graphs'!C42 -> 2020-07-01 | W131: ='Data for Graphs'!E42 -> 160 | X131: ='Data for Graphs'!D42 -> 8.21
U132: 2020 | V132: ='Data for Graphs'!C43 -> 2020-08-01 | W132: ='Data for Graphs'!E43 -> 167 | X132: ='Data for Graphs'!D43 -> 10.68
U133: 2020 | V133: ='Data for Graphs'!C44 -> 2020-09-01 | W133: ='Data for Graphs'!E44 -> 171 | X133: ='Data for Graphs'!D44 -> 10.84
U134: 2020 | V134: ='Data for Graphs'!C45 -> 2020-10-01 | W134: ='Data for Graphs'!E45 -> 170 | X134: ='Data for Graphs'!D45 -> 10.64
U135: 2020 | V135: ='Data for Graphs'!C46 -> 2020-11-01 | W135: ='Data for Graphs'!E46 -> 173 | X135: ='Data for Graphs'!D46 -> 9.95
U136: 2021 | V136: ='Data for Graphs'!C47 -> 2021-01-01 | W136: ='Data for Graphs'!E47 -> 168 | X136: ='Data for Graphs'!D47 -> 10.79
U137: 2021 | V137: ='Data for Graphs'!C48 -> 2021-01-01 | W137: ='Data for Graphs'!E48 -> 167 | X137: ='Data for Graphs'!D48 -> 11.09
U138: 2021 | V138: ='Data for Graphs'!C49 -> 2021-02-01 | W138: ='Data for Graphs'!E49 -> 177 | X138: ='Data for Graphs'!D49 -> 12.06
U139: 2021 | V139: ='Data for Graphs'!C50 -> 2021-03-01 | W139: ='Data for Graphs'!E50 -> 178 | X139: ='Data for Graphs'!D50 -> 15.63
U140: 2021 | V140: ='Data for Graphs'!C51 -> 2021-05-01 | W140: ='Data for Graphs'!E51 -> 181 | X140: ='Data for Graphs'!D51 -> 20.02
U141: 2021 | V141: ='Data for Graphs'!C52 -> 2021-06-01 | W141: ='Data for Graphs'!E52 -> 198 | X141: ='Data for Graphs'!D52 -> 27.63
U142: 2021 | V142: ='Data for Graphs'!C53 -> 2021-07-01 | W142: ='Data for Graphs'!E53 -> 196 | X142: ='Data for Graphs'!D53 -> 27.35
U143: 2021 | V143: ='Data for Graphs'!C54 -> 2021-07-01 | W143: ='Data for Graphs'!E54 -> 195 | X143: ='Data for Graphs'!D54 -> 27.11
U144: 2021 | V144: ='Data for Graphs'!C55 -> 2021-08-01 | W144: ='Data for Graphs'!E55 -> 193 | X144: ='Data for Graphs'!D55 -> 26.95
U145: 2021 | V145: ='Data for Graphs'!C56 -> 2021-09-01 | W145: ='Data for Graphs'!E56 -> 193 | X145: ='Data for Graphs'!D56 -> 28.79
U146: 2021 | V146: ='Data for Graphs'!C57 -> 2021-11-01 | W146: ='Data for Graphs'!E57 -> 217 | X146: ='Data for Graphs'!D57 -> 35.81
U147: 2021 | V147: ='Data for Graphs'!C58 -> 2021-12-01 | W147: ='Data for Graphs'!E58 -> 206 | X147: ='Data for Graphs'!D58 -> 31.65
U148: 2022 | V148: ='Data for Graphs'!C59 -> 2022-01-01 | W148: ='Data for Graphs'!E59 -> 201 | X148: ='Data for Graphs'!D59 -> 30.56
U149: =YEAR(V149) -> 2022 | V149: ='Data for Graphs'!C60 -> 2022-02-01 | W149: ='Data for Graphs'!E60 -> 203 | X149: ='Data for Graphs'!D60 -> 33.05
U150: 2022 | V150: ='Data for Graphs'!C61 -> 2022-03-01 | W150: ='Data for Graphs'!E61 -> 203 | X150: ='Data for Graphs'!D61 -> 33.07
U151: 2022 | V151: ='Data for Graphs'!C62 -> 2022-04-01 | W151: ='Data for Graphs'!E62 -> 201 | X151: ='Data for Graphs'!D62 -> 32.87
U152: 2022 | V152: ='Data for Graphs'!C63 -> 2022-05-01 | W152: ='Data for Graphs'!E63 -> 200 | X152: ='Data for Graphs'!D63 -> 32.12
U153: 2022 | V153: ='Data for Graphs'!C64 -> 2022-06-01 | W153: ='Data for Graphs'!E64 -> 209 | X153: ='Data for Graphs'!D64 -> 32.28
U154: 2022 | V154: ='Data for Graphs'!C65 -> 2022-06-01 | W154: ='Data for Graphs'!E65 -> 208 | X154: ='Data for Graphs'!D65 -> 33.15
U155: 2022 | V155: ='Data for Graphs'!C66 -> 2022-08-01 | W155: ='Data for Graphs'!E66 -> 217 | X155: ='Data for Graphs'!D66 -> 38.13
U156: 2022 | V156: ='Data for Graphs'!C67 -> 2022-09-01 | W156: ='Data for Graphs'!E67 -> 212 | X156: ='Data for Graphs'!D67 -> 37.07
U157: 2022 | V157: ='Data for Graphs'!C68 -> 2022-10-01 | W157: ='Data for Graphs'!E68 -> 204 | X157: ='Data for Graphs'!D68 -> 35.86
U158: 2022 | V158: ='Data for Graphs'!C69 -> 2022-10-01 | W158: ='Data for Graphs'!E69 -> 201 | X158: ='Data for Graphs'!D69 -> 35.39
U159: 2022 | V159: ='Data for Graphs'!C70 -> 2022-11-01 | W159: ='Data for Graphs'!E70 -> 197 | X159: ='Data for Graphs'!D70 -> 33.62
U160: 2023 | V160: ='Data for Graphs'!C71 -> 2023-01-01 | W160: ='Data for Graphs'!E71 -> 190 | X160: ='Data for Graphs'!D71 -> 15.86
U161: 2023 | V161: ='Data for Graphs'!C72 -> 2023-01-01 | W161: ='Data for Graphs'!E72 -> 190 | X161: ='Data for Graphs'!D72 -> 15.86
U162: 2023 | V162: ='Data for Graphs'!C73 -> 2023-02-01 | W162: ='Data for Graphs'!E73 -> 187 | X162: ='Data for Graphs'!D73 -> 27.11
U163: 2023 | V163: ='Data for Graphs'!C74 -> 2023-04-01 | W163: ='Data for Graphs'!E74 -> 187 | X163: ='Data for Graphs'!D74 -> 24.5
U164: 2023 | V164: ='Data for Graphs'!C75 -> 2023-05-01 | W164: ='Data for Graphs'!E75 -> 186 | X164: ='Data for Graphs'!D75 -> 20.39
U165: 2023 | V165: ='Data for Graphs'!C76 -> 2023-06-01 | W165: ='Data for Graphs'!E76 -> 158 | X165: ='Data for Graphs'!D76 -> 7.72
U166: 2023 | V166: ='Data for Graphs'!C77 -> 2023-07-01 | W166: ='Data for Graphs'!E77 -> 147 | X166: ='Data for Graphs'!D77 -> 8.05
U167: 2023 | V167: ='Data for Graphs'!C78 -> 2023-08-01 | W167: ='Data for Graphs'!E78 -> 139 | X167: ='Data for Graphs'!D78 -> 9.21
U168: 2023 | V168: ='Data for Graphs'!C79 -> 2023-08-01 | W168: ='Data for Graphs'!E79 -> 139 | X168: ='Data for Graphs'!D79 -> 9.21
U169: 2023 | V169: ='Data for Graphs'!C80 -> 2023-10-01 | W169: ='Data for Graphs'!E80 -> 126 | X169: ='Data for Graphs'!D80 -> 9.1

Sheet Polysilicon Cost Curve

Sheet Cell vs Module vs Array

Sheet Panel only
B1: ='Data for Graphs'!D3 -> Silicon USD/kg | C1: ='Data for Graphs'!E3 -> Polysilcon - Cost/kW | D1: ='Data for Graphs'!F3 -> Thin Film - Cost/kW
A2: ='Data for Graphs'!C4 -> 2015-02-01 | B2: ='Data for Graphs'!D4 -> 19.08 | C2: ='Data for Graphs'!E4 -> 607 | D2: ='Data for Graphs'!F4 -> 634
A3: ='Data for Graphs'!C5 -> 2015-05-01 | B3: ='Data for Graphs'!D5 -> 15.79 | C3: ='Data for Graphs'!E5 -> 555 | D3: ='Data for Graphs'!F5 -> 604
A4: ='Data for Graphs'!C6 -> 2015-06-01 | B4: ='Data for Graphs'!D6 -> 15.58 | C4: ='Data for Graphs'!E6 -> 550 | D4: ='Data for Graphs'!F6 -> 596
A5: ='Data for Graphs'!C7 -> 2015-05-01 | B5: ='Data for Graphs'!D7 -> 15.79 | C5: ='Data for Graphs'!E7 -> 555 | D5: ='Data for Graphs'!F7 -> 604
A6: ='Data for Graphs'!C8 -> 2015-11-01 | B6: ='Data for Graphs'!D8 -> 14.1 | C6: ='Data for Graphs'!E8 -> 561 | D6: ='Data for Graphs'!F8 -> 590
A7: ='Data for Graphs'!C9 -> 2016-07-01 | B7: ='Data for Graphs'!D9 -> 15.9 | C7: ='Data for Graphs'!E9 -> 480 | D7: ='Data for Graphs'!F9 -> 506
A8: ='Data for Graphs'!C10 -> 2016-10-01 | B8: ='Data for Graphs'!D10 -> 12.65 | C8: ='Data for Graphs'!E10 -> 402 | D8: ='Data for Graphs'!F10 -> 420
A9: ='Data for Graphs'!C11 -> 2017-01-01 | B9: ='Data for Graphs'!D11 -> 15.37 | C9: ='Data for Graphs'!E11 -> 358 | D9: ='Data for Graphs'!F11 -> 374
A10: ='Data for Graphs'!C12 -> 2017-02-01 | B10: ='Data for Graphs'!D12 -> 16.22 | C10: ='Data for Graphs'!E12 -> 350 | D10: ='Data for Graphs'!F12 -> 363
A11: ='Data for Graphs'!C13 -> 2017-04-01 | B11: ='Data for Graphs'!D13 -> 14.21 | C11: ='Data for Graphs'!E13 -> 341 | D11: ='Data for Graphs'!F13 -> 353
A12: ='Data for Graphs'!C14 -> 2017-06-01 | B12: ='Data for Graphs'!D14 -> 13.85 | C12: ='Data for Graphs'!E14 -> 333 | D12: ='Data for Graphs'!F14 -> 346
A13: ='Data for Graphs'!C15 -> 2017-08-01 | B13: ='Data for Graphs'!D15 -> 15.55 | C13: ='Data for Graphs'!E15 -> 321 | D13: ='Data for Graphs'!F15 -> 340
A14: ='Data for Graphs'!C16 -> 2017-09-01 | B14: ='Data for Graphs'!D16 -> 16.71 | C14: ='Data for Graphs'!E16 -> 322 | D14: ='Data for Graphs'!F16 -> 341
A15: ='Data for Graphs'!C17 -> 2017-10-01 | B15: ='Data for Graphs'!D17 -> 16.68 | C15: ='Data for Graphs'!E17 -> 318 | D15: ='Data for Graphs'!F17 -> 339
A16: ='Data for Graphs'!C18 -> 2017-11-01 | B16: ='Data for Graphs'!D18 -> 16.66 | C16: ='Data for Graphs'!E18 -> 315 | D16: ='Data for Graphs'!F18 -> 336
A17: ='Data for Graphs'!C19 -> 2018-02-01 | B17: ='Data for Graphs'!D19 -> 17.44 | C17: ='Data for Graphs'!E19 -> 310 | D17: ='Data for Graphs'!F19 -> 331
A18: ='Data for Graphs'!C20 -> 2018-04-01 | B18: ='Data for Graphs'!D20 -> 15.41 | C18: ='Data for Graphs'!E20 -> 302 | D18: ='Data for Graphs'!F20 -> 322
A19: ='Data for Graphs'!C21 -> 2018-06-01 | B19: ='Data for Graphs'!D21 -> 14.65 | C19: ='Data for Graphs'!E21 -> 292 | D19: ='Data for Graphs'!F21 -> 314
A20: ='Data for Graphs'!C22 -> 2018-07-01 | B20: ='Data for Graphs'!D22 -> 11.16 | C20: ='Data for Graphs'!E22 -> 266 | D20: ='Data for Graphs'!F22 -> 296
A21: ='Data for Graphs'!C23 -> 2018-08-01 | B21: ='Data for Graphs'!D23 -> 11.26 | C21: ='Data for Graphs'!E23 -> 239 | D21: ='Data for Graphs'!F23 -> 274
A22: ='Data for Graphs'!C24 -> 2018-09-01 | B22: ='Data for Graphs'!D24 -> 10.68 | C22: ='Data for Graphs'!E24 -> 234 | D22: ='Data for Graphs'!F24 -> 265
A23: ='Data for Graphs'!C25 -> 2018-10-01 | B23: ='Data for Graphs'!D25 -> 9.75 | C23: ='Data for Graphs'!E25 -> 212 | D23: ='Data for Graphs'!F25 -> 247
A24: ='Data for Graphs'!C26 -> 2018-12-01 | B24: ='Data for Graphs'!D26 -> 9.53 | C24: ='Data for Graphs'!E26 -> 204 | D24: ='Data for Graphs'!F26 -> 243
A25: ='Data for Graphs'!C27 -> 2019-01-01 | B25: ='Data for Graphs'!D27 -> 9.26 | C25: ='Data for Graphs'!E27 -> 208 | D25: ='Data for Graphs'!F27 -> 246
A26: ='Data for Graphs'!C28 -> 2019-01-01 | B26: ='Data for Graphs'!D28 -> 8.9 | C26: ='Data for Graphs'!E28 -> 207 | D26: ='Data for Graphs'!F28 -> 245
A27: ='Data for Graphs'!C29 -> 2019-03-01 | B27: ='Data for Graphs'!D29 -> 9.04 | C27: ='Data for Graphs'!E29 -> 207 | D27: ='Data for Graphs'!F29 -> 244
A28: ='Data for Graphs'!C30 -> 2019-05-01 | B28: ='Data for Graphs'!D30 -> 8.42 | C28: ='Data for Graphs'!E30 -> 206 | D28: ='Data for Graphs'!F30 -> 246
A29: ='Data for Graphs'!C31 -> 2019-05-01 | B29: ='Data for Graphs'!D31 -> 8.34 | C29: ='Data for Graphs'!E31 -> 204 | D29: ='Data for Graphs'!F31 -> 248
A30: ='Data for Graphs'!C32 -> 2019-06-01 | B30: ='Data for Graphs'!D32 -> 8.14 | C30: ='Data for Graphs'!E32 -> 212 | D30: ='Data for Graphs'!F32 -> 248
A31: ='Data for Graphs'!C33 -> 2019-08-01 | B31: ='Data for Graphs'!D33 -> 7.92 | C31: ='Data for Graphs'!E33 -> 204 | D31: ='Data for Graphs'!F33 -> 245
A32: ='Data for Graphs'!C34 -> 2019-09-01 | B32: ='Data for Graphs'!D34 -> 7.66 | C32: ='Data for Graphs'!E34 -> 200 | D32: ='Data for Graphs'!F34 -> 243
A33: ='Data for Graphs'!C35 -> 2019-11-01 | B33: ='Data for Graphs'!D35 -> 7.5 | C33: ='Data for Graphs'!E35 -> 194 | D33: ='Data for Graphs'!F35 -> 237
A34: ='Data for Graphs'!C36 -> 2019-12-01 | B34: ='Data for Graphs'!D36 -> 7.41 | C34: ='Data for Graphs'!E36 -> 192 | D34: ='Data for Graphs'!F36 -> 236
A35: ='Data for Graphs'!C37 -> 2019-12-01 | B35: ='Data for Graphs'!D37 -> 7.28 | C35: ='Data for Graphs'!E37 -> 192 | D35: ='Data for Graphs'!F37 -> 236
A36: ='Data for Graphs'!C38 -> 2020-02-01 | B36: ='Data for Graphs'!D38 -> 7.1 | C36: ='Data for Graphs'!E38 -> 191 | D36: ='Data for Graphs'!F38 -> 231
A37: ='Data for Graphs'!C39 -> 2020-04-01 | B37: ='Data for Graphs'!D39 -> 6.43 | C37: ='Data for Graphs'!E39 -> 174 | D37: ='Data for Graphs'!F39 -> 218
A38: ='Data for Graphs'!C40 -> 2020-05-01 | B38: ='Data for Graphs'!D40 -> 6.28 | C38: ='Data for Graphs'!E40 -> 168 | D38: ='Data for Graphs'!F40 -> 213
A39: ='Data for Graphs'!C41 -> 2020-06-01 | B39: ='Data for Graphs'!D41 -> 6.19 | C39: ='Data for Graphs'!E41 -> 161 | D39: ='Data for Graphs'!F41 -> 208
A40: ='Data for Graphs'!C42 -> 2020-07-01 | B40: ='Data for Graphs'!D42 -> 8.21 | C40: ='Data for Graphs'!E42 -> 160 | D40: ='Data for Graphs'!F42 -> 207

Sheet VBA Code

Sheet Columns
B1: 1 | C1: 2 | D1: 3 | E1: 4 | F1: 5 | G1: 6 | H1: 7 | I1: 8 | J1: 9 | K1: 10 | L1: 11 | M1: 12 | N1: 13 | O1: 14 | P1: 15 | Q1: 16 | R1: 17 | S1: 18 | T1: 19 | U1: 20 | V1: 21 | W1: 22 | X1: 23 | Y1: 24 | Z1: 25 | AA1: 26 | AB1: 27 | AC1: 28 | AD1: 29 | AE1: 30 | AF1: 31 | AG1: 32 | AH1: 33 | AI1: 34 | AJ1: 35 | AK1: 36 | AL1: 37 | AM1: 38 | AN1: 39 | AO1: 40 | AP1: 41 | AQ1: 42 | AR1: 43 | AS1: 44 | AT1: 45 | AU1: 46 | AV1: 47 | AW1: 48 | AX1: 49 | AY1: 50 | AZ1: 51 | BA1: 52 | BB1: 53 | BC1: 54 | BD1: 55 | BE1: 56 | BF1: 57 | BG1: 58 | BH1: 59 | BI1: 60 | BJ1: 61 | BK1: 62 | BL1: 63 | BM1: 64 | BN1: 65 | BO1: 66 | BP1: 67 | BQ1: 68 | BR1: 69 | BS1: 70 | BT1: 71 | BU1: 72 | BV1: 73 | BW1: 74 | BX1: 75 | BY1: 76 | BZ1: 77 | CA1: 78 | CB1: 79 | CC1: 80 | CD1: 81 | CE1: 82 | CF1: 83 | CG1: 84 | CH1: 85 | CI1: 86 | CJ1: 87 | CK1: 88 | CL1: 89 | CM1: 90 | CN1: 91 | CO1: 92 | CP1: 93 | CQ1: 94 | CR1: 95 | CS1: 96 | CT1: 97 | CU1: 98 | CV1: 99 | CW1: 100 | CX1: 101 | CY1: 102 | CZ1: 103 | DA1: 104 | DB1: 105 | DC1: 106 | DD1: 107 | DE1: 108 | DF1: 109 | DG1: 110 | DH1: 111 | DI1: 112 | DJ1: 113 | DK1: 114 | DL1: 115 | DM1: 116 | DN1: 117 | DO1: 118 | DP1: 119 | DQ1: 120 | DR1: 121 | DS1: 122 | DT1: 123 | DU1: 124 | DV1: 125 | DW1: 126 | DX1: 127 | DY1: 128 | DZ1: 129 | EA1: 130 | EB1: 131 | EC1: 132 | ED1: 133 | EE1: 134 | EF1: 135 | EG1: 136 | EH1: 137 | EI1: 138 | EJ1: 139 | EK1: 140 | EL1: 141 | EM1: 142 | EN1: 143 | EO1: 144 | EP1: 145 | EQ1: 146 | ER1: 147 | ES1: 148 | ET1: 149 | EU1: 150 | EV1: 151 | EW1: 152 | EX1: 153 | EY1: 154 | EZ1: 155 | FA1: 156 | FB1: 157 | FC1: 158 | FD1: 159 | FE1: 160 | FF1: 161 | FG1: 162 | FH1: 163 | FI1: 164 | FJ1: 165 | FK1: 166 | FL1: 167 | FM1: 168 | FN1: 169 | FO1: 170 | FP1: 171 | FQ1: 172 | FR1: 173 | FS1: 174 | FT1: 175 | FU1: 176 | FV1: 177 | FW1: 178 | FX1: 179 | FY1: 180 | FZ1: 181 | GA1: 182 | GB1: 183 | GC1: 184 | GD1: 185 | GE1: 186 | GF1: 187 | GG1: 188 | GH1: 189 | GI1: 190 | GJ1: 191 | GK1: 192 | GL1: 193 | GM1: 194 | GN1: 195 | GO1: 196 | GP1: 197 | GQ1: 198 | GR1: 199 | GS1: 200
B3: =COLUMN() -> 2 | C3: =COLUMN() -> 3 | D3: =COLUMN() -> 4 | E3: =COLUMN() -> 5 | F3: =COLUMN() -> 6 | G3: =COLUMN() -> 7 | H3: =COLUMN() -> 8 | I3: =COLUMN() -> 9 | J3: =COLUMN() -> 10 | K3: =COLUMN() -> 11 | L3: =COLUMN() -> 12 | M3: =COLUMN() -> 13 | N3: =COLUMN() -> 14 | O3: =COLUMN() -> 15 | P3: =COLUMN() -> 16 | Q3: =COLUMN() -> 17 | R3: =COLUMN() -> 18 | S3: =COLUMN() -> 19 | T3: =COLUMN() -> 20 | U3: =COLUMN() -> 21 | V3: =COLUMN() -> 22 | W3: =COLUMN() -> 23 | X3: =COLUMN() -> 24 | Y3: =COLUMN() -> 25 | Z3: =COLUMN() -> 26 | AA3: =COLUMN() -> 27 | AB3: =COLUMN() -> 28 | AC3: =COLUMN() -> 29 | AD3: =COLUMN() -> 30 | AE3: =COLUMN() -> 31 | AF3: =COLUMN() -> 32 | AG3: =COLUMN() -> 33 | AH3: =COLUMN() -> 34 | AI3: =COLUMN() -> 35 | AJ3: =COLUMN() -> 36 | AK3: =COLUMN() -> 37 | AL3: =COLUMN() -> 38 | AM3: =COLUMN() -> 39 | AN3: =COLUMN() -> 40 | AO3: =COLUMN() -> 41 | AP3: =COLUMN() -> 42 | AQ3: =COLUMN() -> 43 | AR3: =COLUMN() -> 44 | AS3: =COLUMN() -> 45 | AT3: =COLUMN() -> 46 | AU3: =COLUMN() -> 47 | AV3: =COLUMN() -> 48 | AW3: =COLUMN() -> 49 | AX3: =COLUMN() -> 50 | AY3: =COLUMN() -> 51 | AZ3: =COLUMN() -> 52 | BA3: =COLUMN() -> 53 | BB3: =COLUMN() -> 54 | BC3: =COLUMN() -> 55 | BD3: =COLUMN() -> 56 | BE3: =COLUMN() -> 57 | BF3: =COLUMN() -> 58 | BG3: =COLUMN() -> 59 | BH3: =COLUMN() -> 60 | BI3: =COLUMN() -> 61 | BJ3: =COLUMN() -> 62 | BK3: =COLUMN() -> 63 | BL3: =COLUMN() -> 64 | BM3: =COLUMN() -> 65 | BN3: =COLUMN() -> 66 | BO3: =COLUMN() -> 67 | BP3: =COLUMN() -> 68 | BQ3: =COLUMN() -> 69 | BR3: =COLUMN() -> 70 | BS3: =COLUMN() -> 71 | BT3: =COLUMN() -> 72 | BU3: =COLUMN() -> 73 | BV3: =COLUMN() -> 74 | BW3: =COLUMN() -> 75 | BX3: =COLUMN() -> 76 | BY3: =COLUMN() -> 77 | BZ3: =COLUMN() -> 78 | CA3: =COLUMN() -> 79 | CB3: =COLUMN() -> 80 | CC3: =COLUMN() -> 81 | CD3: =COLUMN() -> 82 | CE3: =COLUMN() -> 83 | CF3: =COLUMN() -> 84 | CG3: =COLUMN() -> 85 | CH3: =COLUMN() -> 86 | CI3: =COLUMN() -> 87 | CJ3: =COLUMN() -> 88 | CK3: =COLUMN() -> 89 | CL3: =COLUMN() -> 90 | CM3: =COLUMN() -> 91 | CN3: =COLUMN() -> 92 | CO3: =COLUMN() -> 93 | CP3: =COLUMN() -> 94 | CQ3: =COLUMN() -> 95 | CR3: =COLUMN() -> 96 | CS3: =COLUMN() -> 97 | CT3: =COLUMN() -> 98 | CU3: =COLUMN() -> 99 | CV3: =COLUMN() -> 100 | CW3: =COLUMN() -> 101 | CX3: =COLUMN() -> 102 | CY3: =COLUMN() -> 103 | CZ3: =COLUMN() -> 104 | DA3: =COLUMN() -> 105 | DB3: =COLUMN() -> 106 | DC3: =COLUMN() -> 107 | DD3: =COLUMN() -> 108 | DE3: =COLUMN() -> 109 | DF3: =COLUMN() -> 110 | DG3: =COLUMN() -> 111 | DH3: =COLUMN() -> 112 | DI3: =COLUMN() -> 113 | DJ3: =COLUMN() -> 114 | DK3: =COLUMN() -> 115 | DL3: =COLUMN() -> 116 | DM3: =COLUMN() -> 117 | DN3: =COLUMN() -> 118 | DO3: =COLUMN() -> 119 | DP3: =COLUMN() -> 120 | DQ3: =COLUMN() -> 121 | DR3: =COLUMN() -> 122 | DS3: =COLUMN() -> 123 | DT3: =COLUMN() -> 124 | DU3: =COLUMN() -> 125 | DV3: =COLUMN() -> 126 | DW3: =COLUMN() -> 127 | DX3: =COLUMN() -> 128 | DY3: =COLUMN() -> 129 | DZ3: =COLUMN() -> 130 | EA3: =COLUMN() -> 131 | EB3: =COLUMN() -> 132 | EC3: =COLUMN() -> 133 | ED3: =COLUMN() -> 134 | EE3: =COLUMN() -> 135 | EF3: =COLUMN() -> 136 | EG3: =COLUMN() -> 137 | EH3: =COLUMN() -> 138 | EI3: =COLUMN() -> 139 | EJ3: =COLUMN() -> 140 | EK3: =COLUMN() -> 141 | EL3: =COLUMN() -> 142 | EM3: =COLUMN() -> 143 | EN3: =COLUMN() -> 144 | EO3: =COLUMN() -> 145 | EP3: =COLUMN() -> 146 | EQ3: =COLUMN() -> 147 | ER3: =COLUMN() -> 148 | ES3: =COLUMN() -> 149 | ET3: =COLUMN() -> 150 | EU3: =COLUMN() -> 151 | EV3: =COLUMN() -> 152 | EW3: =COLUMN() -> 153 | EX3: =COLUMN() -> 154 | EY3: =COLUMN() -> 155 | EZ3: =COLUMN() -> 156 | FA3: =COLUMN() -> 157 | FB3: =COLUMN() -> 158 | FC3: =COLUMN() -> 159 | FD3: =COLUMN() -> 160 | FE3: =COLUMN() -> 161 | FF3: =COLUMN() -> 162 | FG3: =COLUMN() -> 163 | FH3: =COLUMN() -> 164 | FI3: =COLUMN() -> 165 | FJ3: =COLUMN() -> 166 | FK3: =COLUMN() -> 167 | FL3: =COLUMN() -> 168 | FM3: =COLUMN() -> 169 | FN3: =COLUMN() -> 170 | FO3: =COLUMN() -> 171 | FP3: =COLUMN() -> 172 | FQ3: =COLUMN() -> 173 | FR3: =COLUMN() -> 174 | FS3: =COLUMN() -> 175 | FT3: =COLUMN() -> 176 | FU3: =COLUMN() -> 177 | FV3: =COLUMN() -> 178 | FW3: =COLUMN() -> 179 | FX3: =COLUMN() -> 180 | FY3: =COLUMN() -> 181 | FZ3: =COLUMN() -> 182 | GA3: =COLUMN() -> 183 | GB3: =COLUMN() -> 184 | GC3: =COLUMN() -> 185 | GD3: =COLUMN() -> 186 | GE3: =COLUMN() -> 187 | GF3: =COLUMN() -> 188 | GG3: =COLUMN() -> 189 | GH3: =COLUMN() -> 190 | GI3: =COLUMN() -> 191 | GJ3: =COLUMN() -> 192 | GK3: =COLUMN() -> 193 | GL3: =COLUMN() -> 194 | GM3: =COLUMN() -> 195 | GN3: =COLUMN() -> 196 | GO3: =COLUMN() -> 197 | GP3: =COLUMN() -> 198 | GQ3: =COLUMN() -> 199 | GR3: =COLUMN() -> 200 | GS3: =COLUMN() -> 201
B4: =ADDRESS(1,B3) -> $B$1 | C4: =ADDRESS(1,C3) -> $C$1 | D4: $D$1 | E4: $E$1 | F4: $F$1 | G4: $G$1 | H4: $H$1 | I4: $I$1 | J4: $J$1 | K4: $K$1 | L4: $L$1 | M4: $M$1 | N4: $N$1 | O4: $O$1 | P4: $P$1 | Q4: $Q$1 | R4: $R$1 | S4: $S$1 | T4: $T$1 | U4: $U$1 | V4: $V$1 | W4: $W$1 | X4: $X$1 | Y4: $Y$1 | Z4: $Z$1 | AA4: $AA$1 | AB4: $AB$1 | AC4: $AC$1 | AD4: $AD$1 | AE4: $AE$1 | AF4: $AF$1 | AG4: $AG$1 | AH4: $AH$1 | AI4: $AI$1 | AJ4: $AJ$1 | AK4: $AK$1 | AL4: $AL$1 | AM4: $AM$1 | AN4: $AN$1 | AO4: $AO$1 | AP4: $AP$1 | AQ4: $AQ$1 | AR4: $AR$1 | AS4: $AS$1 | AT4: $AT$1 | AU4: $AU$1 | AV4: $AV$1 | AW4: $AW$1 | AX4: $AX$1 | AY4: $AY$1 | AZ4: $AZ$1 | BA4: $BA$1 | BB4: $BB$1 | BC4: $BC$1 | BD4: $BD$1 | BE4: $BE$1 | BF4: $BF$1 | BG4: $BG$1 | BH4: $BH$1 | BI4: $BI$1 | BJ4: $BJ$1 | BK4: $BK$1 | BL4: $BL$1 | BM4: $BM$1 | BN4: $BN$1 | BO4: =ADDRESS(1,BO3) -> $BO$1 | BP4: $BP$1 | BQ4: $BQ$1 | BR4: $BR$1 | BS4: $BS$1 | BT4: $BT$1 | BU4: $BU$1 | BV4: $BV$1 | BW4: $BW$1 | BX4: $BX$1 | BY4: $BY$1 | BZ4: $BZ$1 | CA4: $CA$1 | CB4: $CB$1 | CC4: $CC$1 | CD4: $CD$1 | CE4: $CE$1 | CF4: $CF$1 | CG4: $CG$1 | CH4: $CH$1 | CI4: $CI$1 | CJ4: $CJ$1 | CK4: $CK$1 | CL4: $CL$1 | CM4: $CM$1 | CN4: $CN$1 | CO4: $CO$1 | CP4: $CP$1 | CQ4: $CQ$1 | CR4: $CR$1 | CS4: $CS$1 | CT4: $CT$1 | CU4: $CU$1 | CV4: $CV$1 | CW4: $CW$1 | CX4: $CX$1 | CY4: $CY$1 | CZ4: $CZ$1 | DA4: $DA$1 | DB4: $DB$1 | DC4: $DC$1 | DD4: $DD$1 | DE4: $DE$1 | DF4: $DF$1 | DG4: $DG$1 | DH4: $DH$1 | DI4: $DI$1 | DJ4: $DJ$1 | DK4: $DK$1 | DL4: $DL$1 | DM4: $DM$1 | DN4: $DN$1 | DO4: $DO$1 | DP4: $DP$1 | DQ4: $DQ$1 | DR4: $DR$1 | DS4: $DS$1 | DT4: $DT$1 | DU4: $DU$1 | DV4: $DV$1 | DW4: $DW$1 | DX4: $DX$1 | DY4: $DY$1 | DZ4: $DZ$1 | EA4: =ADDRESS(1,EA3) -> $EA$1 | EB4: $EB$1 | EC4: $EC$1 | ED4: $ED$1 | EE4: $EE$1 | EF4: $EF$1 | EG4: $EG$1 | EH4: $EH$1 | EI4: $EI$1 | EJ4: $EJ$1 | EK4: $EK$1 | EL4: $EL$1 | EM4: $EM$1 | EN4: $EN$1 | EO4: $EO$1 | EP4: $EP$1 | EQ4: $EQ$1 | ER4: $ER$1 | ES4: $ES$1 | ET4: $ET$1 | EU4: $EU$1 | EV4: $EV$1 | EW4: $EW$1 | EX4: $EX$1 | EY4: $EY$1 | EZ4: $EZ$1 | FA4: $FA$1 | FB4: $FB$1 | FC4: $FC$1 | FD4: $FD$1 | FE4: $FE$1 | FF4: $FF$1 | FG4: $FG$1 | FH4: $FH$1 | FI4: $FI$1 | FJ4: $FJ$1 | FK4: $FK$1 | FL4: $FL$1 | FM4: $FM$1 | FN4: $FN$1 | FO4: $FO$1 | FP4: $FP$1 | FQ4: $FQ$1 | FR4: $FR$1 | FS4: $FS$1 | FT4: $FT$1 | FU4: $FU$1 | FV4: $FV$1 | FW4: $FW$1 | FX4: $FX$1 | FY4: $FY$1 | FZ4: $FZ$1 | GA4: $GA$1 | GB4: $GB$1 | GC4: $GC$1 | GD4: $GD$1 | GE4: $GE$1 | GF4: $GF$1 | GG4: $GG$1 | GH4: $GH$1 | GI4: $GI$1 | GJ4: $GJ$1 | GK4: $GK$1 | GL4: $GL$1 | GM4: =ADDRESS(1,GM3) -> $GM$1 | GN4: $GN$1 | GO4: $GO$1 | GP4: $GP$1 | GQ4: $GQ$1 | GR4: $GR$1 | GS4: $GS$1
B5: 1 | C5: 1 | D5: 1 | E5: 1 | F5: 1 | G5: 1 | H5: 1 | I5: 1 | J5: 1 | K5: 1 | L5: 1 | M5: 1 | N5: 1 | O5: 1 | P5: 1 | Q5: 1 | R5: 1 | S5: 1 | T5: 1 | U5: 1 | V5: 1 | W5: 1 | X5: 1 | Y5: 1 | Z5: 1 | AA5: 1 | AB5: 1 | AC5: 1 | AD5: 1 | AE5: 1 | AF5: 1 | AG5: 1 | AH5: 1 | AI5: 1 | AJ5: 1 | AK5: 1 | AL5: 1 | AM5: 1 | AN5: 1 | AO5: 1 | AP5: 1 | AQ5: 1 | AR5: 1 | AS5: 1 | AT5: 1 | AU5: 1 | AV5: 1 | AW5: 1 | AX5: 1 | AY5: 1 | AZ5: 1 | BA5: 1 | BB5: 1 | BC5: 1 | BD5: 1 | BE5: 1 | BF5: 1 | BG5: 1 | BH5: 1 | BI5: 1 | BJ5: 1 | BK5: 1 | BL5: 1 | BM5: 1 | BN5: 1 | BO5: 1 | BP5: 1 | BQ5: 1 | BR5: 1 | BS5: 1 | BT5: 1 | BU5: 1 | BV5: 1 | BW5: 1 | BX5: 1 | BY5: 1 | BZ5: 1 | CA5: 1 | CB5: 1 | CC5: 1 | CD5: 1 | CE5: 1 | CF5: 1 | CG5: 1 | CH5: 1 | CI5: 1 | CJ5: 1 | CK5: 1 | CL5: 1 | CM5: 1 | CN5: 1 | CO5: 1 | CP5: 1 | CQ5: 1 | CR5: 1 | CS5: 1 | CT5: 1 | CU5: 1 | CV5: 1 | CW5: 1 | CX5: 1 | CY5: 1 | CZ5: 1 | DA5: 1 | DB5: 1 | DC5: 1 | DD5: 1 | DE5: 1 | DF5: 1 | DG5: 1 | DH5: 1 | DI5: 1 | DJ5: 1 | DK5: 1 | DL5: 1 | DM5: 1 | DN5: 1 | DO5: 1 | DP5: 1 | DQ5: 1 | DR5: 1 | DS5: 1 | DT5: 1 | DU5: 1 | DV5: 1 | DW5: 1 | DX5: 1 | DY5: 1 | DZ5: 1 | EA5: 1 | EB5: 1 | EC5: 1 | ED5: 1 | EE5: 1 | EF5: 1 | EG5: 1 | EH5: 1 | EI5: 1 | EJ5: 1 | EK5: 1 | EL5: 1 | EM5: 1 | EN5: 1 | EO5: 1 | EP5: 1 | EQ5: 1 | ER5: 1 | ES5: 1 | ET5: 1 | EU5: 1 | EV5: 1 | EW5: 1 | EX5: 1 | EY5: 1 | EZ5: 1 | FA5: 1 | FB5: 1 | FC5: 1 | FD5: 1 | FE5: 1 | FF5: 1 | FG5: 1 | FH5: 1 | FI5: 1 | FJ5: 1 | FK5: 1 | FL5: 1 | FM5: 1 | FN5: 1 | FO5: 1 | FP5: 1 | FQ5: 1 | FR5: 1 | FS5: 1 | FT5: 1 | FU5: 1 | FV5: 1 | FW5: 1 | FX5: 1 | FY5: 1 | FZ5: 1 | GA5: 1 | GB5: 1 | GC5: 1 | GD5: 1 | GE5: 1 | GF5: 1 | GG5: 1 | GH5: 1 | GI5: 1 | GJ5: 1 | GK5: 1 | GL5: 1 | GM5: 1 | GN5: 1 | GO5: 1 | GP5: 1 | GQ5: 1 | GR5: 1 | GS5: 1
B6: =MID(B4,2,B5) -> B | C6: =MID(C4,2,C5) -> C | D6: D | E6: E | F6: F | G6: G | H6: H | I6: I | J6: J | K6: K | L6: L | M6: M | N6: N | O6: O | P6: P | Q6: Q | R6: R | S6: S | T6: T | U6: U | V6: V | W6: W | X6: X | Y6: Y | Z6: Z | AA6: A | AB6: A | AC6: A | AD6: A | AE6: A | AF6: A | AG6: A | AH6: A | AI6: A | AJ6: A | AK6: A | AL6: A | AM6: A | AN6: A | AO6: A | AP6: A | AQ6: A | AR6: A | AS6: A | AT6: A | AU6: A | AV6: A | AW6: A | AX6: A | AY6: A | AZ6: A | BA6: B | BB6: B | BC6: B | BD6: B | BE6: B | BF6: B | BG6: B | BH6: B | BI6: B | BJ6: B | BK6: B | BL6: B | BM6: B | BN6: B | BO6: =MID(BO4,2,BO5) -> B | BP6: B | BQ6: B | BR6: B | BS6: B | BT6: B | BU6: B | BV6: B | BW6: B | BX6: B | BY6: B | BZ6: B | CA6: C | CB6: C | CC6: C | CD6: C | CE6: C | CF6: C | CG6: C | CH6: C | CI6: C | CJ6: C | CK6: C | CL6: C | CM6: C | CN6: C | CO6: C | CP6: C | CQ6: C | CR6: C | CS6: C | CT6: C | CU6: C | CV6: C | CW6: C | CX6: C | CY6: C | CZ6: C | DA6: D | DB6: D | DC6: D | DD6: D | DE6: D | DF6: D | DG6: D | DH6: D | DI6: D | DJ6: D | DK6: D | DL6: D | DM6: D | DN6: D | DO6: D | DP6: D | DQ6: D | DR6: D | DS6: D | DT6: D | DU6: D | DV6: D | DW6: D | DX6: D | DY6: D | DZ6: D | EA6: =MID(EA4,2,EA5) -> E | EB6: E | EC6: E | ED6: E | EE6: E | EF6: E | EG6: E | EH6: E | EI6: E | EJ6: E | EK6: E | EL6: E | EM6: E | EN6: E | EO6: E | EP6: E | EQ6: E | ER6: E | ES6: E | ET6: E | EU6: E | EV6: E | EW6: E | EX6: E | EY6: E | EZ6: E | FA6: F | FB6: F | FC6: F | FD6: F | FE6: F | FF6: F | FG6: F | FH6: F | FI6: F | FJ6: F | FK6: F | FL6: F | FM6: F | FN6: F | FO6: F | FP6: F | FQ6: F | FR6: F | FS6: F | FT6: F | FU6: F | FV6: F | FW6: F | FX6: F | FY6: F | FZ6: F | GA6: G | GB6: G | GC6: G | GD6: G | GE6: G | GF6: G | GG6: G | GH6: G | GI6: G | GJ6: G | GK6: G | GL6: G | GM6: =MID(GM4,2,GM5) -> G | GN6: G | GO6: G | GP6: G | GQ6: G | GR6: G | GS6: G
A8: Column | B8: =COLUMN() -> 2 | C8: =COLUMN() -> 3 | D8: =COLUMN() -> 4 | E8: =COLUMN() -> 5 | F8: =COLUMN() -> 6 | G8: =COLUMN() -> 7 | H8: =COLUMN() -> 8 | I8: =COLUMN() -> 9 | J8: =COLUMN() -> 10 | K8: =COLUMN() -> 11 | L8: =COLUMN() -> 12 | M8: =COLUMN() -> 13 | N8: =COLUMN() -> 14 | O8: =COLUMN() -> 15 | P8: =COLUMN() -> 16 | Q8: =COLUMN() -> 17 | R8: =COLUMN() -> 18 | S8: =COLUMN() -> 19 | T8: =COLUMN() -> 20 | U8: =COLUMN() -> 21 | V8: =COLUMN() -> 22 | W8: =COLUMN() -> 23 | X8: =COLUMN() -> 24 | Y8: =COLUMN() -> 25 | Z8: =COLUMN() -> 26 | AA8: =COLUMN() -> 27 | AB8: =COLUMN() -> 28 | AC8: =COLUMN() -> 29 | AD8: =COLUMN() -> 30 | AE8: =COLUMN() -> 31 | AF8: =COLUMN() -> 32 | AG8: =COLUMN() -> 33 | AH8: =COLUMN() -> 34 | AI8: =COLUMN() -> 35 | AJ8: =COLUMN() -> 36 | AK8: =COLUMN() -> 37 | AL8: =COLUMN() -> 38 | AM8: =COLUMN() -> 39 | AN8: =COLUMN() -> 40 | AO8: =COLUMN() -> 41 | AP8: =COLUMN() -> 42 | AQ8: =COLUMN() -> 43 | AR8: =COLUMN() -> 44 | AS8: =COLUMN() -> 45 | AT8: =COLUMN() -> 46 | AU8: =COLUMN() -> 47 | AV8: =COLUMN() -> 48 | AW8: =COLUMN() -> 49 | AX8: =COLUMN() -> 50 | AY8: =COLUMN() -> 51 | AZ8: =COLUMN() -> 52 | BA8: =COLUMN() -> 53 | BB8: =COLUMN() -> 54 | BC8: =COLUMN() -> 55 | BD8: =COLUMN() -> 56 | BE8: =COLUMN() -> 57 | BF8: =COLUMN() -> 58 | BG8: =COLUMN() -> 59 | BH8: =COLUMN() -> 60 | BI8: =COLUMN() -> 61 | BJ8: =COLUMN() -> 62 | BK8: =COLUMN() -> 63 | BL8: =COLUMN() -> 64 | BM8: =COLUMN() -> 65 | BN8: =COLUMN() -> 66 | BO8: =COLUMN() -> 67 | BP8: =COLUMN() -> 68 | BQ8: =COLUMN() -> 69 | BR8: =COLUMN() -> 70 | BS8: =COLUMN() -> 71 | BT8: =COLUMN() -> 72 | BU8: =COLUMN() -> 73 | BV8: =COLUMN() -> 74 | BW8: =COLUMN() -> 75 | BX8: =COLUMN() -> 76 | BY8: =COLUMN() -> 77 | BZ8: =COLUMN() -> 78 | CA8: =COLUMN() -> 79 | CB8: =COLUMN() -> 80 | CC8: =COLUMN() -> 81 | CD8: =COLUMN() -> 82 | CE8: =COLUMN() -> 83 | CF8: =COLUMN() -> 84 | CG8: =COLUMN() -> 85 | CH8: =COLUMN() -> 86 | CI8: =COLUMN() -> 87 | CJ8: =COLUMN() -> 88 | CK8: =COLUMN() -> 89 | CL8: =COLUMN() -> 90 | CM8: =COLUMN() -> 91 | CN8: =COLUMN() -> 92 | CO8: =COLUMN() -> 93 | CP8: =COLUMN() -> 94 | CQ8: =COLUMN() -> 95 | CR8: =COLUMN() -> 96 | CS8: =COLUMN() -> 97 | CT8: =COLUMN() -> 98 | CU8: =COLUMN() -> 99 | CV8: =COLUMN() -> 100 | CW8: =COLUMN() -> 101 | CX8: =COLUMN() -> 102 | CY8: =COLUMN() -> 103 | CZ8: =COLUMN() -> 104 | DA8: =COLUMN() -> 105 | DB8: =COLUMN() -> 106 | DC8: =COLUMN() -> 107 | DD8: =COLUMN() -> 108 | DE8: =COLUMN() -> 109 | DF8: =COLUMN() -> 110 | DG8: =COLUMN() -> 111 | DH8: =COLUMN() -> 112 | DI8: =COLUMN() -> 113 | DJ8: =COLUMN() -> 114 | DK8: =COLUMN() -> 115 | DL8: =COLUMN() -> 116 | DM8: =COLUMN() -> 117 | DN8: =COLUMN() -> 118 | DO8: =COLUMN() -> 119 | DP8: =COLUMN() -> 120 | DQ8: =COLUMN() -> 121 | DR8: =COLUMN() -> 122 | DS8: =COLUMN() -> 123 | DT8: =COLUMN() -> 124 | DU8: =COLUMN() -> 125 | DV8: =COLUMN() -> 126 | DW8: =COLUMN() -> 127 | DX8: =COLUMN() -> 128 | DY8: =COLUMN() -> 129 | DZ8: =COLUMN() -> 130 | EA8: =COLUMN() -> 131 | EB8: =COLUMN() -> 132 | EC8: =COLUMN() -> 133 | ED8: =COLUMN() -> 134 | EE8: =COLUMN() -> 135 | EF8: =COLUMN() -> 136 | EG8: =COLUMN() -> 137 | EH8: =COLUMN() -> 138 | EI8: =COLUMN() -> 139 | EJ8: =COLUMN() -> 140 | EK8: =COLUMN() -> 141 | EL8: =COLUMN() -> 142 | EM8: =COLUMN() -> 143 | EN8: =COLUMN() -> 144 | EO8: =COLUMN() -> 145 | EP8: =COLUMN() -> 146 | EQ8: =COLUMN() -> 147 | ER8: =COLUMN() -> 148 | ES8: =COLUMN() -> 149 | ET8: =COLUMN() -> 150 | EU8: =COLUMN() -> 151 | EV8: =COLUMN() -> 152 | EW8: =COLUMN() -> 153 | EX8: =COLUMN() -> 154 | EY8: =COLUMN() -> 155 | EZ8: =COLUMN() -> 156 | FA8: =COLUMN() -> 157 | FB8: =COLUMN() -> 158 | FC8: =COLUMN() -> 159 | FD8: =COLUMN() -> 160 | FE8: =COLUMN() -> 161 | FF8: =COLUMN() -> 162 | FG8: =COLUMN() -> 163 | FH8: =COLUMN() -> 164 | FI8: =COLUMN() -> 165 | FJ8: =COLUMN() -> 166 | FK8: =COLUMN() -> 167 | FL8: =COLUMN() -> 168 | FM8: =COLUMN() -> 169 | FN8: =COLUMN() -> 170 | FO8: =COLUMN() -> 171 | FP8: =COLUMN() -> 172 | FQ8: =COLUMN() -> 173 | FR8: =COLUMN() -> 174 | FS8: =COLUMN() -> 175 | FT8: =COLUMN() -> 176 | FU8: =COLUMN() -> 177 | FV8: =COLUMN() -> 178 | FW8: =COLUMN() -> 179 | FX8: =COLUMN() -> 180 | FY8: =COLUMN() -> 181 | FZ8: =COLUMN() -> 182 | GA8: =COLUMN() -> 183 | GB8: =COLUMN() -> 184 | GC8: =COLUMN() -> 185 | GD8: =COLUMN() -> 186 | GE8: =COLUMN() -> 187 | GF8: =COLUMN() -> 188 | GG8: =COLUMN() -> 189 | GH8: =COLUMN() -> 190 | GI8: =COLUMN() -> 191 | GJ8: =COLUMN() -> 192 | GK8: =COLUMN() -> 193 | GL8: =COLUMN() -> 194 | GM8: =COLUMN() -> 195 | GN8: =COLUMN() -> 196 | GO8: =COLUMN() -> 197 | GP8: =COLUMN() -> 198 | GQ8: =COLUMN() -> 199 | GR8: =COLUMN() -> 200 | GS8: =COLUMN() -> 201
A9: Address | B9: =ADDRESS(B8,B8) -> $B$2 | C9: $C$3 | D9: $D$4 | E9: $E$5 | F9: $F$6 | G9: $G$7 | H9: $H$8 | I9: $I$9 | J9: $J$10 | K9: $K$11 | L9: $L$12 | M9: $M$13 | N9: $N$14 | O9: $O$15 | P9: $P$16 | Q9: $Q$17 | R9: $R$18 | S9: $S$19 | T9: $T$20 | U9: $U$21 | V9: $V$22 | W9: $W$23 | X9: $X$24 | Y9: $Y$25 | Z9: $Z$26 | AA9: $AA$27 | AB9: $AB$28 | AC9: $AC$29 | AD9: $AD$30 | AE9: $AE$31 | AF9: $AF$32 | AG9: $AG$33 | AH9: $AH$34 | AI9: $AI$35 | AJ9: $AJ$36 | AK9: $AK$37 | AL9: $AL$38 | AM9: $AM$39 | AN9: $AN$40 | AO9: $AO$41 | AP9: $AP$42 | AQ9: $AQ$43 | AR9: $AR$44 | AS9: $AS$45 | AT9: $AT$46 | AU9: $AU$47 | AV9: $AV$48 | AW9: $AW$49 | AX9: $AX$50 | AY9: $AY$51 | AZ9: $AZ$52 | BA9: $BA$53 | BB9: $BB$54 | BC9: $BC$55 | BD9: $BD$56 | BE9: $BE$57 | BF9: $BF$58 | BG9: $BG$59 | BH9: $BH$60 | BI9: $BI$61 | BJ9: $BJ$62 | BK9: $BK$63 | BL9: $BL$64 | BM9: $BM$65 | BN9: =ADDRESS(BN8,BN8) -> $BN$66 | BO9: $BO$67 | BP9: $BP$68 | BQ9: $BQ$69 | BR9: $BR$70 | BS9: $BS$71 | BT9: $BT$72 | BU9: $BU$73 | BV9: $BV$74 | BW9: $BW$75 | BX9: $BX$76 | BY9: $BY$77 | BZ9: $BZ$78 | CA9: $CA$79 | CB9: $CB$80 | CC9: $CC$81 | CD9: $CD$82 | CE9: $CE$83 | CF9: $CF$84 | CG9: $CG$85 | CH9: $CH$86 | CI9: $CI$87 | CJ9: $CJ$88 | CK9: $CK$89 | CL9: $CL$90 | CM9: $CM$91 | CN9: $CN$92 | CO9: $CO$93 | CP9: $CP$94 | CQ9: $CQ$95 | CR9: $CR$96 | CS9: $CS$97 | CT9: $CT$98 | CU9: $CU$99 | CV9: $CV$100 | CW9: $CW$101 | CX9: $CX$102 | CY9: $CY$103 | CZ9: $CZ$104 | DA9: $DA$105 | DB9: $DB$106 | DC9: $DC$107 | DD9: $DD$108 | DE9: $DE$109 | DF9: $DF$110 | DG9: $DG$111 | DH9: $DH$112 | DI9: $DI$113 | DJ9: $DJ$114 | DK9: $DK$115 | DL9: $DL$116 | DM9: $DM$117 | DN9: $DN$118 | DO9: $DO$119 | DP9: $DP$120 | DQ9: $DQ$121 | DR9: $DR$122 | DS9: $DS$123 | DT9: $DT$124 | DU9: $DU$125 | DV9: $DV$126 | DW9: $DW$127 | DX9: $DX$128 | DY9: $DY$129 | DZ9: =ADDRESS(DZ8,DZ8) -> $DZ$130 | EA9: $EA$131 | EB9: $EB$132 | EC9: $EC$133 | ED9: $ED$134 | EE9: $EE$135 | EF9: $EF$136 | EG9: $EG$137 | EH9: $EH$138 | EI9: $EI$139 | EJ9: $EJ$140 | EK9: $EK$141 | EL9: $EL$142 | EM9: $EM$143 | EN9: $EN$144 | EO9: $EO$145 | EP9: $EP$146 | EQ9: $EQ$147 | ER9: $ER$148 | ES9: $ES$149 | ET9: $ET$150 | EU9: $EU$151 | EV9: $EV$152 | EW9: $EW$153 | EX9: $EX$154 | EY9: $EY$155 | EZ9: $EZ$156 | FA9: $FA$157 | FB9: $FB$158 | FC9: $FC$159 | FD9: $FD$160 | FE9: $FE$161 | FF9: $FF$162 | FG9: $FG$163 | FH9: $FH$164 | FI9: $FI$165 | FJ9: $FJ$166 | FK9: $FK$167 | FL9: $FL$168 | FM9: $FM$169 | FN9: $FN$170 | FO9: $FO$171 | FP9: $FP$172 | FQ9: $FQ$173 | FR9: $FR$174 | FS9: $FS$175 | FT9: $FT$176 | FU9: $FU$177 | FV9: $FV$178 | FW9: $FW$179 | FX9: $FX$180 | FY9: $FY$181 | FZ9: $FZ$182 | GA9: $GA$183 | GB9: $GB$184 | GC9: $GC$185 | GD9: $GD$186 | GE9: $GE$187 | GF9: $GF$188 | GG9: $GG$189 | GH9: $GH$190 | GI9: $GI$191 | GJ9: $GJ$192 | GK9: $GK$193 | GL9: =ADDRESS(GL8,GL8) -> $GL$194 | GM9: $GM$195 | GN9: $GN$196 | GO9: $GO$197 | GP9: $GP$198 | GQ9: $GQ$199 | GR9: $GR$200 | GS9: $GS$201
A10: First $ | B10: =FIND("$",B9,1) -> 1 | C10: =FIND("$",C9,1) -> 1 | D10: 1 | E10: 1 | F10: 1 | G10: 1 | H10: 1 | I10: 1 | J10: 1 | K10: 1 | L10: 1 | M10: 1 | N10: 1 | O10: 1 | P10: 1 | Q10: 1 | R10: 1 | S10: 1 | T10: 1 | U10: 1 | V10: 1 | W10: 1 | X10: 1 | Y10: 1 | Z10: 1 | AA10: 1 | AB10: 1 | AC10: 1 | AD10: 1 | AE10: 1 | AF10: 1 | AG10: 1 | AH10: 1 | AI10: 1 | AJ10: 1 | AK10: 1 | AL10: 1 | AM10: 1 | AN10: 1 | AO10: 1 | AP10: 1 | AQ10: 1 | AR10: 1 | AS10: 1 | AT10: 1 | AU10: 1 | AV10: 1 | AW10: 1 | AX10: 1 | AY10: 1 | AZ10: 1 | BA10: 1 | BB10: 1 | BC10: 1 | BD10: 1 | BE10: 1 | BF10: 1 | BG10: 1 | BH10: 1 | BI10: 1 | BJ10: 1 | BK10: 1 | BL10: 1 | BM10: 1 | BN10: 1 | BO10: =FIND("$",BO9,1) -> 1 | BP10: 1 | BQ10: 1 | BR10: 1 | BS10: 1 | BT10: 1 | BU10: 1 | BV10: 1 | BW10: 1 | BX10: 1 | BY10: 1 | BZ10: 1 | CA10: 1 | CB10: 1 | CC10: 1 | CD10: 1 | CE10: 1 | CF10: 1 | CG10: 1 | CH10: 1 | CI10: 1 | CJ10: 1 | CK10: 1 | CL10: 1 | CM10: 1 | CN10: 1 | CO10: 1 | CP10: 1 | CQ10: 1 | CR10: 1 | CS10: 1 | CT10: 1 | CU10: 1 | CV10: 1 | CW10: 1 | CX10: 1 | CY10: 1 | CZ10: 1 | DA10: 1 | DB10: 1 | DC10: 1 | DD10: 1 | DE10: 1 | DF10: 1 | DG10: 1 | DH10: 1 | DI10: 1 | DJ10: 1 | DK10: 1 | DL10: 1 | DM10: 1 | DN10: 1 | DO10: 1 | DP10: 1 | DQ10: 1 | DR10: 1 | DS10: 1 | DT10: 1 | DU10: 1 | DV10: 1 | DW10: 1 | DX10: 1 | DY10: 1 | DZ10: 1 | EA10: =FIND("$",EA9,1) -> 1 | EB10: 1 | EC10: 1 | ED10: 1 | EE10: 1 | EF10: 1 | EG10: 1 | EH10: 1 | EI10: 1 | EJ10: 1 | EK10: 1 | EL10: 1 | EM10: 1 | EN10: 1 | EO10: 1 | EP10: 1 | EQ10: 1 | ER10: 1 | ES10: 1 | ET10: 1 | EU10: 1 | EV10: 1 | EW10: 1 | EX10: 1 | EY10: 1 | EZ10: 1 | FA10: 1 | FB10: 1 | FC10: 1 | FD10: 1 | FE10: 1 | FF10: 1 | FG10: 1 | FH10: 1 | FI10: 1 | FJ10: 1 | FK10: 1 | FL10: 1 | FM10: 1 | FN10: 1 | FO10: 1 | FP10: 1 | FQ10: 1 | FR10: 1 | FS10: 1 | FT10: 1 | FU10: 1 | FV10: 1 | FW10: 1 | FX10: 1 | FY10: 1 | FZ10: 1 | GA10: 1 | GB10: 1 | GC10: 1 | GD10: 1 | GE10: 1 | GF10: 1 | GG10: 1 | GH10: 1 | GI10: 1 | GJ10: 1 | GK10: 1 | GL10: 1 | GM10: =FIND("$",GM9,1) -> 1 | GN10: 1 | GO10: 1 | GP10: 1 | GQ10: 1 | GR10: 1 | GS10: 1
A11: Second $ | B11: =FIND("$",B9,B10+1) -> 3 | C11: =FIND("$",C9,C10+1) -> 3 | D11: 3 | E11: 3 | F11: 3 | G11: 3 | H11: 3 | I11: 3 | J11: 3 | K11: 3 | L11: 3 | M11: 3 | N11: 3 | O11: 3 | P11: 3 | Q11: 3 | R11: 3 | S11: 3 | T11: 3 | U11: 3 | V11: 3 | W11: 3 | X11: 3 | Y11: 3 | Z11: 3 | AA11: 4 | AB11: 4 | AC11: 4 | AD11: 4 | AE11: 4 | AF11: 4 | AG11: 4 | AH11: 4 | AI11: 4 | AJ11: 4 | AK11: 4 | AL11: 4 | AM11: 4 | AN11: 4 | AO11: 4 | AP11: 4 | AQ11: 4 | AR11: 4 | AS11: 4 | AT11: 4 | AU11: 4 | AV11: 4 | AW11: 4 | AX11: 4 | AY11: 4 | AZ11: 4 | BA11: 4 | BB11: 4 | BC11: 4 | BD11: 4 | BE11: 4 | BF11: 4 | BG11: 4 | BH11: 4 | BI11: 4 | BJ11: 4 | BK11: 4 | BL11: 4 | BM11: 4 | BN11: 4 | BO11: =FIND("$",BO9,BO10+1) -> 4 | BP11: 4 | BQ11: 4 | BR11: 4 | BS11: 4 | BT11: 4 | BU11: 4 | BV11: 4 | BW11: 4 | BX11: 4 | BY11: 4 | BZ11: 4 | CA11: 4 | CB11: 4 | CC11: 4 | CD11: 4 | CE11: 4 | CF11: 4 | CG11: 4 | CH11: 4 | CI11: 4 | CJ11: 4 | CK11: 4 | CL11: 4 | CM11: 4 | CN11: 4 | CO11: 4 | CP11: 4 | CQ11: 4 | CR11: 4 | CS11: 4 | CT11: 4 | CU11: 4 | CV11: 4 | CW11: 4 | CX11: 4 | CY11: 4 | CZ11: 4 | DA11: 4 | DB11: 4 | DC11: 4 | DD11: 4 | DE11: 4 | DF11: 4 | DG11: 4 | DH11: 4 | DI11: 4 | DJ11: 4 | DK11: 4 | DL11: 4 | DM11: 4 | DN11: 4 | DO11: 4 | DP11: 4 | DQ11: 4 | DR11: 4 | DS11: 4 | DT11: 4 | DU11: 4 | DV11: 4 | DW11: 4 | DX11: 4 | DY11: 4 | DZ11: 4 | EA11: =FIND("$",EA9,EA10+1) -> 4 | EB11: 4 | EC11: 4 | ED11: 4 | EE11: 4 | EF11: 4 | EG11: 4 | EH11: 4 | EI11: 4 | EJ11: 4 | EK11: 4 | EL11: 4 | EM11: 4 | EN11: 4 | EO11: 4 | EP11: 4 | EQ11: 4 | ER11: 4 | ES11: 4 | ET11: 4 | EU11: 4 | EV11: 4 | EW11: 4 | EX11: 4 | EY11: 4 | EZ11: 4 | FA11: 4 | FB11: 4 | FC11: 4 | FD11: 4 | FE11: 4 | FF11: 4 | FG11: 4 | FH11: 4 | FI11: 4 | FJ11: 4 | FK11: 4 | FL11: 4 | FM11: 4 | FN11: 4 | FO11: 4 | FP11: 4 | FQ11: 4 | FR11: 4 | FS11: 4 | FT11: 4 | FU11: 4 | FV11: 4 | FW11: 4 | FX11: 4 | FY11: 4 | FZ11: 4 | GA11: 4 | GB11: 4 | GC11: 4 | GD11: 4 | GE11: 4 | GF11: 4 | GG11: 4 | GH11: 4 | GI11: 4 | GJ11: 4 | GK11: 4 | GL11: 4 | GM11: =FIND("$",GM9,GM10+1) -> 4 | GN11: 4 | GO11: 4 | GP11: 4 | GQ11: 4 | GR11: 4 | GS11: 4
A12: Column Name | B12: =MID(B9,B10+1,B11-B10-1) -> B | C12: =MID(C9,C10+1,C11-C10-1) -> C | D12: D | E12: E | F12: F | G12: G | H12: H | I12: I | J12: J | K12: K | L12: L | M12: M | N12: N | O12: O | P12: P | Q12: Q | R12: R | S12: S | T12: T | U12: U | V12: V | W12: W | X12: X | Y12: Y | Z12: Z | AA12: AA | AB12: AB | AC12: AC | AD12: AD | AE12: AE | AF12: AF | AG12: AG | AH12: AH | AI12: AI | AJ12: AJ | AK12: AK | AL12: AL | AM12: AM | AN12: AN | AO12: AO | AP12: AP | AQ12: AQ | AR12: AR | AS12: AS | AT12: AT | AU12: AU | AV12: AV | AW12: AW | AX12: AX | AY12: AY | AZ12: AZ | BA12: BA | BB12: BB | BC12: BC | BD12: BD | BE12: BE | BF12: BF | BG12: BG | BH12: BH | BI12: BI | BJ12: BJ | BK12: BK | BL12: BL | BM12: BM | BN12: BN | BO12: =MID(BO9,BO10+1,BO11-BO10-1) -> BO | BP12: BP | BQ12: BQ | BR12: BR | BS12: BS | BT12: BT | BU12: BU | BV12: BV | BW12: BW | BX12: BX | BY12: BY | BZ12: BZ | CA12: CA | CB12: CB | CC12: CC | CD12: CD | CE12: CE | CF12: CF | CG12: CG | CH12: CH | CI12: CI | CJ12: CJ | CK12: CK | CL12: CL | CM12: CM | CN12: CN | CO12: CO | CP12: CP | CQ12: CQ | CR12: CR | CS12: CS | CT12: CT | CU12: CU | CV12: CV | CW12: CW | CX12: CX | CY12: CY | CZ12: CZ | DA12: DA | DB12: DB | DC12: DC | DD12: DD | DE12: DE | DF12: DF | DG12: DG | DH12: DH | DI12: DI | DJ12: DJ | DK12: DK | DL12: DL | DM12: DM | DN12: DN | DO12: DO | DP12: DP | DQ12: DQ | DR12: DR | DS12: DS | DT12: DT | DU12: DU | DV12: DV | DW12: DW | DX12: DX | DY12: DY | DZ12: DZ | EA12: =MID(EA9,EA10+1,EA11-EA10-1) -> EA | EB12: EB | EC12: EC | ED12: ED | EE12: EE | EF12: EF | EG12: EG | EH12: EH | EI12: EI | EJ12: EJ | EK12: EK | EL12: EL | EM12: EM | EN12: EN | EO12: EO | EP12: EP | EQ12: EQ | ER12: ER | ES12: ES | ET12: ET | EU12: EU | EV12: EV | EW12: EW | EX12: EX | EY12: EY | EZ12: EZ | FA12: FA | FB12: FB | FC12: FC | FD12: FD | FE12: FE | FF12: FF | FG12: FG | FH12: FH | FI12: FI | FJ12: FJ | FK12: FK | FL12: FL | FM12: FM | FN12: FN | FO12: FO | FP12: FP | FQ12: FQ | FR12: FR | FS12: FS | FT12: FT | FU12: FU | FV12: FV | FW12: FW | FX12: FX | FY12: FY | FZ12: FZ | GA12: GA | GB12: GB | GC12: GC | GD12: GD | GE12: GE | GF12: GF | GG12: GG | GH12: GH | GI12: GI | GJ12: GJ | GK12: GK | GL12: GL | GM12: =MID(GM9,GM10+1,GM11-GM10-1) -> GM | GN12: GN | GO12: GO | GP12: GP | GQ12: GQ | GR12: GR | GS12: GS
A14: Col Num | B14: =B3 -> 2 | C14: =C3 -> 3 | D14: 4 | E14: 5 | F14: 6 | G14: 7 | H14: 8 | I14: 9 | J14: 10 | K14: 11 | L14: 12 | M14: 13 | N14: 14 | O14: 15 | P14: 16 | Q14: 17 | R14: 18 | S14: 19 | T14: 20 | U14: 21 | V14: 22 | W14: 23 | X14: 24 | Y14: 25 | Z14: 26 | AA14: 27 | AB14: 28 | AC14: 29 | AD14: 30 | AE14: 31 | AF14: 32 | AG14: 33 | AH14: 34 | AI14: 35 | AJ14: 36 | AK14: 37 | AL14: 38 | AM14: 39 | AN14: 40 | AO14: 41 | AP14: 42 | AQ14: 43 | AR14: 44 | AS14: 45 | AT14: 46 | AU14: 47 | AV14: 48 | AW14: 49 | AX14: 50 | AY14: 51 | AZ14: 52 | BA14: 53 | BB14: 54 | BC14: 55 | BD14: 56 | BE14: 57 | BF14: 58 | BG14: 59 | BH14: 60 | BI14: 61 | BJ14: 62 | BK14: 63 | BL14: 64 | BM14: 65 | BN14: 66 | BO14: =BO3 -> 67 | BP14: 68 | BQ14: 69 | BR14: 70 | BS14: 71 | BT14: 72 | BU14: 73 | BV14: 74 | BW14: 75 | BX14: 76 | BY14: 77 | BZ14: 78 | CA14: 79 | CB14: 80 | CC14: 81 | CD14: 82 | CE14: 83 | CF14: 84 | CG14: 85 | CH14: 86 | CI14: 87 | CJ14: 88 | CK14: 89 | CL14: 90 | CM14: 91 | CN14: 92 | CO14: 93 | CP14: 94 | CQ14: 95 | CR14: 96 | CS14: 97 | CT14: 98 | CU14: 99 | CV14: 100 | CW14: 101 | CX14: 102 | CY14: 103 | CZ14: 104 | DA14: 105 | DB14: 106 | DC14: 107 | DD14: 108 | DE14: 109 | DF14: 110 | DG14: 111 | DH14: 112 | DI14: 113 | DJ14: 114 | DK14: 115 | DL14: 116 | DM14: 117 | DN14: 118 | DO14: 119 | DP14: 120 | DQ14: 121 | DR14: 122 | DS14: 123 | DT14: 124 | DU14: 125 | DV14: 126 | DW14: 127 | DX14: 128 | DY14: 129 | DZ14: 130 | EA14: =EA3 -> 131 | EB14: 132 | EC14: 133 | ED14: 134 | EE14: 135 | EF14: 136 | EG14: 137 | EH14: 138 | EI14: 139 | EJ14: 140 | EK14: 141 | EL14: 142 | EM14: 143 | EN14: 144 | EO14: 145 | EP14: 146 | EQ14: 147 | ER14: 148 | ES14: 149 | ET14: 150 | EU14: 151 | EV14: 152 | EW14: 153 | EX14: 154 | EY14: 155 | EZ14: 156 | FA14: 157 | FB14: 158 | FC14: 159 | FD14: 160 | FE14: 161 | FF14: 162 | FG14: 163 | FH14: 164 | FI14: 165 | FJ14: 166 | FK14: 167 | FL14: 168 | FM14: 169 | FN14: 170 | FO14: 171 | FP14: 172 | FQ14: 173 | FR14: 174 | FS14: 175 | FT14: 176 | FU14: 177 | FV14: 178 | FW14: 179 | FX14: 180 | FY14: 181 | FZ14: 182 | GA14: 183 | GB14: 184 | GC14: 185 | GD14: 186 | GE14: 187 | GF14: 188 | GG14: 189 | GH14: 190 | GI14: 191 | GJ14: 192 | GK14: 193 | GL14: 194 | GM14: =GM3 -> 195 | GN14: 196 | GO14: 197 | GP14: 198 | GQ14: 199 | GR14: 200 | GS14: 201
A15: Col Name | B15: =B12 -> B | C15: =C12 -> C | D15: D | E15: E | F15: F | G15: G | H15: H | I15: I | J15: J | K15: K | L15: L | M15: M | N15: N | O15: O | P15: P | Q15: Q | R15: R | S15: S | T15: T | U15: U | V15: V | W15: W | X15: X | Y15: Y | Z15: Z | AA15: AA | AB15: AB | AC15: AC | AD15: AD | AE15: AE | AF15: AF | AG15: AG | AH15: AH | AI15: AI | AJ15: AJ | AK15: AK | AL15: AL | AM15: AM | AN15: AN | AO15: AO | AP15: AP | AQ15: AQ | AR15: AR | AS15: AS | AT15: AT | AU15: AU | AV15: AV | AW15: AW | AX15: AX | AY15: AY | AZ15: AZ | BA15: BA | BB15: BB | BC15: BC | BD15: BD | BE15: BE | BF15: BF | BG15: BG | BH15: BH | BI15: BI | BJ15: BJ | BK15: BK | BL15: BL | BM15: BM | BN15: BN | BO15: =BO12 -> BO | BP15: BP | BQ15: BQ | BR15: BR | BS15: BS | BT15: BT | BU15: BU | BV15: BV | BW15: BW | BX15: BX | BY15: BY | BZ15: BZ | CA15: CA | CB15: CB | CC15: CC | CD15: CD | CE15: CE | CF15: CF | CG15: CG | CH15: CH | CI15: CI | CJ15: CJ | CK15: CK | CL15: CL | CM15: CM | CN15: CN | CO15: CO | CP15: CP | CQ15: CQ | CR15: CR | CS15: CS | CT15: CT | CU15: CU | CV15: CV | CW15: CW | CX15: CX | CY15: CY | CZ15: CZ | DA15: DA | DB15: DB | DC15: DC | DD15: DD | DE15: DE | DF15: DF | DG15: DG | DH15: DH | DI15: DI | DJ15: DJ | DK15: DK | DL15: DL | DM15: DM | DN15: DN | DO15: DO | DP15: DP | DQ15: DQ | DR15: DR | DS15: DS | DT15: DT | DU15: DU | DV15: DV | DW15: DW | DX15: DX | DY15: DY | DZ15: DZ | EA15: =EA12 -> EA | EB15: EB | EC15: EC | ED15: ED | EE15: EE | EF15: EF | EG15: EG | EH15: EH | EI15: EI | EJ15: EJ | EK15: EK | EL15: EL | EM15: EM | EN15: EN | EO15: EO | EP15: EP | EQ15: EQ | ER15: ER | ES15: ES | ET15: ET | EU15: EU | EV15: EV | EW15: EW | EX15: EX | EY15: EY | EZ15: EZ | FA15: FA | FB15: FB | FC15: FC | FD15: FD | FE15: FE | FF15: FF | FG15: FG | FH15: FH | FI15: FI | FJ15: FJ | FK15: FK | FL15: FL | FM15: FM | FN15: FN | FO15: FO | FP15: FP | FQ15: FQ | FR15: FR | FS15: FS | FT15: FT | FU15: FU | FV15: FV | FW15: FW | FX15: FX | FY15: FY | FZ15: FZ | GA15: GA | GB15: GB | GC15: GC | GD15: GD | GE15: GE | GF15: GF | GG15: GG | GH15: GH | GI15: GI | GJ15: GJ | GK15: GK | GL15: GL | GM15: =GM12 -> GM | GN15: GN | GO15: GO | GP15: GP | GQ15: GQ | GR15: GR | GS15: GS
A18: Test | B18: 60
B19: =LOOKUP(B18,Col_Num,Col_Name) -> BH

Sheet pvinsights 05 02 15
B1: Login | C1: Register | D1: Member Center
A3: Home | B3: Why Solar | C3: Retailer Price | D3: Contract Price | E3: Inverter Price | F3: Weekly Snapshots | G3: Price Download | H3: Monthly Insights | I3: Weekly Forecast | J3: Price Forecast | K3: Premier Insights | L3: Premier Data | M3: Advertising
A5: Final Phase of The 2014 US AD & CVD Key Date and Notice
A8: Solar PV Corporate News Release | F8: PV Poly Silicon Weekly Spot Price
A9: JA Solar Reaches 100MWp of PV Module Shipments to Solarcentury for UK Projects in 2014 | F9: Item | G9: High | H9: Low | I9: Average | J9: AvgChg | K9: AvgChg%
A10: JA Solar | C10: Jan 05, 2015 | F10: PV Grade Poly Silicon Price (9N / 9N+) | G10: 20.25 | H10: 18 | I10: 19.08 | J10: -0.03 | K10: -0.0016
A11: JA Solar Supplies 100MW of Modules to First Large-Scale Solar Farm in Pakistan | F11: 2nd Grade Poly Silicon Price (6N - 8N) | G11: 19.25 | H11: 16.5 | I11: 18.18 | J11: -0.15 | K11: -0.0082
A12: JA Solar | C12: Jan 05, 2015 | F12: Unit: USD/Kg | G12: Last Update: 2015-02-04
A13: Hanwha Solarone Files Shareholder Circular for Acquisition of Hanwha Q CELLS | F13: Definition of PV Grade: Poly silicon chunk with high purity can be directly produced to Solar PV Ingots / Bricks
A14: Hanwha Solar | C14: Dec 29, 2014 | F14: Definition of 2nd Grade: Poly silicon chunk must be mixed with high purity polysilicon, when producing Solar PV Ingots / Bricks.
A15: Motech and Topcell Announced the Signing of Merger Agreement | F15: Solar PV Wafer Weekly Spot Price
A16: Motech | C16: Dec 26, 2014 | F16: Item | G16: High | H16: Low | I16: Average | J16: AvgChg | K16: AvgChg%
A17: JA Solar Supplies 100MW of Modules to First Large-Scale Solar Farm in Pakistan | F17: 156 mm Multi Solar Wafer | G17: 1 | H17: 0.81 | I17: 0.853 | J17: -0.011 | K17: -0.0127
A18: JA Solar | C18: Dec 08, 2014 | F18: 156 mm High Eff Multi Solar Wafer | G18: 1 | H18: 0.84 | I18: 0.87 | J18: -0.016 | K18: -0.0181
A19: Latest Solar PV News | F19: 156 mm Mono Solar Wafer | G19: 1.24 | H19: 1.08 | I19: 1.132 | J19: -0.017 | K19: -0.0148
F20: 125 mm Mono Solar Wafer | G20: 0.71 | H20: 0.64 | I20: 0.67 | J20: -0.004 | K20: -0.0059
A21: Global Solar Photovoltaic Balance of System Market Value to Lose $10 Billion ... | F21: 156 mm Non (TW or CN) Multi Wafer | G21: Visit here for more detail wafer price information
A22: AltEnergyMag (press release) | E22: Feb 05, 2015 | F22: Unit: USD | G22: more | I22: Last Update: 2015-02-04
A23: Natcore's Chief Technology Officer Gives Opening Address at World ... | F23: China-made wafers, Ingots and bricks are involved in the US AD and CVD investigations.
A24: PR Newswire (press release) | E24: Feb 05, 2015 | F24: Taiwan-made wafers, Ingots, and bricks are involved in the US AD investigation.
A25: Clark Public Utilities' community solar program embraced
A26: The Columbian | E26: Feb 05, 2015
A27: Making Solar "Wallpaper" Cheaper, More Efficient
A28: IEEE Spectrum | E28: Feb 05, 2015
A29: ABQ company becomes official Home Depot solar supplier | F29: Solar PV Cell Weekly Spot Price
A30: Albuquerque Business First | E30: Feb 05, 2015 | F30: Item | G30: High | H30: Low | I30: Average | J30: AvgChg | K30: AvgChg %
A31: Power play: Ketron hopes to use solar, geothermal to go off the grid | F31: Multi Cell Price Per Watt | G31: 0.42 | H31: 0.29 | I31: 0.313 | J31: -0.002 | K31: -0.0063
A32: Kingsport Times News | E32: Feb 05, 2015 | F32: 156 mm Multi Solar Cell | G32: 1.89 | H32: 1.19 | I32: 1.344 | J32: -0.008 | K32: -0.0059
A33: SRP solar critic hits the roof | F33: 156 mm Mono Solar Cell | G33: 2.55 | H33: 1.66 | I33: 1.811 | J33: -0.005 | K33: -0.0028
A34: azcentral.com | E34: Feb 05, 2015 | F34: 125 mm Mono Solar Cell | G34: 1.55 | H34: 0.97 | I34: 1.088 | J34: -0.003 | K34: -0.0027
A35: Israelis to dedicate largest solar field in east Africa | F35: Taiwan Poly Cell Per Watt | G35: 0.42 | H35: 0.29 | I35: 0.315 | J35: -0.002 | K35: -0.0063
A36: The Times of Israel | E36: Feb 05, 2015 | F36: Non (TW or CN) Poly Cell Per Watt | G36: Visit here for more detail Cell price information
A37: Elon ponders solar farms within the city | F37: Unit: USD | G37: more | I37: Last Update: 2015-02-04
A38: Burlington Times News | E38: Feb 05, 2015 | F38: Solar PV Module Weekly Spot Price
A39: This New PG&E Program Will Allow Customers to Go 100 Percent Solar | F39: Item | G39: High | H39: Low | I39: Average | J39: AvgChg | K39: AvgChg %
A40: Greentech Media | E40: Feb 05, 2015 | F40: Poly Silicon Solar Module | G40: 0.87 | H40: 0.5 | I40: 0.607 | J40: -0.004 | K40: -0.0065
A41: Minnesota's Great Leap Into Solar Begins | F41: ThinFilm Solar Module | G41: 0.83 | H41: 0.5 | I41: 0.634 | J41: -0.002 | K41: -0.0031
A42: Greentech Media | E42: Feb 05, 2015 | F42: US Multi Solar Module | G42: Visit here for more detail module price information
A43: Solar power advocates worry over new bill in Statehouse | F43: Mono Silicon Solar Module | G43: Visit here for more detail module price information
A44: WTHI | E44: Feb 05, 2015 | F44: Unit: USD / Watt | G44: more | I44: Last Update: 2015-02-04
A45: Report: Wind and solar energy have tripled since 2008 | F45: All Spot Prices are Tax excluded and updated on Wednesday
A46: Washington Post | E46: Feb 05, 2015
A47: Washington solar field nears completion after 4 years
A48: NJ.com | E48: Feb 05, 2015
A49: Using solar energy to improve desalination process
A50: Phys.Org | E50: Feb 04, 2015
A51: Last Update: 2015-Feb- 05 07:00 (GMT+8)
A55: Price Methodology | B55: Terms of Use | C55: Privacy Policy | D55: About Us | E55: Contact Us | F55: Site Map
A56: Copyright © 2015 PVinsights.com All rights reserved

Sheet pvinsights 29 05 15
B1: Login | C1: Register | D1: Member Center | J1: =MATCH(I9,I:I,0) -> 9 | K1: =INDEX(I:I,J1+1) -> 15.79
A3: Home | B3: Why Solar | C3: Retailer Price | D3: Contract Price | E3: Inverter Price | F3: Weekly Snapshots | G3: Price Download | H3: Monthly Insights | I3: Weekly Forecast | J3: Price Forecast | K3: Premier Insights | L3: Premier Data | M3: Advertising
A5: Final Phase of The 2014 US AD & CVD Key Date and Notice
A8: Solar PV Corporate News Release | F8: PV Poly Silicon Weekly Spot Price
A9: JA Solar and Essel Infraprojects Limited Sign MOU on 500MW PV Joint Venture | F9: Item | G9: High | H9: Low | I9: Average | J9: AvgChg | K9: AvgChg%
A10: JA Solar | C10: 2015-05-25 | F10: PV Grade Poly Silicon Price (9N / 9N+) | G10: 16.8 | H10: 14.9 | I10: 15.79 | J10: -0.05 | K10: -0.0032
A11: First Solar, Inc. Announces First Quarter 2015 Financial Results with net loss of USD 62 million | F11: 2nd Grade Poly Silicon Price (6N - 8N) | G11: 16.2 | H11: 10 | I11: 13.82 | J11: -0.1 | K11: -0.0072
A12: First Solar | C12: 2015-05-01 | F12: PV Poly Silicon Price in China | G12: Visit here for more detail module price information
A13: Israeli Parliament Solar Project Adopts JA Solar Modules | F13: PV Poly Silicon Price Outside China | G13: Visit here for more detail module price information
A14: JA Solar | C14: 2015-04-07 | F14: Unit: USD/Kg | G14: more | I14: Last Update: 2015-05-27
A15: JA Solar Supplies Modules Again to First Large-Scale Solar Farm in Central America | F15: Definition of PV Grade: Poly silicon chunk with high purity can be directly produced to Solar PV Ingots / Bricks
A16: JA Solar | C16: 2015-03-16 | F16: Definition of 2nd Grade: Poly silicon chunk must be mixed with high purity polysilicon, when producing Solar PV Ingots / Bricks.
A17: Hyundai offers compact 250W high-performance modules for UK rooftop market | F17: Solar PV Wafer Weekly Spot Price
A18: Hyundai | C18: 2015-03-12 | F18: Item | G18: High | H18: Low | I18: Average | J18: AvgChg | K18: AvgChg%
A19: Latest Solar PV News | F19: 156 mm Multi Solar Wafer | G19: 0.9 | H19: 0.78 | I19: 0.804 | J19: 0 | K19: 0
F20: 156 mm High Eff Multi Solar Wafer | G20: 0.9 | H20: 0.81 | I20: 0.82 | J20: 0 | K20: 0
A21: Solar Photovoltaic Backsheet Market To 2015: Latest Research Analysed | F21: 156 mm Mono Solar Wafer | G21: 1.11 | H21: 0.98 | I21: 1.015 | J21: -0.005 | K21: -0.0049
A22: Solar Plaza (press release) | E22: 2015-05-29 | F22: 125 mm Mono Solar Wafer | G22: 0.66 | H22: 0.61 | I22: 0.631 | J22: -0.001 | K22: -0.0016
A23: JinkoSolar ships 789.2 MW of solar photovoltaic products in Q1, 2015 ... | F23: 156 mm Non (TW or CN) Multi Wafer | G23: Visit here for more detail wafer price information
A24: solarserver.com | E24: 2015-05-29 | F24: Unit: USD | G24: more | I24: Last Update: 2015-05-27
A25: European Photovoltaic Industry Association rebrands: SolarPower Europe
A26: solarserver.com | E26: 2015-05-29
A27: Rays Power commissions 31.5 MW solar photovoltaic project in Punjab
A28: Economic Times | E28: 2015-05-29
A29: Supervisors, residents question Warren County solar selection process | F29: Solar PV Cell Weekly Spot Price
A30: Glens Falls Post-Star | E30: 2015-05-29 | F30: Item | G30: High | H30: Low | I30: Average | J30: AvgChg | K30: AvgChg %
A31: Controversy over location of proposed Upper Valley solar array | F31: Multi Cell Price Per Watt | G31: 0.39 | H31: 0.26 | I31: 0.291 | J31: 0.001 | K31: 0.0034
A32: WPTZ The Champlain Valley | E32: 2015-05-29 | F32: Taiwan Poly Cell Per Watt | G32: 0.39 | H32: 0.27 | I32: 0.294 | J32: 0.002 | K32: 0.0068
A33: Cedar Falls Utilities pitches solar project to potential investors | F33: 156 mm Multi Solar Cell | G33: 1.75 | H33: 1.07 | I33: 1.252 | J33: 0.004 | K33: 0.0032
A34: KCRG | E34: 2015-05-29 | F34: 156 mm Mono Solar Cell | G34: 2.3 | H34: 1.52 | I34: 1.668 | J34: -0.004 | K34: -0.0024
A35: CA struggles to compute value of solar | F35: 125 mm Mono Solar Cell | G35: 1.4 | H35: 0.89 | I35: 1.005 | J35: -0.002 | K35: -0.002
A36: U-T San Diego | E36: 2015-05-29 | F36: Non (TW or CN) Poly Cell Per Watt | G36: Visit here for more detail Cell price information
A37: Big Subsidies Make Solar Power Attractive for Home Developers | F37: Unit: USD | G37: more | I37: Last Update: 2015-05-27
A38: Wall Street Journal | E38: 2015-05-29 | F38: Solar PV Module Weekly Spot Price
A39: Report finds 7.7M renewable energy employees worldwide | F39: Item | G39: High | H39: Low | I39: Average | J39: AvgChg | K39: AvgChg %
A40: Fierce Energy | E40: 2015-05-29 | F40: Poly Silicon Solar Module | G40: 0.79 | H40: 0.48 | I40: 0.555 | J40: -0.004 | K40: -0.0072
A41: Department of Defense Moves Forward with Stricter Sourcing Requirements for ... | F41: ThinFilm Solar Module | G41: 0.8 | H41: 0.47 | I41: 0.604 | J41: -0.005 | K41: -0.0082
A42: The National Law Review | E42: 2015-05-29 | F42: US Multi Solar Module | G42: Visit here for more detail module price information
A43: Jinko Solar Q1 Earnings Crush Views, Revenue Shines JKS | F43: Mono Silicon Solar Module | G43: Visit here for more detail module price information
A44: Investor's Business Daily | E44: 2015-05-29 | F44: Unit: USD / Watt | G44: more | I44: Last Update: 2015-05-27
A45: What Was Here Before the Solar System? | F45: All Spot Prices are Tax excluded and updated on Wednesday
A46: Universe Today | E46: 2015-05-29
A47: Albemarle Co. Schools Team Up with Staunton Solar Company
A48: NBC 29 News | E48: 2015-05-29
A49: The Power of Solar: Energy in the Global South
A50: Huffington Post | E50: 2015-05-29
A51: Last Update: 2015-May- 29 14:00 (GMT+8)
A55: Price Methodology | B55: Terms of Use | C55: Privacy Policy | D55: About Us | E55: Contact Us | F55: Site Map
A56: Copyright © 2015 PVinsights.com All rights reserved

Sheet pvinsights 15 06 15
B1: Login | C1: Register | D1: Member Center
A3: Home | B3: Why Solar | C3: Retailer Price | D3: Contract Price | E3: Inverter Price | F3: Weekly Snapshots | G3: Price Download | H3: Monthly Insights | I3: Weekly Forecast | J3: Price Forecast | K3: Premier Insights | L3: Premier Data | M3: Advertising
A5: Final Phase of The 2014 US AD & CVD Key Date and Notice
A8: Solar PV Corporate News Release | F8: PV Poly Silicon Weekly Spot Price
A9: JA Solar and Essel Infraprojects Limited Sign MOU on 500MW PV Joint Venture | F9: Item | G9: High | H9: Low | I9: Average | J9: AvgChg | K9: AvgChg%
A10: JA Solar | C10: 2015-05-25 | F10: PV Grade Poly Silicon Price (9N / 9N+) | G10: 16.65 | H10: 14.8 | I10: 15.58 | J10: -0.11 | K10: -0.007
A11: First Solar, Inc. Announces First Quarter 2015 Financial Results with net loss of USD 62 million | F11: 2nd Grade Poly Silicon Price (6N - 8N) | G11: 16.2 | H11: 10 | I11: 13.62 | J11: -0.08 | K11: -0.0058
A12: First Solar | C12: 2015-05-01 | F12: PV Poly Silicon Price in China | G12: Visit here for more detail module price information
A13: Israeli Parliament Solar Project Adopts JA Solar Modules | F13: PV Poly Silicon Price Outside China | G13: Visit here for more detail module price information
A14: JA Solar | C14: 2015-04-07 | F14: Unit: USD/Kg | G14: more | I14: Last Update: 2015-06-10
A15: JA Solar Supplies Modules Again to First Large-Scale Solar Farm in Central America | F15: Definition of PV Grade: Poly silicon chunk with high purity can be directly produced to Solar PV Ingots / Bricks
A16: JA Solar | C16: 2015-03-16 | F16: Definition of 2nd Grade: Poly silicon chunk must be mixed with high purity polysilicon, when producing Solar PV Ingots / Bricks.
A17: Hyundai offers compact 250W high-performance modules for UK rooftop market | F17: Solar PV Wafer Weekly Spot Price
A18: Hyundai | C18: 2015-03-12 | F18: Item | G18: High | H18: Low | I18: Average | J18: AvgChg | K18: AvgChg%
A19: Latest Solar PV News | F19: 156 mm Multi Solar Wafer | G19: 0.9 | H19: 0.78 | I19: 0.804 | J19: 0 | K19: 0
F20: 156 mm High Eff Multi Solar Wafer | G20: 0.9 | H20: 0.81 | I20: 0.82 | J20: 0 | K20: 0
A21: Dairyland Power Seeks Solar Photovoltaic Energy Resources | F21: 156 mm Mono Solar Wafer | G21: 1.1 | H21: 0.96 | I21: 1 | J21: -0.01 | K21: -0.0099
A22: Virtual Press Office (press release) | E22: 2015-06-15 | F22: 125 mm Mono Solar Wafer | G22: 0.65 | H22: 0.6 | I22: 0.623 | J22: -0.005 | K22: -0.008
A23: BSF Gujarat plans to power outposts with photovoltaic installations | F23: 156 mm Non (TW or CN) Multi Wafer | G23: Visit here for more detail wafer price information
A24: Greentech Lead | E24: 2015-06-15 | F24: Unit: USD | G24: more | I24: Last Update: 2015-06-10
A25: Hanergy Scraps Talks to Sell $585 Million in Solar Kit to Parent
A26: Bloomberg | E26: 2015-06-15
A27: Solar cells in the roof and nanotechnology in the walls
A28: Phys.Org | E28: 2015-06-15
A29: Exclusive: First Solar's CTO Discusses Record 18.6% Efficient Thin-Film Module | F29: Solar PV Cell Weekly Spot Price
A30: Greentech Media | E30: 2015-06-15 | F30: Item | G30: High | H30: Low | I30: Average | J30: AvgChg | K30: AvgChg %
A31: National Guard Helping Install Solar Panels Near Porcupine | F31: Multi Cell Price Per Watt | G31: 0.39 | H31: 0.28 | I31: 0.3 | J31: 0.006 | K31: 0.0204
A32: KELOLAND TV | E32: 2015-06-15 | F32: Taiwan Poly Cell Per Watt | G32: 0.39 | H32: 0.29 | I32: 0.303 | J32: 0.006 | K32: 0.0202
A33: Adani Group in pact for 10000 mw solar power park in JV with Rajasthan ... | F33: 156 mm Multi Solar Cell | G33: 1.75 | H33: 1.16 | I33: 1.3 | J33: 0.036 | K33: 0.0285
A34: Economic Times | E34: 2015-06-15 | F34: 156 mm Mono Solar Cell | G34: 2.3 | H34: 1.52 | I34: 1.658 | J34: -0.004 | K34: -0.0024
A35: Kelso Council to consider community solar project | F35: 125 mm Mono Solar Cell | G35: 1.4 | H35: 0.89 | I35: 0.997 | J35: -0.004 | K35: -0.004
A36: Longview Daily News | E36: 2015-06-15 | F36: Non (TW or CN) Poly Cell Per Watt | G36: Visit here for more detail Cell price information
A37: The first solar plane flying around the world | F37: Unit: USD | G37: more | I37: Last Update: 2015-06-10
A38: USA TODAY | E38: 2015-06-15 | F38: Solar PV Module Weekly Spot Price
A39: UBS Lays Out âDreamâ Solar Scenario: 50% Of Global Generation By 2050 | F39: Item | G39: High | H39: Low | I39: Average | J39: AvgChg | K39: AvgChg %
A40: CleanTechnica | E40: 2015-06-15 | F40: Poly Silicon Solar Module | G40: 0.78 | H40: 0.48 | I40: 0.55 | J40: -0.002 | K40: -0.0036
A41: PUC Founder to submit for 50MW solar photovoltaic plant | F41: ThinFilm Solar Module | G41: 0.8 | H41: 0.47 | I41: 0.596 | J41: -0.003 | K41: -0.005
A42: The Sun Daily | E42: 2015-06-15 | F42: US Multi Solar Module | G42: Visit here for more detail module price information
A43: Solarize Mass Plainfield-Ashfield-Buckland selects photovoltaic panel installer | F43: Mono Silicon Solar Module | G43: Visit here for more detail module price information
A44: GazetteNET | E44: 2015-06-15 | F44: Unit: USD / Watt | G44: more | I44: Last Update: 2015-06-10
A45: global markets and technologies for photovoltaic systems | F45: All Spot Prices are Tax excluded and updated on Wednesday
A46: Virtual Press Office (press release) | E46: 2015-06-15
A47: Neil Kelly Company Installs Solar Photovoltaic System for Best Western Inn at ...
A48: Benzinga | E48: 2015-06-15
A49: BRIEF-Shenzhen Jiawei Photovoltaic Lighting gets regulatory approval for ...
A50: Reuters | E50: 2015-06-15
A51: Last Update: 2015-Jun- 15 23:01 (GMT+8)
A55: Price Methodology | B55: Terms of Use | C55: Privacy Policy | D55: About Us | E55: Contact Us | F55: Site Map
A56: Copyright © 2015 PVinsights.com All rights reserved

Sheet pvinsights 25 09 15
B1: Login | C1: Register | D1: Member Center
A3: Home | B3: Why Solar | C3: Retailer Price | D3: Contract Price | E3: Inverter Price | F3: Weekly Snapshots | G3: Price Download | H3: Monthly Insights | I3: Weekly Forecast | J3: Price Forecast | K3: Premier Insights | L3: Premier Data | M3: Advertising
A5: Final Phase of The 2014 US AD & CVD Key Date and Notice
A8: Solar PV Corporate News Release | F8: PV Poly Silicon Weekly Spot Price
A9: Yingli Green Energy Reports Second Quarter 2015 Results | F9: Item | G9: High | H9: Low | I9: Average | J9: AvgChg | K9: AvgChg%
A10: Yingli | C10: 2015-09-08 | F10: PV Grade Poly Silicon Price (9N / 9N+) | G10: 15.7 | H10: 13.5 | I10: 14.86 | J10: -0.12 | K10: -0.008
A11: Hanwha Q CELLS Reports Second Quarter 2015 Results | F11: 2nd Grade Poly Silicon Price (6N - 8N) | G11: 15 | H11: 10 | I11: 12.81 | J11: -0.09 | K11: -0.007
A12: Hanwha | C12: 2015-08-27 | F12: PV Poly Silicon Price in China | G12: Visit here for more Poly-Si price | K12: -0.0093
A13: TSMC to Cease Solar Manufacturing Operations | F13: PV Poly Silicon Price Outside China | G13: Visit here for more Poly-Si price | K13: -0.0043
A14: TSMC | C14: 2015-08-25 | F14: Unit: USD/Kg | G14: more | I14: Last Update: 2015-09-23
A15: JinkoSolar Announces Better-Than-Expected Second Quarter 2015 Financial Results | F15: Definition of PV Grade: Poly silicon chunk with high purity can be directly produced to Solar PV Ingots / Bricks
A16: Jinko | C16: 2015-08-20 | F16: Definition of 2nd Grade: Poly silicon chunk must be mixed with high purity polysilicon, when producing Solar PV Ingots / Bricks.
A17: Trina Solar Announces $43.1 million of Net Profits for Second Quarter 2015 Results | F17: Solar PV Wafer Weekly Spot Price
A18: Trina | C18: 2015-08-18 | F18: Item | G18: High | H18: Low | I18: Average | J18: AvgChg | K18: AvgChg%
A19: Latest Solar PV News | F19: 156 mm Multi Solar Wafer | G19: 0.9 | H19: 0.79 | I19: 0.819 | J19: 0.002 | K19: 0.0024
F20: 156 mm High Eff Multi Solar Wafer | G20: 0.9 | H20: 0.8 | I20: 0.829 | J20: 0.001 | K20: 0.0012
A21: BRIEF-01Cyberaton to launch 34 photovoltaic units in Bukowina Tatrzanska, Poland | F21: 156 mm Mono Solar Wafer | G21: 1 | H21: 0.9 | I21: 0.932 | J21: -0.004 | K21: -0.0043
A22: Reuters | E22: 2015-09-25 | F22: 125 mm Mono Solar Wafer | G22: 0.63 | H22: 0.59 | I22: 0.608 | J22: -0.001 | K22: -0.0016
A23: Short Sellers Heading for the Sidelines on Solar, Alt Energy Stocks? | F23: 156 mm Non (TW or CN) Multi Wafer | G23: Visit here for more detail wafer price information
A24: 24/7 Wall St. | E24: 2015-09-25 | F24: Unit: USD | G24: more | I24: Last Update: 2015-09-23
A25: Entergy is OK'd for solar contract
A26: Arkansas Online | E26: 2015-09-25
A27: Turkey Commissions First Utility-Scale CIS Thin-Film Solar PV Plant
A28: CleanTechnica | E28: 2015-09-25
A29: Fraunhofer ISE Sets Another Solar Cell Efficiency Record | F29: Solar PV Cell Weekly Spot Price
A30: CleanTechnica | E30: 2015-09-25 | F30: Item | G30: High | H30: Low | I30: Average | J30: AvgChg | K30: AvgChg %
A31: Brazil Could Be the Next Global Solar Superpower. But There's Still Work to Do | F31: Multi Cell Price Per Watt | G31: 0.39 | H31: 0.28 | I31: 0.315 | J31: 0.001 | K31: 0.0032
A32: Greentech Media | E32: 2015-09-25 | F32: Taiwan Poly Cell Per Watt | G32: 0.39 | H32: 0.29 | I32: 0.318 | J32: 0.001 | K32: 0.0032
A33: Space-Based Solar Power: Here's How It Could Work | F33: 156 mm Multi Solar Cell | G33: 1.75 | H33: 1.16 | I33: 1.381 | J33: 0.01 | K33: 0.0073
A34: Forbes | E34: 2015-09-25 | F34: 156 mm Mono Solar Cell | G34: 2.25 | H34: 1.42 | I34: 1.609 | J34: -0.009 | K34: -0.0056
A35: EU PVSEC 2015: Photovoltaics becoming mainstream, and cheapest form of ... | F35: 125 mm Mono Solar Cell | G35: 1.37 | H35: 0.84 | I35: 0.972 | J35: -0.003 | K35: -0.0031
A36: solarserver.com | E36: 2015-09-25 | F36: Non (TW or CN) Poly Cell Per Watt | G36: Visit here for more detail Cell price information
A37: Primary schools go photovoltaic | F37: Unit: USD | G37: more | I37: Last Update: 2015-09-23
A38: Barbados Today | E38: 2015-09-25 | F38: Solar PV Module Weekly Spot Price
A39: Global Material for Next Generation Photovoltaics Market Analysis, Trends ... | F39: Item | G39: High | H39: Low | I39: Average | J39: AvgChg | K39: AvgChg %
A40: Industry Today (press release) | E40: 2015-09-25 | F40: Poly Silicon Solar Module | G40: 0.78 | H40: 0.48 | I40: 0.556 | J40: 0.001 | K40: 0.0018
A41: The precision of solar photovoltaic power measurements doubled | F41: ThinFilm Solar Module | G41: 0.79 | H41: 0.47 | I41: 0.592 | J41: 0 | K41: 0
A42: Phys.Org | E42: 2015-09-25 | F42: US Multi Solar Module | G42: Visit here for more detail module price information
A43: North Carolina reaches solar power milestone | F43: Mono Silicon Solar Module | G43: Visit here for more detail module price information
A44: UPI.com | E44: 2015-09-25 | F44: Unit: USD / Watt | G44: more | I44: Last Update: 2015-09-23
A45: Costa Rica's capital to have solar energy powered traffic lights Public ... | F45: All Spot Prices are Tax excluded and updated on Wednesday
A46: The Tico Times | E46: 2015-09-25
A47: Sacramento State Ready To Play Underdog Spoiler In Prestigious Solar Power ...
A48: CBS Local | E48: 2015-09-25
A49: Want a Solar-Powered Home? Here's a New Battery That Won't Ignite
A50: National Geographic | E50: 2015-09-25
A51: Last Update: 2015-Sep- 25 23:00 (GMT+8)
A52: Price Methodology | B52: Terms of Use | C52: Privacy Policy | D52: About Us | E52: Contact Us | F52: Site Map
A53: Copyright © 2015 PVinsights.com All rights reserved

Sheet pvinsights 13 11 15
B1: Login | C1: Register | D1: Member Center
A3: Home | B3: Why Solar | C3: Retailer Price | D3: Contract Price | E3: Inverter Price | F3: Weekly Snapshots | G3: Price Download | H3: Monthly Insights | I3: Weekly Forecast | J3: Price Forecast | K3: Premier Insights | L3: Premier Data | M3: Advertising
A5: Final Phase of The 2014 US AD & CVD Key Date and Notice
A8: Solar PV Corporate News Release | F8: PV Poly Silicon Weekly Spot Price
A9: SunEdison Reports Third Quarter 2015 Results | F9: Item | G9: High | H9: Low | I9: Average | J9: AvgChg | K9: AvgChg%
A10: SunEdison | C10: 2015-11-10 | F10: PV Grade Poly Silicon Price (9N / 9N+) | G10: 15.05 | H10: 12.8 | I10: 14.1 | J10: -0.11 | K10: -0.0077
A11: Canadian Solar Reports Third Quarter 2015 Results | F11: 2nd Grade Poly Silicon Price (6N - 8N) | G11: 15 | H11: 10 | I11: 12.51 | J11: 0 | K11: 0
A12: Canadian | C12: 2015-11-10 | F12: PV Poly Silicon Price in China | G12: Visit here for more Poly-Si price | K12: -0.0078
A13: Yingli Green Energy Reports Second Quarter 2015 Results | F13: PV Poly Silicon Price Outside China | G13: Visit here for more Poly-Si price | K13: -0.0045
A14: Yingli | C14: 2015-09-08 | F14: Unit: USD/Kg | G14: more | I14: Last Update: 2015-11-11
A15: Hanwha Q CELLS Reports Second Quarter 2015 Results | F15: Definition of PV Grade: Poly silicon chunk with high purity can be directly produced to Solar PV Ingots / Bricks
A16: Hanwha | C16: 2015-08-27 | F16: Definition of 2nd Grade: Poly silicon chunk must be mixed with high purity polysilicon, when producing Solar PV Ingots / Bricks.
A17: TSMC to Cease Solar Manufacturing Operations | F17: Solar PV Wafer Weekly Spot Price
A18: TSMC | C18: 2015-08-25 | F18: Item | G18: High | H18: Low | I18: Average | J18: AvgChg | K18: AvgChg%
A19: Latest Solar PV News | F19: 156 mm Multi Solar Wafer | G19: 0.9 | H19: 0.81 | I19: 0.834 | J19: 0.002 | K19: 0.0024
F20: 156 mm High Eff Multi Solar Wafer | G20: 0.9 | H20: 0.82 | I20: 0.843 | J20: 0.002 | K20: 0.0024
A21: Peru President inaugurates Photovoltaic Power Plant in Southern Peru | F21: 156 mm Mono Solar Wafer | G21: 1 | H21: 0.86 | I21: 0.913 | J21: -0.007 | K21: -0.0076
A22: Andina - Agencia Peruana de Noticias | E22: 2015-11-13 | F22: 125 mm Mono Solar Wafer | G22: 0.63 | H22: 0.57 | I22: 0.597 | J22: -0.006 | K22: -0.01
A23: City OKs solar park tax abatement | F23: 156 mm Non (TW or CN) Multi Wafer | G23: Visit here for more detail wafer price information
A24: The Herald Bulletin | E24: 2015-11-13 | F24: Unit: USD | G24: more | I24: Last Update: 2015-11-11
A25: New âInvisibleâ Solar Jobs Exposed By 19 Solar Startups
A26: CleanTechnica | E26: 2015-11-13
A27: City of Beaufort mounts effort to encourage solar energy
A28: Island Packet | E28: 2015-11-13
A29: Solar Continues to Beat Fossil Fuel Prices in Chile, Boosting Confidence in ... | F29: Solar PV Cell Weekly Spot Price
A30: Greentech Media | E30: 2015-11-13 | F30: Item | G30: High | H30: Low | I30: Average | J30: AvgChg | K30: AvgChg %
A31: Action on solar bill at center of fight between Eversource, National Grid and ... | F31: Multi Cell Price Per Watt | G31: 0.39 | H31: 0.29 | I31: 0.322 | J31: 0.001 | K31: 0.0031
A32: MassLive.com | E32: 2015-11-13 | F32: Taiwan Poly Cell Per Watt | G32: 0.39 | H32: 0.3 | I32: 0.325 | J32: 0.001 | K32: 0.0031
A33: How Solar Installations Can Be the Barn-Raisings of the 21st Century | F33: 156 mm Multi Solar Cell | G33: 1.75 | H33: 1.2 | I33: 1.41 | J33: 0.005 | K33: 0.0036
A34: Slate Magazine | E34: 2015-11-13 | F34: 156 mm Mono Solar Cell | G34: 2.25 | H34: 1.42 | I34: 1.575 | J34: -0.004 | K34: -0.0025
A35: Photovoltaics Add Value to Homes, Berkeley Lab Study Concludes | F35: 125 mm Mono Solar Cell | G35: 1.37 | H35: 0.84 | I35: 0.951 | J35: -0.003 | K35: -0.0031
A36: Solar Novus Today | E36: 2015-11-13 | F36: Non (TW or CN) Poly Cell Per Watt | G36: Visit here for more detail Cell price information
A37: Research on Transparent Organic Photovoltaic Glass Facades | F37: Unit: USD | G37: more | I37: Last Update: 2015-11-11
A38: Solar Novus Today | E38: 2015-11-13 | F38: Solar PV Module Weekly Spot Price
A39: Appeals Judge Upholds BPU's Decision to Block Solar Farm in Apple Orchard | F39: Item | G39: High | H39: Low | I39: Average | J39: AvgChg | K39: AvgChg %
A40: NJ Spotlight | E40: 2015-11-13 | F40: Poly Silicon Solar Module | G40: 0.78 | H40: 0.48 | I40: 0.561 | J40: 0.001 | K40: 0.0018
A41: First Solar Road Surpasses Expectations | F41: ThinFilm Solar Module | G41: 0.79 | H41: 0.47 | I41: 0.59 | J41: 0 | K41: 0
A42: Triple Pundit (registration) (blog) | E42: 2015-11-13 | F42: US Multi Solar Module | G42: Visit here for more detail module price information
A43: Grant awards $2.5 million, funds advancement of new solar energy | F43: Mono Silicon Solar Module | G43: Visit here for more detail module price information
A44: Dailybarometer | E44: 2015-11-13 | F44: Unit: USD / Watt | G44: more | I44: Last Update: 2015-11-11
A45: Japan Gaming Machine Maker Completes 20MW Solar Power Plant | F45: All Spot Prices are Tax excluded and updated on Wednesday
A46: Bloomberg | E46: 2015-11-13
A47: Utility Money Far Outpaces Solar Money in Florida Ballot Standoff Over Grid Access
A48: Greentech Media | E48: 2015-11-13
A49: Sun brewed: Bitter Root Brewing praised for use of solar power system
A50: Ravalli Republic | E50: 2015-11-13
A51: Last Update: 2015-Nov- 13 23:01 (GMT+8)
A52: Price Methodology | B52: Terms of Use | C52: Privacy Policy | D52: About Us | E52: Contact Us | F52: Site Map
A53: Copyright © 2015 PVinsights.com All rights reserved

Sheet pvinsights 09 04 16
B1: Login | C1: Register | D1: Member Center
A3: Home | B3: Why Solar | C3: Retailer Price | D3: Contract Price | E3: Inverter Price | F3: Weekly Snapshots | G3: Price Download | H3: Monthly Insights | I3: Weekly Forecast | J3: Price Forecast | K3: Premier Insights | L3: Premier Data | M3: Advertising
A5: Final Phase of The 2014 US AD & CVD Key Date and Notice
A8: Solar PV Corporate News Release | F8: PV Poly Silicon Weekly Spot Price
A9: JinkoSolar Announces Fourth Quarter and Full Year 2015 Financial Results | F9: Item | G9: High | H9: Low | I9: Average | J9: AvgChg | K9: AvgChg%
A10: Jinko | C10: 2016-03-01 | F10: PV Grade Poly Silicon Price (9N / 9N+) | G10: 16.5 | H10: 12.7 | I10: 14.58 | J10: 0.14 | K10: 0.0097
A11: JinkoSolar Announces Fourth Quarter and Full Year 2015 Financial Results | F11: 2nd Grade Poly Silicon Price (6N - 8N) | G11: 14.4 | H11: 10.85 | I11: 12.14 | J11: 0.08 | K11: 0.0066
A12: Jinko | C12: 2016-03-01 | F12: PV Poly Silicon Price in China | G12: Visit here for more Poly-Si price | K12: 0.0176
A13: First Solar, Inc. Announces Fourth Quarter & Full Year 2015 Financial Results | F13: PV Poly Silicon Price Outside China | G13: Visit here for more Poly-Si price | K13: 0.007
A14: First Solar | C14: 2016-02-24 | F14: Unit: USD/Kg | G14: more | I14: Last Update: 2016-04-06
A15: SunPower Corp. announced financial results for its fourth quarter and fiscal year ended Jan. 3, 2016 | F15: Definition of PV Grade: Poly silicon chunk with high purity can be directly produced to Solar PV Ingots / Bricks
A16: Sunpower | C16: 2016-02-18 | F16: Definition of 2nd Grade: Poly silicon chunk must be mixed with high purity polysilicon, when producing Solar PV Ingots / Bricks.
A17: Trina Solar Announces Receipt of a Preliminary Non-Binding Proposal to Acquire the Company | F17: Solar PV Wafer Weekly Spot Price
A18: Trina | C18: 2015-12-14 | F18: Item | G18: High | H18: Low | I18: Average | J18: AvgChg | K18: AvgChg%
A19: Latest Solar PV News | F19: 156 mm Multi Solar Wafer | G19: 0.92 | H19: 0.84 | I19: 0.857 | J19: -0.001 | K19: -0.0012
F20: 156 mm High Eff Multi Solar Wafer | G20: 0.92 | H20: 0.85 | I20: 0.864 | J20: -0.002 | K20: -0.0023
A21: Africa Solar Photovoltaic (PV) Market Size, Regional Analysis, Price,Competitive Landscape & Forecast by 2023 ... | F21: 156 mm Mono Solar Wafer | G21: 0.96 | H21: 0.85 | I21: 0.893 | J21: -0.001 | K21: -0.0011
A22: Digital Journal | E22: 2016-04-09 | F22: 125 mm Mono Solar Wafer | G22: 0.61 | H22: 0.57 | I22: 0.589 | J22: 0 | K22: 0
A23: Photovoltaic Pump Industry 2016 Japan Market Analysis, Regional Forecasts, Major Applications, Requirements ... | F23: 156 mm Non (TW or CN) Multi Wafer | G23: Visit here for more detail wafer price information
A24: Digital Journal | E24: 2016-04-09 | F24: Unit: USD | G24: more | I24: Last Update: 2016-04-06
A25: n-tech Research Announces New Report on Organic Photovoltaic Markets
A26: PRUnderground (press release) | E26: 2016-04-09
A27: New Market Study Published: China Photovoltaic (PV) Glass Industry
A28: NewsMaker (press release) | E28: 2016-04-09
A29: Reader's View: Support officials who see benefits of solar power | F29: Solar PV Cell Weekly Spot Price
A30: Duluth News Tribune | E30: 2016-04-09 | F30: Item | G30: High | H30: Low | I30: Average | J30: AvgChg | K30: AvgChg %
A31: Massive solar storm would pose considerable dangers â are we ready? | F31: Multi Cell Price Per Watt | G31: 0.39 | H31: 0.28 | I31: 0.305 | J31: -0.01 | K31: -0.0317
A32: Gizmag | E32: 2016-04-09 | F32: Taiwan Poly Cell Per Watt | G32: 0.39 | H32: 0.29 | I32: 0.307 | J32: -0.011 | K32: -0.0346
A33: PV - Photovoltaic Glass Sales Market 2015 - Costs and Price, Market Trends and Technology Report 2015 By Radiant ... | F33: 156 mm Multi Solar Cell | G33: 1.75 | H33: 1.17 | I33: 1.345 | J33: -0.045 | K33: -0.0324
A34: Press Release Rocket | E34: 2016-04-09 | F34: 156 mm Mono Solar Cell | G34: 2.25 | H34: 1.46 | I34: 1.591 | J34: -0.004 | K34: -0.0025
A35: "Solar Photovoltaic (PV) in Republic of Korea, Market Outlook to 2030, Update 2016" Now Available | F35: 125 mm Mono Solar Cell | G35: 1.37 | H35: 0.86 | I35: 0.96 | J35: -0.003 | K35: -0.0031
A36: Digital Journal | E36: 2016-04-09 | F36: Non (TW or CN) Poly Cell Per Watt | G36: Visit here for more detail Cell price information
A37: Chile Solar Photovoltaic (PV) Market 2016 Analysis , Size, Share, Outlook 2030 | F37: Unit: USD | G37: more | I37: Last Update: 2016-04-06
A38: Patriarc | E38: 2016-04-09 | F38: Solar PV Module Weekly Spot Price
A39: Let the sun shine in: Church adds more solar panels | F39: Item | G39: High | H39: Low | I39: Average | J39: AvgChg | K39: AvgChg %
A40: Yakima Herald-Republic | E40: 2016-04-09 | F40: Poly Silicon Solar Module | G40: 0.74 | H40: 0.46 | I40: 0.533 | J40: -0.002 | K40: -0.0037
A41: Church installs more solar while awaiting decision | F41: ThinFilm Solar Module | G41: 0.74 | H41: 0.47 | I41: 0.562 | J41: -0.001 | K41: -0.0018
A42: Greensboro News & Record | E42: 2016-04-09 | F42: US Multi Solar Module | G42: Visit here for more detail module price information
A43: UPDATE 1-Solar power firms seek delay to Brazil solar farm startups | F43: Mono Silicon Solar Module | G43: Visit here for more detail module price information
A44: Reuters | E44: 2016-04-09 | F44: Unit: USD / Watt | G44: more | I44: Last Update: 2016-04-06
A45: City considering solar panel installation in downtown | F45: All Spot Prices are Tax excluded and updated on Wednesday
A46: Columbia Daily Tribune | E46: 2016-04-09
A47: San Diego No. 2 in nation for solar
A48: The San Diego Union-Tribune | E48: 2016-04-09
A49: Solar garden backers may seek bill to improve accessibility
A50: The Denver Post | E50: 2016-04-09
A51: Last Update: 2016-Apr- 09 20:00 (GMT+8)
A52: Price Methodology | B52: Terms of Use | C52: Privacy Policy | D52: About Us | E52: Contact Us | F52: Site Map
A53: Copyright © 2016 PVinsights.com All rights reserved

Sheet pvinsights 31 07 16
B1: Login | C1: Register | D1: Member Center
A3: Home | B3: Why Solar | C3: Retailer Price | D3: Contract Price | E3: Inverter Price | F3: Weekly Snapshots | G3: Price Download | H3: Monthly Insights | I3: Weekly Forecast | J3: Price Forecast | K3: Premier Insights | L3: Premier Data | M3: Advertising
A5: Final Phase of The 2014 US AD & CVD Key Date and Notice
A8: Solar PV Corporate News Release | F8: PV Poly Silicon Weekly Spot Price
A9: First Solar, Inc. Announces First Quarter 2016 Financial Results | F9: Item | G9: High | H9: Low | I9: Average | J9: AvgChg | K9: AvgChg%
A10: First Solar | C10: 2016-04-27 | F10: PV Grade Poly Silicon Price (9N / 9N+) | G10: 17.9 | H10: 14 | I10: 15.9 | J10: -0.11 | K10: -0.0069
A11: JinkoSolar Announces Fourth Quarter and Full Year 2015 Financial Results | F11: 2nd Grade Poly Silicon Price (6N - 8N) | G11: 15.8 | H11: 11.5 | I11: 12.98 | J11: -0.08 | K11: -0.0061
A12: Jinko | C12: 2016-03-01 | F12: PV Poly Silicon Price in China | G12: Visit here for more Poly-Si price | K12: -0.0076
A13: JinkoSolar Announces Fourth Quarter and Full Year 2015 Financial Results | F13: PV Poly Silicon Price Outside China | G13: Visit here for more Poly-Si price | K13: -0.0062
A14: Jinko | C14: 2016-03-01 | F14: Unit: USD/Kg | G14: more | I14: Last Update: 2016-07-27
A15: First Solar, Inc. Announces Fourth Quarter & Full Year 2015 Financial Results | F15: Definition of PV Grade: Poly silicon chunk with high purity can be directly produced to Solar PV Ingots / Bricks
A16: First Solar | C16: 2016-02-24 | F16: Definition of 2nd Grade: Poly silicon chunk must be mixed with high purity polysilicon, when producing Solar PV Ingots / Bricks.
A17: SunPower Corp. announced financial results for its fourth quarter and fiscal year ended Jan. 3, 2016 | F17: Solar PV Wafer Weekly Spot Price
A18: Sunpower | C18: 2016-02-18 | F18: Item | G18: High | H18: Low | I18: Average | J18: AvgChg | K18: AvgChg%
A19: Latest Solar PV News | F19: 156 mm Multi Solar Wafer | G19: 0.8 | H19: 0.7 | I19: 0.725 | J19: -0.015 | K19: -0.0203
F20: 156 mm High Eff Multi Solar Wafer | G20: 0.8 | H20: 0.71 | I20: 0.736 | J20: -0.013 | K20: -0.0174
A21: Solar projects can't save the forest for the trees? | F21: 156 mm Mono Solar Wafer | G21: 0.9 | H21: 0.78 | I21: 0.815 | J21: -0.02 | K21: -0.024
A22: Dubuque Telegraph Herald | E22: 2016-07-31 | F22: 125 mm Mono Solar Wafer | G22: 0.57 | H22: 0.55 | I22: 0.552 | J22: -0.004 | K22: -0.0072
A23: Warnings issued for farmers striking solar deals | F23: 156 mm Mono Wafer Outside China | G23: 0.9 | H23: 0.83 | I23: 0.842 | J23: -0.018 | K23: -0.0209
A24: Lockport Union-Sun & Journal | E24: 2016-07-31 | F24: 156 mm Multi Wafer Outside China | G24: Visit here for more detail wafer price information
A25: How NASA's Juno Will Teach Us About Other Solar Systems | F25: Unit: USD | G25: more | I25: Last Update: 2016-07-27
A26: Forbes | E26: 2016-07-31
A27: Optimum Tracker Selected for 30MW Photovoltaic Plant in Senegal
A28: Solar Novus Today | E28: 2016-07-31
A29: Solar project and history, Roosevelt School's fate
A30: Great Falls Tribune | E30: 2016-07-31 | F30: Solar PV Cell Weekly Spot Price
A31: American Solar Challenge underway | F31: Item | G31: High | H31: Low | I31: Average | J31: AvgChg | K31: AvgChg %
A32: WKYC-TV | E32: 2016-07-31 | F32: Multi Cell Price Per Watt | G32: 0.35 | H32: 0.23 | I32: 0.25 | J32: -0.005 | K32: -0.0196
A33: Vivint Solar & Renovate America Partnering To Expand Homeowner Access To Rooftop Solar PV Financing | F33: Taiwan Poly Cell Per Watt | G33: 0.35 | H33: 0.24 | I33: 0.254 | J33: -0.006 | K33: -0.0231
A34: CleanTechnica | E34: 2016-07-31 | F34: 156 mm Multi Solar Cell | G34: 1.6 | H34: 0.98 | I34: 1.122 | J34: -0.021 | K34: -0.0184
A35: New solar options for home and business owners coming to Weare | F35: 156 mm Mono Solar Cell | G35: 1.84 | H35: 1.18 | I35: 1.333 | J35: -0.042 | K35: -0.0305
A36: Concord Monitor | E36: 2016-07-31 | F36: 125 mm Mono Solar Cell | G36: 1.14 | H36: 0.7 | I36: 0.807 | J36: -0.027 | K36: -0.0324
A37: This one book will help you better understand solar energy | F37: Non (TW or CN) Poly Cell Per Watt | G37: Visit here for more detail Cell price information
A38: The San Gabriel Valley Tribune | E38: 2016-07-31 | F38: Unit: USD | G38: more | I38: Last Update: 2016-07-27
A39: American Solar Challenge is underway | WKYC.com | F39: Solar PV Module Weekly Spot Price
A40: WKYC-TV | E40: 2016-07-31 | F40: Item | G40: High | H40: Low | I40: Average | J40: AvgChg | K40: AvgChg %
A41: Breakthrough invention of solar cell that works like a plant | F41: Poly Silicon Solar Module | G41: 0.67 | H41: 0.4 | I41: 0.48 | J41: -0.007 | K41: -0.0144
A42: The Indian Express | E42: 2016-07-31 | F42: ThinFilm Solar Module | G42: 0.68 | H42: 0.4 | I42: 0.506 | J42: -0.006 | K42: -0.0117
A43: Solar deals come with caveats for farmers | Local News ... | F43: US Multi Solar Module | G43: Visit here for more detail module price information
A44: Plattsburgh Press Republican | E44: 2016-07-31 | F44: Mono Silicon Solar Module | G44: Visit here for more detail module price information
A45: New solar option rises for county | F45: Unit: USD / Watt | G45: more | I45: Last Update: 2016-07-27
A46: Niagara Gazette | E46: 2016-07-31 | F46: All Spot Prices are Tax excluded and updated on Wednesday
A47: How Juno Gathers Solar Power 588 Million KM from Sun
A48: EE Times | E48: 2016-07-31
A49: MIT researchers host Reddit Ask Me Anything session on photovoltaic EDR system
A50: desalination.biz | E50: 2016-07-30
A51: Last Update: 2016-Jul- 31 20:00 (GMT+8)
A52: Price Methodology | B52: Terms of Use | C52: Privacy Policy | D52: About Us | E52: Contact Us | F52: Site Map
A53: Copyright © 2016 PVinsights.com All rights reserved

Sheet pvinsights 01 08 16
B1: Login | C1: Register | D1: Member Center
A3: Home | B3: Why Solar | C3: Retailer Price | D3: Contract Price | E3: Inverter Price | F3: Weekly Snapshots | G3: Price Download | H3: Monthly Insights | I3: Weekly Forecast | J3: Price Forecast | K3: Premier Insights | L3: Premier Data | M3: Advertising
A5: Final Phase of The 2014 US AD & CVD Key Date and Notice
A8: Solar PV Corporate News Release | F8: PV Poly Silicon Weekly Spot Price
A9: First Solar, Inc. Announces First Quarter 2016 Financial Results | F9: Item | G9: High | H9: Low | I9: Average | J9: AvgChg | K9: AvgChg%
A10: First Solar | C10: 2016-04-27 | F10: PV Grade Poly Silicon Price (9N / 9N+) | G10: 17.9 | H10: 14 | I10: 15.9 | J10: -0.11 | K10: -0.0069
A11: JinkoSolar Announces Fourth Quarter and Full Year 2015 Financial Results | F11: 2nd Grade Poly Silicon Price (6N - 8N) | G11: 15.8 | H11: 11.5 | I11: 12.98 | J11: -0.08 | K11: -0.0061
A12: Jinko | C12: 2016-03-01 | F12: PV Poly Silicon Price in China | G12: Visit here for more Poly-Si price | K12: -0.0076
A13: JinkoSolar Announces Fourth Quarter and Full Year 2015 Financial Results | F13: PV Poly Silicon Price Outside China | G13: Visit here for more Poly-Si price | K13: -0.0062
A14: Jinko | C14: 2016-03-01 | F14: Unit: USD/Kg | G14: more | I14: Last Update: 2016-07-27
A15: First Solar, Inc. Announces Fourth Quarter & Full Year 2015 Financial Results | F15: Definition of PV Grade: Poly silicon chunk with high purity can be directly produced to Solar PV Ingots / Bricks
A16: First Solar | C16: 2016-02-24 | F16: Definition of 2nd Grade: Poly silicon chunk must be mixed with high purity polysilicon, when producing Solar PV Ingots / Bricks.
A17: SunPower Corp. announced financial results for its fourth quarter and fiscal year ended Jan. 3, 2016 | F17: Solar PV Wafer Weekly Spot Price
A18: Sunpower | C18: 2016-02-18 | F18: Item | G18: High | H18: Low | I18: Average | J18: AvgChg | K18: AvgChg%
A19: Latest Solar PV News | F19: 156 mm Multi Solar Wafer | G19: 0.8 | H19: 0.7 | I19: 0.725 | J19: -0.015 | K19: -0.0203
F20: 156 mm High Eff Multi Solar Wafer | G20: 0.8 | H20: 0.71 | I20: 0.736 | J20: -0.013 | K20: -0.0174
A21: UMass Amherst installing thousands of photovoltaic panels | F21: 156 mm Mono Solar Wafer | G21: 0.9 | H21: 0.78 | I21: 0.815 | J21: -0.02 | K21: -0.024
A22: The Recorder | E22: 2016-08-01 | F22: 125 mm Mono Solar Wafer | G22: 0.57 | H22: 0.55 | I22: 0.552 | J22: -0.004 | K22: -0.0072
A23: Telangana beats solar power target; 10 per cent more than demand | F23: 156 mm Mono Wafer Outside China | G23: 0.9 | H23: 0.83 | I23: 0.842 | J23: -0.018 | K23: -0.0209
A24: Deccan Chronicle | E24: 2016-08-01 | F24: 156 mm Multi Wafer Outside China | G24: Visit here for more detail wafer price information
A25: Cycle Of Life: 79 days, 7513 km to raise solar awareness, IIT innovator peddles his way to glory | F25: Unit: USD | G25: more | I25: Last Update: 2016-07-27
A26: The Indian Express | E26: 2016-08-01
A27: DESERT SOLAR: Here's how researchers hope to track bird deaths at Ivanpah plant
A28: Press-Enterprise | E28: 2016-08-01
A29: Artificial Leaf: New Solar Cell Uses Carbon Dioxide And Sunlight To ...
A30: Tech Times | E30: 2016-08-01 | F30: Solar PV Cell Weekly Spot Price
A31: Solar solution for Barmer's water woes | F31: Item | G31: High | H31: Low | I31: Average | J31: AvgChg | K31: AvgChg %
A32: Times of India | E32: 2016-08-01 | F32: Multi Cell Price Per Watt | G32: 0.35 | H32: 0.23 | I32: 0.25 | J32: -0.005 | K32: -0.0196
A33: Renewables Advocates Assess 'Stark' Difference Between Clinton and Trump On Solar and Wind | F33: Taiwan Poly Cell Per Watt | G33: 0.35 | H33: 0.24 | I33: 0.254 | J33: -0.006 | K33: -0.0231
A34: Forbes | E34: 2016-08-01 | F34: 156 mm Multi Solar Cell | G34: 1.6 | H34: 0.98 | I34: 1.122 | J34: -0.021 | K34: -0.0184
A35: Valley man creates solar-powered pool cleaner | F35: 156 mm Mono Solar Cell | G35: 1.84 | H35: 1.18 | I35: 1.333 | J35: -0.042 | K35: -0.0305
A36: FOX 10 News Phoenix | E36: 2016-08-01 | F36: 125 mm Mono Solar Cell | G36: 1.14 | H36: 0.7 | I36: 0.807 | J36: -0.027 | K36: -0.0324
A37: Will TeslaSolar continue to outsource the brain of its solar systems â the inverter â or develop in house? | F37: Non (TW or CN) Poly Cell Per Watt | G37: Visit here for more detail Cell price information
A38: Electrek | E38: 2016-08-01 | F38: Unit: USD | G38: more | I38: Last Update: 2016-07-27
A39: Could The Next Solar Power Plant Be At Chernobyl? | F39: Solar PV Module Weekly Spot Price
A40: Forbes | E40: 2016-08-01 | F40: Item | G40: High | H40: Low | I40: Average | J40: AvgChg | K40: AvgChg %
A41: Lowell hoping to power up solar project at treatment plant | Lake ... | F41: Poly Silicon Solar Module | G41: 0.67 | H41: 0.4 | I41: 0.48 | J41: -0.007 | K41: -0.0144
A42: nwitimes.com | E42: 2016-08-01 | F42: ThinFilm Solar Module | G42: 0.68 | H42: 0.4 | I42: 0.506 | J42: -0.006 | K42: -0.0117
A43: Solar Device Turns Carbon Dioxide Into Burnable Energy | F43: US Multi Solar Module | G43: Visit here for more detail module price information
A44: Headlines & Global News | E44: 2016-08-01 | F44: Mono Silicon Solar Module | G44: Visit here for more detail module price information
A45: Warnings issued for farmers striking solar deals | Local News ... | F45: Unit: USD / Watt | G45: more | I45: Last Update: 2016-07-27
A46: Lockport Union-Sun & Journal | E46: 2016-08-01 | F46: All Spot Prices are Tax excluded and updated on Wednesday
A47: Cycle Of Life: 9 days, 7513 km to raise solar awareness, IIT innovator peddles his way to glory
A48: The Indian Express | E48: 2016-08-01
A49: Chernobyl Wasteland Could Become One Large Solar Plant | Digital ...
A50: Digital Trends | E50: 2016-08-01
A51: Last Update: 2016-Aug- 01 14:00 (GMT+8)
A52: Price Methodology | B52: Terms of Use | C52: Privacy Policy | D52: About Us | E52: Contact Us | F52: Site Map
A53: Copyright © 2016 PVinsights.com All rights reserved

Sheet pvinsights 02 10 16
B1: Login | C1: Register | D1: Member Center
A3: Home | B3: Why Solar | C3: Retailer Price | D3: Contract Price | E3: Inverter Price | F3: Weekly Snapshots | G3: Price Download | H3: Monthly Insights | I3: Weekly Forecast | J3: Price Forecast | K3: Premier Insights | L3: Premier Data | M3: Advertising
A5: Final Phase of The 2014 US AD & CVD Key Date and Notice
A8: Solar PV Corporate News Release | F8: PV Poly Silicon Weekly Spot Price
A9: Hanwha Q CELLS Reports Second Quarter 2016 Results | F9: Item | G9: High | H9: Low | I9: Average | J9: AvgChg | K9: AvgChg%
A10: Hanwha Solar | C10: 2016-08-23 | F10: PV Grade PolySilicon (9N/9N+) | G10: 14.5 | H10: 11 | I10: 12.65 | J10: -0.18 | K10: -0.014
A11: Yingli Green Energy Reports Second Quarter 2016 Results | F11: 2nd Grade PolySilicon (6N-8N) | G11: 13.5 | H11: 10 | I11: 10.98 | J11: -0.17 | K11: -0.0152
A12: Yingli | C12: 2016-08-23 | F12: PV Grade PolySilicon in China (9N/9N+) | G12: Visit here for more Poly-Si price | K12: %
A13: Canadian Solar Reports Second Quarter 2016 Results | F13: PV Grade PolySilicon Outside China (9N/9N+) | G13: Visit here for more Poly-Si price | K13: %
A14: Canadian Sol | C14: 2016-08-18 | F14: Unit: USD/Kg | G14: more | I14: Last Update: 2016-09-28
A15: JA Solar Announces Second Quarter 2016 Results | F15: Definition of PV Grade: Poly silicon chunk with high purity can be directly produced to Solar PV Ingots / Bricks
A16: JA Solar | C16: 2016-08-17 | F16: Definition of 2nd Grade: Poly silicon chunk must be mixed with high purity polysilicon, when producing Solar PV Ingots / Bricks.
A17: SunPower Reports Second Quarter 2016 Results | F17: Solar PV Wafer Weekly Spot Price
A18: SunPower | C18: 2016-08-10 | F18: Item | G18: High | H18: Low | I18: Average | J18: AvgChg | K18: AvgChg%
A19: Latest Solar PV News | F19: 156 mm Multi Solar Wafer | G19: 0.59 | H19: 0.48 | I19: 0.51 | J19: 0 | K19: 0
F20: 156 mm High Eff Multi Solar Wafer | G20: 0.59 | H20: 0.5 | I20: 0.516 | J20: 0 | K20: 0
A21: Photovoltaic Solar panels is anticipated to reach $125.5 billion till year 2016. | F21: 156 mm Mono Solar Wafer | G21: 0.72 | H21: 0.63 | I21: 0.654 | J21: 0 | K21: 0
A22: NewsMaker (press release) | E22: 2016-10-02 | F22: 156 mm Mono Wafer Outside China | G22: 0.72 | H22: 0.67 | I22: 0.675 | J22: 0 | K22: 0
A23: Home News The Solar Industry Is Set To Soar Again Through the Use of... | F23: 156 mm Multi Wafer Outside China | G23: Visit here for more detail wafer price information
A24: Trendintech (press release) | E24: 2016-10-02 | F24: 156 mm N-Mono Wafer | G24: Visit here for more detail
A25: Results for DC Solar 350 Truck Series race in Las Vegas | F25: Unit: USD | G25: more | I25: Last Update: 2016-09-28
A26: FOXSports.com | E26: 2016-10-02
A27: Solar deals carry risks for farmers
A28: Lockport Union-Sun & Journal | E28: 2016-10-02
A29: Hawaii Sitting On The Lid Of A Solar Explosion
A30: Forbes | E30: 2016-10-02 | F30: Solar PV Cell Weekly Spot Price
A31: Perovskite Photovoltaics 2015-2025: Technologies, Markets, Players | F31: Item | G31: High | H31: Low | I31: Average | J31: AvgChg | K31: AvgChg %
A32: PR Newswire (press release) | E32: 2016-10-02 | F32: Multi Cell Price Per Watt | G32: 0.28 | H32: 0.17 | I32: 0.188 | J32: 0 | K32: 0
A33: Solar project to add power to West Boylston grid | F33: Taiwan Poly Cell Per Watt | G33: 0.28 | H33: 0.17 | I33: 0.19 | J33: 0 | K33: 0
A34: Worcester Telegram | E34: 2016-10-02 | F34: 156 mm Multi Solar Cell | G34: 1.28 | H34: 0.72 | I34: 0.843 | J34: 0 | K34: 0
A35: Solar power attractive for region - Eau Claire Leader-Telegram | F35: 156 mm Mono Solar Cell | G35: 1.49 | H35: 0.95 | I35: 1.032 | J35: 0 | K35: 0
A36: Leader-Telegram | E36: 2016-10-02 | F36: 125 mm Mono Solar Cell | G36: 0.93 | H36: 0.57 | I36: 0.633 | J36: 0 | K36: 0
A37: Facts About the Solar Storm -- Massive Radiation Blasting the Earth | F37: Non (TW or CN) Poly Cell Per Watt | G37: Visit here for more detail Cell price information
A38: Nature World News | E38: 2016-10-02 | F38: Unit: USD | G38: more | I38: Last Update: 2016-09-28
A39: East Dundee's new police station part of Illinois Solar Tour | F39: Solar PV Module Weekly Spot Price
A40: Chicago Tribune | E40: 2016-10-02 | F40: Item | G40: High | H40: Low | I40: Average | J40: AvgChg | K40: AvgChg %
A41: Northern Idaho Solar Roadway Unveiling Pushed to Saturday | F41: Poly Silicon Solar Module | G41: 0.53 | H41: 0.34 | I41: 0.402 | J41: -0.008 | K41: -0.0195
A42: Boise Weekly | E42: 2016-10-02 | F42: ThinFilm Solar Module | G42: 0.54 | H42: 0.34 | I42: 0.42 | J42: -0.01 | K42: -0.0233
A43: Elgin mayor touts solar power by showcasing his house on tour | F43: US Multi Solar Module | G43: Visit here for more detail module price information
A44: Chicago Tribune | E44: 2016-10-02 | F44: Mono Silicon Solar Module | G44: Visit here for more detail module price information
A45: Weekend Workshop: Keep on rocking off the grid with a DIY solar Bluetooth speaker | F45: India Poly Module | G45: Visit here for more detail module price information
A46: Digital Trends | E46: 2016-10-02 | F46: Unit: USD / Watt | G46: more | I46: Last Update: 2016-09-28
A47: NREL Report Shows US Solar Photovoltaic Costs Continuing to Fall in 2016 | F47: All Spot Prices are Tax excluded and updated on Wednesday
A48: AltEnergyMag (press release) | E48: 2016-10-01
A49: 10 megawatt solar photovoltaic power plant for Monrovia
A50: Liberian Daily Observer | E50: 2016-10-01
A51: Last Update: 2016-Oct- 02 14:01 (GMT+8)
A53: Price Methodology | B53: Terms of Use | C53: Privacy Policy | D53: About Us | E53: Contact Us | F53: Site Map
A54: Copyright © 2016 PVinsights.com All rights reserved

Sheet pvinsights 08 01 17
B1: Login | C1: Register | D1: Member Center
A3: Home | B3: Why Solar | C3: Retailer Price | D3: Contract Price | E3: Inverter Price | F3: Weekly Snapshots | G3: Price Download | H3: Monthly Insights | I3: Weekly Forecast | J3: Price Forecast | K3: Premier Insights | L3: Premier Data | M3: Advertising
A5: Final Phase of The 2014 US AD & CVD Key Date and Notice
A8: Solar PV Corporate News Release | F8: PV Poly Silicon Weekly Spot Price
A9: Trina Solar Announces Third Quarter 2016 Results | F9: Item | G9: High | H9: Low | I9: Average | J9: AvgChg | K9: AvgChg%
A10: Trina Solar | C10: Nov 23, 2016 | F10: PV Grade PolySilicon (9N/9N+) | G10: 17.5 | H10: 13 | I10: 15.37 | J10: 0.14 | K10: 0.0092
A11: Canadian Solar Reports Third Quarter 2016 Results | F11: 2nd Grade PolySilicon (6N-8N) | G11: 16.5 | H11: 11.5 | I11: 13.1 | J11: 0.1 | K11: 0.0077
A12: Canadian Sol | C12: Nov 21, 2016 | F12: PV Grade PolySilicon in China (9N/9N+) | G12: Visit here for more Poly-Si price | K12: %
A13: JASolar Announces Third Quarter 2016 Financial Results | F13: PV Grade PolySilicon Outside China (9N/9N+) | G13: Visit here for more Poly-Si price | K13: %
A14: JA Solar | C14: Nov 17, 2016 | F14: Unit: USD/Kg | G14: more | I14: Last Update: 2017-01-04
A15: JinkoSolar Announces Third Quarter 2016 Financial Results | F15: Definition of PV Grade: Poly silicon chunk with high purity can be directly produced to Solar PV Ingots / Bricks
A16: Jinko | C16: Nov 16, 2016 | F16: Definition of 2nd Grade: Poly silicon chunk must be mixed with high purity polysilicon, when producing Solar PV Ingots / Bricks.
A17: SunPower Reports Third Quarter 2016 Results | F17: Solar PV Wafer Weekly Spot Price
A18: SunPower | C18: Nov 10, 2016 | F18: Item | G18: High | H18: Low | I18: Average | J18: AvgChg | K18: AvgChg%
A19: Latest Solar PV News | F19: 156 mm Multi Solar Wafer | G19: 0.68 | H19: 0.61 | I19: 0.621 | J19: -0.002 | K19: -0.0032
F20: 156 mm High Eff Multi Solar Wafer | G20: 0.68 | H20: 0.62 | I20: 0.626 | J20: -0.002 | K20: -0.0032
A21: Solar Farm Companies Stock Explode in Wake of De-Regulation | F21: 156 mm Mono Solar Wafer | G21: 0.85 | H21: 0.74 | I21: 0.77 | J21: 0 | K21: 0
A22: Yahoo Finance | E22: Jan 08, 2017 | F22: 156 mm Mono Wafer Outside China | G22: 0.85 | H22: 0.78 | I22: 0.798 | J22: 0 | K22: 0
A23: Solar Bears fall 5-2 to Colorado Eagles - Orlando Sentinel | F23: 156 mm Multi Wafer Outside China | G23: Visit here for more detail wafer price information
A24: Orlando Sentinel | E24: Jan 08, 2017 | F24: 156 mm N-Mono Wafer | G24: Visit here for more detail
A25: A star is hurtling towards our solar system and could knock millions of asteroids straight towards Earth | F25: Unit: USD | G25: more | I25: Last Update: 2017-01-04
A26: Business Insider | E26: Jan 08, 2017
A27: LETTER: Solar bylaw amendment proposal - News - Wicked Local ...
A28: Wicked Local Brockton | E28: Jan 08, 2017
A29: Building-Integrated Photovoltaic (BIPV) Roofing Market â Global Industry Analysis 2024
A30: Satellite PR News (press release) | E30: Jan 08, 2017 | F30: Solar PV Cell Weekly Spot Price
A31: Solar Bears fall 5-2 to Colorado Eagles | F31: Item | G31: High | H31: Low | I31: Average | J31: AvgChg | K31: AvgChg %
A32: Orlando Sentinel | E32: Jan 08, 2017 | F32: Multi Cell Price Per Watt | G32: 0.26 | H32: 0.2 | I32: 0.213 | J32: -0.002 | K32: -0.0093
A33: Solar storms trigger sparks, melt soil on Moon: NASA | F33: Taiwan Poly Cell Per Watt | G33: 0.26 | H33: 0.21 | I33: 0.214 | J33: -0.002 | K33: -0.0093
A34: Economic Times | E34: Jan 08, 2017 | F34: 156 mm Multi Solar Cell | G34: 1.19 | H34: 0.85 | I34: 0.955 | J34: -0.01 | K34: -0.0104
A35: Kenai Wildlife Refuge to track solar energy output | F35: 156 mm Mono Solar Cell | G35: 1.75 | H35: 1.04 | I35: 1.143 | J35: -0.009 | K35: -0.0078
A36: Juneau Empire (subscription) | E36: Jan 08, 2017 | F36: 125 mm Mono Solar Cell | G36: 1.09 | H36: 0.62 | I36: 0.7 | J36: -0.006 | K36: -0.0085
A37: LETTER: Solar bylaw amendment proposal | F37: Non (TW or CN) Poly Cell Per Watt | G37: Visit here for more detail Cell price information
A38: Wicked Local Brockton | E38: Jan 08, 2017 | F38: Unit: USD | G38: more | I38: Last Update: 2017-01-04
A39: LETTER FROM HOME / HAROLD BUBIL: The other reasons to 'go solar' | F39: Solar PV Module Weekly Spot Price
A40: Sarasota Herald-Tribune | E40: Jan 08, 2017 | F40: Item | G40: High | H40: Low | I40: Average | J40: AvgChg | K40: AvgChg %
A41: Stock Mover of the Day: Is Yingli Green Energy Holding Co Ltd (ADR) a Buy? The Stock Rises Again | F41: Poly Silicon Solar Module | G41: 0.42 | H41: 0.31 | I41: 0.358 | J41: -0.002 | K41: -0.0056
A42: Frisco Fastball | E42: Jan 08, 2017 | F42: ThinFilm Solar Module | G42: 0.43 | H42: 0.31 | I42: 0.374 | J42: -0.002 | K42: -0.0053
A43: Solar developer proposes 300-acre set-aside in Shoreham | F43: US Multi Solar Module | G43: Visit here for more detail module price information
A44: Newsday | E44: Jan 08, 2017 | F44: Mono Silicon Solar Module | G44: Visit here for more detail module price information
A45: For rural Urbana farmer, solar power is cool | F45: India Poly Module | G45: Visit here for more detail module price information
A46: Champaign/Urbana News-Gazette | E46: Jan 08, 2017 | F46: Unit: USD / Watt | G46: more | I46: Last Update: 2017-01-04
A47: LETTER: Solar bylaw amendment proposal | F47: All Spot Prices are Tax excluded and updated on Wednesday
A48: Wicked Local Abington | E48: Jan 08, 2017
A49: Jagler: Werner sees bright future in solar energy
A50: Milwaukee Journal Sentinel | E50: Jan 08, 2017
A51: Last Update: 2017-Jan- 08 23:00 (GMT+8)
A52: Price Methodology | B52: Terms of Use | C52: Privacy Policy | D52: About Us | E52: Contact Us | F52: Site Map
A53: Copyright © 2017 PVinsights.com All rights reserved

Sheet pvinsights 26 02 17
B1: Login | C1: Register | D1: Member Center
A3: Home | B3: Why Solar | C3: Retailer Price | D3: Contract Price | E3: Inverter Price | F3: Weekly Snapshots | G3: Price Download | H3: Monthly Insights | I3: Weekly Forecast | J3: Price Forecast | K3: Premier Insights | L3: Premier Data | M3: Advertising
A5: Final Phase of The 2014 US AD & CVD Key Date and Notice
A8: Solar PV Corporate News Release | F8: PV Poly Silicon Weekly Spot Price
A9: First Solar, Inc. Announces Fourth Quarter & Full Year 2016 Financial Results | F9: Item | G9: High | H9: Low | I9: Average | J9: AvgChg | K9: AvgChg%
A10: First Solar | C10: Feb 22, 2017 | F10: PV Grade PolySilicon (9N/9N+) | G10: 18.09 | H10: 13.5 | I10: 16.22 | J10: -0.03 | K10: -0.0018
A11: SunPower Reports Fourth Quarter 2016 Results | F11: 2nd Grade PolySilicon (6N-8N) | G11: 17 | H11: 11.5 | I11: 13.46 | J11: -0.09 | K11: -0.0066
A12: Sunpower | C12: Feb 16, 2017 | F12: PV Grade PolySilicon in China (9N/9N+) | G12: Visit here for more Poly-Si price | K12: %
A13: Trina Solar Announces Third Quarter 2016 Results | F13: PV Grade PolySilicon Outside China (9N/9N+) | G13: Visit here for more Poly-Si price | K13: %
A14: Trina Solar | C14: Nov 23, 2016 | F14: Unit: USD/Kg | G14: more | I14: Last Update: 2017-02-22
A15: Canadian Solar Reports Third Quarter 2016 Results | F15: Definition of PV Grade: Poly silicon chunk with high purity can be directly produced to Solar PV Ingots / Bricks
A16: Canadian Sol | C16: Nov 21, 2016 | F16: Definition of 2nd Grade: Poly silicon chunk must be mixed with high purity polysilicon, when producing Solar PV Ingots / Bricks.
A17: JASolar Announces Third Quarter 2016 Financial Results | F17: Solar PV Wafer Weekly Spot Price
A18: JA Solar | C18: Nov 17, 2016 | F18: Item | G18: High | H18: Low | I18: Average | J18: AvgChg | K18: AvgChg%
A19: Latest Solar PV News | F19: 156 mm Multi Solar Wafer | G19: 0.68 | H19: 0.61 | I19: 0.62 | J19: 0 | K19: 0
F20: 156 mm High Eff Multi Solar Wafer | G20: 0.68 | H20: 0.62 | I20: 0.625 | J20: 0 | K20: 0
A21: Solar panels get a face-lift with custom designs | F21: 156 mm Mono Solar Wafer | G21: 0.86 | H21: 0.77 | I21: 0.8 | J21: 0.008 | K21: 0.0101
A22: The MIT Tech | E22: Feb 26, 2017 | F22: 156 mm Mono Wafer Outside China | G22: 0.86 | H22: 0.8 | I22: 0.828 | J22: 0.01 | K22: 0.0122
A23: Malakoff to go it alone in solar photovoltaic project | F23: 156 mm Multi Wafer Outside China | G23: Visit here for more detail wafer price information
A24: The Sun Daily | E24: Feb 26, 2017 | F24: 156mm DiamondWire Poly Wafer | G24: Visit here for more detail wafer price information
A25: Global Thin Film Photovoltaic Modules Market 2017- Dunmore Corporation, Solarpower Systems, Kaneka-Solar, Aleo ... | F25: 156 mm N-Mono Wafer | G25: Visit here for more detail
A26: Publicist Report - Market Research News by Market.Biz (press release) | E26: Feb 26, 2017 | F26: Unit: USD | G26: more | I26: Last Update: 2017-02-22
A27: Mason City Library solar energy system has bright results
A28: Mason City Globe Gazette | E28: Feb 26, 2017
A29: Low cost solar imports from China hurting Centre's Make in India mission
A30: The Hindu | E30: Feb 26, 2017
A31: Solar's bright future seen in financing options | F31: Solar PV Cell Weekly Spot Price
A32: STLtoday.com | E32: Feb 26, 2017 | F32: Item | G32: High | H32: Low | I32: Average | J32: AvgChg | K32: AvgChg %
A33: Don't let utilities squash Kentucky's solar entrepreneurs. Here's a better plan. | F33: Multi Cell Price Per Watt | G33: 0.26 | H33: 0.2 | I33: 0.211 | J33: -0.001 | K33: -0.0047
A34: Lexington Herald Leader (blog) | E34: Feb 26, 2017 | F34: Taiwan Poly Cell Per Watt | G34: 0.26 | H34: 0.2 | I34: 0.212 | J34: -0.001 | K34: -0.0047
A35: A 'ring of fire' solar eclipse occurs Sunday morning â here's how to watch | F35: 156 mm Multi Solar Cell | G35: 1.19 | H35: 0.85 | I35: 0.946 | J35: -0.004 | K35: -0.0042
A36: Chicago Tribune | E36: Feb 26, 2017 | F36: 156 mm Mono Solar Cell | G36: 1.75 | H36: 1.04 | I36: 1.143 | J36: 0 | K36: 0
A37: Global Photovoltaic Coating Market 2017 â 3M, AK Coatings, AkzoNobel, AnCatt, Arkema | F37: 125 mm Mono Solar Cell | G37: 1.09 | H37: 0.62 | I37: 0.7 | J37: 0 | K37: 0
A38: First Newshawk | E38: Feb 26, 2017 | F38: Non (TW or CN) Poly Cell Per Watt | G38: Visit here for more detail Cell price information
A39: Solar photovoltaic windows rely on inexpensive silicon quantum dots | F39: Unit: USD | G39: more | I39: Last Update: 2017-02-22
A40: Laser Focus World | E40: Feb 26, 2017 | F40: Solar PV Module Weekly Spot Price
A41: This Week in Solar | F41: Item | G41: High | H41: Low | I41: Average | J41: AvgChg | K41: AvgChg %
A42: Madison.com | E42: Feb 26, 2017 | F42: Poly Silicon Solar Module | G42: 0.41 | H42: 0.3 | I42: 0.35 | J42: -0.002 | K42: -0.0057
A43: Other counties eye solar farm rules - Daily Advance | F43: ThinFilm Solar Module | G43: 0.42 | H43: 0.31 | I43: 0.363 | J43: -0.002 | K43: -0.0055
A44: The Daily Advance | E44: Feb 26, 2017 | F44: US Multi Solar Module | G44: Visit here for more detail module price information
A45: Solar-powered smoothies? You can find them at this Kendall farm. | F45: Mono Silicon Solar Module | G45: Visit here for more detail module price information
A46: Miami Herald | E46: Feb 26, 2017 | F46: India Poly Module | G46: Visit here for more detail module price information
A47: SC solar farms on hold, awaiting tax break | F47: Unit: USD / Watt | G47: more | I47: Last Update: 2017-02-22
A48: The State | E48: Feb 26, 2017 | F48: All Spot Prices are Tax excluded and updated on Wednesday
A49: Airport, solar and local real estate
A50: Florida Today | E50: Feb 26, 2017
A51: Last Update: 2017-Feb- 26 14:00 (GMT+8)
A54: Price Methodology | B54: Terms of Use | C54: Privacy Policy | D54: About Us | E54: Contact Us | F54: Site Map
A55: Copyright © 2017 PVinsights.com All rights reserved

Sheet pvinsights 06 04 17
B1: Login | C1: Register | D1: Member Center
A3: Home | B3: Why Solar | C3: Retailer Price | D3: Contract Price | E3: Inverter Price | F3: Weekly Snapshots | G3: Price Download | H3: Monthly Insights | I3: Weekly Forecast | J3: Price Forecast | K3: Premier Insights | L3: Premier Data | M3: Advertising
A5: Final Phase of The 2014 US AD & CVD Key Date and Notice
A8: Solar PV Corporate News Release | F8: PV Poly Silicon Weekly Spot Price
A9: Hanwha Q CELLS Reports Fourth Quarter and Full Year 2016 Results | F9: Item | G9: High | H9: Low | I9: Average | J9: AvgChg | K9: AvgChg%
A10: Hanwha | C10: Mar 23, 2017 | F10: PV Grade PolySilicon (9N/9N+) | G10: 15.5 | H10: 12.8 | I10: 14.21 | J10: -0.42 | K10: -0.0287
A11: JA Solar Announces Fourth Quarter and Fiscal Year 2016 Results | F11: 2nd Grade PolySilicon (6N-8N) | G11: 14.5 | H11: 10.8 | I11: 11.83 | J11: -0.29 | K11: -0.0239
A12: JA Solar | C12: Mar 16, 2017 | F12: PV Grade PolySilicon in China (9N/9N+) | G12: Visit here for more Poly-Si price | K12: %
A13: Higher yield of solar wafers and enhanced solar cell efficiency with new HeraGlaze coating by Heraeus | F13: PV Grade PolySilicon Outside China (9N/9N+) | G13: Visit here for more Poly-Si price | K13: %
A14: Heraeus | C14: Mar 01, 2017 | F14: Unit: USD/Kg | G14: more | I14: Last Update: 2017-04-05
A15: Heraeus enables significant higher efficiency gains with three new metallization pastes | F15: Definition of PV Grade: Poly silicon chunk with high purity can be directly produced to Solar PV Ingots / Bricks
A16: Heraeus | C16: Mar 01, 2017 | F16: Definition of 2nd Grade: Poly silicon chunk must be mixed with high purity polysilicon, when producing Solar PV Ingots / Bricks.
A17: First Solar, Inc. Announces Fourth Quarter & Full Year 2016 Financial Results | F17: Solar PV Wafer Weekly Spot Price
A18: First Solar | C18: Feb 22, 2017 | F18: Item | G18: High | H18: Low | I18: Average | J18: AvgChg | K18: AvgChg%
A19: Latest Solar PV News | F19: 156 mm Multi Solar Wafer | G19: 0.62 | H19: 0.54 | I19: 0.555 | J19: -0.01 | K19: -0.0177
F20: 156 mm High Eff Multi Solar Wafer | G20: 0.62 | H20: 0.55 | I20: 0.56 | J20: -0.01 | K20: -0.0175
A21: New wrinkle for roof repairs: Panasonic photovoltaic roof for plug-in Toyota Prius | F21: 156 mm Mono Solar Wafer | G21: 0.86 | H21: 0.77 | I21: 0.8 | J21: 0 | K21: 0
A22: Repairer Driven News (press release) (blog) | E22: Apr 06, 2017 | F22: 156 mm Mono Wafer Outside China | G22: 0.86 | H22: 0.8 | I22: 0.828 | J22: 0 | K22: 0
A23: Sluggish Growth Forecast in Key Photovoltaic Markets - Solar Novus ... | F23: 156 mm Multi Wafer Outside China | G23: Visit here for more detail wafer price information
A24: Solar Novus Today | E24: Apr 06, 2017 | F24: 156mm DiamondWire Poly Wafer | G24: Visit here for more detail wafer price information
A25: Multicrystalline Photovoltaic Modules Market Competition Analysis by Type, Region Forecast 2021 | F25: 156 mm N-Mono Wafer | G25: Visit here for more detail
A26: MilTech | E26: Apr 06, 2017 | F26: Unit: USD | G26: more | I26: Last Update: 2017-04-05
A27: COD Offers Photovoltaic Training
A28: Patch.com | E28: Apr 06, 2017
A29: Are Solar Stocks Due for a Rebound? (FAN, FSLR)
A30: Investopedia | E30: Apr 06, 2017
A31: First Solar wants out of 'yieldco' venture with SunPower | F31: Solar PV Cell Weekly Spot Price
A32: Reuters | E32: Apr 06, 2017 | F32: Item | G32: High | H32: Low | I32: Average | J32: AvgChg | K32: AvgChg %
A33: Australia launches overdue shift to solar | F33: Multi Cell Price Per Watt | G33: 0.25 | H33: 0.18 | I33: 0.19 | J33: -0.002 | K33: -0.0104
A34: Deutsche Welle | E34: Apr 06, 2017 | F34: Taiwan Poly Cell Per Watt | G34: 0.25 | H34: 0.18 | I34: 0.191 | J34: -0.002 | K34: -0.0104
A35: School sees solar panels as bright idea | F35: 156 mm Multi Solar Cell | G35: 1.14 | H35: 0.77 | I35: 0.852 | J35: -0.01 | K35: -0.0116
A36: ABC6OnYourSide.com | E36: Apr 06, 2017 | F36: 156 mm Mono Solar Cell | G36: 1.75 | H36: 0.99 | I36: 1.105 | J36: -0.005 | K36: -0.0045
A37: Solar eclipse mania spurs festivals, tours, sold-out hotels | F37: 125 mm Mono Solar Cell | G37: 1.09 | H37: 0.59 | I37: 0.676 | J37: -0.003 | K37: -0.0044
A38: Chicago Tribune | E38: Apr 06, 2017 | F38: Non (TW or CN) Poly Cell Per Watt | G38: Visit here for more detail Cell price information
A39: Arizona solar job growth not as fast as rest of nation | F39: Unit: USD | G39: more | I39: Last Update: 2017-04-05
A40: Arizona Daily Sun | E40: Apr 06, 2017 | F40: Solar PV Module Weekly Spot Price
A41: Students Benefit from the Use of Wind and Solar Power | F41: Item | G41: High | H41: Low | I41: Average | J41: AvgChg | K41: AvgChg %
A42: The Hudson Independent | E42: Apr 06, 2017 | F42: Poly Silicon Solar Module | G42: 0.41 | H42: 0.3 | I42: 0.341 | J42: -0.001 | K42: -0.0029
A43: Lyndon contracts to receive power from Route 5 solar project | F43: ThinFilm Solar Module | G43: 0.42 | H43: 0.3 | I43: 0.353 | J43: -0.001 | K43: -0.0028
A44: WCAX | E44: Apr 06, 2017 | F44: US Multi Solar Module | G44: Visit here for more detail module price information
A45: Wabash Valley Power installing new solar park in Peru | F45: Mono Silicon Solar Module | G45: Visit here for more detail module price information
A46: Kokomo Tribune | E46: Apr 06, 2017 | F46: India Poly Module | G46: Visit here for more detail module price information
A47: These Ancient Texts Might Help Us Predict the Next Massive Solar Storm | F47: Unit: USD / Watt | G47: more | I47: Last Update: 2017-04-05
A48: Gizmodo | E48: Apr 06, 2017 | F48: All Spot Prices are Tax excluded and updated on Wednesday
A49: FPL drafted portions of bill that puts tough requirements on rooftop solar companies
A50: Miami Herald | E50: Apr 06, 2017
A51: Last Update: 2017-Apr- 06 07:00 (GMT+8)
A54: Price Methodology | B54: Terms of Use | C54: Privacy Policy | D54: About Us | E54: Contact Us | F54: Site Map
A55: Copyright © 2017 PVinsights.com All rights reserved

Sheet pvinsights 01 06 17
B1: Login | C1: Register | D1: Member Center
A3: Home | B3: Why Solar | C3: Retailer Price | D3: Contract Price | E3: Inverter Price | F3: Weekly Snapshots | G3: Price Download | H3: Monthly Insights | I3: Weekly Forecast | J3: Price Forecast | K3: Premier Insights | L3: Premier Data | M3: Advertising
A5: Key Date of The US 2017 Section 201 Safeguard Investigation
A8: Solar PV Corporate News Release | F8: PV Poly Silicon Weekly Spot Price
A9: Hanwha Q CELLS Reports | F9: Item | G9: High | H9: Low | I9: Average | J9: AvgChg | K9: AvgChg%
A10: Hanwha Q Cel | C10: May 25, 2017 | F10: PV Grade PolySilicon (9N/9N+) | G10: 15.55 | H10: 12 | I10: 13.85 | J10: 0.42 | K10: 0.0313
A11: JA Solar Announces First Quarter 2017 Results | F11: 2nd Grade PolySilicon (6N-8N) | G11: 14.25 | H11: 10 | I11: 11.55 | J11: 0.33 | K11: 0.0294
A12: JA Solar | C12: May 24, 2017 | F12: PV Grade PolySilicon in China (9N/9N+) | G12: Visit here for more Poly-Si price | K12: %
A13: Yingli Green Energy Reports Fourth Quarter and Full Year 2016 Results | F13: PV Grade PolySilicon Outside China (9N/9N+) | G13: Visit here for more Poly-Si price | K13: %
A14: Yingli | C14: Apr 13, 2017 | F14: Unit: USD/Kg | G14: more | I14: Last Update: 2017-05-31
A15: Hanwha Q CELLS Reports Fourth Quarter and Full Year 2016 Results | F15: Definition of PV Grade: Poly silicon chunk with high purity can be directly produced to Solar PV Ingots / Bricks
A16: Hanwha | C16: Mar 23, 2017 | F16: Definition of 2nd Grade: Poly silicon chunk must be mixed with high purity polysilicon, when producing Solar PV Ingots / Bricks.
A17: JA Solar Announces Fourth Quarter and Fiscal Year 2016 Results | F17: Solar PV Wafer Weekly Spot Price
A18: JA Solar | C18: Mar 16, 2017 | F18: Item | G18: High | H18: Low | I18: Average | J18: AvgChg | K18: AvgChg%
A19: Latest Solar PV News | F19: 156 mm Multi Solar Wafer | G19: 0.63 | H19: 0.58 | I19: 0.597 | J19: 0.017 | K19: 0.0293
F20: 156 mm High Eff Multi Solar Wafer | G20: 0.63 | H20: 0.59 | I20: 0.602 | J20: 0.017 | K20: 0.0291
A21: More Than Half of Small-Scale Photovoltaic Generation Comes from Residential Rooftops | F21: 156 mm Mono Solar Wafer | G21: 0.86 | H21: 0.77 | I21: 0.795 | J21: 0 | K21: 0
A22: Energy Collective | E22: Jun 01, 2017 | F22: 156 mm Mono Wafer Outside China | G22: 0.86 | H22: 0.8 | I22: 0.823 | J22: 0 | K22: 0
A23: Former North Nashville landfill to transform into city's first solar program | F23: 156 mm Multi Wafer Outside China | G23: Visit here for more detail wafer price information
A24: WZTV | E24: Jun 01, 2017 | F24: 156mm DiamondWire Poly Wafer | G24: Visit here for more detail wafer price information
A25: Tazewell board acts to lure solar farms - News - Washington Times ... | F25: 156 mm N-Mono Wafer | G25: Visit here for more detail
A26: Washington Times-Reporter | E26: Jun 01, 2017 | F26: Unit: USD | G26: more | I26: Last Update: 2017-05-31
A27: Currituck listens to solar experts on safety, but not convinced yet
A28: Virginian-Pilot | E28: Jun 01, 2017
A29: A solar energy trade war may be looming
A30: Washington Examiner | E30: Jun 01, 2017
A31: Carbondale, Illinois Prepares to Broadcast 2017 Solar Eclipse Nationally | F31: Solar PV Cell Weekly Spot Price
A32: Space.com | E32: Jun 01, 2017 | F32: Item | G32: High | H32: Low | I32: Average | J32: AvgChg | K32: AvgChg %
A33: Construction begins at Abu Dhabi's largest solar power project | F33: Multi Cell Price Per Watt | G33: 0.26 | H33: 0.2 | I33: 0.215 | J33: 0.007 | K33: 0.0337
A34: The National | E34: Jun 01, 2017 | F34: Taiwan Poly Cell Per Watt | G34: 0.26 | H34: 0.2 | I34: 0.218 | J34: 0.008 | K34: 0.0381
A35: Financial agreements of Sweihan Photovoltaic Independent Power Project in Abu Dhabi were signed | F35: 156 mm Multi Solar Cell | G35: 1.19 | H35: 0.85 | I35: 0.965 | J35: 0.032 | K35: 0.0343
A36: RenewEconomy | E36: Jun 01, 2017 | F36: 156 mm Mono Solar Cell | G36: 1.75 | H36: 1.04 | I36: 1.192 | J36: 0.03 | K36: 0.0258
A37: Natcore Technology to Present Paper to IEEE Photovoltaic Conference | F37: 125 mm Mono Solar Cell | G37: 1.09 | H37: 0.62 | I37: 0.73 | J37: 0.018 | K37: 0.0253
A38: AltEnergyMag (press release) | E38: Jun 01, 2017 | F38: Non (TW or CN) Poly Cell Per Watt | G38: Visit here for more detail Cell price information
A39: Building Integrated Photovoltaic (PV) Solar Market to Record an Impressive Growth Rate During Forecast 2025 | F39: Unit: USD | G39: more | I39: Last Update: 2017-05-31
A40: MilTech | E40: Jun 01, 2017 | F40: Solar PV Module Weekly Spot Price
A41: RACE for Solar program helps residents reduce energy costs | F41: Item | G41: High | H41: Low | I41: Average | J41: AvgChg | K41: AvgChg %
A42: The Ridgefield Press | E42: Jun 01, 2017 | F42: Poly Silicon Solar Module | G42: 0.41 | H42: 0.3 | I42: 0.333 | J42: 0 | K42: 0
A43: Solar energy storage as a business | F43: ThinFilm Solar Module | G43: 0.42 | H43: 0.3 | I43: 0.346 | J43: 0 | K43: 0
A44: Deutsche Welle | E44: Jun 01, 2017 | F44: US Multi Solar Module | G44: Visit here for more detail module price information
A45: CNY coal plant owner to build one of New York's largest solar farms ... | F45: Mono Silicon Solar Module | G45: Visit here for more detail module price information
A46: Syracuse.com | E46: Jun 01, 2017 | F46: India Poly Module | G46: Visit here for more detail module price information
A47: One-megawatt solar field dedicated in Benton | KATV | F47: Unit: USD / Watt | G47: more | I47: Last Update: 2017-05-31
A48: KATV | E48: Jun 01, 2017 | F48: All Spot Prices are Tax excluded and updated on Wednesday
A49: Companies offering more aesthetically pleasing solar panels
A50: The Fayette Tribune | E50: Jun 01, 2017
A51: Last Update: 2017-Jun- 01 23:00 (GMT+8)
A54: Price Methodology | B54: Terms of Use | C54: Privacy Policy | D54: About Us | E54: Contact Us | F54: Site Map
A55: Copyright © 2017 PVinsights.com All rights reserved

Sheet pvinsights 26 08 17
B1: Login | C1: Register | D1: Member Center
A3: Home | B3: Why Solar | C3: Retailer Price | D3: Contract Price | E3: Inverter Price | F3: Weekly Snapshots | G3: Price Download | H3: Monthly Insights | I3: Weekly Forecast | J3: Price Forecast | K3: Premier Insights | L3: Premier Data | M3: Advertising
A5: Key Date of The US 2017 Section 201 Safeguard Investigation
A8: Solar PV Corporate News Release | F8: PV Poly Silicon Weekly Spot Price
A9: Panasonic Solar Promotes First Group of Authorized Installers to Premium Level | F9: Item | G9: High | H9: Low | I9: Average | J9: AvgChg | K9: AvgChg%
A10: Panasonic | C10: 2017-07-26 | F10: PV Grade PolySilicon (9N/9N+) | G10: 17.9 | H10: 12.5 | I10: 15.55 | J10: 0 | K10: 0
A11: Benefiting from the Leading Edge Technology, TZS Announced Mono-Crystalline Wafer Price Modification | F11: 2nd Grade PolySilicon (6N-8N) | G11: 15.8 | H11: 10.5 | I11: 12.78 | J11: 0 | K11: 0
A12: TZS | C12: 2017-07-18 | F12: PV Grade PolySilicon in China (9N/9N+) | G12: Visit here for more Poly-Si price | K12: %
A13: Canadian Solar Reports First Quarter 2017 Results | F13: PV Grade PolySilicon Outside China (9N/9N+) | G13: Visit here for more Poly-Si price | K13: %
A14: CanadianSola | C14: 2017-06-06 | F14: Unit: USD/Kg | G14: more | I14: Last Update: 2017-08-23
A15: JinkoSolar Announces First Quarter 2017 Financial Results | F15: Definition of PV Grade: Poly silicon chunk with high purity can be directly produced to Solar PV Ingots / Bricks
A16: Jinko | C16: 2017-06-05 | F16: Definition of 2nd Grade: Poly silicon chunk must be mixed with high purity polysilicon, when producing Solar PV Ingots / Bricks.
A17: Hanwha Q CELLS Reports | F17: PolySilicon Price In China: The Price is surveyed by RMB term with Tax and then shown in USD term without 17% of VAT.
A18: Hanwha Q Cel | C18: 2017-05-25 | F18: Solar PV Wafer Weekly Spot Price
A19: Latest Solar PV News | F19: Item | G19: High | H19: Low | I19: Average | J19: AvgChg | K19: AvgChg%
F20: 156 mm Multi Solar Wafer | G20: 0.7 | H20: 0.58 | I20: 0.647 | J20: 0 | K20: 0
A21: Comcast inks partnership deal with solar-power provider Sunrun | F21: 156 mm High Eff Multi Solar Wafer | G21: 0.7 | H21: 0.59 | I21: 0.652 | J21: 0 | K21: 0
A22: MarketWatch | E22: 2017-08-26 | F22: 156 mm Mono Solar Wafer | G22: 0.81 | H22: 0.73 | I22: 0.753 | J22: 0 | K22: 0
A23: Energy Drive: India needs to tread cautiously in its solar path | F23: 156 mm Mono Wafer Outside China | G23: 0.81 | H23: 0.77 | I23: 0.782 | J23: 0 | K23: 0
A24: International Business Times, India Edition | E24: 2017-08-26 | F24: 156 mm Multi Wafer Outside China | G24: Visit here for more detail wafer price information
A25: While you're watching the eclipse, solar power companies are going ... | F25: 156mm DiamondWire Poly Wafer | G25: Visit here for more detail wafer price information
A26: BGR | E26: 2017-08-26 | F26: 156 mm N-Mono Wafer | G26: Visit here for more detail
A27: Solar power companies are not excited for the solar eclipse | F27: Unit: USD | G27: more | I27: Last Update: 2017-08-23
A28: New York Post | E28: 2017-08-26 | F28: Wafer Prices In China: The Prices are surveyed by RMB term with Tax and then shown in USD term without 17% of VAT.
A29: Sunseap, ST Kinetics ink solar energy agreement
A30: THE BUSINESS TIMES | E30: 2017-08-26
A31: Comcast To Shine Marketing Resources On Residential Solar Panel ...
A32: Deadline | E32: 2017-08-26
A33: Why Comcast Wants to Sell You Solar Panels | F33: Solar PV Cell Weekly Spot Price
A34: Philadelphia magazine | E34: 2017-08-26 | F34: Item | G34: High | H34: Low | I34: Average | J34: AvgChg | K34: AvgChg %
A35: My Turn: Put solar power in the poor's hands. It'll pay off for all | F35: Multi Cell Price Per Watt | G35: 0.26 | H35: 0.2 | I35: 0.213 | J35: -0.002 | K35: -0.0093
A36: AZCentral.com | E36: 2017-08-26 | F36: Taiwan Poly Cell Per Watt | G36: 0.26 | H36: 0.2 | I36: 0.215 | J36: -0.002 | K36: -0.0092
A37: Fed turns to solar power at Phoenix cash-processing facility | F37: Poly PERC Cell Per Watt | G37: 0.26 | H37: 0.23 | I37: 0.249 | J37: -0.001 | K37: -0.004
A38: AZCentral.com | E38: 2017-08-25 | F38: Mono PERC Cell Per Watt | G38: 0.32 | H38: 0.27 | I38: 0.288 | J38: -0.003 | K38: -0.0103
A39: Why go for a Solar Energy System | F39: Taiwan Mono PERC Cell Per Watt | G39: 0.32 | H39: 0.23 | I39: 0.294 | J39: -0.002 | K39: -0.0068
A40: TG Daily (blog) | E40: 2017-08-25 | F40: 156 mm Multi Solar Cell | G40: 1.19 | H40: 0.85 | I40: 0.955 | J40: -0.01 | K40: -0.0104
A41: Solar Energy Stocks Dip Post-Solar Eclipse | F41: 156 mm Mono Solar Cell | G41: 1.64 | H41: 1.01 | I41: 1.095 | J41: -0.01 | K41: -0.009
A42: Investing News Network (registration) | E42: 2017-08-25 | F42: China Poly Cell Per Watt | G42: Visit here for more detail Cell price information
A43: Alternative energy: Residential solar power systems rising in ... | F43: Non (TW or CN) Poly Cell Per Watt | G43: Visit here for more detail Cell price information
A44: Tulsa World | E44: 2017-08-25 | F44: Unit: USD | G44: more | I44: Last Update: 2017-08-23
A45: Eclipse offers power companies opportunity for experiments | F45: Solar PV Module Weekly Spot Price
A46: The Gazette: Eastern Iowa Breaking News and Headlines | E46: 2017-08-25 | F46: Item | G46: High | H46: Low | I46: Average | J46: AvgChg | K46: AvgChg %
A47: Engie in talks with AST to provide off-grid power to telcos, banks | F47: Poly Silicon Solar Module | G47: 0.41 | H47: 0.28 | I47: 0.321 | J47: -0.002 | K47: -0.0062
A48: Livemint | E48: 2017-08-25 | F48: ThinFilm Solar Module | G48: 0.42 | H48: 0.29 | I48: 0.34 | J48: -0.002 | K48: -0.0058
A49: Total Eclipse Vs Solar Power | F49: US Multi Solar Module | G49: Visit here for more detail module price information
A50: Sky & Telescope | E50: 2017-08-25 | F50: Mono Silicon Solar Module | G50: Visit here for more detail module price information
A51: Last Update: 2017-Aug- 26 23:00 (GMT+8) | F51: India Poly Module | G51: Visit here for more detail module price information
F52: Unit: USD / Watt | G52: more | I52: Last Update: 2017-08-23
F53: All Spot Prices are Tax excluded and updated on Wednesday
A59: Price Methodology | B59: Terms of Use | C59: Privacy Policy | D59: About Us | E59: Contact Us | F59: Site Map
A60: Copyright © 2017 PVinsights.com All rights reserved

Sheet pvinsights 16 09 17
B1: Login | C1: Register | D1: Member Center
A3: Home | B3: Why Solar | C3: Retailer Price | D3: Contract Price | E3: Inverter Price | F3: Weekly Snapshots | G3: Price Download | H3: Monthly Insights | I3: Weekly Forecast | J3: Price Forecast | K3: Premier Insights | L3: Premier Data | M3: Advertising
A5: Key Date of The US 2017 Section 201 Safeguard Investigation
A8: Solar PV Corporate News Release | F8: PV Poly Silicon Weekly Spot Price
A9: Panasonic Solar Promotes First Group of Authorized Installers to Premium Level | F9: Item | G9: High | H9: Low | I9: Average | J9: AvgChg | K9: AvgChg%
A10: Panasonic | C10: 2017-07-26 | F10: PV Grade PolySilicon (9N/9N+) | G10: 19.57 | H10: 12.5 | I10: 16.71 | J10: 0 | K10: 0
A11: Benefiting from the Leading Edge Technology, TZS Announced Mono-Crystalline Wafer Price Modification | F11: 2nd Grade PolySilicon (6N-8N) | G11: 17.5 | H11: 10.5 | I11: 13.6 | J11: 0 | K11: 0
A12: TZS | C12: 2017-07-18 | F12: PV Grade PolySilicon in China (9N/9N+) | G12: Visit here for more Poly-Si price | K12: %
A13: Canadian Solar Reports First Quarter 2017 Results | F13: PV Grade PolySilicon Outside China (9N/9N+) | G13: Visit here for more Poly-Si price | K13: %
A14: CanadianSola | C14: 2017-06-06 | F14: Unit: USD/Kg | G14: more | I14: Last Update: 2017-09-13
A15: JinkoSolar Announces First Quarter 2017 Financial Results | F15: Definition of PV Grade: Poly silicon chunk with high purity can be directly produced to Solar PV Ingots / Bricks
A16: Jinko | C16: 2017-06-05 | F16: Definition of 2nd Grade: Poly silicon chunk must be mixed with high purity polysilicon, when producing Solar PV Ingots / Bricks.
A17: Hanwha Q CELLS Reports | F17: PolySilicon Price In China: The Price is surveyed by RMB term with Tax and then shown in USD term without 17% of VAT.
A18: Hanwha Q Cel | C18: 2017-05-25 | F18: Solar PV Wafer Weekly Spot Price
A19: Latest Solar PV News | F19: Item | G19: High | H19: Low | I19: Average | J19: AvgChg | K19: AvgChg%
F20: 156 mm Multi Solar Wafer | G20: 0.72 | H20: 0.58 | I20: 0.657 | J20: -0.002 | K20: -0.003
A21: Top residential solar power companies in US | F21: 156 mm High Eff Multi Solar Wafer | G21: 0.72 | H21: 0.59 | I21: 0.663 | J21: -0.002 | K21: -0.003
A22: Energy Business Review | E22: 2017-09-16 | F22: 156 mm Mono Solar Wafer | G22: 0.82 | H22: 0.74 | I22: 0.769 | J22: -0.001 | K22: -0.0013
A23: The scramble for solar is on! Hundreds go solar as discount program ... | F23: 156 mm Mono Wafer Outside China | G23: 0.82 | H23: 0.77 | I23: 0.796 | J23: -0.001 | K23: -0.0013
A24: The Courier | E24: 2017-09-16 | F24: 156 mm Multi Wafer Outside China | G24: Visit here for more detail wafer price information
A25: 'Solarize Tonawanda' campaign offers incentive for homeowners to ... | F25: 156mm DiamondWire Poly Wafer | G25: Visit here for more detail wafer price information
A26: wivb.com | E26: 2017-09-14 | F26: 156 mm N-Mono Wafer | G26: Visit here for more detail
A27: Cost of US Solar Drops 75 percent in Six Years, Ahead of Federal ... | F27: Unit: USD | G27: more | I27: Last Update: 2017-09-13
A28: Yale Environment 360 | E28: 2017-09-14 | F28: Wafer Prices In China: The Prices are surveyed by RMB term with Tax and then shown in USD term without 17% of VAT.
A29: Massive jump in solar energy roll-out means scarcity fears ...
A30: The Sydney Morning Herald | E30: 2017-09-14
A31: Upper Merion Township receives 'SolSmart Bronze' Award for ...
A32: The Times Herald | E32: 2017-09-14
A33: TVA Now Using Solar Energy At New Allen Gas Plant | F33: Solar PV Cell Weekly Spot Price
A34: www.localmemphis.com | E34: 2017-09-14 | F34: Item | G34: High | H34: Low | I34: Average | J34: AvgChg | K34: AvgChg %
A35: Solar energy industry inefficient | F35: Multi Cell Price Per Watt | G35: 0.26 | H35: 0.2 | I35: 0.211 | J35: -0.001 | K35: -0.0047
A36: Allentown Morning Call | E36: 2017-09-14 | F36: Taiwan Poly Cell Per Watt | G36: 0.26 | H36: 0.2 | I36: 0.213 | J36: -0.001 | K36: -0.0047
A37: Phinma Energy to develop solar energy in Batangas | F37: Poly PERC Cell Per Watt | G37: 0.26 | H37: 0.23 | I37: 0.247 | J37: -0.001 | K37: -0.004
A38: Inquirer.net | E38: 2017-09-14 | F38: Mono PERC Cell Per Watt | G38: 0.32 | H38: 0.27 | I38: 0.285 | J38: -0.002 | K38: -0.007
A39: Pro-Tech Energy Solutions Named to Solar Power World's Top 500 ... | F39: Taiwan Mono PERC Cell Per Watt | G39: 0.32 | H39: 0.23 | I39: 0.292 | J39: -0.001 | K39: -0.0034
A40: Marketwired (press release) | E40: 2017-09-14 | F40: 156 mm Multi Solar Cell | G40: 1.19 | H40: 0.85 | I40: 0.946 | J40: -0.004 | K40: -0.0042
A41: Solar power for Syria: Stepping away from the fuels at the centre of ... | F41: 156 mm Mono Solar Cell | G41: 1.64 | H41: 1.01 | I41: 1.085 | J41: -0.005 | K41: -0.0046
A42: Power Technology | E42: 2017-09-13 | F42: China Poly Cell Per Watt | G42: Visit here for more detail Cell price information
A43: Sunny Outlook for NJ's Solar Sector, Which Continues to Add Capacity | F43: Non (TW or CN) Poly Cell Per Watt | G43: Visit here for more detail Cell price information
A44: NJ Spotlight | E44: 2017-09-13 | F44: Unit: USD | G44: more | I44: Last Update: 2017-09-13
A45: Massachusetts solar marketplace changing | F45: Solar PV Module Weekly Spot Price
A46: Wicked Local Wayland | E46: 2017-09-13 | F46: Item | G46: High | H46: Low | I46: Average | J46: AvgChg | K46: AvgChg %
A47: French Ambassador opens solar power plant in Uttarakhand village | F47: Poly Silicon Solar Module | G47: 0.41 | H47: 0.28 | I47: 0.322 | J47: -0.001 | K47: -0.0031
A48: ETEnergyworld.com | E48: 2017-09-13 | F48: ThinFilm Solar Module | G48: 0.42 | H48: 0.29 | I48: 0.341 | J48: 0 | K48: 0
A49: Waseda Farms plugs into new energy source with solar power | F49: US Multi Solar Module | G49: Visit here for more detail module price information
A50: Wisconsin State Farmer | E50: 2017-09-13 | F50: Mono Silicon Solar Module | G50: Visit here for more detail module price information
A51: Last Update: 2017-Sep- 16 14:01 (GMT+8) | F51: India Poly Module | G51: Visit here for more detail module price information
F52: Unit: USD / Watt | G52: more | I52: Last Update: 2017-09-13
F53: All Spot Prices are Tax excluded and updated on Wednesday
A59: Price Methodology | B59: Terms of Use | C59: Privacy Policy | D59: About Us | E59: Contact Us | F59: Site Map
A60: Copyright © 2017 PVinsights.com All rights reserved

Sheet pvinsights 30 10 17
B1: Login | C1: Register | D1: Member Center
A3: Home | B3: Why Solar | C3: Retailer Price | D3: Contract Price | E3: Inverter Price | F3: Weekly Snapshots | G3: Price Download | H3: Monthly Insights | I3: Weekly Forecast | J3: Price Forecast | K3: Premier Insights | L3: Premier Data | M3: Advertising
A5: Key Date of The US 2017 Section 201 Safeguard Investigation
A8: Solar PV Corporate News Release | F8: PV Poly Silicon Weekly Spot Price
A9: Panasonic Solar Promotes First Group of Authorized Installers to Premium Level | F9: Item | G9: High | H9: Low | I9: Average | J9: AvgChg | K9: AvgChg%
A10: Panasonic | C10: 2017-07-26 | F10: PV Grade PolySilicon (9N/9N+) | G10: 19.3 | H10: 12.5 | I10: 16.68 | J10: 0 | K10: 0
A11: Benefiting from the Leading Edge Technology, TZS Announced Mono-Crystalline Wafer Price Modification | F11: 2nd Grade PolySilicon (6N-8N) | G11: 17.35 | H11: 10.5 | I11: 13.57 | J11: 0 | K11: 0
A12: TZS | C12: 2017-07-18 | F12: PV Grade PolySilicon in China (9N/9N+) | G12: Visit here for more Poly-Si price | K12: %
A13: Canadian Solar Reports First Quarter 2017 Results | F13: PV Grade PolySilicon Outside China (9N/9N+) | G13: Visit here for more Poly-Si price | K13: %
A14: CanadianSola | C14: 2017-06-06 | F14: Unit: USD/Kg | G14: more | I14: Last Update: 2017-10-25
A15: JinkoSolar Announces First Quarter 2017 Financial Results | F15: Definition of PV Grade: Poly silicon chunk with high purity can be directly produced to Solar PV Ingots / Bricks
A16: Jinko | C16: 2017-06-05 | F16: Definition of 2nd Grade: Poly silicon chunk must be mixed with high purity polysilicon, when producing Solar PV Ingots / Bricks.
A17: Hanwha Q CELLS Reports | F17: PolySilicon Price In China: The Price is surveyed by RMB term with Tax and then shown in USD term without 17% of VAT.
A18: Hanwha Q Cel | C18: 2017-05-25 | F18: Solar PV Wafer Weekly Spot Price
A19: Latest Solar PV News | F19: Item | G19: High | H19: Low | I19: Average | J19: AvgChg | K19: AvgChg%
F20: 156 mm Multi Solar Wafer | G20: 0.69 | H20: 0.58 | I20: 0.631 | J20: -0.003 | K20: -0.0047
A21: Initiate clean cooking movement by tapping solar energy market: PM ... | F21: 156 mm High Eff Multi Solar Wafer | G21: 0.69 | H21: 0.59 | I21: 0.637 | J21: -0.003 | K21: -0.0047
A22: Moneycontrol.com | E22: 2017-10-30 | F22: 156 mm Mono Solar Wafer | G22: 0.8 | H22: 0.74 | I22: 0.761 | J22: -0.003 | K22: -0.0039
A23: Solar power making gains | F23: 156 mm Mono Wafer Outside China | G23: 0.8 | H23: 0.77 | I23: 0.785 | J23: -0.005 | K23: -0.0063
A24: Lethbridge Herald | E24: 2017-10-30 | F24: 156 mm Multi Wafer Outside China | G24: Visit here for more detail wafer price information
A25: Sun kings: racing across Australia on solar power alone | F25: 156mm DiamondWire Poly Wafer | G25: Visit here for more detail wafer price information
A26: Telegraph.co.uk | E26: 2017-10-30 | F26: 156 mm N-Mono Wafer | G26: Visit here for more detail
A27: Nigeria: Sokoto State Govt to Connect Solar Power in Rural Areas | F27: Unit: USD | G27: more | I27: Last Update: 2017-10-25
A28: AllAfrica.com | E28: 2017-10-30 | F28: Wafer Prices In China: The Prices are surveyed by RMB term with Tax and then shown in USD term without 17% of VAT.
A29: PM Narendra Modi says more green energy should power India
A30: Financial Express | E30: 2017-10-30
A31: 'Need to focus more on renewable energy'
A32: The Hindu | E32: 2017-10-30
A33: New tech could turn windows into solar panels | F33: Solar PV Cell Weekly Spot Price
A34: The Sydney Morning Herald | E34: 2017-10-30 | F34: Item | G34: High | H34: Low | I34: Average | J34: AvgChg | K34: AvgChg %
A35: Solar Industry Anxious Ahead Of Tariff Decision | F35: Multi Cell Price Per Watt | G35: 0.24 | H35: 0.2 | I35: 0.204 | J35: -0.001 | K35: -0.0049
A36: NPR | E36: 2017-10-30 | F36: Taiwan Poly Cell Per Watt | G36: 0.24 | H36: 0.2 | I36: 0.204 | J36: -0.001 | K36: -0.0049
A37: Two major solar installations quadruple solar in Farmington electric ... | F37: Poly PERC Cell Per Watt | G37: 0.24 | H37: 0.23 | I37: 0.237 | J37: -0.002 | K37: -0.0084
A38: Farmington Daily Times | E38: 2017-10-30 | F38: Mono PERC Cell Per Watt | G38: 0.31 | H38: 0.26 | I38: 0.273 | J38: -0.002 | K38: -0.0073
A39: Possible tariff on imported solar panels makes the industry nervous | F39: Taiwan Mono PERC Cell Per Watt | G39: 0.31 | H39: 0.27 | I39: 0.277 | J39: -0.003 | K39: -0.0107
A40: Los Angeles Times | E40: 2017-10-30 | F40: 156 mm Multi Solar Cell | G40: 1.1 | H40: 0.85 | I40: 0.914 | J40: -0.004 | K40: -0.0044
A41: Backus renewable energy organization makes global connections | F41: 156 mm Mono Solar Cell | G41: 1.59 | H41: 0.96 | I41: 1.035 | J41: -0.005 | K41: -0.0048
A42: Duluth News Tribune | E42: 2017-10-28 | F42: China Poly Cell Per Watt | G42: Visit here for more detail Cell price information
A43: Interest in solar batteries spikes after Hurricane Irma power outages | F43: Non (TW or CN) Poly Cell Per Watt | G43: Visit here for more detail Cell price information
A44: Bradenton Herald | E44: 2017-10-28 | F44: Unit: USD | G44: more | I44: Last Update: 2017-10-25
A45: Switzerland Solar Energy Market Outlook to 2023 - Research and ... | F45: Solar PV Module Weekly Spot Price
A46: Business Wire (press release) | E46: 2017-10-28 | F46: Item | G46: High | H46: Low | I46: Average | J46: AvgChg | K46: AvgChg %
A47: Tesla uses solar energy to power Puerto Rico children's hospital | F47: Poly Silicon Solar Module | G47: 0.41 | H47: 0.28 | I47: 0.318 | J47: -0.001 | K47: -0.0031
A48: WSVN 7News | Miami News, Weather, Sports | Fort Lauderdale | E48: 2017-10-27 | F48: Poly High Eff / PERC Module | G48: 0.45 | H48: 0.35 | I48: 0.383 | J48: -0.001 | K48: -0.0026
A49: Elon Musk's Tesla delivers solar power to Puerto Rico children's ... | F49: Mono High Eff / PERC Module | G49: 0.55 | H49: 0.39 | I49: 0.425 | J49: -0.002 | K49: -0.0047
A50: Telegraph.co.uk | E50: 2017-10-27 | F50: ThinFilm Solar Module | G50: 0.42 | H50: 0.29 | I50: 0.339 | J50: 0 | K50: 0
A51: Last Update: 2017-Oct- 30 23:00 (GMT+8) | F51: US Multi Solar Module | G51: Visit here for more detail module price information
F52: Mono Silicon Solar Module | G52: Visit here for more detail module price information
F53: India Poly Module | G53: Visit here for more detail module price information
F54: Unit: USD / Watt | G54: more | I54: Last Update: 2017-10-25
F55: All Spot Prices are Tax excluded and updated on Wednesday
A61: Price Methodology | B61: Terms of Use | C61: Privacy Policy | D61: About Us | E61: Contact Us | F61: Site Map
A62: Copyright © 2017 PVinsights.com All rights reserved

Sheet pvinsights 20 11 17
B1: Login | C1: Register | D1: Member Center
A3: Home | B3: Why Solar | C3: Retailer Price | D3: Contract Price | E3: Inverter Price | F3: Weekly Snapshots | G3: Price Download | H3: Monthly Insights | I3: Weekly Forecast | J3: Price Forecast | K3: Premier Insights | L3: Premier Data | M3: Advertising
A5: Key Date of The US 2017 Section 201 Safeguard Investigation
A8: Solar PV Corporate News Release | F8: PV Poly Silicon Weekly Spot Price
A9: Panasonic Solar Promotes First Group of Authorized Installers to Premium Level | F9: Item | G9: High | H9: Low | I9: Average | J9: AvgChg | K9: AvgChg%
A10: Panasonic | C10: 2017-07-26 | F10: PV Grade PolySilicon (9N/9N+) | G10: 19.3 | H10: 12.5 | I10: 16.66 | J10: 0 | K10: 0
A11: Benefiting from the Leading Edge Technology, TZS Announced Mono-Crystalline Wafer Price Modification | F11: 2nd Grade PolySilicon (6N-8N) | G11: 17.35 | H11: 10.5 | I11: 13.56 | J11: 0 | K11: 0
A12: TZS | C12: 2017-07-18 | F12: PV Grade PolySilicon in China (9N/9N+) | G12: Visit here for more Poly-Si price | K12: %
A13: Canadian Solar Reports First Quarter 2017 Results | F13: PV Grade PolySilicon Outside China (9N/9N+) | G13: Visit here for more Poly-Si price | K13: %
A14: CanadianSola | C14: 2017-06-06 | F14: Unit: USD/Kg | G14: more | I14: Last Update: 2017-11-15
A15: JinkoSolar Announces First Quarter 2017 Financial Results | F15: Definition of PV Grade: Poly silicon chunk with high purity can be directly produced to Solar PV Ingots / Bricks
A16: Jinko | C16: 2017-06-05 | F16: Definition of 2nd Grade: Poly silicon chunk must be mixed with high purity polysilicon, when producing Solar PV Ingots / Bricks.
A17: Hanwha Q CELLS Reports | F17: PolySilicon Price In China: The Price is surveyed by RMB term with Tax and then shown in USD term without 17% of VAT.
A18: Hanwha Q Cel | C18: 2017-05-25 | F18: Solar PV Wafer Weekly Spot Price
A19: Latest Solar PV News | F19: Item | G19: High | H19: Low | I19: Average | J19: AvgChg | K19: AvgChg%
F20: 156 mm Multi Solar Wafer | G20: 0.69 | H20: 0.58 | I20: 0.626 | J20: -0.001 | K20: -0.0016
A21: Man injured after being shot with BB gun in Soulard | F21: 156 mm High Eff Multi Solar Wafer | G21: 0.69 | H21: 0.59 | I21: 0.632 | J21: -0.001 | K21: -0.0016
A22: KSDK | E22: 2017-11-20 | F22: 156 mm Mono Solar Wafer | G22: 0.8 | H22: 0.72 | I22: 0.735 | J22: -0.005 | K22: -0.0068
A23: Missouri city opens largest solar farm in the state | F23: 156 mm Mono Wafer Outside China | G23: 0.8 | H23: 0.74 | I23: 0.755 | J23: -0.005 | K23: -0.0066
A24: STLtoday.com | E24: 2017-11-20 | F24: 156 mm Multi Wafer Outside China | G24: Visit here for more detail wafer price information
A25: Go Green the Right Way | F25: 156mm DiamondWire Poly Wafer | G25: Visit here for more detail wafer price information
A26: RealClearEnergy | E26: 2017-11-20 | F26: 156 mm N-Mono Wafer | G26: Visit here for more detail
A27: Solar panels on skyscrapers not so farfetched | F27: Unit: USD | G27: more | I27: Last Update: 2017-11-15
A28: gulfnews.com | E28: 2017-11-20 | F28: Wafer Prices In China: The Prices are surveyed by RMB term with Tax and then shown in USD term without 17% of VAT.
A29: Solar 'revolution' as residents sharing energy create virtual power ...
A30: ABC Online | E30: 2017-11-20
A31: Beth McKee-Huger: Adding our part to renewable energy supply
A32: Greensboro News & Record | E32: 2017-11-20
A33: AGL to expand energy plan that allows householders to sell or share ... | F33: Solar PV Cell Weekly Spot Price
A34: The Advertiser | E34: 2017-11-20 | F34: Item | G34: High | H34: Low | I34: Average | J34: AvgChg | K34: AvgChg %
A35: The Coming Solar Energy Age? | F35: Multi Cell Price Per Watt | G35: 0.24 | H35: 0.19 | I35: 0.201 | J35: -0.001 | K35: -0.005
A36: ValueWalk | E36: 2017-11-20 | F36: Taiwan Poly Cell Per Watt | G36: 0.24 | H36: 0.19 | I36: 0.201 | J36: -0.001 | K36: -0.005
A37: Shallotte Community To Feature Solar Energy, Clean Water Systems | F37: Poly PERC Cell Per Watt | G37: 0.24 | H37: 0.21 | I37: 0.231 | J37: -0.001 | K37: -0.0043
A38: Greater Wilmington Business Journal | E38: 2017-11-18 | F38: Mono PERC Cell Per Watt | G38: 0.31 | H38: 0.24 | I38: 0.263 | J38: -0.003 | K38: -0.0113
A39: Despite huge Millington project, Tennessee lagging in solar power | F39: Taiwan Mono PERC Cell Per Watt | G39: 0.31 | H39: 0.25 | I39: 0.266 | J39: -0.003 | K39: -0.0112
A40: The Commercial Appeal | E40: 2017-11-18 | F40: 156 mm Multi Solar Cell | G40: 1.1 | H40: 0.81 | I40: 0.902 | J40: -0.005 | K40: -0.0055
A41: Rent-a-roof policy can give residential solar energy the push it ... | F41: 156 mm Mono Solar Cell | G41: 1.59 | H41: 0.91 | I41: 1.02 | J41: -0.005 | K41: -0.0049
A42: Hindustan Times | E42: 2017-11-18 | F42: China Poly Cell Per Watt | G42: Visit here for more detail Cell price information
A43: Credit Union Place solar panels and storage battery now online in ... | F43: Non (TW or CN) Poly Cell Per Watt | G43: Visit here for more detail Cell price information
A44: The Journal Pioneer | E44: 2017-11-18 | F44: Unit: USD | G44: more | I44: Last Update: 2017-11-15
A45: Solar energy project exceeds expectations in Summerside | F45: Solar PV Module Weekly Spot Price
A46: CBC.ca | E46: 2017-11-18 | F46: Item | G46: High | H46: Low | I46: Average | J46: AvgChg | K46: AvgChg %
A47: UB-led renewable energy project aims to leverage Buffalo's past ... | F47: Poly Silicon Solar Module | G47: 0.41 | H47: 0.28 | I47: 0.315 | J47: -0.001 | K47: -0.0032
A48: University at Buffalo Reporter | E48: 2017-11-17 | F48: Poly High Eff / PERC Module | G48: 0.45 | H48: 0.35 | I48: 0.379 | J48: -0.001 | K48: -0.0026
A49: Incredible Material That Harvests Light for Energy Just Like Plants ... | F49: Mono High Eff / PERC Module | G49: 0.55 | H49: 0.39 | I49: 0.417 | J49: -0.002 | K49: -0.0048
A50: Newsweek | E50: 2017-11-17 | F50: ThinFilm Solar Module | G50: 0.42 | H50: 0.29 | I50: 0.336 | J50: -0.001 | K50: -0.003
A51: Last Update: 2017-Nov- 20 20:02 (GMT+8) | F51: US Multi Solar Module | G51: Visit here for more detail module price information
F52: Mono Silicon Solar Module | G52: Visit here for more detail module price information
F53: India Poly Module | G53: Visit here for more detail module price information
F54: Unit: USD / Watt | G54: more | I54: Last Update: 2017-11-15
F55: All Spot Prices are Tax excluded and updated on Wednesday
A61: Price Methodology | B61: Terms of Use | C61: Privacy Policy | D61: About Us | E61: Contact Us | F61: Site Map
A62: Copyright © 2017 PVinsights.com All rights reserved

Sheet pvinsights 01 02 18
B1: Login | C1: Register | D1: Member Center
A3: Home | B3: Why Solar | C3: Retailer Price | D3: Contract Price | E3: Inverter Price | F3: Weekly Snapshots | G3: Price Download | H3: Monthly Insights | I3: Weekly Forecast | J3: Price Forecast | K3: Premier Insights | L3: Premier Data | M3: Advertising
A5: Key Date of The US 2017 Section 201 Safeguard Investigation
A8: Solar PV Corporate News Release | F8: PV Poly Silicon Weekly Spot Price
A9: Panasonic Solar Promotes First Group of Authorized Installers to Premium Level | F9: Item | G9: High | H9: Low | I9: Average | J9: AvgChg | K9: AvgChg%
A10: Panasonic | C10: 2017-07-26 | F10: PV Grade PolySilicon (9N/9N+) | G10: 20.25 | H10: 13 | I10: 17.44 | J10: -0.25 | K10: -0.0141
A11: Benefiting from the Leading Edge Technology, TZS Announced Mono-Crystalline Wafer Price Modification | F11: 2nd Grade PolySilicon (6N-8N) | G11: 17.8 | H11: 11 | I11: 14.08 | J11: -0.22 | K11: -0.0154
A12: TZS | C12: 2017-07-18 | F12: PV Grade PolySilicon in China (9N/9N+) | G12: Visit here for more Poly-Si price | K12: %
A13: Canadian Solar Reports First Quarter 2017 Results | F13: PV Grade PolySilicon Outside China (9N/9N+) | G13: Visit here for more Poly-Si price | K13: %
A14: CanadianSola | C14: 2017-06-06 | F14: Unit: USD/Kg | G14: more | I14: Last Update: 2018-01-31
A15: JinkoSolar Announces First Quarter 2017 Financial Results | F15: Definition of PV Grade: Poly silicon chunk with high purity can be directly produced to Solar PV Ingots / Bricks
A16: Jinko | C16: 2017-06-05 | F16: Definition of 2nd Grade: Poly silicon chunk must be mixed with high purity polysilicon, when producing Solar PV Ingots / Bricks.
A17: Hanwha Q CELLS Reports | F17: PolySilicon Price In China: The Price is surveyed by RMB term with Tax and then shown in USD term without 17% of VAT.
A18: Hanwha Q Cel | C18: 2017-05-25 | F18: Solar PV Wafer Weekly Spot Price
A19: Latest Solar PV News | F19: Item | G19: High | H19: Low | I19: Average | J19: AvgChg | K19: AvgChg%
F20: 156 mm Multi Solar Wafer | G20: 0.65 | H20: 0.52 | I20: 0.557 | J20: -0.041 | K20: -0.0686
A21: India achieves 20 GW solar capacity goal four years ahead of deadline | F21: 156 mm High Eff Multi Solar Wafer | G21: 0.65 | H21: 0.53 | I21: 0.563 | J21: -0.041 | K21: -0.0679
A22: Business Today | E22: 2018-02-01 | F22: 156 mm Mono Solar Wafer | G22: 0.77 | H22: 0.65 | I22: 0.674 | J22: -0.014 | K22: -0.0203
A23: Solar tariff's impact on New Mexico renewable energy disputed | F23: 156 mm Mono Wafer Outside China | G23: 0.77 | H23: 0.67 | I23: 0.685 | J23: -0.014 | K23: -0.02
A24: Deming Headlight | E24: 2018-02-01 | F24: 156 mm Multi Wafer Outside China | G24: Visit here for more detail wafer price information
A25: Shining a light on agricultural solar energy development | F25: 156mm DiamondWire Poly Wafer | G25: Visit here for more detail wafer price information
A26: Michigan State University Extension | E26: 2018-02-01 | F26: 156 mm N-Mono Wafer | G26: Visit here for more detail
A27: Trump administration to 'cut renewable energy office budget by ... | F27: Unit: USD | G27: more | I27: Last Update: 2018-01-31
A28: The Independent | E28: 2018-02-01 | F28: Wafer Prices In China: The Prices are surveyed by RMB term with Tax and then shown in USD term without 17% of VAT.
A29: The9 Singapore and a Solar Energy Company Signed a Partnership ...
A30: The Financial | E30: 2018-02-01
A31: Mayor of London launches £34 million energy efficiency and solar ...
A32: Climate Action Programme | E32: 2018-02-01
A33: Lawmakers Are Divided on How to Best Implement Renewable ... | F33: Solar PV Cell Weekly Spot Price
A34: WVTF | E34: 2018-02-01 | F34: Item | G34: High | H34: Low | I34: Average | J34: AvgChg | K34: AvgChg %
A35: Why I Chose Solar Power: A Self-Storage Owner Shares His Insight | F35: Multi Cell Price Per Watt | G35: 0.24 | H35: 0.17 | I35: 0.187 | J35: -0.007 | K35: -0.0361
A36: Inside Self | E36: 2018-02-01 | F36: Non China Poly Cell Per Watt | G36: 0.24 | H36: 0.18 | I36: 0.191 | J36: -0.005 | K36: -0.0255
A37: Alberta urged to require licensed land agents as wind and solar ... | F37: Poly PERC Cell Per Watt | G37: 0.24 | H37: 0.19 | I37: 0.204 | J37: -0.013 | K37: -0.0599
A38: CBC.ca | E38: 2018-02-01 | F38: Non China Poly PERC Cell Per Watt | G38: 0.24 | H38: 0.19 | I38: 0.206 | J38: -0.011 | K38: -0.0507
A39: White House to ask for 72 percent cut in renewable energy ... | F39: Mono PERC Cell Per Watt | G39: 0.27 | H39: 0.21 | I39: 0.223 | J39: -0.003 | K39: -0.0133
A40: The Hill | E40: 2018-02-01 | F40: Non China Mono PERC Cell Per Watt | G40: 0.27 | H40: 0.21 | I40: 0.225 | J40: -0.003 | K40: -0.0132
A41: Solar Cooperatives Launched In St. Petersburg To Broaden Support ... | F41: 156 mm Multi Solar Cell | G41: 1.1 | H41: 0.72 | I41: 0.838 | J41: -0.035 | K41: -0.0401
A42: WGCU News | E42: 2018-02-01 | F42: 156 mm Mono Solar Cell | G42: 1.39 | H42: 0.86 | I42: 0.94 | J42: -0.02 | K42: -0.0208
A43: Is a Transition to Renewable Energy on the Verge of Being ... | F43: China Poly Cell Per Watt | G43: Visit here for more detail Cell price information
A44: Knowledge@Wharton | E44: 2018-02-01 | F44: Non (TW or CN) Poly Cell Per Watt | G44: Visit here for more detail Cell price information
A45: Solar energy can create more good jobs | F45: Unit: USD | G45: more | I45: Last Update: 2018-01-31
A46: Newton Daily News | E46: 2018-02-01 | F46: Solar PV Module Weekly Spot Price
A47: IREDA, Rewa Ultra Mega Solar sign loan agreement | F47: Item | G47: High | H47: Low | I47: Average | J47: AvgChg | K47: AvgChg %
A48: Business Line | E48: 2018-02-01 | F48: Poly Silicon Solar Module | G48: 0.41 | H48: 0.27 | I48: 0.31 | J48: 0 | K48: 0
A49: Montana solar panel installers not fazed by new tariff | F49: Poly High Eff / PERC Module | G49: 0.45 | H49: 0.33 | I49: 0.368 | J49: 0 | K49: 0
A50: NBC Montana | E50: 2018-02-01 | F50: Mono High Eff / PERC Module | G50: 0.55 | H50: 0.34 | I50: 0.396 | J50: 0 | K50: 0
A51: Last Update: 2018-Feb- 01 23:00 (GMT+8) | F51: ThinFilm Solar Module | G51: 0.42 | H51: 0.29 | I51: 0.331 | J51: 0 | K51: 0
F52: US Multi Solar Module | G52: Visit here for more detail module price information
F53: Mono Silicon Solar Module | G53: Visit here for more detail module price information
F54: India Poly Module | G54: Visit here for more detail module price information
F55: Unit: USD / Watt | G55: more | I55: Last Update: 2018-01-31
F56: All Spot Prices are Tax excluded and updated on Wednesday
A61: Price Methodology | B61: Terms of Use | C61: Privacy Policy | D61: About Us | E61: Contact Us | F61: Site Map
A62: Copyright © 2018 PVinsights.com All rights reserved

Sheet pvinsights 14 02 18
B1: Login | C1: Register | D1: Member Center
A3: Home | B3: Why Solar | C3: Retailer Price | D3: Contract Price | E3: Inverter Price | F3: Weekly Snapshots | G3: Price Download | H3: Monthly Insights | I3: Weekly Forecast | J3: Price Forecast | K3: Premier Insights | L3: Premier Data | M3: Advertising
A5: Key Date of The US 2017 Section 201 Safeguard Investigation
A8: Solar PV Corporate News Release | F8: PV Poly Silicon Weekly Spot Price
A9: Panasonic Solar Promotes First Group of Authorized Installers to Premium Level | F9: Item | G9: High | H9: Low | I9: Average | J9: AvgChg | K9: AvgChg%
A10: Panasonic | C10: 2017-07-26 | F10: PV Grade PolySilicon (9N/9N+) | G10: 18.65 | H10: 13 | I10: 16.32 | J10: -0.27 | K10: -0.0163
A11: Benefiting from the Leading Edge Technology, TZS Announced Mono-Crystalline Wafer Price Modification | F11: 2nd Grade PolySilicon (6N-8N) | G11: 16.5 | H11: 11 | I11: 13.41 | J11: -0.16 | K11: -0.0118
A12: TZS | C12: 2017-07-18 | F12: PV Grade PolySilicon in China (9N/9N+) | G12: Visit here for more Poly-Si price | K12: %
A13: Canadian Solar Reports First Quarter 2017 Results | F13: PV Grade PolySilicon Outside China (9N/9N+) | G13: Visit here for more Poly-Si price | K13: %
A14: CanadianSola | C14: 2017-06-06 | F14: Unit: USD/Kg | G14: more | I14: Last Update: 2018-02-14
A15: JinkoSolar Announces First Quarter 2017 Financial Results | F15: Definition of PV Grade: Poly silicon chunk with high purity can be directly produced to Solar PV Ingots / Bricks
A16: Jinko | C16: 2017-06-05 | F16: Definition of 2nd Grade: Poly silicon chunk must be mixed with high purity polysilicon, when producing Solar PV Ingots / Bricks.
A17: Hanwha Q CELLS Reports | F17: PolySilicon Price In China: The Price is surveyed by RMB term with Tax and then shown in USD term without 17% of VAT.
A18: Hanwha Q Cel | C18: 2017-05-25 | F18: Solar PV Wafer Weekly Spot Price
A19: Latest Solar PV News | F19: Item | G19: High | H19: Low | I19: Average | J19: AvgChg | K19: AvgChg%
F20: 156 mm Multi Solar Wafer | G20: 0.6 | H20: 0.52 | I20: 0.534 | J20: -0.002 | K20: -0.0037
A21: Schaumburg Receives Silver Designation for Advancements in ... | F21: 156 mm High Eff Multi Solar Wafer | G21: 0.6 | H21: 0.53 | I21: 0.54 | J21: -0.002 | K21: -0.0037
A22: Chicago Tribune | E22: 2018-02-15 | F22: 156 mm Mono Solar Wafer | G22: 0.74 | H22: 0.64 | I22: 0.655 | J22: -0.002 | K22: -0.003
A23: Florida Matters Re-Broadcast: Solar Power In The Sunshine State | F23: 156 mm Mono Wafer Outside China | G23: 0.74 | H23: 0.65 | I23: 0.666 | J23: -0.002 | K23: -0.003
A24: WUSF News | E24: 2018-02-15 | F24: 156 mm Multi Wafer Outside China | G24: Visit here for more detail wafer price information
A25: Case to decide if Ann Arbor can keep taxing solar energy systems | F25: 156mm DiamondWire Poly Wafer | G25: Visit here for more detail wafer price information
A26: MLive.com | E26: 2018-02-15 | F26: 156 mm N-Mono Wafer | G26: Visit here for more detail
A27: Renewable energy still trending up for Delaware with solar, wind ... | F27: Unit: USD | G27: more | I27: Last Update: 2018-02-14
A28: Delmarva Daily Times | E28: 2018-02-15 | F28: Wafer Prices In China: The Prices are surveyed by RMB term with Tax and then shown in USD term without 17% of VAT.
A29: Tasmanian State Election 2018: Labor pushes for solar power stations
A30: The Mercury | E30: 2018-02-15
A31: Putnam County expands zoning ordinance to allow for solar energy
A32: LaSalle News Tribune | E32: 2018-02-15
A33: IBC SOLAR and EVBox announce partnership to combine solar ... | F33: Solar PV Cell Weekly Spot Price
A34: Sun & Wind Energy | E34: 2018-02-15 | F34: Item | G34: High | H34: Low | I34: Average | J34: AvgChg | K34: AvgChg %
A35: BP School District Is Looking At Solar Energy | F35: Multi Cell Price Per Watt | G35: 0.24 | H35: 0.17 | I35: 0.182 | J35: -0.001 | K35: -0.0055
A36: Belleplaineherald | E36: 2018-02-15 | F36: Non China Poly Cell Per Watt | G36: 0.24 | H36: 0.18 | I36: 0.185 | J36: -0.001 | K36: -0.0054
A37: Time is up for solar subsidies pushed by the elite, anti-coal activists | F37: Poly PERC Cell Per Watt | G37: 0.24 | H37: 0.19 | I37: 0.199 | J37: -0.001 | K37: -0.005
A38: Lexington Herald Leader | E38: 2018-02-15 | F38: Non China Poly PERC Cell Per Watt | G38: 0.24 | H38: 0.19 | I38: 0.2 | J38: -0.001 | K38: -0.005
A39: In Brief: the Economics of Renewable Energy | F39: Mono PERC Cell Per Watt | G39: 0.27 | H39: 0.21 | I39: 0.219 | J39: -0.001 | K39: -0.0045
A40: Albany Times Union (blog) | E40: 2018-02-15 | F40: Non China Mono PERC Cell Per Watt | G40: 0.27 | H40: 0.21 | I40: 0.221 | J40: -0.001 | K40: -0.0045
A41: Solar energy garden draws concerns over glare, property values | F41: 156 mm Multi Solar Cell | G41: 1.1 | H41: 0.72 | I41: 0.816 | J41: -0.005 | K41: -0.0061
A42: Mountain Mail Newspaper | E42: 2018-02-15 | F42: 156 mm Mono Solar Cell | G42: 1.39 | H42: 0.86 | I42: 0.93 | J42: -0.005 | K42: -0.0053
A43: Mysuru City Corporation finally takes the solar route | F43: China Poly Cell Per Watt | G43: Visit here for more detail Cell price information
A44: The Hindu | E44: 2018-02-14 | F44: Non (TW or CN) Poly Cell Per Watt | G44: Visit here for more detail Cell price information
A45: Billionaire Trump Foe Behind Solar Energy Measures in Arizona ... | F45: Unit: USD | G45: more | I45: Last Update: 2018-02-14
A46: Phoenix New Times | E46: 2018-02-14 | F46: Solar PV Module Weekly Spot Price
A47: Iowa solar advocates fear proposals would stunt industry growth | F47: Item | G47: High | H47: Low | I47: Average | J47: AvgChg | K47: AvgChg %
A48: Quad City Times | E48: 2018-02-14 | F48: Poly Silicon Solar Module | G48: 0.41 | H48: 0.27 | I48: 0.309 | J48: 0 | K48: 0
A49: 'PDO aims to be leading player in solar energy development in region' | F49: Poly High Eff / PERC Module | G49: 0.45 | H49: 0.32 | I49: 0.366 | J49: -0.001 | K49: -0.0027
A50: Muscat Daily | E50: 2018-02-14 | F50: Mono High Eff / PERC Module | G50: 0.55 | H50: 0.33 | I50: 0.393 | J50: -0.001 | K50: -0.0025
A51: Last Update: 2018-Feb- 15 07:00 (GMT+8) | F51: ThinFilm Solar Module | G51: 0.42 | H51: 0.29 | I51: 0.33 | J51: 0 | K51: 0
F52: US Multi Solar Module | G52: Visit here for more detail module price information
F53: Mono Silicon Solar Module | G53: Visit here for more detail module price information
F54: India Poly Module | G54: Visit here for more detail module price information
F55: Unit: USD / Watt | G55: more | I55: Last Update: 2018-02-14
F56: All Spot Prices are Tax excluded and updated on Wednesday
A61: Price Methodology | B61: Terms of Use | C61: Privacy Policy | D61: About Us | E61: Contact Us | F61: Site Map
A62: Copyright © 2018 PVinsights.com All rights reserved

Sheet pvinsights 09 04 18
B1: Login | C1: Register | D1: Member Center
A3: Home | B3: Why Solar | C3: Retailer Price | D3: Contract Price | E3: Inverter Price | F3: Weekly Snapshots | G3: Price Download | H3: Monthly Insights | I3: Weekly Forecast | J3: Price Forecast | K3: Premier Insights | L3: Premier Data | M3: Advertising
A5: Key Date of The US 2017 Section 201 Safeguard Investigation
A8: Solar PV Corporate News Release | F8: PV Poly Silicon Weekly Spot Price
A9: Canadian Solar Reports Fourth Quarter and Full Year 2017 Results | F9: Item | G9: High | H9: Low | I9: Average | J9: AvgChg | K9: AvgChg%
A10: Canadian Sol | C10: 2018-03-19 | F10: PV Grade PolySilicon (9N/9N+) | G10: 17.7 | H10: 13 | I10: 15.41 | J10: 0.5 | K10: 0.0335
A11: First Solar, Inc. Announces Fourth Quarter & Full Year 2017 Financial Results | F11: 2nd Grade PolySilicon (6N-8N) | G11: 15.8 | H11: 11 | I11: 12.92 | J11: 0.44 | K11: 0.0353
A12: First Solar | C12: 2018-02-23 | F12: PV Grade PolySilicon in China (9N/9N+) | G12: Visit here for more Poly-Si price | K12: %
A13: SunPower Reports Fourth Quarter and FY 2017 Results | F13: PV Grade PolySilicon Outside China (9N/9N+) | G13: Visit here for more Poly-Si price | K13: %
A14: Sunpower | C14: 2018-02-15 | F14: Unit: USD/Kg | G14: more | I14: Last Update: 2018-04-04
A15: Panasonic Solar Promotes First Group of Authorized Installers to Premium Level | F15: Definition of PV Grade: Poly silicon chunk with high purity can be directly produced to Solar PV Ingots / Bricks
A16: Panasonic | C16: 2017-07-26 | F16: Definition of 2nd Grade: Poly silicon chunk must be mixed with high purity polysilicon, when producing Solar PV Ingots / Bricks.
A17: Benefiting from the Leading Edge Technology, TZS Announced Mono-Crystalline Wafer Price Modification | F17: PolySilicon Price In China: The Price is surveyed by RMB term with Tax and then shown in USD term without 17% of VAT.
A18: TZS | C18: 2017-07-18 | F18: Solar PV Wafer Weekly Spot Price
A19: Latest Solar PV News | F19: Item | G19: High | H19: Low | I19: Average | J19: AvgChg | K19: AvgChg%
F20: 156 mm Multi Solar Wafer | G20: 0.58 | H20: 0.48 | I20: 0.503 | J20: -0.001 | K20: -0.002
A21: Google Say Renewable Energy Purchases Exceeded Consumption ... | F21: 156 mm High Eff Multi Solar Wafer | G21: 0.58 | H21: 0.49 | I21: 0.509 | J21: -0.001 | K21: -0.002
A22: eWeek | E22: 2018-04-09 | F22: 156 mm Mono Solar Wafer | G22: 0.72 | H22: 0.58 | I22: 0.615 | J22: 0 | K22: 0
A23: Sydney man touts household energy bill that is cheaper than his ... | F23: 156 mm Mono Wafer Outside China | G23: 0.72 | H23: 0.58 | I23: 0.62 | J23: 0 | K23: 0
A24: NEWS.com.au | E24: 2018-04-09 | F24: 156 mm Multi Wafer Outside China | G24: Visit here for more detail wafer price information
A25: Solar farms receive more cash from green subsidies than selling the ... | F25: 156mm DiamondWire Poly Wafer | G25: Visit here for more detail wafer price information
A26: Daily Mail | E26: 2018-04-09 | F26: 156 mm N-Mono Wafer | G26: Visit here for more detail
A27: 81000 solar panels: Washington's largest solar farm planned near ... | F27: Unit: USD | G27: more | I27: Last Update: 2018-04-04
A28: The Spokesman | E28: 2018-04-09 | F28: Wafer Prices In China: The Prices are surveyed by RMB term with Tax and then shown in USD term without 17% of VAT.
A29: Salt Lake City rises above many other American cities for solar energy
A30: WTVA | E30: 2018-04-09
A31: Solar Energy Leads New Investments in Power Generation, Says ...
A32: Prensa Latina | E32: 2018-04-09
A33: Melbourne solar panel users ditching major retailers for a ... | F33: Solar PV Cell Weekly Spot Price
A34: Herald Sun | E34: 2018-04-09 | F34: Item | G34: High | H34: Low | I34: Average | J34: AvgChg | K34: AvgChg %
A35: Montana's largest utility overpays for rooftop solar energy, study ... | F35: Multi Cell Price Per Watt | G35: 0.24 | H35: 0.16 | I35: 0.177 | J35: 0 | K35: 0
A36: Billings Gazette | E36: 2018-04-09 | F36: Non China Poly Cell Per Watt | G36: 0.24 | H36: 0.16 | I36: 0.179 | J36: 0 | K36: 0
A37: Solar array set for old Troy landfill | F37: Poly PERC Cell Per Watt | G37: 0.24 | H37: 0.18 | I37: 0.194 | J37: 0 | K37: 0
A38: Troy Record | E38: 2018-04-09 | F38: Non China Poly PERC Cell Per Watt | G38: 0.24 | H38: 0.18 | I38: 0.195 | J38: 0 | K38: 0
A39: How Standing Rock Is Leading by Example on Renewable Energy | F39: Mono PERC Cell Per Watt | G39: 0.26 | H39: 0.2 | I39: 0.21 | J39: -0.001 | K39: -0.0047
A40: Truth | E40: 2018-04-09 | F40: Non China Mono PERC Cell Per Watt | G40: 0.26 | H40: 0.2 | I40: 0.213 | J40: -0.001 | K40: -0.0047
A41: China becomes driving force for global surge in solar energy ... | F41: 156 mm Multi Solar Cell | G41: 1.1 | H41: 0.7 | I41: 0.808 | J41: 0 | K41: 0
A42: Xinhua | E42: 2018-04-09 | F42: 156 mm Mono Solar Cell | G42: 1.33 | H42: 0.82 | I42: 0.905 | J42: 0 | K42: 0
A43: Big push for renewable energy as companies plan to invest more ... | F43: China Poly Cell Per Watt | G43: Visit here for more detail Cell price information
A44: The Nation | E44: 2018-04-09 | F44: Non (TW or CN) Poly Cell Per Watt | G44: Visit here for more detail Cell price information
A45: $5m Solar Energy Park Planned For Grand Bahama | F45: Unit: USD | G45: more | I45: Last Update: 2018-04-04
A46: Bahamas Tribune | E46: 2018-04-07 | F46: Solar PV Module Weekly Spot Price
A47: FGCU using solar energy, go-karts to further sustainability initiatives | F47: Item | G47: High | H47: Low | I47: Average | J47: AvgChg | K47: AvgChg %
A48: Wink News | E48: 2018-04-07 | F48: Poly Silicon Solar Module | G48: 0.41 | H48: 0.27 | I48: 0.302 | J48: 0 | K48: 0
A49: EnergyAustralia launches trial to boost solar energy installations | F49: Poly High Eff / PERC Module | G49: 0.45 | H49: 0.32 | I49: 0.354 | J49: -0.002 | K49: -0.0056
A50: Herald Sun | E50: 2018-04-07 | F50: Mono High Eff / PERC Module | G50: 0.55 | H50: 0.33 | I50: 0.381 | J50: -0.002 | K50: -0.0052
A51: Last Update: 2018-Apr- 09 23:00 (GMT+8) | F51: ThinFilm Solar Module | G51: 0.42 | H51: 0.29 | I51: 0.322 | J51: -0.001 | K51: -0.0031
F52: US Multi Solar Module | G52: Visit here for more detail module price information
F53: Mono Silicon Solar Module | G53: Visit here for more detail module price information
F54: India Poly Module | G54: Visit here for more detail module price information
F55: Unit: USD / Watt | G55: more | I55: Last Update: 2018-04-04
F56: All Spot Prices are Tax excluded and updated on Wednesday
A61: Price Methodology | B61: Terms of Use | C61: Privacy Policy | D61: About Us | E61: Contact Us | F61: Site Map
A62: Copyright © 2018 PVinsights.com All rights reserved

Sheet pvinsights 05 06 18
B1: Login | C1: Register | D1: Member Center
A3: Home | B3: Why Solar | C3: Retailer Price | D3: Contract Price | E3: Inverter Price | F3: Weekly Snapshots | G3: Price Download | H3: Monthly Insights | I3: Weekly Forecast | J3: Price Forecast | K3: Premier Insights | L3: Premier Data | M3: Advertising
F4: PV Poly Silicon Weekly Spot Price
A5: Key Date of The US 2017 Section 201 Safeguard Investigation | F5: Item | G5: High | H5: Low | I5: Average | J5: AvgChg | K5: AvgChg%
F6: PV Grade PolySilicon (9N/9N+) | G6: 16.43 | H6: 12.9 | I6: 14.65 | J6: -0.49 | K6: -0.0324
F7: 2nd Grade PolySilicon (6N-8N) | G7: 14.75 | H7: 11 | I7: 12.3 | J7: -0.38 | K7: -0.03
A8: Solar PV Corporate News Release | F8: PV Grade PolySilicon in China (9N/9N+) | G8: Visit here for more Poly-Si price | K8: %
A9: Canadian Solar Reports First Quarter 2018 Results | F9: PV Grade PolySilicon Outside China (9N/9N+) | G9: Visit here for more Poly-Si price | K9: %
A10: Canadian Sol | C10: 2018-05-16 | F10: Unit: USD/Kg | G10: more | I10: Last Update: 2018-05-30
A11: With 4GW advance PERC capacity, Aiko Solar is now the best and largest PERC cell supplier over the world | F11: Definition of PV Grade: Poly silicon chunk with high purity can be directly produced to Solar PV Ingots / Bricks
A12: Aiko Solar | C12: 2018-05-14 | F12: Definition of 2nd Grade: Poly silicon chunk must be mixed with high purity polysilicon, when producing Solar PV Ingots / Bricks.
A13: Hanwha Q CELLS Reports First Quarter 2018 Results | F13: PolySilicon Price In China: The Price is surveyed by RMB term with Tax and then shown in USD term without 16% of VAT after May 1, 2018 and 17% of VAT before May 1, 2018.
A14: Hanwha Q-Cel | C14: 2018-05-14 | F14: Solar PV Wafer Weekly Spot Price
A15: JA Solar Announces Fourth Quarter and Fiscal Year 2017 Results | F15: Item | G15: High | H15: Low | I15: Average | J15: AvgChg | K15: AvgChg%
A16: JA Solar | C16: 2018-04-30 | F16: 156 mm Multi Solar Wafer | G16: 0.47 | H16: 0.39 | I16: 0.415 | J16: -0.03 | K16: -0.0674
A17: First Solar, Inc. Announces First Quarter 2018 Financial Results | F17: 156 mm High Eff Multi Solar Wafer | G17: 0.47 | H17: 0.4 | I17: 0.42 | J17: -0.03 | K17: -0.0667
A18: First Solar | C18: 2018-04-27 | F18: 156 mm Mono Solar Wafer | G18: 0.64 | H18: 0.54 | I18: 0.568 | J18: -0.022 | K18: -0.0373
A19: Latest Solar PV News | F19: 156 mm Mono Wafer Outside China | G19: 0.64 | H19: 0.54 | I19: 0.578 | J19: -0.022 | K19: -0.0367
F20: 156 mm Multi Wafer Outside China | G20: Visit here for more detail wafer price information
A21: Video: 'Finger' Solar Power Project Signing | F21: 156mm DiamondWire Poly Wafer | G21: Visit here for more detail wafer price information
A22: Bernews | E22: 2018-06-05 | F22: 156 mm N-Mono Wafer | G22: Visit here for more detail
A23: Florida community enjoys near-free solar power | F23: Unit: USD | G23: more | I23: Last Update: 2018-05-30
A24: FOX 13 News, Tampa Bay | E24: 2018-06-05 | F24: Wafer Prices In China: The Prices are surveyed by RMB term with Tax and then shown in USD term without 16% of VAT after May 1, 2018 and 17% of VAT before May 1, 2018.
A25: Solar energy transforming agricultural scenario in MP
A26: Daily Pioneer | E26: 2018-06-05
A27: Warning about solar panels after fire in Wellbrooke Gardens
A28: Daily Echo | E28: 2018-06-05
A29: PPL acquires solar power company | F29: Solar PV Cell Weekly Spot Price
A30: Reading Eagle | E30: 2018-06-05 | F30: Item | G30: High | H30: Low | I30: Average | J30: AvgChg | K30: AvgChg %
A31: Ulverstone Neighbourhood House gets solar power grant from ... | F31: Multi Cell Price Per Watt | G31: 0.24 | H31: 0.15 | I31: 0.17 | J31: -0.002 | K31: -0.0116
A32: The Advocate | E32: 2018-06-05 | F32: Non China Poly Cell Per Watt | G32: 0.24 | H32: 0.15 | I32: 0.17 | J32: -0.002 | K32: -0.0116
A33: China Focus: China fuels clean energy growth | F33: Poly PERC Cell Per Watt | G33: 0.24 | H33: 0.18 | I33: 0.191 | J33: -0.002 | K33: -0.0104
A34: Xinhua | E34: 2018-06-05 | F34: Non China Poly PERC Cell Per Watt | G34: 0.24 | H34: 0.18 | I34: 0.193 | J34: -0.002 | K34: -0.0103
A35: Inside the New Technology That Could Transform the Solar Power ... | F35: Mono PERC Cell Per Watt | G35: 0.26 | H35: 0.2 | I35: 0.207 | J35: -0.002 | K35: -0.0096
A36: TIME | E36: 2018-06-05 | F36: Non China Mono PERC Cell Per Watt | G36: 0.26 | H36: 0.2 | I36: 0.209 | J36: -0.002 | K36: -0.0095
A37: Solar energy systems installed at three NYSDOT locations in WNY | F37: 156 mm Multi Solar Cell | G37: 1.1 | H37: 0.66 | I37: 0.776 | J37: -0.006 | K37: -0.0077
A38: WIVB | E38: 2018-06-05 | F38: 156 mm Mono Solar Cell | G38: 1.33 | H38: 0.82 | I38: 0.89 | J38: -0.01 | K38: -0.0111
A39: Solar power plant deal signed | F39: China Poly Cell Per Watt | G39: Visit here for more detail Cell price information
A40: Royal Gazette | E40: 2018-06-05 | F40: Non (TW or CN) Poly Cell Per Watt | G40: Visit here for more detail Cell price information
A41: Discoms to buy 750 MW solar power | F41: Unit: USD | G41: more | I41: Last Update: 2018-05-30
A42: The Hindu | E42: 2018-06-05 | F42: Solar PV Module Weekly Spot Price
A43: Your Town Minocqua: Lakeland HS solar panels educate students ... | F43: Item | G43: High | H43: Low | I43: Average | J43: AvgChg | K43: AvgChg %
A44: WSAW | E44: 2018-06-05 | F44: Poly Silicon Solar Module | G44: 0.41 | H44: 0.27 | I44: 0.292 | J44: -0.003 | K44: -0.0102
A45: Off the grid | F45: Poly High Eff / PERC Module | G45: 0.45 | H45: 0.31 | I45: 0.341 | J45: -0.003 | K45: -0.0087
A46: BlueRidgeNow.com | E46: 2018-06-05 | F46: Mono High Eff / PERC Module | G46: 0.55 | H46: 0.32 | I46: 0.366 | J46: -0.002 | K46: -0.0054
A47: Renewable energy sector sees increasing appeal among job ... | F47: ThinFilm Solar Module | G47: 0.42 | H47: 0.29 | I47: 0.314 | J47: -0.001 | K47: -0.0032
A48: United News of India | E48: 2018-06-04 | F48: US Multi Solar Module | G48: Visit here for more detail module price information
A49: Renewable energy reaches record high in 2017, research shows | F49: Mono Silicon Solar Module | G49: Visit here for more detail module price information
A50: Business Review | E50: 2018-06-04 | F50: India Poly Module | G50: Visit here for more detail module price information
A51: Last Update: 2018-Jun- 05 23:00 (GMT+8) | F51: Unit: USD / Watt | G51: more | I51: Last Update: 2018-05-30
F52: All Spot Prices are Tax excluded and updated on Wednesday
A57: Price Methodology | B57: Terms of Use | C57: Privacy Policy | D57: About Us | E57: Contact Us | F57: Site Map
A58: Copyright © 2018 PVinsights.com All rights reserved

Sheet pvinsights 09 07 18
B1: Login | C1: Register | D1: Member Center
A3: Home | B3: Why Solar | C3: Retailer Price | D3: Contract Price | E3: Inverter Price | F3: Weekly Snapshots | G3: Price Download | H3: Monthly Insights | I3: Weekly Forecast | J3: Price Forecast | K3: Premier Insights | L3: Premier Data | M3: Advertising
A5: Key Date of The US 2017 Section 201 Safeguard Investigation
A8: Solar PV Corporate News Release | F8: PV Poly Silicon Weekly Spot Price
A9: JinkoSolar Announces First Quarter 2018 Financial Results | F9: Item | G9: High | H9: Low | I9: Average | J9: AvgChg | K9: AvgChg%
A10: Jinko | C10: 2018-06-26 | F10: PV Grade PolySilicon (9N/9N+) | G10: 12.89 | H10: 9.77 | I10: 11.16 | J10: -0.13 | K10: -0.0115
A11: Canadian Solar Reports First Quarter 2018 Results | F11: 2nd Grade PolySilicon (6N-8N) | G11: 10.9 | H11: 7.35 | I11: 8.94 | J11: -0.11 | K11: -0.0122
A12: Canadian Sol | C12: 2018-05-16 | F12: PV Grade PolySilicon in China (9N/9N+) | G12: Visit here for more Poly-Si price | K12: %
A13: With 4GW advance PERC capacity, Aiko Solar is now the best and largest PERC cell supplier over the world | F13: PV Grade PolySilicon Outside China (9N/9N+) | G13: Visit here for more Poly-Si price | K13: %
A14: Aiko Solar | C14: 2018-05-14 | F14: Unit: USD/Kg | G14: more | I14: Last Update: 2018-07-04
A15: Hanwha Q CELLS Reports First Quarter 2018 Results | F15: Definition of PV Grade: Poly silicon chunk with high purity can be directly produced to Solar PV Ingots / Bricks
A16: Hanwha Q-Cel | C16: 2018-05-14 | F16: Definition of 2nd Grade: Poly silicon chunk must be mixed with high purity polysilicon, when producing Solar PV Ingots / Bricks.
A17: JA Solar Announces Fourth Quarter and Fiscal Year 2017 Results | F17: PolySilicon Price In China: The Price is surveyed by RMB term with Tax and then shown in USD term without 16% of VAT after May 1, 2018 and 17% of VAT before May 1, 2018.
A18: JA Solar | C18: 2018-04-30 | F18: Solar PV Wafer Weekly Spot Price
A19: Latest Solar PV News | F19: Item | G19: High | H19: Low | I19: Average | J19: AvgChg | K19: AvgChg%
F20: 156 mm Multi Solar Wafer | G20: 0.36 | H20: 0.28 | I20: 0.308 | J20: -0.01 | K20: -0.0314
A21: Rajasthan: Solar energy is now the preferred source of power | F21: 156 mm High Eff Multi Solar Wafer | G21: 0.36 | H21: 0.29 | I21: 0.313 | J21: -0.01 | K21: -0.031
A22: Daily News & Analysis | E22: 2018-07-09 | F22: 156 mm Mono Solar Wafer | G22: 0.47 | H22: 0.4 | I22: 0.428 | J22: -0.004 | K22: -0.0093
A23: Solar Energy Informational Meeting Set for Thursday | F23: 156 mm Mono Wafer Outside China | G23: 0.47 | H23: 0.4 | I23: 0.43 | J23: -0.004 | K23: -0.0092
A24: KNIA / KRLS Radio | E24: 2018-07-09 | F24: 156 mm Multi Wafer Outside China | G24: Visit here for more detail wafer price information
A25: Grants fund solar power for schools | F25: 156mm DiamondWire Poly Wafer | G25: Visit here for more detail wafer price information
A26: Rocky Mount Telegram | E26: 2018-07-09 | F26: 156 mm N-Mono Wafer | G26: Visit here for more detail
A27: Couple plans for renewable energy of solar panels to live off-grid | F27: Unit: USD | G27: more | I27: Last Update: 2018-07-04
A28: Record | E28: 2018-07-09 | F28: Wafer Prices In China: The Prices are surveyed by RMB term with Tax and then shown in USD term without 16% of VAT after May 1, 2018 and 17% of VAT before May 1, 2018.
A29: Study looks at boosting solar energy's future in Pennsylvania | F29: Solar PV Cell Weekly Spot Price
A30: Reading Eagle | E30: 2018-07-09 | F30: Item | G30: High | H30: Low | I30: Average | J30: AvgChg | K30: AvgChg %
A31: Duke Energy Solar Rebates Now Available In NC | F31: Multi Cell Price Per Watt | G31: 0.18 | H31: 0.12 | I31: 0.132 | J31: -0.003 | K31: -0.0222
A32: WFAE | E32: 2018-07-09 | F32: Non China Poly Cell Per Watt | G32: 0.18 | H32: 0.12 | I32: 0.132 | J32: -0.003 | K32: -0.0222
A33: Gwyn Morgan: Renewable energy is no quick fix for oil pipelines | F33: Poly PERC Cell Per Watt | G33: 0.18 | H33: 0.14 | I33: 0.156 | J33: -0.004 | K33: -0.025
A34: Times Colonist | E34: 2018-07-09 | F34: Non China Poly PERC Cell Per Watt | G34: 0.18 | H34: 0.15 | I34: 0.162 | J34: -0.002 | K34: -0.0122
A35: Energy boost: Yakima County could soon use sun, wind to its ... | F35: Mono PERC Cell Per Watt | G35: 0.23 | H35: 0.15 | I35: 0.167 | J35: -0.005 | K35: -0.0291
A36: Yakima Herald | E36: 2018-07-09 | F36: Non China Mono PERC Cell Per Watt | G36: 0.23 | H36: 0.16 | I36: 0.174 | J36: -0.004 | K36: -0.0225
A37: Wind and solar are called clean for a reason | F37: 156 mm Multi Solar Cell | G37: 0.84 | H37: 0.54 | I37: 0.609 | J37: -0.015 | K37: -0.024
A38: The Hill | E38: 2018-07-09 | F38: 156 mm Mono Solar Cell | G38: 1.18 | H38: 0.67 | I38: 0.737 | J38: -0.038 | K38: -0.049
A39: Town of Canton considering moratorium on solar power development | F39: China Poly Cell Per Watt | G39: Visit here for more detail Cell price information
A40: WatertownDailyTimes.com | E40: 2018-07-09 | F40: Non (TW or CN) Poly Cell Per Watt | G40: Visit here for more detail Cell price information
A41: The roiled solar power market shows how Trump's tariffs can disrupt ... | F41: Unit: USD | G41: more | I41: Last Update: 2018-07-04
A42: Los Angeles Times | E42: 2018-07-09 | F42: Solar PV Module Weekly Spot Price
A43: New Zealand's changing energy landscape to include solar micro ... | F43: Item | G43: High | H43: Low | I43: Average | J43: AvgChg | K43: AvgChg %
A44: Stuff.co.nz | E44: 2018-07-09 | F44: Poly Silicon Solar Module | G44: 0.41 | H44: 0.24 | I44: 0.266 | J44: -0.004 | K44: -0.0148
A45: 'Waterworld' folk tap solar power for clean drink | F45: Poly High Eff / PERC Module | G45: 0.45 | H45: 0.27 | I45: 0.321 | J45: -0.005 | K45: -0.0153
A46: Inquirer.net | E46: 2018-07-09 | F46: Mono High Eff / PERC Module | G46: 0.54 | H46: 0.3 | I46: 0.346 | J46: -0.006 | K46: -0.017
A47: Revised renewable energy goal to go before Concord City Council | F47: ThinFilm Solar Module | G47: 0.42 | H47: 0.26 | I47: 0.296 | J47: -0.004 | K47: -0.0133
A48: Concord Monitor | E48: 2018-07-09 | F48: US Multi Solar Module | G48: Visit here for more detail module price information
A49: Solar power users relying on more utilities with rainy days | F49: Mono Silicon Solar Module | G49: Visit here for more detail module price information
A50: WHSV | E50: 2018-07-07 | F50: India Poly Module | G50: Visit here for more detail module price information
A51: Last Update: 2018-Jul- 09 23:00 (GMT+8) | F51: Unit: USD / Watt | G51: more | I51: Last Update: 2018-07-04
F52: All Spot Prices are Tax excluded and updated on Wednesday
A53: Price Methodology | B53: Terms of Use | C53: Privacy Policy | D53: About Us | E53: Contact Us | F53: Site Map
A54: Copyright © 2018 PVinsights.com All rights reserved

Sheet pvinsights 31 08 18
B1: Login | C1: Register | D1: Member Center
A3: Home | B3: Why Solar | C3: Retailer Price | D3: Contract Price | E3: Inverter Price | F3: Weekly Snapshots | G3: Price Download | H3: Monthly Insights | I3: Weekly Forecast | J3: Price Forecast | K3: Premier Insights | L3: Premier Data | M3: Advertising
A5: Key Date of The US 2017 Section 201 Safeguard Investigation
A8: Solar PV Corporate News Release | F8: PV Poly Silicon Weekly Spot Price
A9: Hanwha Q CELLS Reports Second Quarter 2018 Results | F9: Item | G9: High | H9: Low | I9: Average | J9: AvgChg | K9: AvgChg%
A10: Hanwha Q-Cel | C10: 2018-08-13 | F10: PV Grade PolySilicon (9N/9N+) | G10: 13.3 | H10: 9.85 | I10: 11.26 | J10: -0.03 | K10: -0.0027
A11: JinkoSolar Announces Second Quarter 2018 Financial Results | F11: 2nd Grade PolySilicon (6N-8N) | G11: 10.9 | H11: 7.5 | I11: 9.02 | J11: -0.03 | K11: -0.0033
A12: Jinko | C12: 2018-08-13 | F12: PV Grade PolySilicon in China (9N/9N+) | G12: Visit here for more Poly-Si price | K12: %
A13: SunPower Reports Second Quarter 2018 Results | F13: PV Grade PolySilicon Outside China (9N/9N+) | G13: Visit here for more Poly-Si price | K13: %
A14: Sunpower | C14: 2018-07-31 | F14: Unit: USD/Kg | G14: more | I14: Last Update: 2018-08-29
A15: First Solar, Inc. Announces Second Quarter 2018 Financial Results | F15: Definition of PV Grade: Poly silicon chunk with high purity can be directly produced to Solar PV Ingots / Bricks
A16: First Solar | C16: 2018-07-27 | F16: Definition of 2nd Grade: Poly silicon chunk must be mixed with high purity polysilicon, when producing Solar PV Ingots / Bricks.
A17: JinkoSolar Announces First Quarter 2018 Financial Results | F17: PolySilicon Price In China: The Price is surveyed by RMB term with Tax and then shown in USD term without 16% of VAT after May 1, 2018 and 17% of VAT before May 1, 2018.
A18: Jinko | C18: 2018-06-26 | F18: Solar PV Wafer Weekly Spot Price
A19: Latest Solar PV News | F19: Item | G19: High | H19: Low | I19: Average | J19: AvgChg | K19: AvgChg%
F20: 156 mm Multi Solar Wafer | G20: 0.35 | H20: 0.28 | I20: 0.302 | J20: -0.006 | K20: -0.0195
A21: Solar panel maker to power DRC firms | F21: 156 mm High Eff Multi Solar Wafer | G21: 0.35 | H21: 0.29 | I21: 0.307 | J21: -0.006 | K21: -0.0192
A22: Chinadaily USA | E22: 2018-08-31 | F22: 156 mm Mono Solar Wafer | G22: 0.44 | H22: 0.37 | I22: 0.401 | J22: 0 | K22: 0
A23: Printed solar cells may help energy crisis | F23: 156 mm Mono Wafer Outside China | G23: 0.44 | H23: 0.37 | I23: 0.408 | J23: 0 | K23: 0
A24: Katherine Times | E24: 2018-08-30 | F24: 156 mm Multi Wafer Outside China | G24: Visit here for more detail wafer price information
A25: Solar panels that are as thick as a ¡§packet of chips¡¨ power ... | F25: 156mm DiamondWire Poly Wafer | G25: Visit here for more detail wafer price information
A26: Newcastle Herald | E26: 2018-08-30 | F26: 156 mm N-Mono Wafer | G26: Visit here for more detail
A27: Ultra thin solar panels | F27: Unit: USD | G27: more | I27: Last Update: 2018-08-29
A28: Newcastle Star | E28: 2018-08-30 | F28: Wafer Prices In China: The Prices are surveyed by RMB term with Tax and then shown in USD term without 16% of VAT after May 1, 2018 and 17% of VAT before May 1, 2018.
A29: Silfab Solar Invests in Itek Energy to Expand US Manufacturing | F29: Solar PV Cell Weekly Spot Price
A30: Hastings Tribune | E30: 2018-08-30 | F30: Item | G30: High | H30: Low | I30: Average | J30: AvgChg | K30: AvgChg %
A31: Renewable energy advocates ask for changes to state law on solar | F31: Multi Cell Price Per Watt | G31: 0.16 | H31: 0.105 | I31: 0.119 | J31: -0.002 | K31: -0.0165
A32: Spectrum News | E32: 2018-08-30 | F32: Non China Poly Cell Per Watt | G32: 0.16 | H32: 0.11 | I32: 0.12 | J32: -0.004 | K32: -0.0323
A33: PCC to offer learning lab in solar energy industry | F33: Poly PERC Cell Per Watt | G33: 0.16 | H33: 0.125 | I33: 0.13 | J33: -0.002 | K33: -0.0152
A34: Pueblo Chieftain | E34: 2018-08-30 | F34: Non China Poly PERC Cell Per Watt | G34: 0.16 | H34: 0.135 | I34: 0.14 | J34: -0.002 | K34: -0.0141
A35: The economy of sunshine: Alaskans finding solar energy use ... | F35: Mono PERC Cell Per Watt | G35: 0.18 | H35: 0.14 | I35: 0.142 | J35: 0 | K35: 0
A36: KTUU.com | E36: 2018-08-30 | F36: Non China Mono PERC Cell Per Watt | G36: 0.175 | H36: 0.135 | I36: 0.144 | J36: -0.006 | K36: -0.04
A37: The economy of sunshine: Solar boom in Alaska proves prosperous | F37: 156 mm Multi Solar Cell | G37: 0.75 | H37: 0.47 | I37: 0.547 | J37: -0.009 | K37: -0.0162
A38: KTUU.com | E38: 2018-08-30 | F38: 156 mm Mono Solar Cell | G38: 0.9 | H38: 0.53 | I38: 0.598 | J38: 0 | K38: 0
A39: NYS renewable energy advocates want an easier to understand ... | F39: China Poly Cell Per Watt | G39: Visit here for more detail Cell price information
A40: WBFO | E40: 2018-08-30 | F40: Non (TW or CN) Poly Cell Per Watt | G40: Visit here for more detail Cell price information
A41: New solar cells offer you the chance to print out solar panels and ... | F41: Unit: USD | G41: more | I41: Last Update: 2018-08-29
A42: The Conversation AU | E42: 2018-08-30 | F42: Solar PV Module Weekly Spot Price
A43: Ultralight solar cells created by University of Newcastle physicist ... | F43: Item | G43: High | H43: Low | I43: Average | J43: AvgChg | K43: AvgChg %
A44: Newcastle Herald | E44: 2018-08-30 | F44: Poly Solar Module | G44: 0.38 | H44: 0.23 | I44: 0.25 | J44: -0.002 | K44: -0.0079
A45: Air pollution can put a dent in solar power | F45: Poly Module in China | G45: 0.28 | H45: 0.23 | I45: 0.239 | J45: 0 | K45: 0
A46: MIT News | E46: 2018-08-29 | F46: Poly High Eff / PERC Module | G46: 0.42 | H46: 0.25 | I46: 0.292 | J46: -0.003 | K46: -0.0102
A47: Solar energy advocates want Cuomo to reinstate net metering for ... | F47: Mono High Eff / PERC Module | G47: 0.5 | H47: 0.27 | I47: 0.31 | J47: -0.004 | K47: -0.0127
A48: WRVO Public Media | E48: 2018-08-29 | F48: Mono High Eff / PERC Module in China | G48: 0.31 | H48: 0.27 | I48: 0.275 | J48: 0 | K48: 0
A49: Kyushu Electric mulls cutback on solar power | F49: ThinFilm Solar Module | G49: 0.42 | H49: 0.25 | I49: 0.274 | J49: -0.002 | K49: -0.0072
A50: Asahi Shimbun | E50: 2018-08-29 | F50: US Multi Solar Module | G50: Visit here for more detail module price information
A51: Last Update: 2018-Aug- 31 23:00 (GMT+8) | F51: Mono Silicon Solar Module | G51: Visit here for more detail module price information
F52: India Poly Module | G52: Visit here for more detail module price information
F53: Unit: USD / Watt | G53: more | I53: Last Update: 2018-08-29
F54: All Spot Prices are Tax excluded and updated on Wednesday
A55: Price Methodology | B55: Terms of Use | C55: Privacy Policy | D55: About Us | E55: Contact Us | F55: Site Map
A56: Copyright © 2018 PVinsights.com All rights reserved

Sheet pvinsights 21 09 18
B1: Login | C1: Register | D1: Member Center
A3: Home | B3: Why Solar | C3: Retailer Price | D3: Contract Price | E3: Inverter Price | F3: Weekly Snapshots | G3: Price Download | H3: Monthly Insights | I3: Weekly Forecast | J3: Price Forecast | K3: Premier Insights | L3: Premier Data | M3: Advertising
F4: PV Poly Silicon Weekly Spot Price
A5: Key Date of The US 2017 Section 201 Safeguard Investigation | F5: Item | G5: High | H5: Low | I5: Average | J5: AvgChg | K5: AvgChg%
F6: PV Grade PolySilicon (9N/9N+) | G6: 12.6 | H6: 9.69 | I6: 10.68 | J6: -0.1 | K6: -0.0093
F7: 2nd Grade PolySilicon (6N-8N) | G7: 10.3 | H7: 7.5 | I7: 8.59 | J7: -0.09 | K7: -0.0104
A8: Solar PV Corporate News Release | F8: PV Grade PolySilicon in China (9N/9N+) | G8: Visit here for more Poly-Si price | K8: %
A9: Hanwha Q CELLS Reports Second Quarter 2018 Results | F9: PV Grade PolySilicon Outside China (9N/9N+) | G9: Visit here for more Poly-Si price | K9: %
A10: Hanwha Q-Cel | C10: 2018-08-13 | F10: Unit: USD/Kg | G10: more | I10: Last Update: 2018-09-19
A11: JinkoSolar Announces Second Quarter 2018 Financial Results | F11: Definition of PV Grade: Poly silicon chunk with high purity can be directly produced to Solar PV Ingots / Bricks
A12: Jinko | C12: 2018-08-13 | F12: Definition of 2nd Grade: Poly silicon chunk must be mixed with high purity polysilicon, when producing Solar PV Ingots / Bricks.
A13: SunPower Reports Second Quarter 2018 Results | F13: PolySilicon Price In China: The Price is surveyed by RMB term with Tax and then shown in USD term without 16% of VAT after May 1, 2018 and 17% of VAT before May 1, 2018.
A14: Sunpower | C14: 2018-07-31 | F14: Solar PV Wafer Weekly Spot Price
A15: First Solar, Inc. Announces Second Quarter 2018 Financial Results | F15: Item | G15: High | H15: Low | I15: Average | J15: AvgChg | K15: AvgChg%
A16: First Solar | C16: 2018-07-27 | F16: 156 mm Multi Solar Wafer | G16: 0.34 | H16: 0.27 | I16: 0.286 | J16: -0.006 | K16: -0.0205
A17: JinkoSolar Announces First Quarter 2018 Financial Results | F17: 156 mm High Eff Multi Solar Wafer | G17: 0.34 | H17: 0.28 | I17: 0.291 | J17: -0.006 | K17: -0.0202
A18: Jinko | C18: 2018-06-26 | F18: 156 mm Mono Solar Wafer | G18: 0.44 | H18: 0.37 | I18: 0.394 | J18: -0.004 | K18: -0.0101
A19: Latest Solar PV News | F19: 156 mm Mono Wafer Outside China | G19: 0.44 | H19: 0.37 | I19: 0.402 | J19: -0.003 | K19: -0.0074
F20: 156 mm Multi Wafer Outside China | G20: Visit here for more detail wafer price information
A21: Solar energy company makes Pivot to new name, services as it ... | F21: 156mm DiamondWire Poly Wafer | G21: Visit here for more detail wafer price information
A22: The Denver Post | E22: 2018-09-21 | F22: 156 mm N-Mono Wafer | G22: Visit here for more detail
A23: Rooftop solar power expands in Zhejiang | F23: Unit: USD | G23: more | I23: Last Update: 2018-09-19
A24: Power Technology | E24: 2018-09-21 | F24: Wafer Prices In China: The Prices are surveyed by RMB term with Tax and then shown in USD term without 16% of VAT after May 1, 2018 and 17% of VAT before May 1, 2018.
A25: Solar-Log® Headliners at Solar Power International | F25: Solar PV Cell Weekly Spot Price
A26: AltEnergyMag (press release) | E26: 2018-09-21 | F26: Item | G26: High | H26: Low | I26: Average | J26: AvgChg | K26: AvgChg %
A27: Mission Solar Energy will debut four new solar panels at SPI | F27: Multi Cell Price Per Watt | G27: 0.16 | H27: 0.095 | I27: 0.111 | J27: -0.003 | K27: -0.0263
A28: Solar Power World | E28: 2018-09-21 | F28: Non China Poly Cell Per Watt | G28: 0.16 | H28: 0.1 | I28: 0.112 | J28: -0.003 | K28: -0.0261
A29: Standard Solar boosts community solar portfolio through acquisition ... | F29: Poly PERC Cell Per Watt | G29: 0.16 | H29: 0.11 | I29: 0.121 | J29: 0 | K29: 0
A30: pv magazine USAETEnergyworld.com | E30: 2018-09-21 | F30: Non China Poly PERC Cell Per Watt | G30: 0.16 | H30: 0.12 | I30: 0.131 | J30: 0 | K30: 0
A31: Crystal Lake home one stop on Illinois Solar Tour | F31: Mono PERC Cell Per Watt | G31: 0.175 | H31: 0.135 | I31: 0.142 | J31: 0 | K31: 0
A32: Northwest Herald | E32: 2018-09-21 | F32: Non China Mono PERC Cell Per Watt | G32: 0.175 | H32: 0.135 | I32: 0.142 | J32: 0 | K32: 0
A33: Taylor incurs wrath of community solar groups, including in his own ... | F33: High Eff Mono PERC Cell Per Watt | G33: 0.175 | H33: 0.14 | I33: 0.147 | J33: 0 | K33: 0
A34: RenewEconomy | E34: 2018-09-21 | F34: Bi-Facial Mono PERC Cell Per Watt | G34: 0.19 | H34: 0.15 | I34: 0.157 | J34: 0 | K34: 0
A35: Energising China's renewable power tariffs | F35: 156 mm Multi Solar Cell | G35: 0.75 | H35: 0.42 | I35: 0.507 | J35: -0.015 | K35: -0.0287
A36: East Asia Forum | E36: 2018-09-21 | F36: 156 mm Mono Solar Cell | G36: 0.9 | H36: 0.53 | I36: 0.598 | J36: 0 | K36: 0
A37: UN Secretary General to visit India with focus on renewable energy | F37: China Poly Cell Per Watt | G37: Visit here for more detail Cell price information
A38: Economic Times | E38: 2018-09-21 | F38: Non (TW or CN) Poly Cell Per Watt | G38: Visit here for more detail Cell price information
A39: India's renewable energy sector hits a milestone but loses speed | F39: Unit: USD | G39: more | I39: Last Update: 2018-09-19
A40: Livemint | E40: 2018-09-21 | F40: Solar PV Module Weekly Spot Price
A41: French Environment Minister Shakeup Dampens Renewable ... | F41: Item | G41: High | H41: Low | I41: Average | J41: AvgChg | K41: AvgChg %
A42: Greentech Media | E42: 2018-09-21 | F42: Poly Solar Module | G42: 0.36 | H42: 0.22 | I42: 0.242 | J42: -0.004 | K42: -0.0163
A43: Saudi energy firm plans to invest Rs6 billion in solar power project | F43: Poly Module in China | G43: 0.28 | H43: 0.22 | I43: 0.234 | J43: -0.004 | K43: -0.0168
A44: The News International | E44: 2018-09-21 | F44: Poly High Eff / PERC Module | G44: 0.4 | H44: 0.24 | I44: 0.28 | J44: -0.007 | K44: -0.0244
A45: TVA, environmental groups duel over the future of solar energy | F45: Mono High Eff / PERC Module | G45: 0.48 | H45: 0.26 | I45: 0.302 | J45: -0.003 | K45: -0.0098
A46: Knoxville News Sentinel | E46: 2018-09-21 | F46: Mono High Eff / PERC Module in China | G46: 0.31 | H46: 0.27 | I46: 0.273 | J46: -0.001 | K46: -0.0036
A47: City considers partnerships to bring solar energy to Soledad | F47: ThinFilm Solar Module | G47: 0.41 | H47: 0.24 | I47: 0.265 | J47: -0.003 | K47: -0.0112
A48: Soledad Bee | E48: 2018-09-21 | F48: US Multi Solar Module | G48: Visit here for more detail module price information
A49: Solar Energy Creating Value For A ¡§Just Energy Transition¡¨ | F49: Mono Silicon Solar Module | G49: Visit here for more detail module price information
A50: iAfrica.com | E50: 2018-09-21 | F50: India Poly Module | G50: Visit here for more detail module price information
A51: Last Update: 2018-Sep- 21 20:00 (GMT+8) | F51: Unit: USD / Watt | G51: more | I51: Last Update: 2018-09-19
F52: All Spot Prices are Tax excluded and updated on Wednesday
A57: Price Methodology | B57: Terms of Use | C57: Privacy Policy | D57: About Us | E57: Contact Us | F57: Site Map
A58: Copyright © 2018 PVinsights.com All rights reserved

Sheet pvinsights 31 10 18
B1: Login | C1: Register | D1: Member Center
A3: Home | B3: Why Solar | C3: Retailer Price | D3: Contract Price | E3: Inverter Price | F3: Weekly Snapshots | G3: Price Download | H3: Monthly Insights | I3: Weekly Forecast | J3: Price Forecast | K3: Premier Insights | L3: Premier Data | M3: Advertising
F4: PV Poly Silicon Weekly Spot Price
A5: Key Date of The US 2017 Section 201 Safeguard Investigation | F5: Item | G5: High | H5: Low | I5: Average | J5: AvgChg | K5: AvgChg%
F6: PV Grade PolySilicon (9N/9N+) | G6: 12.25 | H6: 8.7 | I6: 9.75 | J6: -0.26 | K6: -0.026
F7: 2nd Grade PolySilicon (6N-8N) | G7: 9.6 | H7: 6.5 | I7: 7.59 | J7: -0.33 | K7: -0.0417
A8: Solar PV Corporate News Release | F8: PV Grade PolySilicon in China (9N/9N+) | G8: Visit here for more Poly-Si price | K8: %
A9: First Solar, Inc. Announces Third Quarter 2018 Financial Results | F9: PV Grade PolySilicon Outside China (9N/9N+) | G9: Visit here for more Poly-Si price | K9: %
A10: First Solar | C10: Oct 26, 2018 | F10: Unit: USD/Kg | G10: more | I10: Last Update: 2018-10-31
A11: Hanwha Q CELLS Reports Second Quarter 2018 Results | F11: Definition of PV Grade: Poly silicon chunk with high purity can be directly produced to Solar PV Ingots / Bricks
A12: Hanwha Q-Cel | C12: Aug 13, 2018 | F12: Definition of 2nd Grade: Poly silicon chunk must be mixed with high purity polysilicon, when producing Solar PV Ingots / Bricks.
A13: JinkoSolar Announces Second Quarter 2018 Financial Results | F13: PolySilicon Price In China: The Price is surveyed by RMB term with Tax and then shown in USD term without 16% of VAT after May 1, 2018 and 17% of VAT before May 1, 2018.
A14: Jinko | C14: Aug 13, 2018 | F14: Solar PV Wafer Weekly Spot Price
A15: SunPower Reports Second Quarter 2018 Results | F15: Item | G15: High | H15: Low | I15: Average | J15: AvgChg | K15: AvgChg%
A16: Sunpower | C16: Jul 31, 2018 | F16: 156 mm Multi Solar Wafer | G16: 0.32 | H16: 0.26 | I16: 0.27 | J16: -0.001 | K16: -0.0037
A17: First Solar, Inc. Announces Second Quarter 2018 Financial Results | F17: 156 mm High Eff Multi Solar Wafer | G17: 0.32 | H17: 0.265 | I17: 0.275 | J17: -0.001 | K17: -0.0036
A18: First Solar | C18: Jul 27, 2018 | F18: 156 mm Mono Solar Wafer | G18: 0.41 | H18: 0.35 | I18: 0.372 | J18: -0.005 | K18: -0.0133
A19: Latest Solar PV News | F19: 156 mm Mono Wafer Outside China | G19: 0.41 | H19: 0.36 | I19: 0.385 | J19: -0.005 | K19: -0.0128
F20: 156 mm Multi Wafer Outside China | G20: Visit here for more detail wafer price information
A21: Floating solar panels in Kranji could be option for private firms ... | F21: 156mm DiamondWire Poly Wafer | G21: Visit here for more detail wafer price information
A22: TODAYonline | E22: Oct 31, 2018 | F22: 156 mm N-Mono Wafer | G22: Visit here for more detail
A23: Solar panel, renewable energy discussion to take place in North Lufkin | F23: Unit: USD | G23: more | I23: Last Update: 2018-10-31
A24: KTRE | E24: Oct 31, 2018 | F24: Wafer Prices In China: The Prices are surveyed by RMB term with Tax and then shown in USD term without 16% of VAT after May 1, 2018 and 17% of VAT before May 1, 2018.
A25: Solar energy lighting up the way to financial inclusion | F25: Solar PV Cell Weekly Spot Price
A26: Daily Monitor (press release) (blog) | E26: Oct 31, 2018 | F26: Item | G26: High | H26: Low | I26: Average | J26: AvgChg | K26: AvgChg %
A27: Floating solar energy transforming India into a greener nation | F27: Multi Cell Price Per Watt | G27: 0.14 | H27: 0.085 | I27: 0.101 | J27: -0.001 | K27: -0.0098
A28: ETEnergyworld.comGreen Matters | E28: Oct 31, 2018 | F28: Non China Poly Cell Per Watt | G28: 0.14 | H28: 0.09 | I28: 0.101 | J28: -0.001 | K28: -0.0098
A29: Solar experts talk benefits of solar energy in Hampton Roads | F29: Poly PERC Cell Per Watt | G29: 0.14 | H29: 0.1 | I29: 0.109 | J29: -0.002 | K29: -0.018
A30: wtkr.com | E30: Oct 31, 2018 | F30: Non China Poly PERC Cell Per Watt | G30: 0.14 | H30: 0.11 | I30: 0.12 | J30: -0.002 | K30: -0.0164
A31: US, South Africa partner on solar energy storage | F31: Mono PERC Cell Per Watt | G31: 0.17 | H31: 0.135 | I31: 0.14 | J31: 0 | K31: 0
A32: ESI Africa | E32: Oct 31, 2018 | F32: Non China Mono PERC Cell Per Watt | G32: 0.17 | H32: 0.135 | I32: 0.14 | J32: 0 | K32: 0
A33: Solar power 101 | F33: High Eff Mono PERC Cell Per Watt | G33: 0.17 | H33: 0.14 | I33: 0.145 | J33: 0 | K33: 0
A34: Tri-City Herald | E34: Oct 31, 2018 | F34: Bi-Facial Mono PERC Cell Per Watt | G34: 0.18 | H34: 0.15 | I34: 0.155 | J34: 0 | K34: 0
A35: Solar Renewable Energy Advocate | F35: 156 mm Multi Solar Cell | G35: 0.65 | H35: 0.38 | I35: 0.463 | J35: -0.006 | K35: -0.0128
A36: SustainableBusiness.com | E36: Oct 31, 2018 | F36: 156 mm Mono Solar Cell | G36: 0.87 | H36: 0.53 | I36: 0.59 | J36: 0 | K36: 0
A37: Regina pledges to go to 100% renewable energy by 2050 | F37: China Poly Cell Per Watt | G37: Visit here for more detail Cell price information
A38: CBC.ca | E38: Oct 31, 2018 | F38: Non (TW or CN) Poly Cell Per Watt | G38: Visit here for more detail Cell price information
A39: Europe's largest floating solar system to be powered by 17MW of PV ... | F39: Unit: USD | G39: more | I39: Last Update: 2018-10-31
A40: Energy Industry Review (press release) | E40: Oct 31, 2018 | F40: Solar PV Module Weekly Spot Price
A41: Floating solar tech increases hydropower output, finds report | F41: Item | G41: High | H41: Low | I41: Average | J41: AvgChg | K41: AvgChg %
A42: ESI Africa | E42: Oct 31, 2018 | F42: Poly Solar Module | G42: 0.33 | H42: 0.2 | I42: 0.224 | J42: -0.002 | K42: -0.0088
A43: Trina Solar supplies 17MW to the largest floating PV system in Europe | F43: Poly Module in China | G43: 0.26 | H43: 0.2 | I43: 0.212 | J43: -0.002 | K43: -0.0093
A44: PR Newswire (press release) | E44: Oct 31, 2018 | F44: Poly High Eff / PERC Module | G44: 0.37 | H44: 0.22 | I44: 0.256 | J44: -0.002 | K44: -0.0078
A45: Growing Exponentially, Floating Solar Opens Up New Horizons for ... | F45: Mono High Eff / PERC Module | G45: 0.42 | H45: 0.24 | I45: 0.273 | J45: -0.003 | K45: -0.0109
A46: The FINANCIAL | E46: Oct 31, 2018 | F46: Mono High Eff / PERC Module in China | G46: 0.27 | H46: 0.24 | I46: 0.251 | J46: -0.001 | K46: -0.004
A47: Queens lawmakers push for increased usage of solar power | F47: ThinFilm Solar Module | G47: 0.35 | H47: 0.22 | I47: 0.247 | J47: -0.003 | K47: -0.012
A48: TimesLedger | E48: Oct 31, 2018 | F48: US Multi Solar Module | G48: Visit here for more detail module price information
A49: Solar Power Jobs Campaign Aims to Provide Education, Training for ... | F49: Mono Silicon Solar Module | G49: Visit here for more detail module price information
A50: Solar Magazine | E50: Oct 31, 2018 | F50: India Poly Module | G50: Visit here for more detail module price information
A51: Last Update: 2018-Oct- 31 23:00 (GMT+8) | F51: Unit: USD / Watt | G51: more | I51: Last Update: 2018-10-31
F52: All Spot Prices are Tax excluded and updated on Wednesday
A53: Price Methodology | B53: Terms of Use | C53: Privacy Policy | D53: About Us | E53: Contact Us | F53: Site Map
A54: Copyright © 2018 PVinsights.com All rights reserved

Sheet pvinsights 02 12 18
B1: Login | C1: Register | D1: Member Center
A3: Home | B3: Why Solar | C3: Retailer Price | D3: Contract Price | E3: Inverter Price | F3: Weekly Snapshots | G3: Price Download | H3: Monthly Insights | I3: Weekly Forecast | J3: Price Forecast | K3: Premier Insights | L3: Premier Data | M3: Advertising
F4: PV Poly Silicon Weekly Spot Price
A5: Key Date of The US 2017 Section 201 Safeguard Investigation | F5: Item | G5: High | H5: Low | I5: Average | J5: AvgChg | K5: AvgChg%
F6: PV Grade PolySilicon (9N/9N+) | G6: 11.8 | H6: 8.7 | I6: 9.53 | J6: -0.03 | K6: -0.0031
F7: 2nd Grade PolySilicon (6N-8N) | G7: 9.3 | H7: 6.5 | I7: 7.4 | J7: -0.03 | K7: -0.004
A8: Solar PV Corporate News Release | F8: PV Grade PolySilicon in China (9N/9N+) | G8: Visit here for more Poly-Si price | K8: %
A9: JinkoSolar Announces Third Quarter 2018 Financial Results | F9: PV Grade PolySilicon Outside China (9N/9N+) | G9: Visit here for more Poly-Si price | K9: %
A10: JinkoSolar | C10: Nov 26, 2018 | F10: Unit: USD/Kg | G10: more | I10: Last Update: 2018-11-28
A11: CANADIAN SOLAR REPORTS THIRD QUARTER 2018 RESULTS | F11: Definition of PV Grade: Poly silicon chunk with high purity can be directly produced to Solar PV Ingots / Bricks
A12: CanadianSola | C12: Nov 15, 2018 | F12: Definition of 2nd Grade: Poly silicon chunk must be mixed with high purity polysilicon, when producing Solar PV Ingots / Bricks.
A13: SunPower Reports Third Quarter 2018 Results | F13: PolySilicon Price In China: The Price is surveyed by RMB term with Tax and then shown in USD term without 16% of VAT after May 1, 2018 and 17% of VAT before May 1, 2018.
A14: Sunpower | C14: Oct 31, 2018 | F14: Solar PV Wafer Weekly Spot Price
A15: First Solar, Inc. Announces Third Quarter 2018 Financial Results | F15: Item | G15: High | H15: Low | I15: Average | J15: AvgChg | K15: AvgChg%
A16: First Solar | C16: Oct 26, 2018 | F16: 156 mm Multi Solar Wafer | G16: 0.31 | H16: 0.26 | I16: 0.27 | J16: 0.002 | K16: 0.0075
A17: Hanwha Q CELLS Reports Second Quarter 2018 Results | F17: 156 mm High Eff Multi Solar Wafer | G17: 0.31 | H17: 0.265 | I17: 0.275 | J17: 0.002 | K17: 0.0073
A18: Hanwha Q-Cel | C18: Aug 13, 2018 | F18: 156 mm Mono Solar Wafer | G18: 0.41 | H18: 0.35 | I18: 0.371 | J18: 0 | K18: 0
A19: Latest Solar PV News | F19: 156 mm Mono Wafer Outside China | G19: 0.41 | H19: 0.36 | I19: 0.384 | J19: 0 | K19: 0
F20: 156 mm Multi Wafer Outside China | G20: Visit here for more detail wafer price information
A21: China Targets Cut in Wind-, Solar-Power Blocked From Grid Access | F21: 156mm DiamondWire Poly Wafer | G21: Visit here for more detail wafer price information
A22: Bloomberg | E22: Dec 01, 2018 | F22: 156 mm N-Mono Wafer | G22: Visit here for more detail
A23: Kenya secures funding for solar energy development | F23: Unit: USD | G23: more | I23: Last Update: 2018-11-28
A24: New Business Ethiopia | E24: Dec 01, 2018 | F24: Wafer Prices In China: The Prices are surveyed by RMB term with Tax and then shown in USD term without 16% of VAT after May 1, 2018 and 17% of VAT before May 1, 2018.
A25: Solar energy farm proposals for 250 acres of green fields | F25: Solar PV Cell Weekly Spot Price
A26: The Northern Echo | E26: Dec 01, 2018 | F26: Item | G26: High | H26: Low | I26: Average | J26: AvgChg | K26: AvgChg %
A27: Iron-based molecule could replace rarer metals in solar power ... | F27: Multi Cell Price Per Watt | G27: 0.135 | H27: 0.09 | I27: 0.101 | J27: 0.002 | K27: 0.0202
A28: Market Business News | E28: Dec 01, 2018 | F28: Non China Poly Cell Per Watt | G28: 0.14 | H28: 0.09 | I28: 0.101 | J28: 0.002 | K28: 0.0202
A29: New Brilliant Iron Molecule May Be the Key to Cheap Solar Energy | F29: Poly PERC Cell Per Watt | G29: 0.135 | H29: 0.105 | I29: 0.109 | J29: 0.002 | K29: 0.0187
A30: Interesting Engineering | E30: Dec 01, 2018 | F30: Non China Poly PERC Cell Per Watt | G30: 0.135 | H30: 0.115 | I30: 0.12 | J30: 0.002 | K30: 0.0169
A31: What Changed In The Solar Energy Industry In November? | F31: Mono PERC Cell Per Watt | G31: 0.17 | H31: 0.14 | I31: 0.145 | J31: 0.005 | K31: 0.0357
A32: CleanTechnica | E32: Dec 01, 2018 | F32: Non China Mono PERC Cell Per Watt | G32: 0.17 | H32: 0.14 | I32: 0.145 | J32: 0.005 | K32: 0.0357
A33: Windy weather carries Britain to renewable energy record | F33: High Eff Mono PERC Cell Per Watt | G33: 0.17 | H33: 0.145 | I33: 0.15 | J33: 0.005 | K33: 0.0345
A34: The Guardian | E34: Dec 01, 2018 | F34: 156 mm Multi Solar Cell | G34: 0.63 | H34: 0.4 | I34: 0.462 | J34: 0.006 | K34: 0.0132
A35: IRC at Buckhorn to use solar power | F35: 156 mm Mono Solar Cell | G35: 0.87 | H35: 0.53 | I35: 0.6 | J35: 0.01 | K35: 0.0169
A36: Altoona Mirror | E36: Dec 01, 2018 | F36: China Poly Cell Per Watt | G36: Visit here for more detail Cell price information
A37: Build A Bridge, Not A Wall: US Companies Have Renewable Energy ... | F37: Non (TW or CN) Poly Cell Per Watt | G37: Visit here for more detail Cell price information
A38: CleanTechnica | E38: Dec 01, 2018 | F38: Unit: USD | G38: more | I38: Last Update: 2018-11-28
A39: RPT-FEATURE-In Mexico, resistance to solar projects bodes badly ... | F39: High Efficency Mono PERC Cell: The Prices are mainly represented to solar cells for 21.7% efficiency with less than 2% of CTM efficiency lost.
A40: Reuters | E40: Dec 01, 2018 | F40: Solar PV Module Weekly Spot Price
A41: Texas and Mexico have a perfect partnership opportunity ... | F41: Item | G41: High | H41: Low | I41: Average | J41: AvgChg | K41: AvgChg %
A42: Dallas News (blog) | E42: Dec 01, 2018 | F42: Poly Solar Module | G42: 0.33 | H42: 0.19 | I42: 0.217 | J42: -0.003 | K42: -0.0136
A43: How Using Solar Power Energy Can Help Make Crypto Mining ... | F43: Poly Module in China | G43: 0.24 | H43: 0.19 | I43: 0.204 | J43: -0.004 | K43: -0.0192
A44: Bitcoin Exchange Guide | E44: Dec 01, 2018 | F44: Poly High Eff / PERC Module | G44: 0.37 | H44: 0.22 | I44: 0.252 | J44: 0 | K44: 0
A45: Clean energy technologies threaten to overwhelm the grid. Here's ... | F45: Mono High Eff / PERC Module | G45: 0.42 | H45: 0.24 | I45: 0.269 | J45: 0 | K45: 0
A46: Vox | E46: Dec 01, 2018 | F46: Mono High Eff / PERC Module in China | G46: 0.27 | H46: 0.24 | I46: 0.249 | J46: 0 | K46: 0
A47: Future of solar power looks bright | F47: ThinFilm Solar Module | G47: 0.35 | H47: 0.22 | I47: 0.243 | J47: -0.001 | K47: -0.0041
A48: Lethbridge Herald | E48: Dec 01, 2018 | F48: US Multi Solar Module | G48: Visit here for more detail module price information
A49: Solar power, brightening up your world | F49: Mono Silicon Solar Module | G49: Visit here for more detail module price information
A50: The New Indian Express | E50: Dec 01, 2018 | F50: India Poly Module | G50: Visit here for more detail module price information
A51: Last Update: 2018-Dec- 02 14:00 (GMT+8) | F51: Unit: USD / Watt | G51: more | I51: Last Update: 2018-11-28
F52: All Spot Prices are Tax excluded and updated on Wednesday
A53: Price Methodology | B53: Terms of Use | C53: Privacy Policy | D53: About Us | E53: Contact Us | F53: Site Map
A54: Copyright © 2018 PVinsights.com All rights reserved

Sheet pvinsights 02 01 19
B1: Login | C1: Register | D1: Member Center
A3: Home | B3: Why Solar | C3: Retailer Price | D3: Contract Price | E3: Inverter Price | F3: Weekly Snapshots | G3: Price Download | H3: Monthly Insights | I3: Weekly Forecast | J3: Price Forecast | K3: Premier Insights | L3: Premier Data | M3: Advertising
F4: PV Poly Silicon Weekly Spot Price
A5: Key Date of The US 2017 Section 201 Safeguard Investigation | F5: Item | G5: High | H5: Low | I5: Average | J5: AvgChg | K5: AvgChg%
F6: PV Grade PolySilicon (9N/9N+) | G6: 11.5 | H6: 8.45 | I6: 9.26 | J6: -0.27 | K6: -0.0283
F7: 2nd Grade PolySilicon (6N-8N) | G7: 9 | H7: 6.25 | I7: 7.16 | J7: -0.24 | K7: -0.0324
A8: Solar PV Corporate News Release | F8: PV Grade PolySilicon in China (9N/9N+) | G8: Visit here for more Poly-Si price | K8: %
A9: JinkoSolar Announces Third Quarter 2018 Financial Results | F9: PV Grade PolySilicon Outside China (9N/9N+) | G9: Visit here for more Poly-Si price | K9: %
A10: JinkoSolar | C10: Nov 26, 2018 | F10: Unit: USD/Kg | G10: more | I10: Last Update: 2019-01-02
A11: CANADIAN SOLAR REPORTS THIRD QUARTER 2018 RESULTS | F11: Definition of PV Grade: Poly silicon chunk with high purity can be directly produced to Solar PV Ingots / Bricks
A12: CanadianSola | C12: Nov 15, 2018 | F12: Definition of 2nd Grade: Poly silicon chunk must be mixed with high purity polysilicon, when producing Solar PV Ingots / Bricks.
A13: SunPower Reports Third Quarter 2018 Results | F13: PolySilicon Price In China: The Price is surveyed by RMB term with Tax and then shown in USD term without 16% of VAT after May 1, 2018 and 17% of VAT before May 1, 2018.
A14: Sunpower | C14: Oct 31, 2018 | F14: Solar PV Wafer Weekly Spot Price
A15: First Solar, Inc. Announces Third Quarter 2018 Financial Results | F15: Item | G15: High | H15: Low | I15: Average | J15: AvgChg | K15: AvgChg%
A16: First Solar | C16: Oct 26, 2018 | F16: 156 mm Multi Solar Wafer | G16: 0.3 | H16: 0.26 | I16: 0.272 | J16: -0.002 | K16: -0.0073
A17: Hanwha Q CELLS Reports Second Quarter 2018 Results | F17: 156 mm High Eff Multi Solar Wafer | G17: 0.3 | H17: 0.27 | I17: 0.277 | J17: -0.002 | K17: -0.0072
A18: Hanwha Q-Cel | C18: Aug 13, 2018 | F18: 156 mm Mono Solar Wafer | G18: 0.41 | H18: 0.36 | I18: 0.378 | J18: 0 | K18: 0
A19: Latest Solar PV News | F19: 156 mm Mono Wafer Outside China | G19: 0.41 | H19: 0.36 | I19: 0.389 | J19: 0 | K19: 0
F20: 156 mm Multi Wafer Outside China | G20: Visit here for more detail wafer price information
A21: Spotsylvania planners to address proposed solar power facility ... | F21: 156mm DiamondWire Poly Wafer | G21: Visit here for more detail wafer price information
A22: Fredericksburg.com | E22: Jan 03, 2019 | F22: 156 mm N-Mono Wafer | G22: Visit here for more detail
A23: Staring down tariffs and rollbacks, US renewables rang in a record ... | F23: Unit: USD | G23: more | I23: Last Update: 2019-01-02
A24: Utility Dive | E24: Jan 03, 2019 | F24: Wafer Prices In China: The Prices are surveyed by RMB term with Tax and then shown in USD term without 16% of VAT after May 1, 2018 and 17% of VAT before May 1, 2018.
A25: Coalition Releases '100 Day Clean Energy Agenda' For South ... | F25: Solar PV Cell Weekly Spot Price
A26: Solar Industry | E26: Jan 03, 2019 | F26: Item | G26: High | H26: Low | I26: Average | J26: AvgChg | K26: AvgChg %
A27: Watch: Why farmers are unhappy with Karnataka's big bet on solar ... | F27: Multi Cell Price Per Watt | G27: 0.135 | H27: 0.09 | I27: 0.105 | J27: 0 | K27: 0
